Workbook

Sheet Overview
C1: ******************************************************************************************************************************************************
C2: COPYRIGHT NOTIFICATION
C4: GREET® SOFTWARE
C6: GREET1 MODEL
C8: Email contact: greet@anl.gov
C9: ******************************************************************************************************************************************************
C11: © COPYRIGHT 2012 UChicago Argonne, LLC ALL RIGHTS RESERVED
C13: THIS SOFTWARE DISCLOSES MATERIAL PROTECTED UNDER COPYRIGHT LAW, AND FURTHER DISSEMINATION IS PROHIBITED WITHOUT PRIOR WRITTEN CONSENT OF THE PATENT COUNSEL OF ARGONNE NATIONAL LABORATORY, EXCEPT AS NOTED IN THE “LICENSING TERMS AND CONDITIONS” NOTED BELOW.
C15: ******************************************************************************************************************************************************
C17: ARGONNE NATIONAL LABORATORY, WITH A FACILITY IN THE STATE OF ILLINOIS, IS OWNED BY THE UNITED STATES GOVERNMENT, AND OPERATED BY UCHICAGO ARGONNE, LLC UNDER PROVISION OF A CONTRACT WITH THE DEPARTMENT OF ENERGY.
C20: ******************************************************************************************************************************************************
C22: GOVERNMENT LICENSE
C24: ******************************************************************************************************************************************************
C26: NOTICE: This data was produced by UChicago Argonne, LLC under Contract No. DE-AC02-06CH11357 with the Department of Energy. For 5 years from May 2012, the Government is granted for itself and others acting on its behalf a nonexclusive, paid-up, irrevocable worldwide license in this data to reproduce, prepare derivative works, and perform publicly and display publicly, by or on behalf of the Government. There is provision for the possible extension of the term of this license. Subsequent to that period or any extension granted, the Government is granted for itself and others acting on its behalf a nonexclusive, paid-up, irrevocable worldwide license in this ﻿data to reproduce, prepare derivative works, distribute copies to the public, perform publicly and display publicly, and to permit others to do so. The specific term of the license can be identified by inquiry made to UChicago Argonne, LLC or DOE.
C28: ******************************************************************************************************************************************************
C30: END-USER LICENSING TERMS AND CONDITIONS
C32: ******************************************************************************************************************************************************
C34: Redistribution and use of the GREET software is permitted provided that the following conditions are met:
C36: 1. Redistributions of the GREET software must retain the above copyright notice, this list of conditions and the following disclaimer. Modification or reverse compilation of the source code is not permitted.
C38: 2. Neither the names of UChicago Argonne, LLC or the Department of Energy nor the names of its contributors may be used to endorse or promote products derived from this software without prior written permission.
C40: 3. The software redistribution, if any, must include the following acknowledgment: "This product includes software produced by UChicago Argonne, LLC under Contract No. DE-AC02-06CH11357 with the Department of Energy.”
C42: 4. Any published results should indicate that the GREET software was developed by Argonne National Laboratory. If you publish results generated using GREET you should identify the GREET software version number. If you publish results generated using input data other than the input data supplied with the GREET software you must indicate that these results relied upon changed input data.
C44: *****************************************************************************************************************************************************
C46: DISCLAIMER
C48: *****************************************************************************************************************************************************
C51: THIS SOFTWARE AND MANUAL ARE SUPPLIED "AS IS" WITHOUT WARRANTY OF ANY KIND.
C52: Neither the United States GOVERNMENT, nor the United States Department of Energy, NOR uchicago argonne, LLC, nor any of their employees, makes any warranty, express or implied, or assumes any legal liability or responsibility for the accuracy, completeness, or usefulness of any information, data, apparatus, product, or process disclosed, or represents that its use would not infringe privately owned rights
C56: Color Scheme for Cells in the GREET Model
C57: Clear cells are primarily for calculations and secondary assumptions
C60: Yellow cells are key input assumptions that users can change for their own simulations
... 57 more rows

Sheet Region Selection
B1: Fuel Carbon Intensity Calculator for the Washington Clean Fuel Standard | Y1: Feedstock | Z1: 4 | AA1: 1 | AB1: 1-U.S Ave Mix | AC1: 1 | AD1: 1 | AE1: 1-U.S Ave Mix | AF1: 1 | AG1: 4 | AI1: 27 | AJ1: Electricity | AN1: Electricity
P2: This map shows Emissions & Generation Resource Integrated Database (eGRID) | Z2: =VLOOKUP(Z1,AA1:AB33,2) -> 4-NWPP Mix | AA2: 2 | AB2: 2-WAMX Mix | AC2: 2 | AD2: 2 | AE2: 2-WAMX Mix | AF2: 2 | AG2: =VLOOKUP(AG1,AD1:AE33,2) -> 4-NWPP Mix | AH2: 1 | AI2: SELECT ETHANOL----- | AM2: Feedstock Production, g/MJ
P3: 1 | Q3: US Average | R3: US Average | Y3: Feedstock | Z3: 2 | AA3: 3 | AB3: 3-CAMX Mix | AC3: 3 | AD3: 3 | AE3: 3-CAMX Mix | AF3: 3 | AH3: 2 | AI3: Corn Ethanol - Dry Mill | AJ3: DNAVCORNETOHDM | AM3: Fuel Production, g/MJ
P4: 2 | Q4: WAMX | R4: Western Electricity Coordinating Council - California | Z4: =VLOOKUP(Z3,AA1:AB33,2) -> 2-WAMX Mix | AA4: 4 | AB4: 4-NWPP Mix | AC4: 4 | AD4: 4 | AE4: 4-NWPP Mix | AF4: 4 | AH4: 3 | AI4: Grain Sorghum Ethanol | AJ4: DNAVSGETOH | AM4: Tailpipe Emissions, g/MJ
A5: CFS Baseline Year: 2017 | B5: Release date: March 15, 2022 | E5: Color Legend for cells | F5: User Inputs | G5: Final CI | P5: 3 | Q5: CAMX | R5: Western Electricity Coordinating Council - California | AA5: 5 | AB5: 5-AZNM Mix | AC5: 5 | AD5: 5 | AE5: 5-AZNM Mix | AF5: 5 | AH5: 4 | AI5: Sugarcane/Molasses Ethanol | AJ5: DNAVSCETOH | AM5: Denaturant, g/MJ
A6: Select Feedstock and Fuel | F6: CI Summary of Electricity | P6: 4 | Q6: NWPP | R6: Western Electricity Coordinating Council - Northwest | AA6: 6 | AB6: 6-RMPA Mix | AC6: 6 | AD6: 6 | AE6: 6-RMPA Mix | AF6: 6 | AH6: 5 | AI6: Cellulosic Ethanol (Corn Stover) | AJ6: DNAVCETOH | AM6: Indirect Land Use, g/MJ
B7: Feedstock Production Calculation | D7: Fuel Production Calculation | F7: Feedstock Production: 9.56 | P7: 5 | Q7: AZNM | R7: Western Electricity Coordinating Council - Southwest | W7: Note: Do not change this setting, for Model Utility | AA7: 7 | AB7: 7-MROW Mix | AC7: 7 | AD7: 7 | AE7: 7-MROW Mix | AF7: 7 | AH7: 6 | AM7: Total Carbon Intensity, g/MJ
A8: Step 1a) Select Regional Electricity Mix for Feedstock (shown in the U.S. map far right) | D8: Step 2a) Select Regional Electricity Mix for Fuel | F8: Fuel Production : 122.71 | P8: 6 | Q8: RMPA | R8: Western Electricity Coordinating Council - Rockies | AA8: 8 | AB8: 8-SPNO Mix | AC8: 8 | AD8: 8 | AE8: 8-SPNO Mix | AF8: 8 | AH8: 7 | AI8: SELECT BD or RD----
A9: Step 1b) Select Region for Crude Oil Use | B9: U.S. Average Crude | D9: Step 2b) Select Region for Crude Oil Use | E9: U.S. Average Crude | F9: Tailpipe Emission : 0 | P9: 7 | Q9: MROW | R9: Midwest Reliability Organization West | AA9: 9 | AB9: 9-SPSO Mix | AC9: 9 | AD9: 9 | AE9: 9-SPSO Mix | AF9: 9 | AH9: 8 | AI9: Soybean Biodiesel | AJ9: DNAVSBBD
A10: Step 1c) Select Region for Natural Gas Use | B10: U.S. Average Natural Gas | D10: Step 2c) Region for Natural Gas Use | E10: =B10 -> U.S. Average Natural Gas | F10: Denaturant : 0 | P10: 8 | Q10: SPNO | R10: SERC Reliability Corporation - North | AA10: 10 | AB10: 10-ERCT Mix | AC10: 10 | AD10: 10 | AE10: 10-ERCT Mix | AF10: 10 | AH10: 9 | AI10: Tallow Biodiesel | AJ10: DNAVTALLOWBD
B11: Feedstock Production | D11: Fuel Production | F11: Indirect Land Use: : 0 | P11: 9 | Q11: SPSO | R11: SERC Reliability Corporation - South | AA11: 11 | AB11: 11-MROE Mix | AC11: 11 | AD11: 11 | AE11: 11-MROE Mix | AF11: 11 | AH11: 10 | AI11: UCO Biodiesel | AJ11: DNAVUCOBD
A12: 1) User Defined Electricity Resources Mix | B12: User Defined Electricity for Feedstock Production | D12: User Defined Electricity for Fuel Production | F12: Total CI of Electricity: 132.27 | H12: Disclaimer: CI shown on the left is for illustration purpose only, applicant must provide own data for CI calculation. | P12: 10 | Q12: ERCT | R12: Electric Reliability Council of Texas - All | AA12: 12 | AB12: 12-SRMW Mix | AC12: 12 | AD12: 12 | AE12: 12-SRMW Mix | AF12: 12 | AH12: 11 | AI12: Canola Biodiesel | AJ12: DNAVCANBD
A13: Resid Oil/Fossil fuels | B13: 0 | D13: 0 | F13: Disclaimer: CI above is for illustration purpose only, applicant must provide own data for CI calculation. | P13: 11 | Q13: MROE | R13: Midwest Reliability Organization East | AA13: 13 | AB13: 13-SRMV Mix | AC13: 13 | AD13: 13 | AE13: 13-SRMV Mix | AF13: 13 | AH13: 12 | AI13: Distiller's Corn/Sorghum Oil Biodiesel | AJ13: DNAVCOILBD
A14: Natural gas | B14: 1 | D14: 1 | P14: 12 | Q14: SRMW | R14: SERC Reliability Corporation - Midwest | AA14: 14 | AB14: 14-RFCM Mix | AC14: 14 | AD14: 14 | AE14: 14-RFCM Mix | AF14: 14 | AH14: 13 | AI14: Soybean Renewable Diesel | AJ14: DNAVSBRD
A15: Coal | B15: 0 | D15: 0 | P15: 13 | Q15: SRMV | R15: SERC Reliability Corporation - Mississippi Valley | AA15: 15 | AB15: 15-RFCW Mix | AC15: 15 | AD15: 15 | AE15: 15-RFCW Mix | AF15: 15 | AH15: 14 | AI15: Tallow Renewable Diesel | AJ15: DNAVTALLOWRD
A16: Nuclear | B16: 0 | D16: 0 | P16: 14 | Q16: RFCM | R16: Reliability First Corporation - Michigan | AA16: 16 | AB16: 16-SRTV Mix | AC16: 16 | AD16: 16 | AE16: 16-SRTV Mix | AF16: 16 | AH16: 15 | AI16: UCO Renewable Diesel | AJ16: DNAVUCORD
A17: Biomass | B17: 0 | D17: 0 | P17: 15 | Q17: RFCW | R17: Reliability First Corporation - Midwest | AA17: 17 | AB17: 17-SRSO Mix | AC17: 17 | AD17: 17 | AE17: 17-SRSO Mix | AF17: 17 | AH17: 16 | AI17: Canola Renewable Diesel | AJ17: DNAVCANRD
A18: Hydroelectric | B18: 0 | D18: 0 | P18: 16 | Q18: SRTV | R18: SERC Reliability Corporation - Tennessee Valley | AA18: 18 | AB18: 18-NEWE Mix | AC18: 18 | AD18: 18 | AE18: 18-NEWE Mix | AF18: 18 | AH18: 17 | AI18: Distiller's Corn/Sorghum Oil Renewable Diesel | AJ18: DNAVCOILRD
A19: Geothermal | B19: 0 | D19: 0 | P19: 17 | Q19: SRSO | R19: SERC Reliability Corporation - South | AA19: 19 | AB19: 19-NYUP Mix | AC19: 19 | AD19: 19 | AE19: 19-NYUP Mix | AF19: 19 | AH19: 18
A20: Wind | B20: 0 | D20: 0 | P20: 18 | Q20: NEWE | R20: Northeast Power Coordinating Council - New England | AA20: 20 | AB20: 20-RFCE Mix | AC20: 20 | AD20: 20 | AE20: 20-RFCE Mix | AF20: 20 | AH20: 19 | AI20: SELECT NG or RNG ----
A21: Solar PV | B21: 0 | D21: 0 | P21: 19 | Q21: NYUP | R21: Northeast Power Coordinating Council - Upstate New York | AA21: 21 | AB21: 21-NYLI Mix | AC21: 21 | AD21: 21 | AE21: 21-NYLI Mix | AF21: 21 | AH21: 20 | AI21: North American NG - CNG | AJ21: DNAVNANGCNG
A22: Others (purchased) | B22: =1-(SUM(B13:B21)) -> 0 | D22: =1-(SUM(D13:D21)) -> 0 | P22: 20 | Q22: RFCE | R22: Reliability First Corporation - East | AA22: 22 | AB22: 22-NYCW Mix | AC22: 22 | AD22: 22 | AE22: 22-NYCW Mix | AF22: 22 | AH22: 21 | AI22: North American NG - LNG | AJ22: DNAVNANGLNG
A23: Total | B23: =SUM(B13:B22) -> 1 | D23: =SUM(D13:D22) -> 1 | P23: 21 | Q23: NYLI | R23: Northeast Power Coordinating Council - Long Island | AA23: 23 | AB23: 23-SRVC Mix | AC23: 23 | AD23: 23 | AE23: 23-SRVC Mix | AF23: 23 | AH23: 22 | AI23: North American NG - L-CNG | AJ23: DNAVNANGLCNG
P24: 22 | Q24: NYCW | R24: Northeast Power Coordinating Council - New York Westchester | AA24: 24 | AB24: 24-FRCC Mix | AC24: 24 | AD24: 24 | AE24: 24-FRCC Mix | AF24: 24 | AH24: 23 | AI24: Landfill Gas - CNG | AJ24: DNAVLFGCNG
A25: 2) User Defined Crude Sources | P25: 23 | Q25: SRVC | R25: SERC Reliability Corporation - Virginia/Carolina | AA25: 25 | AB25: 25-AKMS Mix | AC25: 25 | AD25: 25 | AE25: 25-AKMS Mix | AF25: 25 | AH25: 24 | AI25: Landfill Gas - LNG | AJ25: DNAVLFGLNG
B26: User Defined Crude for Feedstock Production | D26: User Defined Crude for Fuel Production | P26: 24 | Q26: FRCC | R26: Florida Reliability Coordinating Council | AA26: 26 | AB26: 26-AKGD | AC26: 26 | AD26: 26 | AE26: 26-AKGD | AF26: 26 | AH26: 25 | AI26: Landfill Gas - L-CNG | AJ26: DNAVLFGLCNG
A27: U.S Source | B27: 0.5621 | D27: 0.005 | P27: 25 | Q27: AKMS | R27: Alaska Systems Coordinating Council - Miscellaneous | AA27: 27 | AB27: 27-HIOA Mix | AC27: 27 | AD27: 27 | AE27: 27-HIOA Mix | AF27: 27 | AH27: 26 | AI27: ----- | AJ27: DNAVAWCNG
A28: Canada-Oil Sands | B28: 0.10347 | D28: 0.008 | P28: 26 | Q28: AKGD | R28: Alaska Systems Coordinating Council - Alaska Grid | AA28: 28 | AB28: 28-HIMS Mix | AC28: 28 | AD28: 28 | AE28: 28-HIMS Mix | AF28: 28 | AH28: 27 | AI28: Electricity
A29: Canada-Conv. crude | B29: 0.0919 | D29: 0.01 | P29: 27 | Q29: HIOA | R29: Hawaii Island Chamber of Commerce - Oahu | AA29: 29 | AB29: 29-Brazilian Mix | AC29: 29 | AD29: 29 | AE29: 29-Brazilian Mix | AF29: 29 | AH29: 28
A30: Mexico | B30: 0.0343 | D30: 0.002 | P30: 28 | Q30: HIMS | R30: Hawaii Island Chamber of Commerce - Miscellaneous | AA30: 30 | AB30: 30-Canadian Mix | AC30: 30 | AD30: 30 | AE30: 30-Canadian Mix | AF30: 30 | AH30: 29
A31: Middle East | B31: 0.0887 | D31: 0.9 | P31: 29 | R31: Brazillian Mix | AA31: 31 | AB31: 31-ORMX Mix | AC31: 31 | AD31: 31 | AE31: 31-ORMX Mix | AF31: 31
A32: Latin America | B32: 0.095 | D32: 0.01 | P32: 30 | R32: Canadian Mix | AA32: 32 | AB32: 32-User Defined Mix | AC32: 32 | AD32: 32 | AE32: 32-User Defined Mix | AF32: 32
A33: Africa | B33: 0.017 | D33: 0.03 | P33: 31 | Q33: ORGN | R33: Western Electricity Coordinating Council - Oregon
A34: Others | B34: =1-SUM(B27:B33) -> 0.00753 | D34: =1-SUM(D27:D33) -> 0.035 | P34: 32 | R34: User Defined
A35: Total | B35: =SUM(B27:B34) -> 1 | D35: =SUM(D27:D34) -> 1
A37: 3) User Defined NG Sources
A38: Sources | B38: User Defined NG in Feedstock Production | D38: User Defined NG for Fuel Production
A39: Specific Country NG Source | B39: 0 | D39: =B39 -> 0
A40: Specific Country Shale Gas | B40: 0 | D40: =B40 -> 0
A41: LNG | B41: 1 | D41: 1
A42: Other
A44: Total | B44: =SUM(B39:B43) -> 1 | D44: =SUM(D39:D43) -> 1
... 2 more rows

Sheet Inputs
Z5: Simulation years
A6: Scenario Control Variables and Input Assumptions | Z6: Today
A7: 1. Key Options for Simulation | Z7: 1990
B8: 1.1) Target Year for Simulation | Z8: 1991
E9: 2018 | Z9: 1992
Z10: 1993
B11: 1.2) Point-Estimation or Probability-Estimation Option | Z11: 1994
F12: Load Stochastic Toolkit | G12: … To load the stochastic toolkit | Z12: 1995
F13: Show Stochastic Toolkit | G13: … To show the stochastic toolkit under ADD-INS tab | Z13: 1996
F14: Unload Stochastic Toolkit | G14: … To unload the stochastic toolkit | Z14: 1997
A15: 2. Vehicle Types for Simulation | Z15: 1998
E16: 1 | F16: 1 -- Passenger Cars; 2 -- Light-Duty Trucks 1; 3 -- Light-Duty Trucks 2 | Z16: 1999
Z17: 2000
A18: 3. Petroleum-Based Fuels | Z18: 2001
B19: 3.1) Petroleum Recovery Options | Z19: 2002
C20: 3.1.a) Share of crude oil sources | Z20: 2003
E21: =IF('Region Selection'!B9="User Defined Crude",2,1) -> 1 | F21: Basis of share of crude oil sources: 1 -- EIA projection, 2 -- User defined | Z21: 2004
F22: U.S. Domestic | G22: Canada (Oil Sands) | H22: Canada (Conv. Crude) | I22: Mexico | J22: Middle East | K22: Latin America | L22: Africa | M22: Others | Z22: 2005
E23: EIA projection | F23: =Fuel_Prod_TS!$AR$9 -> 0.5620608655 | G23: =Fuel_Prod_TS!$AS$9 -> 0.1034759739 | H23: =Fuel_Prod_TS!$AT$9 -> 0.09192513389 | I23: =Fuel_Prod_TS!$AU$9 -> 0.0343421658 | J23: =Fuel_Prod_TS!$AV$9 -> 0.0886648873 | K23: =Fuel_Prod_TS!$AW$9 -> 0.09496033971 | L23: =Fuel_Prod_TS!$AX$9 -> 0.01712761472 | M23: =1-SUM(F23:L23) -> 0.007443019257 | Z23: 2006
E24: User Defined Crude for Feedstock | F24: ='Region Selection'!B27 -> 0.5621 | G24: ='Region Selection'!B28 -> 0.10347 | H24: ='Region Selection'!B29 -> 0.0919 | I24: ='Region Selection'!B30 -> 0.0343 | J24: ='Region Selection'!B31 -> 0.0887 | K24: ='Region Selection'!B32 -> 0.095 | L24: ='Region Selection'!B33 -> 0.017 | M24: =1-SUM(F24:L24) -> 0.00753 | Z24: 2007
E25: Used in calculation | F25: =IF($E21=1,F23,F24) -> 0.5620608655 | G25: 0.1034759739 | H25: 0.09192513389 | I25: 0.0343421658 | J25: 0.0886648873 | K25: 0.09496033971 | L25: 0.01712761472 | M25: 0.007443019257 | Z25: 2008
E26: California | F26: 0.0333 | G26: 0.0045 | H26: 0 | I26: 0.2051 | J26: 0.1802 | K26: 0.0136 | L26: 0.0307 | M26: =1-SUM(F26:L26) -> 0.5326 | Z26: 2009
E27: API gravity | F27: =AvgAPI(F31:H31,F32:H32) -> 36.00119477 | G27: =1/((G45+I45)/(32+131.5)+(F45+H45)/(8+131.5)+(F45+H45)*G40*(1-F42)/(80+131.5))*((G45+I45)+(F45+H45)*(1+G40*(1-F42)))-131.5 -> 17.48491883 | H27: 26.5 | I27: 26.5 | J27: 31.8 | K27: 24.8 | L27: 38.3 | M27: 32 | Z27: 2010
E28: S Content (wt %) | F28: 1.39 | G28: =(Fuel_Specs!H8*(G46+I46)+Fuel_Specs!H9*(F46+H46)+Fuel_Specs!H12*(F46+H46)*Petroleum!C23/Petroleum!B23)/((G46+I46)+(F46+H46)*(1+Petroleum!C23/Petroleum!B23))*100 -> 2.977547859 | H28: 1.94 | I28: 2.2 | J28: 2.26 | K28: 2.8 | L28: 0.289 | M28: 0.764 | Z28: 2011
E29: Average transportation distances (mi) | F29: See T&D_Flowcharts tab | G29: 1708 | H29: 1708 | I29: 797 | J29: 14596 | K29: 4620 | L29: 7280 | M29: 6128 | Z29: 2012
E30: U.S. Domestic crude | F30: Shale Oil (Bakken) | G30: Shale Oil (Eagle Ford) | H30: Rest of U.S. domestic crude | Z30: 2013
E31: API gravity | F31: 42 | G31: 48 | H31: 32 | Z31: 2014
E32: Vol. Share (%) | F32: =Fuel_Prod_TS!L24 -> 0.1428249797 | G32: =Fuel_Prod_TS!M24 -> 0.1756359517 | H32: =1-SUM(F32:G32) -> 0.6815390686 | Z32: 2015
E33: User Defined Crude for Fuel | F33: ='Region Selection'!D27 -> 0.005 | G33: ='Region Selection'!D28 -> 0.008 | H33: ='Region Selection'!D29 -> 0.01 | I33: ='Region Selection'!D30 -> 0.002 | J33: ='Region Selection'!D31 -> 0.9 | K33: ='Region Selection'!D32 -> 0.01 | L33: ='Region Selection'!D33 -> 0.03 | M33: =1-SUM(F33:L33) -> 0.035 | Z33: 2016
C34: 3.1.b) Efficiency for Petroleum Recovery | Z34: 2017
D35: 3.1.b.i) Conventional Crude Recovery | Z35: 2018
E36: =Fuel_Prod_TS!$C$9 -> 0.98 | Z36: 2019
Z37: 2020
C38: 3.1.c) Key parameters of Oil Sands Recovery Methods and Products | Z38: 2021
E39: Dilbit Composition | F39: Bitumen | G39: Diluent | Z39: 2022
E40: Volumetric Shares | F40: 0.7 | G40: =1-F40 -> 0.3 | Z40: 2023
Z41: 2024
E42: Recovered Diluent in Refineries | F42: 1 | G42: by volume | Z42: 2025
Z43: 2026
E44: Share of oil sands recovery methods and products | F44: Surface Mining + Bitumen | G44: Surface Mining + SCO | H44: In-Situ + Bitumen | I44: In-Situ + SCO | Z44: 2027
E45: Volumetric Shares | F45: =Fuel_Prod_TS!D24 -> 0.0467111494 | G45: =Fuel_Prod_TS!E24 -> 0.3675197981 | H45: =Fuel_Prod_TS!F24 -> 0.519580459 | I45: =Fuel_Prod_TS!G24 -> 0.06618859351 | Z45: 2028
E46: Mass Shares | F46: =F$45*Fuel_Specs!$E$10/(($F$45+$H$45)*Fuel_Specs!$E$10+($G$45+$I$45)*Fuel_Specs!$E$8) -> 0.0499477555 | G46: =G$45*Fuel_Specs!$E$8/(($F$45+$H$45)*Fuel_Specs!$E$10+($G$45+$I$45)*Fuel_Specs!$E$8) -> 0.3342697456 | H46: =H$45*Fuel_Specs!$E$10/(($F$45+$H$45)*Fuel_Specs!$E$10+($G$45+$I$45)*Fuel_Specs!$E$8) -> 0.555582084 | I46: =1-SUM(F46:H46) -> 0.06020041486 | Z46: 2029
E47: Energy Shares | F47: =F$45*Fuel_Specs!$B$10/(($F$45+$H$45)*Fuel_Specs!$B$10+($G$45+$I$45)*Fuel_Specs!$B$8) -> 0.04912840556 | G47: =G$45*Fuel_Specs!$B$8/(($F$45+$H$45)*Fuel_Specs!$B$10+($G$45+$I$45)*Fuel_Specs!$B$8) -> 0.3426870283 | H47: =H$45*Fuel_Specs!$B$10/(($F$45+$H$45)*Fuel_Specs!$B$10+($G$45+$I$45)*Fuel_Specs!$B$8) -> 0.5464682381 | I47: =1-SUM(F47:H47) -> 0.06171632803 | Z47: 2030
Z48: 2031
B49: 3.2) Conventional Crude Transport Options | K49: California Crude Transport (from OPGEE model 2010) | Z49: 2032
F50: Domestic: Alaska | G50: Domestic: U.S. 48 States | H50: Imported: Offshore Countries | I50: Imported Canada and Mexico | L50: Domestic: Alaska | M50: Domestic: U.S. 48 States | N50: Imported: Offshore Countries | O50: Imported Canada and Mexico | Z50: 2033
E51: Domestic Share of Crude Input to Refineries | G51: =1-SUM(F53,H53,I54,I55) -> 0.505868483 | K51: Domestic Share of Crude Input to CA Refineries | Z51: 2034
E52: Mode Shares | K52: Mode Shares | Z52: 2035
E53: Ocean Tanker | F53: =MIN(2.8%,F24) -> 0.028 | H53: =IFERROR(SUM(J25:M25)/(1-G25-F25*(F32+G32)),0) -> 0.2901564774 | K53: Ocean Tanker | L53: 0.1099 | N53: 0.4043 | O53: 0.023 | Z53: 2036
E54: Pipeline | G54: See T&D_Flowcharts tab | I54: =IFERROR(H25/(1-G25-F25*(F32+G32)),0) -> 0.1281133684 | K54: Pipeline | L54: 0.0372 | M54: 0.3773 | N54: 0.032 | O54: 0.0155 | Z54: 2037
E55: Rail | G55: See T&D_Flowcharts tab | I55: =IFERROR(I25/(1-G25-F25*(F32+G32)),0) -> 0.04786167125 | K55: Rail | M55: 0.0008 | Z55: 2038
E56: Average transportation distances (mi) | K56: Average transportation distances (mi) | Z56: 2039
E57: Ocean Tanker | F57: 2100 | H57: 8372.538258 | K57: Ocean Tanker | L57: 2364 | N57: 3709 | O57: 1336 | Z57: 2040
E58: Pipeline | G58: See T&D_Flowcharts tab | I58: 1676.685878 | K58: Pipeline | L58: 800 | M58: 100 | N58: 38 | O58: 900
E59: Rail | G59: See T&D_Flowcharts tab | I59: =I29 -> 797 | K59: Rail | M59: 2000
B61: 3.3) Petroleum Refining Efficiency
C62: 3.3.a) Simulation scenarios
... 69 more rows

Sheet Results
B1: WTW Results Menu | D1: Select a vehicle type from a pink drop down menu, then press "Go"
B2: SI ICE Vehicles | F2: SI Hybrid Vehicles (HEV) | K2: SI Plug-in Hybrids (PHEV) | R2: Per Vehicle Distnace Travelled | Y2: Per Energy in Fuels
B3: SI - CNG Vehicle | F3: Select Fuels | K3: Select Fuels | R3: Energy Unit | S3: Btu | T3: mBtu | U3: J | V3: kJ | W3: MJ | Y3: Energy Unit | Z3: Btu | AA3: mBtu | AB3: J | AC3: kJ | AD3: MJ
B4: SIDI ICE Vehicles | F4: CIDI Hybrid Vehicles (HEV) | K4: CIDI Plug-in Hybrids (PHEV) | S4: 1 | T4: 0.001 | U4: =BTU2J -> 1055.05585 | V4: =BTU2kJ -> 1.05505585 | W4: =BTU2MJ -> 0.00105505585 | Z4: 1 | AA4: 0.001 | AB4: =BTU2J -> 1055.05585 | AC4: =BTU2kJ -> 1.05505585 | AD4: =BTU2MJ -> 0.00105505585
B5: Select Fuels | F5: Select Fuels | K5: Select Fuels | R5: Emission Unit | S5: g | T5: mg | U5: kg | V5: lb | W5: oz | Y5: Emission Unit | Z5: g | AA5: mg | AB5: kg | AC5: lb | AD5: oz
B6: CIDI ICE Vehicles | F6: Battery Electric Vehicles (BEV) and Fuel Cell Vehicles (FCV) | S6: 1 | T6: 1000 | U6: =g2kg -> 0.001 | V6: =g2lb -> 0.002204622622 | W6: =g2lb*16 -> 0.03527396195 | Z6: 1 | AA6: 1000 | AB6: =g2kg -> 0.001 | AC6: =g2lb -> 0.002204622622 | AD6: =g2lb*16 -> 0.03527396195
B7: Select Fuels | F7: Select Fuels | R7: Functional Unit | S7: mile | T7: km | Y7: Functional Unit | Z7: mBtu | AA7: mmBtu | AB7: J | AC7: kJ | AD7: MJ
B8: Unit Selection | D8: Select units from a pink drop down menu for the Results | S8: 1 | T8: 1.60934 | Z8: 0.001 | AA8: 1e-06 | AB8: =BTU2J -> 1055.05585 | AC8: =BTU2kJ -> 1.05505585 | AD8: =BTU2MJ -> 0.00105505585
B9: Per Vehicle Distance Travelled | G9: Per Energy in Fuels
B10: Energy Unit: | C10: Btu | D10: Emission Unit: | E10: g | G10: Energy Unit: | H10: Btu | I10: Emission Unit: | J10: g
D11: Service Functional Unit: | E11: mile | I11: Energy Functional Unit: | J11: mmBtu
A12: ="1. Well-to-Pump Energy Consumption, Water Consmption and Emissions: "&Results_EnergyUnit_Energy&" or Gallon or "&Results_EnergyUnit_Emission&" per "&Results_EnergyFunctionalUnit&" of Fuel Available at Fuel Station Pumps" -> 1. Well-to-Pump Energy Consumption, Water Consmption and Emissions: Btu or Gallon or g per mmBtu of Fuel Available at Fuel Station Pumps
B13: Baseline Gasoline | C13: CA Gasoline | D13: ="Low-Level EtOH Blend with Gasoline (E"&Inputs!F776*100&", "&IF(EtOH!C7=1,"Corn"&IF(EtOH!C130=1,", dry",IF(EtOH!C130=0,", wet","")),IF(EtOH!D7=1,"Willow",IF(EtOH!E7=1,"Poplar",IF(EtOH!F7=1,"Switchgrass",IF(EtOH!G7=1,"Miscanthus",IF(EtOH!H7=1,"Corn Stover",IF(EtOH!I7=1,"Forest Residue",IF(EtOH!M7=1,"Sugarcane",IF(EtOH!J7=1,IF(EtOH!D201=1,"Grain",IF(EtOH!D201=3,"Forage","Sweet"))&" Sorghum",IF(EtOH!L7=1,"Solid Waste","Mixed Source"))))))))))&")" -> Low-Level EtOH Blend with Gasoline (E10, Corn) | E13: Baseline Conventional and LS Diesel | F13: ="Compressed Natural Gas, "& IF(Inputs!F114=1,"NA NG",IF(Inputs!F114=2,"Non-NA NG",IF(Inputs!F114=3,"FG",IF(RNG!G5=1,"LFG",IF(RNG!G6=1,"AD Gas","RNG"))))) -> Compressed Natural Gas, NA NG | G13: ="Liquefied Natural Gas, "&IF(Inputs!$G$114=1,"NA NG",IF(Inputs!$G$114=2,"Non-NA NG",IF(Inputs!$G$114=3,"FG",IF(RNG!$H$5=1,"LFG",IF(RNG!$H$5=0,"AD Gas","RNG"))))) -> Liquefied Natural Gas, NA NG | H13: ="Liquefied Petroleum Gas, " &IF(NG!C5=1, "Crude", IF(NG!C5=0, IF(Inputs!$G$114=1, "NA NG", IF(Inputs!$G$114=2, "Non-NA NG", IF(Inputs!$G$114=3, "FG", IF(RNG!$H$5=1, "LFG", IF(RNG!$H$5=0, "AD Gas", "RNG"))))), "Crude and NG Mix")) -> Liquefied Petroleum Gas, Crude and NG Mix | I13: ="Naphtha, "&IF('MeOH&FTD'!E9=1,"Crude",IF('MeOH&FTD'!E9=0,IF(Inputs!F149=1,"NA NG",IF(Inputs!F149=2,"Non-NA NG",IF(Inputs!F149=3,"FG",IF(RNG!E5=1,"LFG",IF(RNG!E6=1,"AD Gas","RNG"))))),"Mixed Sources")) -> Naphtha, NA NG | J13: ="M"&Vehicles!C5*100&" for MeOH FFV, "&IF(Inputs!F146=1,"NA NG",IF(Inputs!F146=2,"Non-NA NG",IF(Inputs!F146=3,"FG",IF(Inputs!F146=4,IF(RNG!E5=1,"LFG",IF(RNG!E6=1,"AD Gas","RNG")),IF(Inputs!F146=5,"Biomass",IF(Inputs!F146=9,"Black Liquor","Coal")))))) -> M85 for MeOH FFV, NA NG | K13: ="M"&Vehicles!C6*100&" for Dedi. MeOH Vehicles, "&IF(Inputs!F146=1,"NA NG",IF(Inputs!F146=2,"Non-NA NG",IF(Inputs!F146=3,"FG",IF(Inputs!F146=4,IF(RNG!E5=1,"LFG",IF(RNG!E6=1,"AD Gas","RNG")),IF(Inputs!F146=5,"Biomass",IF(Inputs!F146=9,"Black Liquor","Coal")))))) -> M90 for Dedi. MeOH Vehicles, NA NG | L13: ="MeOH for FCV: "&IF(Inputs!F146=1,"NA NG",IF(Inputs!F146=2,"Non-NA NG",IF(Inputs!F146=3,"FG",IF(Inputs!F146=4,IF(RNG!E5=1,"LFG",IF(RNG!E6=1,"AD Gas","RNG")),IF(Inputs!F146=5,"Biomass",IF(Inputs!F146=9,"Black Liquor","Coal")))))) -> MeOH for FCV: NA NG | M13: ="E"&Inputs!F777*100&" for FFV, "&IF(EtOH!C7=1,"Corn"&IF(EtOH!C130=1,", dry",IF(EtOH!C130=0,", wet","")),IF(EtOH!D7=1,"Willow",IF(EtOH!E7=1,"Poplar",IF(EtOH!F7=1,"Switchgrass",IF(EtOH!G7=1,"Miscanthus",IF(EtOH!H7=1,"Corn Stover",IF(EtOH!I7=1,"Forest Residue",IF(EtOH!M7=1,"Sugarcane",IF(EtOH!J7=1,IF(EtOH!D201=1,"Grain",IF(EtOH!D201=3,"Forage","Sweet"))&" Sorghum",IF(EtOH!L7=1,"Solid Waste","Mixed Source")))))))))) -> E85 for FFV, Corn | N13: ="BtOH for FFV: BtOH"&Vehicles!C12*100&", Corn" -> BtOH for FFV: BtOH100, Corn | O13: ="E"&Inputs!F778*100&" for Dedi. EtOH Vehicle, "&IF(EtOH!C7=1,"Corn"&IF(EtOH!C130=1,", dry",IF(EtOH!C130=0,", wet","")),IF(EtOH!D7=1,"Willow",IF(EtOH!E7=1,"Poplar",IF(EtOH!F7=1,"Switchgrass",IF(EtOH!G7=1,"Miscanthus",IF(EtOH!H7=1,"Corn Stover",IF(EtOH!I7=1,"Forest Residue",IF(EtOH!M7=1,"Sugarcane",IF(EtOH!J7=1,IF(EtOH!D201=1,"Grain",IF(EtOH!D201=3,"Forage","Sweet"))&" Sorghum",IF(EtOH!L7=1,"Solid Waste","Mixed Source")))))))))) -> E85 for Dedi. EtOH Vehicle, Corn | P13: ="EtOH for FCV, "&IF(EtOH!C6=1,"Corn"&IF(EtOH!C130=1,", dry",IF(EtOH!C130=0,", wet","")),IF(EtOH!D6=1,"Willow",IF(EtOH!E6=1,"Poplar",IF(EtOH!F6=1,"Switchgrass",IF(EtOH!G6=1,"Miscanthus",IF(EtOH!H6=1,"Corn Stover",IF(EtOH!I6=1,"Forest Residue",IF(EtOH!M6=1,"Sugarcane",IF(EtOH!J6=1,IF(EtOH!D201=1,"Grain",IF(EtOH!D201=3,"Forage","Sweet"))&" Sorghum",IF(EtOH!L6=1,"Solid Waste","Mixed Source")))))))))) -> EtOH for FCV, Corn | Q13: =IF(Inputs!$J$597=2,"Palm FFB",IF(Inputs!$J$597=3,"Canola",IF(Inputs!$J$597=4,"Jatropha",IF(Inputs!$J$597=5,"Camelina",IF(Inputs!$J$597=6,"Algae",IF(Inputs!$J$597=7,"Tallow",IF(Inputs!$J$597=8,"Corn Oil","Soybean")))))))&"-based RG"&Vehicles!C16*100 -> Soybean-based RG100 | R13: =IF(Pyrolysis!B26=1,"Corn Stover","Forest Residue")&"-based Pyrolysis RG"&Vehicles!C16*100 -> Forest Residue-based Pyrolysis RG100 | S13: ="Grid-Connected SI PHEV: Gasoline and Electricity ("&VLOOKUP(Inputs!$F$639,Inputs!$G$639:$H$657,2,FALSE)&")" -> Grid-Connected SI PHEV: Gasoline and Electricity (NWPP Mix) | T13: ="Grid-Connected SI PHEV: CA gasoline and Electricity ("&VLOOKUP(Inputs!$F$639,Inputs!$G$639:$H$657,2,FALSE)&")" -> Grid-Connected SI PHEV: CA gasoline and Electricity (NWPP Mix) | U13: ="Grid-Connected SI PHEV: Low-Level EtOH Blend with Gasoline (E"&Inputs!F776*100&", "&IF(EtOH!C6=1,"Corn"&IF(EtOH!C130=1,", dry",IF(EtOH!C130=0,", wet","")),IF(EtOH!D6=1,"Willow",IF(EtOH!E6=1,"Poplar",IF(EtOH!F6=1,"Switchgrass",IF(EtOH!G6=1,"Miscanthus",IF(EtOH!H6=1,"Corn Stover",IF(EtOH!I6=1,"Forest Residue",IF(EtOH!M6=1,"Sugarcane",IF(EtOH!J6=1,IF(EtOH!D201=1,"Grain",IF(EtOH!D201=3,"Forage","Sweet"))&" Sorghum",IF(EtOH!L6=1,"Solid Waste","Mixed Source"))))))))))&") and Electricity ("&VLOOKUP(Inputs!$F$639,Inputs!$G$639:$H$657,2,FALSE)&")" -> Grid-Connected SI PHEV: Low-Level EtOH Blend with Gasoline (E10, Corn) and Electricity (NWPP Mix) | V13: ="Grid-Connected SI PHEV: CNG ("&IF(Inputs!F114=1,"NA NG",IF(Inputs!F114=2,"Non-NA NG",IF(Inputs!F114=3,"FG",IF(RNG!G5=1,"LFG",IF(RNG!G6=1,"AD Gas","RNG")))))&") and Electricity ("&VLOOKUP(Inputs!$F$639,Inputs!$G$639:$H$657,2,FALSE)&")" -> Grid-Connected SI PHEV: CNG (NA NG) and Electricity (NWPP Mix) | W13: ="Grid-Connected SI PHEV: LNG ("&IF(Inputs!$H$114=1,"NA NG",IF(Inputs!$H$114=2,"Non-NA NG",IF(Inputs!$H$114=3,"FG",IF(RNG!$H$5=1,"LFG",IF(RNG!$H$5=0,"AD Gas","RNG")))))&") and Electricity ("&VLOOKUP(Inputs!$F$639,Inputs!$G$639:$H$657,2,FALSE)&")" -> Grid-Connected SI PHEV: LNG (NA NG) and Electricity (NWPP Mix) | X13: ="Grid-Connected SI PHEV: LPG ("&IF(NG!C5=1,"Crude",IF(NG!C5=0,IF(Inputs!$G$114=1,"NA NG",IF(Inputs!$G$114=2,"Non-NA NG",IF(Inputs!$G$114=3,"FG",IF(RNG!$H$5=1,"LFG",IF(RNG!$H$5=0,"AD Gas","RNG"))))),"Crude and NG Mix"))&") and Electricity ("&VLOOKUP(Inputs!$F$639,Inputs!$G$639:$H$657,2,FALSE)&")" -> Grid-Connected SI PHEV: LPG (Crude and NG Mix) and Electricity (NWPP Mix) | Y13: ="Grid-Connected SI PHEV: M"&Vehicles!C6*100&" ("&IF(Inputs!F146=1,"NA NG",IF(Inputs!F146=2,"Non-NA NG",IF(Inputs!F146=3,"FG",IF(Inputs!F146=4,IF(RNG!E5=1,"LFG",IF(RNG!E6=1,"AD Gas","RNG")),IF(Inputs!F146=5,"Biomass",IF(Inputs!F146=9,"Black Liquor","Coal"))))))&") and Electricity ("&VLOOKUP(Inputs!$F$639,Inputs!$G$639:$H$657,2,FALSE)&")" -> Grid-Connected SI PHEV: M90 (NA NG) and Electricity (NWPP Mix) | Z13: ="Grid-Connected SI PHEV: LPG ("&IF(NG!E5=1,"Crude",IF(NG!E5=0,IF(Inputs!$G$114=1,"NA NG",IF(Inputs!$G$114=2,"Non-NA NG",IF(Inputs!$G$114=3,"FG",IF(RNG!$H$5=1,"LFG",IF(RNG!$H$5=0,"AD Gas","RNG"))))),"Crude and NG Mix"))&") and Electricity ("&VLOOKUP(Inputs!$F$639,Inputs!$G$639:$H$657,2,FALSE)&")" -> Grid-Connected SI PHEV: LPG (Crude and NG Mix) and Electricity (NWPP Mix) | AA13: ="Grid-Connected SI PHEV: G.H2 ("&IF(Inputs!F204=1,"Central Plants, "&IF(Inputs!F209=1,IF(Inputs!F230=1,"NA NG",IF(Inputs!F230=2,"Non-NA NG",IF(Inputs!F230=3,"FG",IF(RNG!G5=1,"LFG",IF(RNG!G6=1,"Manure-based AD Gas",IF(RNG!G7=1,"WWTP-based AD Gas","RNG")))))),"")&IF(Inputs!F210=1,"Solar","")&IF(Inputs!F211=1,"Nuclear","")&IF(Inputs!F212=1,"Electrolysis (Nuclear HTGR)","")&IF(Inputs!F213=1,"Coal","")&IF(Inputs!F214=1,"Biomass","")&IF(Inputs!F217=1,"Coke Oven Gas","")&IF(Inputs!F218=1,"Pet Coke","")&IF(MAX(Inputs!F209:F218)<1,"Mixed Sources",""),"Refueling Station, "&IF(Inputs!F222=1,IF(Inputs!F231=1,"NA NG",IF(Inputs!F231=2,"Non-NA NG",IF(Inputs!F231=3,"FG",IF(RNG!G5=1,"LFG",IF(RNG!G6=1,"Manure-based AD Gas",IF(RNG!G7=1,"WWTP-based AD Gas","RNG")))))),"")&IF(Inputs!F223=1,"Electrolysis","")&IF(Inputs!F224=1,"EtOH","")&IF(Inputs!F226=1,"MeOH","")&IF(MAX(Inputs!F222:F226)<1,"Mixed Sources",""))&") and Electricity ("&VLOOKUP(Inputs!$F$639,Inputs!$G$639:$H$657,2,FALSE)&")" -> Grid-Connected SI PHEV: G.H2 (Central Plants, NA NG) and Electricity (NWPP Mix) | AB13: ="Grid-Connected SI PHEV: L.H2 ("&IF(Inputs!G204=1,"Central Plants, "&IF(Inputs!G209=1,IF(Inputs!G230=1,"NA NG",IF(Inputs!G230=2,"Non-NA NG",IF(Inputs!G230=3,"FG",IF(RNG!H5=1,"LFG",IF(RNG!H6=1,"Manure-based AD Gas",IF(RNG!H7=1,"WWTP-based AD Gas","RNG")))))),"")&IF(Inputs!G210=1,"Solar","")&IF(Inputs!G211=1,"Nuclear","")&IF(Inputs!G212=1,"Electrolysis (Nuclear HTGR)","")&IF(Inputs!G213=1,"Coal","")&IF(Inputs!G214=1,"Biomass","")&IF(Inputs!G217=1,"Coke Oven Gas","")&IF(Inputs!G218=1,"Pet Coke","")&IF(MAX(Inputs!G209:G218)<1,"Mixed Sources",""),"Refueling Station, "&IF(Inputs!G222=1,IF(Inputs!G231=1,"NA NG",IF(Inputs!G231=2,"Non-NA NG",IF(Inputs!G231=3,"FG",IF(RNG!H5=1,"LFG",IF(RNG!H6=1,"Manure-based AD Gas",IF(RNG!H7=1,"WWTP-based AD Gas","RNG")))))),"")&IF(Inputs!G223=1,"Electrolysis","")&IF(Inputs!G224=1,"EtOH","")&IF(Inputs!G226=1,"MeOH","")&IF(MAX(Inputs!G222:G226)<1,"Mixed Sources",""))&") and Electricity ("&VLOOKUP(Inputs!$F$639,Inputs!$G$639:$H$657,2,FALSE)&")" -> Grid-Connected SI PHEV: L.H2 (Central Plants, NA NG) and Electricity (NWPP Mix) | AC13: ="DME: "&IF(Inputs!F147=1,"NA NG",IF(Inputs!F147=2,"Non-NA NG",IF(Inputs!F147=3,"FG",IF(Inputs!F147=4,IF(RNG!E5=1,"LFG",IF(RNG!E6=1,"AD Gas","RNG")),IF(Inputs!F147=5,"Biomass",IF(Inputs!F147=9,"Black Liquor",IF(Inputs!F147=10,"NG via Methanol","Coal"))))))) -> DME: NA NG | AD13: ="FTD"&TEXT(Vehicles!C13*100,"0")&": "&IF(Inputs!F148=1,"NA NG",IF(Inputs!F148=2,"Non-NA NG",IF(Inputs!F148=3,"FG",IF(Inputs!F148=4,IF(RNG!E5=1,"LFG",IF(RNG!E6=1,"AD Gas","RNG")),IF(Inputs!F148=5,"Biomass",IF(Inputs!F148=6,"Coal",IF(Inputs!F148=8,"NG/Biomass("&TEXT(Inputs!J180*100,"0")&"/"&TEXT(Inputs!J181*100,"0")&")","Coal/Biomass("&TEXT(Inputs!F180*100,"0")&"/"&TEXT(Inputs!F181*100,"0")&")"))))))) -> FTD100: NA NG | AE13: =IF(Inputs!$F$597=2,"Palm FFB",IF(Inputs!$F$597=3,"Canola",IF(Inputs!$F$597=4,"Jatropha",IF(Inputs!$F$597=5,"Camelina",IF(Inputs!$F$597=6,"Algae",IF(Inputs!$F$597=7,"Tallow",IF(Inputs!$F$597=8,"Corn Oil","Soybean")))))))&"-based BD"&Vehicles!C14*100 -> Soybean-based BD20 | AF13: =IF(Inputs!E628=1,IF(Inputs!$G$597=2,"Palm FFB",IF(Inputs!$G$597=3,"Canola",IF(Inputs!$G$597=4,"Jatropha",IF(Inputs!$G$597=5,"Camelina",IF(Inputs!$G$597=6,"Algae",IF(Inputs!$G$597=7,"Tallow",IF(Inputs!$G$597=8,"Corn Oil","Soybean"))))))),IF(Inputs!E628=3,IF(Inputs!$I$597=2,"Palm FFB",IF(Inputs!$I$597=3,"Canola",IF(Inputs!$I$597=4,"Jatropha",IF(Inputs!$I$597=5,"Camelina",IF(Inputs!$I$597=6,"Algae",IF(Inputs!$I$597=7,"Tallow",IF(Inputs!$I$597=8,"Corn Oil","Soybean"))))))),IF(Inputs!$H$597=2,"Palm FFB",IF(Inputs!$H$597=3,"Canola",IF(Inputs!$H$597=4,"Jatropha",IF(Inputs!$H$597=5,"Camelina",IF(Inputs!$H$597=6,"Algae",IF(Inputs!$H$597=7,"Tallow",IF(Inputs!$H$597=8,"Corn Oil","Soybean")))))))))&"-based RD"&IF(Inputs!$E$628=3,"III","II")&" "&Vehicles!C15*100 -> Soybean-based RDII 100 | AG13: =IF(Pyrolysis!$B$26=1,"Corn Stover","Forest Residue")&"-based RD"&IF(Inputs!E628=1,"I ","II ")&Vehicles!C15*100 -> Forest Residue-based RDII 100 | AH13: ="E-Diesel, "&IF(EtOH!C6=1,"Corn"&IF(EtOH!C130=1,", dry",IF(EtOH!C130=0,", wet","")),IF(EtOH!D6=1,"Willow",IF(EtOH!E6=1,"Poplar",IF(EtOH!F6=1,"Switchgrass",IF(EtOH!G6=1,"Miscanthus",IF(EtOH!H6=1,"Corn Stover",IF(EtOH!I6=1,"Forest Residue",IF(EtOH!M6=1,"Sugarcane",IF(EtOH!J6=1,IF(EtOH!D201=1,"Grain",IF(EtOH!D201=3,"Forage","Sweet"))&" Sorghum",IF(EtOH!L6=1,"Solid Waste","Mixed Source")))))))))) -> E-Diesel, Corn | AI13: ="Grid-Connected CIDI PHEV: Diesel and Electricity ("&VLOOKUP(Inputs!$F$639,Inputs!$G$639:$H$657,2,FALSE)&")" -> Grid-Connected CIDI PHEV: Diesel and Electricity (NWPP Mix) | AJ13: ="Grid-Connected CIDI PHEV: DME ("&IF(Inputs!F147=1,"NA NG",IF(Inputs!F147=2,"Non-NA NG",IF(Inputs!F147=3,"FG",IF(Inputs!F147=4,IF(RNG!E5=1,"LFG",IF(RNG!E6=1,"AD Gas","RNG")),IF(Inputs!F147=5,"Biomass",IF(Inputs!F147=9,"Black Liquor",IF(Inputs!F147=10,"NG via Methanol","Coal")))))))&") and Electricity ("&VLOOKUP(Inputs!$F$639,Inputs!$G$639:$H$657,2,FALSE)&")" -> Grid-Connected CIDI PHEV: DME (NA NG) and Electricity (NWPP Mix) | AK13: ="Grid-Connected CIDI PHEV: FTD"&Vehicles!C13*100&" ("&IF(Inputs!F148=1,"NA NG",IF(Inputs!F148=2,"Non-NA NG",IF(Inputs!F148=3,"FG",IF(Inputs!F148=4,IF(RNG!E5=1,"LFG",IF(RNG!E6=1,"AD Gas","RNG")),IF(Inputs!F148=5,"Biomass",IF(Inputs!F148=6,"Coal","Coal/Biomass("&Inputs!F180*100&"/"&Inputs!F181*100&")"))))))&") and Electricity ("&VLOOKUP(Inputs!$F$639,Inputs!$G$639:$H$657,2,FALSE)&")" -> Grid-Connected CIDI PHEV: FTD100 (NA NG) and Electricity (NWPP Mix) | AL13: ="Grid-Connected CIDI PHEV: BD"&Vehicles!C14*100&" ("&IF(Inputs!$F$597=2,"Palm FFB",IF(Inputs!$F$597=3,"Canola",IF(Inputs!$F$597=4,"Jatropha",IF(Inputs!$F$597=5,"Camelina",IF(Inputs!$F$597=6,"Algae",IF(Inputs!$F$597=7,"Tallow",IF(Inputs!$F$597=8,"Corn Oil","Soybean")))))))&") and Electricity ("&VLOOKUP(Inputs!$F$639,Inputs!$G$639:$H$657,2,FALSE)&")" -> Grid-Connected CIDI PHEV: BD20 (Soybean) and Electricity (NWPP Mix) | AM13: ="Grid-Connected CIDI PHEV: E-Diesel ("&IF(EtOH!C6=1,"Corn"&IF(EtOH!C130=1,", dry",IF(EtOH!C130=0,", wet","")),IF(EtOH!D6=1,"Willow",IF(EtOH!E6=1,"Poplar",IF(EtOH!F6=1,"Switchgrass",IF(EtOH!G6=1,"Miscanthus",IF(EtOH!H6=1,"Corn Stover",IF(EtOH!I6=1,"Forest Residue",IF(EtOH!M6=1,"Sugarcane",IF(EtOH!J6=1,IF(EtOH!D201=1,"Grain",IF(EtOH!D201=3,"Forage","Sweet"))&" Sorghum",IF(EtOH!L6=1,"Solid Waste","Mixed Source"))))))))))&") and Electricity ("&VLOOKUP(Inputs!$F$639,Inputs!$G$639:$H$657,2,FALSE)&")" -> Grid-Connected CIDI PHEV: E-Diesel (Corn) and Electricity (NWPP Mix) | AN13: ="Electricity ("&VLOOKUP(Inputs!$F$639,Inputs!$G$639:$H$657,2,FALSE)&")" -> Electricity (NWPP Mix) | AO13: ="FCV: G.H2"&IF(Inputs!F204=1,", Central Plants, "&IF(Inputs!F209=1,IF(Inputs!F230=1,"NA NG",IF(Inputs!F230=2,"Non-NA NG",IF(Inputs!F230=3,"FG",IF(RNG!G5=1,"LFG",IF(RNG!G6=1,"Manure-based AD Gas",IF(RNG!G7=1,"WWTP-based AD Gas","RNG")))))),"")&IF(Inputs!F210=1,"Solar","")&IF(Inputs!F211=1,"Nuclear","")&IF(Inputs!F212=1,"Electrolysis (Nuclear HTGR)","")&IF(Inputs!F213=1,"Coal","")&IF(Inputs!F214=1,"Biomass","")&IF(Inputs!F217=1,"Coke Oven Gas","")&IF(Inputs!F218=1,"Pet Coke","")&IF(MAX(Inputs!F209:F218)<1,"Mixed Sources",""),", Refueling Station, "&IF(Inputs!F222=1,IF(Inputs!F231=1,"NA NG",IF(Inputs!F231=2,"Non-NA NG",IF(Inputs!F231=3,"FG",IF(RNG!G5=1,"LFG",IF(RNG!G6=1,"Manure-based AD Gas",IF(RNG!G7=1,"WWTP-based AD Gas","RNG")))))),"")&IF(Inputs!F223=1,"Electrolysis","")&IF(Inputs!F224=1,"EtOH","")&IF(Inputs!F226=1,"MeOH","")&IF(MAX(Inputs!F222:F226)<1,"Mixed Sources","")) -> FCV: G.H2, Central Plants, NA NG | AP13: ="FCV: L.H2"&IF(Inputs!G204=1,", Central Plants, "&IF(Inputs!G209=1,IF(Inputs!G230=1,"NA NG",IF(Inputs!G230=2,"Non-NA NG",IF(Inputs!G230=3,"FG",IF(RNG!H5=1,"LFG",IF(RNG!H6=1,"Manure-based AD Gas",IF(RNG!H7=1,"WWTP-based AD Gas","RNG")))))),"")&IF(Inputs!G210=1,"Solar","")&IF(Inputs!G211=1,"Nuclear","")&IF(Inputs!G212=1,"Electrolysis (Nuclear HTGR)","")&IF(Inputs!G213=1,"Coal","")&IF(Inputs!G214=1,"Biomass","")&IF(Inputs!G217=1,"Coke Oven Gas","")&IF(Inputs!G218=1,"Pet Coke","")&IF(MAX(Inputs!G209:G218)<1,"Mixed Sources",""),", Refueling Station, "&IF(Inputs!G222=1,IF(Inputs!G231=1,"NA NG",IF(Inputs!G231=2,"Non-NA NG",IF(Inputs!G231=3,"FG",IF(RNG!H5=1,"LFG",IF(RNG!H6=1,"Manure-based AD Gas",IF(RNG!H7=1,"WWTP-based AD Gas","RNG")))))),"")&IF(Inputs!G223=1,"Electrolysis","")&IF(Inputs!G224=1,"EtOH","")&IF(Inputs!G226=1,"MeOH","")&IF(MAX(Inputs!G222:G226)<1,"Mixed Sources","")) -> FCV: L.H2, Central Plants, NA NG | AQ13: ="Grid-Connected FC PHEV: G.H2 ("&IF(Inputs!F204=1,"Central Plants, "&IF(Inputs!F209=1,IF(Inputs!F230=1,"NA NG",IF(Inputs!F230=2,"Non-NA NG",IF(Inputs!F230=3,"FG",IF(RNG!G5=1,"LFG",IF(RNG!G6=1,"Manure-based AD Gas",IF(RNG!G7=1,"WWTP-based AD Gas","RNG")))))),"")&IF(Inputs!F210=1,"Solar","")&IF(Inputs!F211=1,"Nuclear","")&IF(Inputs!F212=1,"Electrolysis (Nuclear HTGR)","")&IF(Inputs!F213=1,"Coal","")&IF(Inputs!F214=1,"Biomass","")&IF(Inputs!F217=1,"Coke Oven Gas","")&IF(Inputs!F218=1,"Pet Coke","")&IF(MAX(Inputs!F209:F218)<1,"Mixed Sources",""),"Refueling Station, "&IF(Inputs!F222=1,IF(Inputs!F231=1,"NA NG",IF(Inputs!F231=2,"Non-NA NG",IF(Inputs!F231=3,"FG",IF(RNG!G5=1,"LFG",IF(RNG!G6=1,"Manure-based AD Gas",IF(RNG!G7=1,"WWTP-based AD Gas","RNG")))))),"")&IF(Inputs!F223=1,"Electrolysis","")&IF(Inputs!F224=1,"EtOH","")&IF(Inputs!F226=1,"MeOH","")&IF(MAX(Inputs!F222:F226)<1,"Mixed Sources",""))&") and Electricity ("&VLOOKUP(Inputs!$F$639,Inputs!$G$639:$H$657,2,FALSE)&")" -> Grid-Connected FC PHEV: G.H2 (Central Plants, NA NG) and Electricity (NWPP Mix) | AR13: ="Grid-Connected FC PHEV: L.H2 ("&IF(Inputs!G204=1,"Central Plants, "&IF(Inputs!G209=1,IF(Inputs!G230=1,"NA NG",IF(Inputs!G230=2,"Non-NA NG",IF(Inputs!G230=3,"FG",IF(RNG!H5=1,"LFG",IF(RNG!H6=1,"Manure-based AD Gas",IF(RNG!H7=1,"WWTP-based AD Gas","RNG")))))),"")&IF(Inputs!G210=1,"Solar","")&IF(Inputs!G211=1,"Nuclear","")&IF(Inputs!G212=1,"Electrolysis (Nuclear HTGR)","")&IF(Inputs!G213=1,"Coal","")&IF(Inputs!G214=1,"Biomass","")&IF(Inputs!G217=1,"Coke Oven Gas","")&IF(Inputs!G218=1,"Pet Coke","")&IF(MAX(Inputs!G209:G218)<1,"Mixed Sources",""),"Refueling Station, "&IF(Inputs!G222=1,IF(Inputs!G231=1,"NA NG",IF(Inputs!G231=2,"Non-NA NG",IF(Inputs!G231=3,"FG",IF(RNG!H5=1,"LFG",IF(RNG!H6=1,"Manure-based AD Gas",IF(RNG!H7=1,"WWTP-based AD Gas","RNG")))))),"")&IF(Inputs!G223=1,"Electrolysis","")&IF(Inputs!G224=1,"EtOH","")&IF(Inputs!G226=1,"MeOH","")&IF(MAX(Inputs!G222:G226)<1,"Mixed Sources",""))&") and Electricity ("&VLOOKUP(Inputs!$F$639,Inputs!$G$639:$H$657,2,FALSE)&")" -> Grid-Connected FC PHEV: L.H2 (Central Plants, NA NG) and Electricity (NWPP Mix) | AS13: ="Blended feedstock-based RG"&Vehicles!C16*100&" via Indirect Liquefaction (IDL)" -> Blended feedstock-based RG100 via Indirect Liquefaction (IDL)
A14: Total Energy | B14: =(Inputs!$E$1400*(Petroleum!$B263*Petroleum!$F$262+Petroleum!$F263)+(1-Inputs!$E$1400)*(Petroleum!$B263*Petroleum!$D$262+Petroleum!$D263))/1000000*HLOOKUP($H$10,$Z$3:$AD$4,2,FALSE)/HLOOKUP($J$11,$Z$7:$AD$8,2,FALSE) -> 275701.8356 | C14: =(Petroleum!$C263*Petroleum!$G$262+Petroleum!$G263)/1000000*HLOOKUP($H$10,$Z$3:$AD$4,2,FALSE)/HLOOKUP($J$11,$Z$7:$AD$8,2,FALSE) -> 447421.1957 | D14: =((1-Vehicles!$C$28)*(1-Vehicles!$C$7)*Fuel_Specs!$B$15/((1-Vehicles!$C$28)*(1-Vehicles!$C$7)*Fuel_Specs!$B$15+Vehicles!$C$28*(1-Vehicles!$C$7)*Fuel_Specs!$B$17+Vehicles!$C$7*Fuel_Specs!$B$32)*(Petroleum!$B263*Petroleum!$D$262+(Petroleum!$D263-'T&D'!G212))+Vehicles!$C$28*(1-Vehicles!$C$7)*Fuel_Specs!$B$17/((1-Vehicles!$C$28)*(1-Vehicles!$C$7)*Fuel_Specs!$B$15+Vehicles!$C$28*(1-Vehicles!$C$7)*Fuel_Specs!$B$17+Vehicles!$C$7*Fuel_Specs!$B$32)*(Petroleum!B263*Petroleum!$F$262+Petroleum!$F263)+Vehicles!$C$7*Fuel_Specs!$B$32/((1-Vehicles!$C$28)*(1-Vehicles!$C$7)*Fuel_Specs!$B$15+Vehicles!$C$28*(1-Vehicles!$C$7)*Fuel_Specs!$B$17+Vehicles!$C$7*Fuel_Specs!$B$32)*(EtOH!BR490*EtOH!$BS$489+EtOH!$BS490)+Petroleum!AS124+Petroleum!AT124)/1000000*HLOOKUP($H$10,$Z$3:$AD$4,2,FALSE)/HLOOKUP($J$11,$Z$7:$AD$8,2,FALSE) -> 275701.8356 | E14: =(Inputs!$E$97*(IF(Inputs!F$102=1,Petroleum!$B263,Petroleum!$C263)*Petroleum!$K$262+Petroleum!$K263)+(1-Inputs!$E$97)*(IF(Inputs!F$101=1,Petroleum!$B263,Petroleum!$C263)*Petroleum!$J$262+Petroleum!$J263))/1000000*HLOOKUP($H$10,$Z$3:$AD$4,2,FALSE)/HLOOKUP($J$11,$Z$7:$AD$8,2,FALSE) -> 278061.5925 | F14: =(NG!$I85*NG!$J$84+NG!$J85)/1000000*HLOOKUP($H$10,$Z$3:$AD$4,2,FALSE)/HLOOKUP($J$11,$Z$7:$AD$8,2,FALSE) -> 189570.1783 | G14: =(NG!$Q85*NG!$R$84+NG!$R85)/1000000*HLOOKUP($H$10,$Z$3:$AD$4,2,FALSE)/HLOOKUP($J$11,$Z$7:$AD$8,2,FALSE) -> 271084.1188 | H14: =(NG!$W85*NG!$X$84+NG!$X85)/1000000*HLOOKUP($H$10,$Z$3:$AD$4,2,FALSE)/HLOOKUP($J$11,$Z$7:$AD$8,2,FALSE) -> 155737.9329 | I14: =('MeOH&FTD'!BJ138*'MeOH&FTD'!BK$137+'MeOH&FTD'!BK138)/1000000*HLOOKUP($H$10,$Z$3:$AD$4,2,FALSE)/HLOOKUP($J$11,$Z$7:$AD$8,2,FALSE) -> 781928.986 | J14: =((1-Vehicles!$C$27)*(1-Vehicles!$C$5)*Fuel_Specs!$B$15/((1-Vehicles!$C$27)*(1-Vehicles!$C$5)*Fuel_Specs!$B$15+Vehicles!$C$27*(1-Vehicles!$C$5)*Fuel_Specs!$B$17+Vehicles!$C$5*Fuel_Specs!$B$31)*(Petroleum!$B263*Petroleum!$D$262+Petroleum!$D263)+Vehicles!$C$27*(1-Vehicles!$C$5)*Fuel_Specs!$B$17/((1-Vehicles!$C$27)*(1-Vehicles!$C$5)*Fuel_Specs!$B$15+Vehicles!$C$27*(1-Vehicles!$C$5)*Fuel_Specs!$B$17+Vehicles!$C$5*Fuel_Specs!$B$31)*(Petroleum!B263*Petroleum!$F$262+Petroleum!$F263)+Vehicles!$C$5*Fuel_Specs!$B$31/((1-Vehicles!$C$27)*(1-Vehicles!$C$5)*Fuel_Specs!$B$15+Vehicles!$C$27*(1-Vehicles!$C$5)*Fuel_Specs!$B$17+Vehicles!$C$5*Fuel_Specs!$B$31)*('MeOH&FTD'!$N138*'MeOH&FTD'!$O$137+'MeOH&FTD'!$O138))/1000000*HLOOKUP($H$10,$Z$3:$AD$4,2,FALSE)/HLOOKUP($J$11,$Z$7:$AD$8,2,FALSE) -> 458658.3139 | K14: =((1-Vehicles!$C$27)*(1-Vehicles!$C$6)*Fuel_Specs!$B$15/((1-Vehicles!$C$27)*(1-Vehicles!$C$6)*Fuel_Specs!$B$15+Vehicles!$C$27*(1-Vehicles!$C$6)*Fuel_Specs!$B$17+Vehicles!$C$6*Fuel_Specs!$B$31)*(Petroleum!$B263*Petroleum!$D$262+Petroleum!$D263)+Vehicles!$C$27*(1-Vehicles!$C$6)*Fuel_Specs!$B$17/((1-Vehicles!$C$27)*(1-Vehicles!$C$6)*Fuel_Specs!$B$15+Vehicles!$C$27*(1-Vehicles!$C$6)*Fuel_Specs!$B$17+Vehicles!$C$6*Fuel_Specs!$B$31)*(Petroleum!B263*Petroleum!$F$262+Petroleum!$F263)+Vehicles!$C$6*Fuel_Specs!$B$31/((1-Vehicles!$C$27)*(1-Vehicles!$C$6)*Fuel_Specs!$B$15+Vehicles!$C$27*(1-Vehicles!$C$6)*Fuel_Specs!$B$17+Vehicles!$C$6*Fuel_Specs!$B$31)*('MeOH&FTD'!$N138*'MeOH&FTD'!$O$137+'MeOH&FTD'!$O138))/1000000*HLOOKUP($H$10,$Z$3:$AD$4,2,FALSE)/HLOOKUP($J$11,$Z$7:$AD$8,2,FALSE) -> 481583.1051 | L14: =('MeOH&FTD'!$N138*'MeOH&FTD'!$O$137+'MeOH&FTD'!$O138)/1000000*HLOOKUP($H$10,$Z$3:$AD$4,2,FALSE)/HLOOKUP($J$11,$Z$7:$AD$8,2,FALSE) -> 534501.1313 | M14: =((1-Vehicles!$C$29)*(1-Vehicles!$C$8)*Fuel_Specs!$B$15/((1-Vehicles!$C$29)*(1-Vehicles!$C$8)*Fuel_Specs!$B$15+Vehicles!$C$29*(1-Vehicles!$C$8)*Fuel_Specs!$B$17+Vehicles!$C$8*Fuel_Specs!$B$32)*(Petroleum!$B263*Petroleum!$D$262+(Petroleum!$D263-'T&D'!G212))+Vehicles!$C$29*(1-Vehicles!$C$8)*Fuel_Specs!$B$17/((1-Vehicles!$C$29)*(1-Vehicles!$C$8)*Fuel_Specs!$B$15+Vehicles!$C$29*(1-Vehicles!$C$8)*Fuel_Specs!$B$17+Vehicles!$C$8*Fuel_Specs!$B$32)*(Petroleum!B263*Petroleum!$F$262+Petroleum!$F263)+Vehicles!$C$8*Fuel_Specs!$B$32/((1-Vehicles!$C$29)*(1-Vehicles!$C$8)*Fuel_Specs!$B$15+Vehicles!$C$29*(1-Vehicles!$C$8)*Fuel_Specs!$B$17+Vehicles!$C$8*Fuel_Specs!$B$32)*(EtOH!BR490*EtOH!$BS$489+EtOH!$BS490)+Petroleum!AS124+Petroleum!AT124)/1000000*HLOOKUP($H$10,$Z$3:$AD$4,2,FALSE)/HLOOKUP($J$11,$Z$7:$AD$8,2,FALSE) -> 579344.4285 | N14: =((1-Vehicles!$C$30)*(1-Vehicles!$C$12)*Fuel_Specs!$B$15/((1-Vehicles!$C$30)*(1-Vehicles!$C$12)*Fuel_Specs!$B$15+Vehicles!$C$30*(1-Vehicles!$C$12)*Fuel_Specs!$B$17+Vehicles!$C$12*Fuel_Specs!$B$33)*(Petroleum!$B263*Petroleum!$D$262+Petroleum!$D263)+Vehicles!$C$30*(1-Vehicles!$C$12)*Fuel_Specs!$B$17/((1-Vehicles!$C$30)*(1-Vehicles!$C$12)*Fuel_Specs!$B$15+Vehicles!$C$30*(1-Vehicles!$C$12)*Fuel_Specs!$B$17+Vehicles!$C$12*Fuel_Specs!$B$33)*(Petroleum!B263*Petroleum!$F$262+Petroleum!$F263)+Vehicles!$C$12*Fuel_Specs!$B$33/((1-Vehicles!$C$30)*(1-Vehicles!$C$12)*Fuel_Specs!$B$15+Vehicles!$C$30*(1-Vehicles!$C$12)*Fuel_Specs!$B$17+Vehicles!$C$12*Fuel_Specs!$B$33)*(EtOH!$BT490*EtOH!$BU$489+EtOH!$BU490))/1000000*HLOOKUP($H$10,$Z$3:$AD$4,2,FALSE)/HLOOKUP($J$11,$Z$7:$AD$8,2,FALSE) -> 753461.5994 | O14: =((1-Vehicles!$C$29)*(1-Vehicles!$C$9)*Fuel_Specs!$B$15/((1-Vehicles!$C$29)*(1-Vehicles!$C$9)*Fuel_Specs!$B$15+Vehicles!$C$29*(1-Vehicles!$C$9)*Fuel_Specs!$B$17+Vehicles!$C$9*Fuel_Specs!$B$32)*(Petroleum!$B263*Petroleum!$D$262+(Petroleum!$D263-'T&D'!G212))+Vehicles!$C$29*(1-Vehicles!$C$9)*Fuel_Specs!$B$17/((1-Vehicles!$C$29)*(1-Vehicles!$C$9)*Fuel_Specs!$B$15+Vehicles!$C$29*(1-Vehicles!$C$9)*Fuel_Specs!$B$17+Vehicles!$C$9*Fuel_Specs!$B$32)*(Petroleum!B263*Petroleum!$F$262+Petroleum!$F263)+Vehicles!$C$9*Fuel_Specs!$B$32/((1-Vehicles!$C$29)*(1-Vehicles!$C$9)*Fuel_Specs!$B$15+Vehicles!$C$29*(1-Vehicles!$C$9)*Fuel_Specs!$B$17+Vehicles!$C$9*Fuel_Specs!$B$32)*(EtOH!BR490*EtOH!$BS$489+EtOH!$BS490)+Petroleum!AS124+Petroleum!AT124)/1000000*HLOOKUP($H$10,$Z$3:$AD$4,2,FALSE)/HLOOKUP($J$11,$Z$7:$AD$8,2,FALSE) -> 579344.4285 | P14: =(EtOH!$BP490*EtOH!$BQ$489+EtOH!$BQ490)/1000000*HLOOKUP($H$10,$Z$3:$AD$4,2,FALSE)/HLOOKUP($J$11,$Z$7:$AD$8,2,FALSE) -> 685687.9059 | Q14: =((1-Vehicles!$C$33)*(1-Vehicles!$C$16)*Fuel_Specs!$B$15/((1-Vehicles!$C$33)*(1-Vehicles!$C$16)*Fuel_Specs!$B$15+Vehicles!$C$33*(1-Vehicles!$C$16)*Fuel_Specs!$B$17+Vehicles!$C$16*Fuel_Specs!$B$45)*(Petroleum!$B263*Petroleum!$D$262+Petroleum!$D263)+Vehicles!$C$33*(1-Vehicles!$C$16)*Fuel_Specs!$B$17/((1-Vehicles!$C$33)*(1-Vehicles!$C$16)*Fuel_Specs!$B$15+Vehicles!$C$33*(1-Vehicles!$C$16)*Fuel_Specs!$B$17+Vehicles!$C$16*Fuel_Specs!$B$45)*(Petroleum!B263*Petroleum!$F$262+Petroleum!$F263)+Vehicles!$C$16*Fuel_Specs!$B$45/((1-Vehicles!$C$33)*(1-Vehicles!$C$16)*Fuel_Specs!$B$15+Vehicles!$C$33*(1-Vehicles!$C$16)*Fuel_Specs!$B$17+Vehicles!$C$16*Fuel_Specs!$B$45)*(BioOil!$BO337*BioOil!$BP$335+BioOil!$BP337))/1000000*HLOOKUP($H$10,$Z$3:$AD$4,2,FALSE)/HLOOKUP($J$11,$Z$7:$AD$8,2,FALSE) -> 500557.3541 | R14: =((1-Vehicles!$C$33)*(1-Vehicles!$C$16)*Fuel_Specs!$B$15/((1-Vehicles!$C$33)*(1-Vehicles!$C$16)*Fuel_Specs!$B$15+Vehicles!$C$33*(1-Vehicles!$C$16)*Fuel_Specs!$B$17+Vehicles!$C$16*Fuel_Specs!$B$45)*(Petroleum!$B263*Petroleum!$D$262+Petroleum!$D263)+Vehicles!$C$33*(1-Vehicles!$C$16)*Fuel_Specs!$B$17/((1-Vehicles!$C$33)*(1-Vehicles!$C$16)*Fuel_Specs!$B$15+Vehicles!$C$33*(1-Vehicles!$C$16)*Fuel_Specs!$B$17+Vehicles!$C$16*Fuel_Specs!$B$45)*(Petroleum!B263*Petroleum!$F$262+Petroleum!$F263)+Vehicles!$C$16*Fuel_Specs!$B$45/((1-Vehicles!$C$33)*(1-Vehicles!$C$16)*Fuel_Specs!$B$15+Vehicles!$C$33*(1-Vehicles!$C$16)*Fuel_Specs!$B$17+Vehicles!$C$16*Fuel_Specs!$B$45)*(Pyrolysis!$Z172*Pyrolysis!$AA$171+Pyrolysis!$AA172))/1000000*HLOOKUP($H$10,$Z$3:$AD$4,2,FALSE)/HLOOKUP($J$11,$Z$7:$AD$8,2,FALSE) -> 946584.3488 | S14: =AN14*(Vehicles!$C$23/Vehicles!$AR$59)/(Vehicles!$C$23*(1/Vehicles!$AR$59+1/Vehicles!$AS$59)+Vehicles!$C$24/Vehicles!$AT$59)+B14*(Vehicles!$C$23/Vehicles!$AS$59+Vehicles!$C$24/Vehicles!$AT$59)/(Vehicles!$C$23*(1/Vehicles!$AR$59+1/Vehicles!$AS$59)+Vehicles!$C$24/Vehicles!$AT$59) -> 488008.993 | T14: =AN14*(Vehicles!$D$23/Vehicles!$AV$59)/(Vehicles!$D$23*(1/Vehicles!$AV$59+1/Vehicles!$AW$59)+Vehicles!$D$24/Vehicles!$AX$59)+C14*(Vehicles!$D$23/Vehicles!$AW$59+Vehicles!$D$24/Vehicles!$AX$59)/(Vehicles!$D$23*(1/Vehicles!$AV$59+1/Vehicles!$AW$59)+Vehicles!$D$24/Vehicles!$AX$59) -> 612224.8102 | U14: =AN14*(Vehicles!$F$23/Vehicles!$BD$59)/(Vehicles!$F$23*(1/Vehicles!$BD$59+1/Vehicles!$BE$59)+Vehicles!$F$24/Vehicles!$BF$59)+D14*(Vehicles!$F$23/Vehicles!$BE$59+Vehicles!$F$24/Vehicles!$BF$59)/(Vehicles!$F$23*(1/Vehicles!$BD$59+1/Vehicles!$BE$59)+Vehicles!$F$24/Vehicles!$BF$59) -> 488008.993 | V14: =AN14*(Vehicles!$G$23/Vehicles!$BH$59)/(Vehicles!$G$23*(1/Vehicles!$BH$59+1/Vehicles!$BI$59)+Vehicles!$G$24/Vehicles!$BJ$59)+F14*(Vehicles!$G$23/Vehicles!$BI$59+Vehicles!$G$24/Vehicles!$BJ$59)/(Vehicles!$G$23*(1/Vehicles!$BH$59+1/Vehicles!$BI$59)+Vehicles!$G$24/Vehicles!$BJ$59) -> 425704.3456 | W14: =AN14*(Vehicles!$H$23/Vehicles!$BL$59)/(Vehicles!$H$23*(1/Vehicles!$BL$59+1/Vehicles!$BM$59)+Vehicles!$H$24/Vehicles!$BN$59)+G14*(Vehicles!$H$23/Vehicles!$BM$59+Vehicles!$H$24/Vehicles!$BN$59)/(Vehicles!$H$23*(1/Vehicles!$BL$59+1/Vehicles!$BM$59)+Vehicles!$H$24/Vehicles!$BN$59) -> 484668.6972 | X14: =AN14*(Vehicles!$I$23/Vehicles!$BP$59)/(Vehicles!$I$23*(1/Vehicles!$BP$59+1/Vehicles!$BQ$59)+Vehicles!$I$24/Vehicles!$BR$59)+H14*(Vehicles!$I$23/Vehicles!$BQ$59+Vehicles!$I$24/Vehicles!$BR$59)/(Vehicles!$I$23*(1/Vehicles!$BP$59+1/Vehicles!$BQ$59)+Vehicles!$I$24/Vehicles!$BR$59) -> 401231.275 | Y14: =AN14*(Vehicles!$J$23/Vehicles!$BT$59)/(Vehicles!$J$23*(1/Vehicles!$BT$59+1/Vehicles!$BU$59)+Vehicles!$J$24/Vehicles!$BV$59)+K14*(Vehicles!$J$23/Vehicles!$BU$59+Vehicles!$J$24/Vehicles!$BV$59)/(Vehicles!$J$23*(1/Vehicles!$BT$59+1/Vehicles!$BU$59)+Vehicles!$J$24/Vehicles!$BV$59) -> 627571.456 | Z14: =AN14*(Vehicles!$K$23/Vehicles!$BX$59)/(Vehicles!$K$23*(1/Vehicles!$BX$59+1/Vehicles!$BY$59)+Vehicles!$K$24/Vehicles!$BZ$59)+O14*(Vehicles!$K$23/Vehicles!$BY$59+Vehicles!$K$24/Vehicles!$BZ$59)/(Vehicles!$K$23*(1/Vehicles!$BX$59+1/Vehicles!$BY$59)+Vehicles!$K$24/Vehicles!$BZ$59) -> 699918.8574 | AA14: =AN14*(Vehicles!$L$23/Vehicles!$CB$59)/(Vehicles!$L$23*(1/Vehicles!$CB$59+1/Vehicles!$CC$59)+Vehicles!$L$24/Vehicles!$CD$59)+AO14*(Vehicles!$L$23/Vehicles!$CC$59+Vehicles!$L$24/Vehicles!$CD$59)/(Vehicles!$L$23*(1/Vehicles!$CB$59+1/Vehicles!$CC$59)+Vehicles!$L$24/Vehicles!$CD$59) -> 938208.8988 | AB14: =AN14*(Vehicles!$L$23/Vehicles!$CB$59)/(Vehicles!$L$23*(1/Vehicles!$CB$59+1/Vehicles!$CC$59)+Vehicles!$L$24/Vehicles!$CE$59)+AP14*(Vehicles!$L$23/Vehicles!$CC$59+Vehicles!$L$24/Vehicles!$CE$59)/(Vehicles!$L$23*(1/Vehicles!$CB$59+1/Vehicles!$CC$59)+Vehicles!$L$24/Vehicles!$CE$59) -> 1337199.517 | AC14: =('MeOH&FTD'!$AJ138*'MeOH&FTD'!$AK$137+'MeOH&FTD'!$AK138)/1000000*HLOOKUP($H$10,$Z$3:$AD$4,2,FALSE)/HLOOKUP($J$11,$Z$7:$AD$8,2,FALSE) -> 629198.8436 | AD14: =((1-Vehicles!$C$34)*(1-Vehicles!$C$13)*Fuel_Specs!$B$21/((1-Vehicles!$C$34)*(1-Vehicles!$C$13)*Fuel_Specs!$B$21+Vehicles!$C$34*(1-Vehicles!$C$13)*Fuel_Specs!$B$24+Vehicles!$C$13*Fuel_Specs!$B$41)*(Petroleum!B263*Petroleum!$J$262+Petroleum!$J263)+Vehicles!$C$34*(1-Vehicles!$C$13)*Fuel_Specs!$B$24/((1-Vehicles!$C$34)*(1-Vehicles!$C$13)*Fuel_Specs!$B$21+Vehicles!$C$34*(1-Vehicles!$C$13)*Fuel_Specs!$B$24+Vehicles!$C$13*Fuel_Specs!$B$41)*(Petroleum!B263*Petroleum!$K$262+Petroleum!$K263)+Vehicles!$C$13*Fuel_Specs!$B$41/((1-Vehicles!$C$34)*(1-Vehicles!$C$13)*Fuel_Specs!$B$21+Vehicles!$C$34*(1-Vehicles!$C$13)*Fuel_Specs!$B$24+Vehicles!$C$13*Fuel_Specs!$B$41)*('MeOH&FTD'!$AZ138*'MeOH&FTD'!$BA$137+'MeOH&FTD'!$BA138))/1000000*HLOOKUP($H$10,$Z$3:$AD$4,2,FALSE)/HLOOKUP($J$11,$Z$7:$AD$8,2,FALSE) -> 729497.1675 | AE14: =((1-Vehicles!$C$35)*(1-Vehicles!$C$14)*Fuel_Specs!$B$21/((1-Vehicles!$C$35)*(1-Vehicles!$C$14)*Fuel_Specs!$B$21+Vehicles!$C$35*(1-Vehicles!$C$14)*Fuel_Specs!$B$24+Vehicles!$C$14*Fuel_Specs!$B$40)*(Petroleum!B263*Petroleum!$J$262+Petroleum!$J263)+Vehicles!$C$35*(1-Vehicles!$C$14)*Fuel_Specs!$B$24/((1-Vehicles!$C$35)*(1-Vehicles!$C$14)*Fuel_Specs!$B$21+Vehicles!$C$35*(1-Vehicles!$C$14)*Fuel_Specs!$B$24+Vehicles!$C$14*Fuel_Specs!$B$40)*(Petroleum!B263*Petroleum!$K$262+Petroleum!$K263)+Vehicles!$C$14*Fuel_Specs!$B$40/((1-Vehicles!$C$35)*(1-Vehicles!$C$14)*Fuel_Specs!$B$21+Vehicles!$C$35*(1-Vehicles!$C$14)*Fuel_Specs!$B$24+Vehicles!$C$14*Fuel_Specs!$B$40)*(BioOil!$W337*BioOil!$X$335+BioOil!$X337))/1000000*HLOOKUP($H$10,$Z$3:$AD$4,2,FALSE)/HLOOKUP($J$11,$Z$7:$AD$8,2,FALSE) -> 348026.1418 | AF14: =((1-Vehicles!$C$36)*(1-Vehicles!$C$15)*Fuel_Specs!$B$21/((1-Vehicles!$C$36)*(1-Vehicles!$C$15)*Fuel_Specs!$B$21+Vehicles!$C$36*(1-Vehicles!$C$15)*Fuel_Specs!$B$24+Vehicles!$C$15*IF(Inputs!$E$628=1,IF(Inputs!$E$628=1,Fuel_Specs!$B$42,IF(Inputs!$E$628=3,Fuel_Specs!$B$44,Fuel_Specs!$B$43)),Fuel_Specs!$B$43))*(Petroleum!B263*Petroleum!$J$262+Petroleum!$J263)+Vehicles!$C$36*(1-Vehicles!$C$15)*Fuel_Specs!$B$24/((1-Vehicles!$C$36)*(1-Vehicles!$C$15)*Fuel_Specs!$B$21+Vehicles!$C$36*(1-Vehicles!$C$15)*Fuel_Specs!$B$24+Vehicles!$C$15*IF(Inputs!$E$628=1,IF(Inputs!$E$628=1,Fuel_Specs!$B$42,IF(Inputs!$E$628=3,Fuel_Specs!$B$44,Fuel_Specs!$B$43)),Fuel_Specs!$B$43))*(Petroleum!B263*Petroleum!$K$262+Petroleum!$K263)+Vehicles!$C$15*IF(Inputs!$E$628=1,IF(Inputs!$E$628=1,Fuel_Specs!$B$42,IF(Inputs!$E$628=3,Fuel_Specs!$B$44,Fuel_Specs!$B$43)),Fuel_Specs!$B$43)/((1-Vehicles!$C$36)*(1-Vehicles!$C$15)*Fuel_Specs!$B$21+Vehicles!$C$36*(1-Vehicles!$C$15)*Fuel_Specs!$B$24+Vehicles!$C$15*IF(Inputs!$E$628=1,IF(Inputs!$E$628=1,Fuel_Specs!$B$42,IF(Inputs!$E$628=3,Fuel_Specs!$B$44,Fuel_Specs!$B$43)),Fuel_Specs!$B$43))*(BioOil!$BA337*BioOil!$BB$335+BioOil!$BB337))/1000000*HLOOKUP($H$10,$Z$3:$AD$4,2,FALSE)/HLOOKUP($J$11,$Z$7:$AD$8,2,FALSE) -> 537804.4092 | AG14: =((1-Vehicles!$C$36)*(1-Vehicles!$C$15)*Fuel_Specs!$B$21/((1-Vehicles!$C$36)*(1-Vehicles!$C$15)*Fuel_Specs!$B$21+Vehicles!$C$36*(1-Vehicles!$C$15)*Fuel_Specs!$B$24+Vehicles!$C$15*IF(Inputs!$E$628=1,Fuel_Specs!$B$42,Fuel_Specs!$B$43))*(Petroleum!B263*Petroleum!$J$262+Petroleum!$J263)+Vehicles!$C$36*(1-Vehicles!$C$15)*Fuel_Specs!$B$24/((1-Vehicles!$C$36)*(1-Vehicles!$C$15)*Fuel_Specs!$B$21+Vehicles!$C$36*(1-Vehicles!$C$15)*Fuel_Specs!$B$24+Vehicles!$C$15*IF(Inputs!$E$628=1,Fuel_Specs!$B$42,Fuel_Specs!$B$43))*(Petroleum!B263*Petroleum!$K$262+Petroleum!$K263)+Vehicles!$C$15*IF(Inputs!$E$628=1,Fuel_Specs!$B$42,Fuel_Specs!$B$43)/((1-Vehicles!$C$36)*(1-Vehicles!$C$15)*Fuel_Specs!$B$21+Vehicles!$C$36*(1-Vehicles!$C$15)*Fuel_Specs!$B$24+Vehicles!$C$15*IF(Inputs!$E$628=1,Fuel_Specs!$B$42,Fuel_Specs!$B$43))*(Pyrolysis!$AB172*Pyrolysis!$AC$171+Pyrolysis!$AC172))/1000000*HLOOKUP($H$10,$Z$3:$AD$4,2,FALSE)/HLOOKUP($J$11,$Z$7:$AD$8,2,FALSE) -> 1030073.452 | AH14: =(((1-Vehicles!$C$37)*(1-Vehicles!$C$17-Vehicles!$C$18)*Fuel_Specs!$B$21*(Petroleum!B263*Petroleum!$J$262+Petroleum!$J263)+Vehicles!$C$37*(1-Vehicles!$C$17-Vehicles!$C$18)*Fuel_Specs!$B$24*(Petroleum!B263*Petroleum!$K$262+Petroleum!$K263)+Vehicles!$C$17*Fuel_Specs!$B$32*(EtOH!BP490*EtOH!$BQ$489+EtOH!$BQ490)+Vehicles!$C$18*Fuel_Specs!$B$35*('E-D Additives'!$B54*'E-D Additives'!$B$53))/((1-Vehicles!$C$37)*(1-Vehicles!$C$17-Vehicles!$C$18)*Fuel_Specs!$B$21+Vehicles!$C$37*(1-Vehicles!$C$17-Vehicles!$C$18)*Fuel_Specs!$B$24+Vehicles!$C$17*Fuel_Specs!$B$32+Vehicles!$C$18*Fuel_Specs!$B$35))/1000000*HLOOKUP($H$10,$Z$3:$AD$4,2,FALSE)/HLOOKUP($J$11,$Z$7:$AD$8,2,FALSE) -> 304779.9978 | AI14: =AN14*(Vehicles!$M$23/Vehicles!$CM$59)/(Vehicles!$M$23*(1/Vehicles!$CM$59+1/Vehicles!$CN$59)+Vehicles!$M$24/Vehicles!$CO$59)+E14*(Vehicles!$M$23/Vehicles!$CN$59+Vehicles!$M$24/Vehicles!$CO$59)/(Vehicles!$M$23*(1/Vehicles!$CM$59+1/Vehicles!$CN$59)+Vehicles!$M$24/Vehicles!$CO$59) -> 490030.3892 | AJ14: =AN14*(Vehicles!$N$23/Vehicles!$CQ$59)/(Vehicles!$N$23*(1/Vehicles!$CQ$59+1/Vehicles!$CR$59)+Vehicles!$N$24/Vehicles!$CS$59)+AC14*(Vehicles!$N$23/Vehicles!$CR$59+Vehicles!$N$24/Vehicles!$CS$59)/(Vehicles!$N$23*(1/Vehicles!$CQ$59+1/Vehicles!$CR$59)+Vehicles!$N$24/Vehicles!$CS$59) -> 743886.5685 | AK14: =AN14*(Vehicles!$O$23/Vehicles!$CU$59)/(Vehicles!$O$23*(1/Vehicles!$CU$59+1/Vehicles!$CV$59)+Vehicles!$O$24/Vehicles!$CW$59)+AD14*(Vehicles!$O$23/Vehicles!$CV$59+Vehicles!$O$24/Vehicles!$CW$59)/(Vehicles!$O$23*(1/Vehicles!$CU$59+1/Vehicles!$CV$59)+Vehicles!$O$24/Vehicles!$CW$59) -> 816397.6713 | AL14: =AN14*(Vehicles!$P$23/Vehicles!$CY$59)/(Vehicles!$P$23*(1/Vehicles!$CY$59+1/Vehicles!$CZ$59)+Vehicles!$P$24/Vehicles!$DA$59)+AE14*(Vehicles!$P$23/Vehicles!$CZ$59+Vehicles!$P$24/Vehicles!$DA$59)/(Vehicles!$P$23*(1/Vehicles!$CY$59+1/Vehicles!$CZ$59)+Vehicles!$P$24/Vehicles!$DA$59) -> 540611.5597 | AM14: =AN14*(Vehicles!$R$23/Vehicles!$DG$59)/(Vehicles!$R$23*(1/Vehicles!$DG$59+1/Vehicles!$DH$59)+Vehicles!$R$24/Vehicles!$DI$59)+AH14*(Vehicles!$R$23/Vehicles!$DH$59+Vehicles!$R$24/Vehicles!$DI$59)/(Vehicles!$R$23*(1/Vehicles!$DG$59+1/Vehicles!$DH$59)+Vehicles!$R$24/Vehicles!$DI$59) -> 509346.5747 | AN14: =(Electric!$G186+Electric!$F186-1000000)/1000000*HLOOKUP($H$10,$Z$3:$AD$4,2,FALSE)/HLOOKUP($J$11,$Z$7:$AD$8,2,FALSE) -> 1043165.628 | AO14: =((Hydrogen!$AF163*Hydrogen!$AG$162+Hydrogen!$AG163)-1000000*(Hydrogen!$M$7+Hydrogen!$C$7+Hydrogen!$D$7+Hydrogen!$E$7))/1000000*HLOOKUP($H$10,$Z$3:$AD$4,2,FALSE)/HLOOKUP($J$11,$Z$7:$AD$8,2,FALSE) -> 895739.5879 | AP14: =((Hydrogen!$BJ163*Hydrogen!$BK$162+Hydrogen!$BK163)-1000000*(Hydrogen!$M$8+Hydrogen!$C$8+Hydrogen!$D$8+Hydrogen!$E$8))/1000000*HLOOKUP($H$10,$Z$3:$AD$4,2,FALSE)/HLOOKUP($J$11,$Z$7:$AD$8,2,FALSE) -> 1456176.326 | AQ14: =AN14*(Vehicles!$S$23/Vehicles!$DW$59)/(Vehicles!$S$23*(1/Vehicles!$DW$59+1/Vehicles!$DX$59)+Vehicles!$S$24/Vehicles!$DY$59)+AO14*(Vehicles!$S$23/Vehicles!$DX$59+Vehicles!$S$24/Vehicles!$DY$59)/(Vehicles!$S$23*(1/Vehicles!$DW$59+1/Vehicles!$DX$59)+Vehicles!$S$24/Vehicles!$DY$59) -> 946365.1459 | AR14: =AN14*(Vehicles!$S$23/Vehicles!$DW$59)/(Vehicles!$S$23*(1/Vehicles!$DW$59+1/Vehicles!$DX$59)+Vehicles!$S$24/Vehicles!$DY$59)+AP14*(Vehicles!$S$23/Vehicles!$DX$59+Vehicles!$S$24/Vehicles!$DY$59)/(Vehicles!$S$23*(1/Vehicles!$DW$59+1/Vehicles!$DX$59)+Vehicles!$S$24/Vehicles!$DY$59) -> 1314349.976 | AS14: =((1-Vehicles!$C$33)*(1-Vehicles!$C$16)*Fuel_Specs!$B$15/((1-Vehicles!$C$33)*(1-Vehicles!$C$16)*Fuel_Specs!$B$15+Vehicles!$C$33*(1-Vehicles!$C$16)*Fuel_Specs!$B$17+Vehicles!$C$16*Fuel_Specs!$B$46)*(Petroleum!$B263*Petroleum!$D$262+Petroleum!$D263)+Vehicles!$C$33*(1-Vehicles!$C$16)*Fuel_Specs!$B$17/((1-Vehicles!$C$33)*(1-Vehicles!$C$16)*Fuel_Specs!$B$15+Vehicles!$C$33*(1-Vehicles!$C$16)*Fuel_Specs!$B$17+Vehicles!$C$16*Fuel_Specs!$B$46)*(Petroleum!B263*Petroleum!$F$262+Petroleum!$F263)+Vehicles!$C$16*Fuel_Specs!$B$46/((1-Vehicles!$C$33)*(1-Vehicles!$C$16)*Fuel_Specs!$B$15+Vehicles!$C$33*(1-Vehicles!$C$16)*Fuel_Specs!$B$17+Vehicles!$C$16*Fuel_Specs!$B$46)*(IDL!$L113*IDL!$M$112+IDL!$M113))/1000000*HLOOKUP($H$10,$Z$3:$AD$4,2,FALSE)/HLOOKUP($J$11,$Z$7:$AD$8,2,FALSE) -> 3166225.432 | AV14: Select Fuels | AY14: Select Fuels | BB14: Select Fuels | BE14: Select Fuels | BH14: Select Fuels | BK14: Select Fuels | BN14: Select Fuels | BQ14: Select Fuels
A15: WTP Efficiency | B15: =HLOOKUP($H$10,$Z$3:$AD$4,2,FALSE)/HLOOKUP($J$11,$Z$7:$AD$8,2,FALSE)/(HLOOKUP($H$10,$Z$3:$AD$4,2,FALSE)/HLOOKUP($J$11,$Z$7:$AD$8,2,FALSE)+B14) -> 0.7838822302 | C15: 0.6908838996 | D15: 0.7838822302 | E15: 0.7824349045 | F15: 0.8406397691 | G15: 0.7867299931 | H15: 0.8652480563 | I15: 0.5611895916 | J15: 0.6855615126 | K15: 0.6749537009 | L15: 0.6516775906 | M15: 0.6331741082 | N15: 0.5703004847 | O15: 0.6331741082 | P15: 0.5932296225 | Q15: 0.6664190457 | R15: 0.5137203536 | S15: 0.6720389491 | T15: 0.6202608927 | U15: 0.6720389491 | V15: 0.7014076959 | W15: 0.6735509423 | X15: 0.7136580647 | Y15: 0.6144123481 | Z15: 0.5882633725 | AA15: 0.5159402583 | AB15: 0.4278624878 | AC15: 0.6137986188 | AD15: 0.5782027394 | AE15: 0.7418253764 | AF15: 0.6502777558 | AG15: 0.4925930138 | AH15: 0.7664127299 | AI15: 0.6711272517 | AJ15: 0.573431792 | AK15: 0.5505402346 | AL15: 0.6490928837 | AM15: 0.6625383572 | AN15: 0.4894365813 | AO15: 0.5274986113 | AP15: 0.4071368938 | AQ15: 0.5137782096 | AR15: 0.4320867674 | AS15: 0.2400254178 | AV15: SI - Gasoline | AW15: RNAVGASCRFG | AY15: SIDI - Gasoline | AZ15: RNAVGASCRFGSIDI | BB15: CIDI - Diesel | BC15: RNAVDIESELCIDI | BE15: SI HEV - Gasoline | BF15: RNAVHEV | BH15: SI PHEV - Gasoline and Electricity | BI15: RNAVPHEV | BK15: CIDI HEV - Diesel | BL15: RNAVHEVDIESEL | BN15: CIDI PHEV - Diesel and Electricity | BO15: RNAVPHEVDIESEL | BQ15: BEV - Electricity | BR15: RNAVPHEVELECTRIC
A16: Fossil Fuels | B16: =(Inputs!$E$1400*(Petroleum!$B264*Petroleum!$F$262+Petroleum!$F264)+(1-Inputs!$E$1400)*(Petroleum!$B264*Petroleum!$D$262+Petroleum!$D264))/1000000*HLOOKUP($H$10,$Z$3:$AD$4,2,FALSE)/HLOOKUP($J$11,$Z$7:$AD$8,2,FALSE) -> 263945.8166 | C16: =(Petroleum!$C264*Petroleum!$G$262+Petroleum!$G264)/1000000*HLOOKUP($H$10,$Z$3:$AD$4,2,FALSE)/HLOOKUP($J$11,$Z$7:$AD$8,2,FALSE) -> 440270.3228 | D16: =((1-Vehicles!$C$28)*(1-Vehicles!$C$7)*Fuel_Specs!$B$15/((1-Vehicles!$C$28)*(1-Vehicles!$C$7)*Fuel_Specs!$B$15+Vehicles!$C$28*(1-Vehicles!$C$7)*Fuel_Specs!$B$17+Vehicles!$C$7*Fuel_Specs!$B$32)*(Petroleum!$B264*Petroleum!$D$262+(Petroleum!$D264-'T&D'!G213))+Vehicles!$C$28*(1-Vehicles!$C$7)*Fuel_Specs!$B$17/((1-Vehicles!$C$28)*(1-Vehicles!$C$7)*Fuel_Specs!$B$15+Vehicles!$C$28*(1-Vehicles!$C$7)*Fuel_Specs!$B$17+Vehicles!$C$7*Fuel_Specs!$B$32)*(Petroleum!B264*Petroleum!$F$262+Petroleum!$F264)+Vehicles!$C$7*Fuel_Specs!$B$32/((1-Vehicles!$C$28)*(1-Vehicles!$C$7)*Fuel_Specs!$B$15+Vehicles!$C$28*(1-Vehicles!$C$7)*Fuel_Specs!$B$17+Vehicles!$C$7*Fuel_Specs!$B$32)*(EtOH!BR491*EtOH!$BS$489+EtOH!$BS491)+Petroleum!AS125+Petroleum!AT125)/1000000*HLOOKUP($H$10,$Z$3:$AD$4,2,FALSE)/HLOOKUP($J$11,$Z$7:$AD$8,2,FALSE) -> 263945.8166 | E16: =(Inputs!$E$97*(IF(Inputs!F$102=1,Petroleum!$B264,Petroleum!$C264)*Petroleum!$K$262+Petroleum!$K264)+(1-Inputs!$E$97)*(IF(Inputs!F$101=1,Petroleum!$B264,Petroleum!$C264)*Petroleum!$J$262+Petroleum!$J264))/1000000*HLOOKUP($H$10,$Z$3:$AD$4,2,FALSE)/HLOOKUP($J$11,$Z$7:$AD$8,2,FALSE) -> 267117.4579 | F16: =(NG!$I86*NG!$J$84+NG!$J86)/1000000*HLOOKUP($H$10,$Z$3:$AD$4,2,FALSE)/HLOOKUP($J$11,$Z$7:$AD$8,2,FALSE) -> 170031.0523 | G16: =(NG!$Q86*NG!$R$84+NG!$R86)/1000000*HLOOKUP($H$10,$Z$3:$AD$4,2,FALSE)/HLOOKUP($J$11,$Z$7:$AD$8,2,FALSE) -> 268274.8096 | H16: =(NG!$W86*NG!$X$84+NG!$X86)/1000000*HLOOKUP($H$10,$Z$3:$AD$4,2,FALSE)/HLOOKUP($J$11,$Z$7:$AD$8,2,FALSE) -> 152116.5545 | I16: =('MeOH&FTD'!BJ139*'MeOH&FTD'!BK$137+'MeOH&FTD'!BK139)/1000000*HLOOKUP($H$10,$Z$3:$AD$4,2,FALSE)/HLOOKUP($J$11,$Z$7:$AD$8,2,FALSE) -> 813896.0528 | J16: =((1-Vehicles!$C$27)*(1-Vehicles!$C$5)*Fuel_Specs!$B$15/((1-Vehicles!$C$27)*(1-Vehicles!$C$5)*Fuel_Specs!$B$15+Vehicles!$C$27*(1-Vehicles!$C$5)*Fuel_Specs!$B$17+Vehicles!$C$5*Fuel_Specs!$B$31)*(Petroleum!$B264*Petroleum!$D$262+Petroleum!$D264)+Vehicles!$C$27*(1-Vehicles!$C$5)*Fuel_Specs!$B$17/((1-Vehicles!$C$27)*(1-Vehicles!$C$5)*Fuel_Specs!$B$15+Vehicles!$C$27*(1-Vehicles!$C$5)*Fuel_Specs!$B$17+Vehicles!$C$5*Fuel_Specs!$B$31)*(Petroleum!B264*Petroleum!$F$262+Petroleum!$F264)+Vehicles!$C$5*Fuel_Specs!$B$31/((1-Vehicles!$C$27)*(1-Vehicles!$C$5)*Fuel_Specs!$B$15+Vehicles!$C$27*(1-Vehicles!$C$5)*Fuel_Specs!$B$17+Vehicles!$C$5*Fuel_Specs!$B$31)*('MeOH&FTD'!$N139*'MeOH&FTD'!$O$137+'MeOH&FTD'!$O139))/1000000*HLOOKUP($H$10,$Z$3:$AD$4,2,FALSE)/HLOOKUP($J$11,$Z$7:$AD$8,2,FALSE) -> 436401.1478 | K16: =((1-Vehicles!$C$27)*(1-Vehicles!$C$6)*Fuel_Specs!$B$15/((1-Vehicles!$C$27)*(1-Vehicles!$C$6)*Fuel_Specs!$B$15+Vehicles!$C$27*(1-Vehicles!$C$6)*Fuel_Specs!$B$17+Vehicles!$C$6*Fuel_Specs!$B$31)*(Petroleum!$B264*Petroleum!$D$262+Petroleum!$D264)+Vehicles!$C$27*(1-Vehicles!$C$6)*Fuel_Specs!$B$17/((1-Vehicles!$C$27)*(1-Vehicles!$C$6)*Fuel_Specs!$B$15+Vehicles!$C$27*(1-Vehicles!$C$6)*Fuel_Specs!$B$17+Vehicles!$C$6*Fuel_Specs!$B$31)*(Petroleum!B264*Petroleum!$F$262+Petroleum!$F264)+Vehicles!$C$6*Fuel_Specs!$B$31/((1-Vehicles!$C$27)*(1-Vehicles!$C$6)*Fuel_Specs!$B$15+Vehicles!$C$27*(1-Vehicles!$C$6)*Fuel_Specs!$B$17+Vehicles!$C$6*Fuel_Specs!$B$31)*('MeOH&FTD'!$N139*'MeOH&FTD'!$O$137+'MeOH&FTD'!$O139))/1000000*HLOOKUP($H$10,$Z$3:$AD$4,2,FALSE)/HLOOKUP($J$11,$Z$7:$AD$8,2,FALSE) -> 457978.5848 | L16: =('MeOH&FTD'!$N139*'MeOH&FTD'!$O$137+'MeOH&FTD'!$O139)/1000000*HLOOKUP($H$10,$Z$3:$AD$4,2,FALSE)/HLOOKUP($J$11,$Z$7:$AD$8,2,FALSE) -> 507786.4705 | M16: =((1-Vehicles!$C$29)*(1-Vehicles!$C$8)*Fuel_Specs!$B$15/((1-Vehicles!$C$29)*(1-Vehicles!$C$8)*Fuel_Specs!$B$15+Vehicles!$C$29*(1-Vehicles!$C$8)*Fuel_Specs!$B$17+Vehicles!$C$8*Fuel_Specs!$B$32)*(Petroleum!$B264*Petroleum!$D$262+(Petroleum!$D264-'T&D'!G213))+Vehicles!$C$29*(1-Vehicles!$C$8)*Fuel_Specs!$B$17/((1-Vehicles!$C$29)*(1-Vehicles!$C$8)*Fuel_Specs!$B$15+Vehicles!$C$29*(1-Vehicles!$C$8)*Fuel_Specs!$B$17+Vehicles!$C$8*Fuel_Specs!$B$32)*(Petroleum!B264*Petroleum!$F$262+Petroleum!$F264)+Vehicles!$C$8*Fuel_Specs!$B$32/((1-Vehicles!$C$29)*(1-Vehicles!$C$8)*Fuel_Specs!$B$15+Vehicles!$C$29*(1-Vehicles!$C$8)*Fuel_Specs!$B$17+Vehicles!$C$8*Fuel_Specs!$B$32)*(EtOH!BR491*EtOH!$BS$489+EtOH!$BS491)+Petroleum!AS125+Petroleum!AT125)/1000000*HLOOKUP($H$10,$Z$3:$AD$4,2,FALSE)/HLOOKUP($J$11,$Z$7:$AD$8,2,FALSE) -> 547072.7833 | N16: =((1-Vehicles!$C$30)*(1-Vehicles!$C$12)*Fuel_Specs!$B$15/((1-Vehicles!$C$30)*(1-Vehicles!$C$12)*Fuel_Specs!$B$15+Vehicles!$C$30*(1-Vehicles!$C$12)*Fuel_Specs!$B$17+Vehicles!$C$12*Fuel_Specs!$B$33)*(Petroleum!$B264*Petroleum!$D$262+Petroleum!$D264)+Vehicles!$C$30*(1-Vehicles!$C$12)*Fuel_Specs!$B$17/((1-Vehicles!$C$30)*(1-Vehicles!$C$12)*Fuel_Specs!$B$15+Vehicles!$C$30*(1-Vehicles!$C$12)*Fuel_Specs!$B$17+Vehicles!$C$12*Fuel_Specs!$B$33)*(Petroleum!B264*Petroleum!$F$262+Petroleum!$F264)+Vehicles!$C$12*Fuel_Specs!$B$33/((1-Vehicles!$C$30)*(1-Vehicles!$C$12)*Fuel_Specs!$B$15+Vehicles!$C$30*(1-Vehicles!$C$12)*Fuel_Specs!$B$17+Vehicles!$C$12*Fuel_Specs!$B$33)*(EtOH!$BT491*EtOH!$BU$489+EtOH!$BU491))/1000000*HLOOKUP($H$10,$Z$3:$AD$4,2,FALSE)/HLOOKUP($J$11,$Z$7:$AD$8,2,FALSE) -> 713258.6711 | O16: =((1-Vehicles!$C$29)*(1-Vehicles!$C$9)*Fuel_Specs!$B$15/((1-Vehicles!$C$29)*(1-Vehicles!$C$9)*Fuel_Specs!$B$15+Vehicles!$C$29*(1-Vehicles!$C$9)*Fuel_Specs!$B$17+Vehicles!$C$9*Fuel_Specs!$B$32)*(Petroleum!$B264*Petroleum!$D$262+(Petroleum!$D264-'T&D'!G213))+Vehicles!$C$29*(1-Vehicles!$C$9)*Fuel_Specs!$B$17/((1-Vehicles!$C$29)*(1-Vehicles!$C$9)*Fuel_Specs!$B$15+Vehicles!$C$29*(1-Vehicles!$C$9)*Fuel_Specs!$B$17+Vehicles!$C$9*Fuel_Specs!$B$32)*(Petroleum!B264*Petroleum!$F$262+Petroleum!$F264)+Vehicles!$C$9*Fuel_Specs!$B$32/((1-Vehicles!$C$29)*(1-Vehicles!$C$9)*Fuel_Specs!$B$15+Vehicles!$C$29*(1-Vehicles!$C$9)*Fuel_Specs!$B$17+Vehicles!$C$9*Fuel_Specs!$B$32)*(EtOH!BR491*EtOH!$BS$489+EtOH!$BS491)+Petroleum!AS125+Petroleum!AT125)/1000000*HLOOKUP($H$10,$Z$3:$AD$4,2,FALSE)/HLOOKUP($J$11,$Z$7:$AD$8,2,FALSE) -> 547072.7833 | P16: =(EtOH!$BP491*EtOH!$BQ$489+EtOH!$BQ491)/1000000*HLOOKUP($H$10,$Z$3:$AD$4,2,FALSE)/HLOOKUP($J$11,$Z$7:$AD$8,2,FALSE) -> 646524.6105 | Q16: =((1-Vehicles!$C$33)*(1-Vehicles!$C$16)*Fuel_Specs!$B$15/((1-Vehicles!$C$33)*(1-Vehicles!$C$16)*Fuel_Specs!$B$15+Vehicles!$C$33*(1-Vehicles!$C$16)*Fuel_Specs!$B$17+Vehicles!$C$16*Fuel_Specs!$B$45)*(Petroleum!$B264*Petroleum!$D$262+Petroleum!$D264)+Vehicles!$C$33*(1-Vehicles!$C$16)*Fuel_Specs!$B$17/((1-Vehicles!$C$33)*(1-Vehicles!$C$16)*Fuel_Specs!$B$15+Vehicles!$C$33*(1-Vehicles!$C$16)*Fuel_Specs!$B$17+Vehicles!$C$16*Fuel_Specs!$B$45)*(Petroleum!B264*Petroleum!$F$262+Petroleum!$F264)+Vehicles!$C$16*Fuel_Specs!$B$45/((1-Vehicles!$C$33)*(1-Vehicles!$C$16)*Fuel_Specs!$B$15+Vehicles!$C$33*(1-Vehicles!$C$16)*Fuel_Specs!$B$17+Vehicles!$C$16*Fuel_Specs!$B$45)*(BioOil!$BO338*BioOil!$BP$335+BioOil!$BP338))/1000000*HLOOKUP($H$10,$Z$3:$AD$4,2,FALSE)/HLOOKUP($J$11,$Z$7:$AD$8,2,FALSE) -> 171361.8668 | R16: =((1-Vehicles!$C$33)*(1-Vehicles!$C$16)*Fuel_Specs!$B$15/((1-Vehicles!$C$33)*(1-Vehicles!$C$16)*Fuel_Specs!$B$15+Vehicles!$C$33*(1-Vehicles!$C$16)*Fuel_Specs!$B$17+Vehicles!$C$16*Fuel_Specs!$B$45)*(Petroleum!$B264*Petroleum!$D$262+Petroleum!$D264)+Vehicles!$C$33*(1-Vehicles!$C$16)*Fuel_Specs!$B$17/((1-Vehicles!$C$33)*(1-Vehicles!$C$16)*Fuel_Specs!$B$15+Vehicles!$C$33*(1-Vehicles!$C$16)*Fuel_Specs!$B$17+Vehicles!$C$16*Fuel_Specs!$B$45)*(Petroleum!B264*Petroleum!$F$262+Petroleum!$F264)+Vehicles!$C$16*Fuel_Specs!$B$45/((1-Vehicles!$C$33)*(1-Vehicles!$C$16)*Fuel_Specs!$B$15+Vehicles!$C$33*(1-Vehicles!$C$16)*Fuel_Specs!$B$17+Vehicles!$C$16*Fuel_Specs!$B$45)*(Pyrolysis!$Z173*Pyrolysis!$AA$171+Pyrolysis!$AA173))/1000000*HLOOKUP($H$10,$Z$3:$AD$4,2,FALSE)/HLOOKUP($J$11,$Z$7:$AD$8,2,FALSE) -> 338968.2621 | S16: =AN16*(Vehicles!$C$23/Vehicles!$AR$59)/(Vehicles!$C$23*(1/Vehicles!$AR$59+1/Vehicles!$AS$59)+Vehicles!$C$24/Vehicles!$AT$59)+B16*(Vehicles!$C$23/Vehicles!$AS$59+Vehicles!$C$24/Vehicles!$AT$59)/(Vehicles!$C$23*(1/Vehicles!$AR$59+1/Vehicles!$AS$59)+Vehicles!$C$24/Vehicles!$AT$59) -> 395866.9071 | T16: =AN16*(Vehicles!$D$23/Vehicles!$AV$59)/(Vehicles!$D$23*(1/Vehicles!$AV$59+1/Vehicles!$AW$59)+Vehicles!$D$24/Vehicles!$AX$59)+C16*(Vehicles!$D$23/Vehicles!$AW$59+Vehicles!$D$24/Vehicles!$AX$59)/(Vehicles!$D$23*(1/Vehicles!$AV$59+1/Vehicles!$AW$59)+Vehicles!$D$24/Vehicles!$AX$59) -> 523413.9269 | U16: =AN16*(Vehicles!$F$23/Vehicles!$BD$59)/(Vehicles!$F$23*(1/Vehicles!$BD$59+1/Vehicles!$BE$59)+Vehicles!$F$24/Vehicles!$BF$59)+D16*(Vehicles!$F$23/Vehicles!$BE$59+Vehicles!$F$24/Vehicles!$BF$59)/(Vehicles!$F$23*(1/Vehicles!$BD$59+1/Vehicles!$BE$59)+Vehicles!$F$24/Vehicles!$BF$59) -> 395866.9071 | V16: =AN16*(Vehicles!$G$23/Vehicles!$BH$59)/(Vehicles!$G$23*(1/Vehicles!$BH$59+1/Vehicles!$BI$59)+Vehicles!$G$24/Vehicles!$BJ$59)+F16*(Vehicles!$G$23/Vehicles!$BI$59+Vehicles!$G$24/Vehicles!$BJ$59)/(Vehicles!$G$23*(1/Vehicles!$BH$59+1/Vehicles!$BI$59)+Vehicles!$G$24/Vehicles!$BJ$59) -> 327932.2306 | W16: =AN16*(Vehicles!$H$23/Vehicles!$BL$59)/(Vehicles!$H$23*(1/Vehicles!$BL$59+1/Vehicles!$BM$59)+Vehicles!$H$24/Vehicles!$BN$59)+G16*(Vehicles!$H$23/Vehicles!$BM$59+Vehicles!$H$24/Vehicles!$BN$59)/(Vehicles!$H$23*(1/Vehicles!$BL$59+1/Vehicles!$BM$59)+Vehicles!$H$24/Vehicles!$BN$59) -> 398998.3502 | X16: =AN16*(Vehicles!$I$23/Vehicles!$BP$59)/(Vehicles!$I$23*(1/Vehicles!$BP$59+1/Vehicles!$BQ$59)+Vehicles!$I$24/Vehicles!$BR$59)+H16*(Vehicles!$I$23/Vehicles!$BQ$59+Vehicles!$I$24/Vehicles!$BR$59)/(Vehicles!$I$23*(1/Vehicles!$BP$59+1/Vehicles!$BQ$59)+Vehicles!$I$24/Vehicles!$BR$59) -> 314973.5054 | Y16: =AN16*(Vehicles!$J$23/Vehicles!$BT$59)/(Vehicles!$J$23*(1/Vehicles!$BT$59+1/Vehicles!$BU$59)+Vehicles!$J$24/Vehicles!$BV$59)+K16*(Vehicles!$J$23/Vehicles!$BU$59+Vehicles!$J$24/Vehicles!$BV$59)/(Vehicles!$J$23*(1/Vehicles!$BT$59+1/Vehicles!$BU$59)+Vehicles!$J$24/Vehicles!$BV$59) -> 531506.7666 | Z16: =AN16*(Vehicles!$K$23/Vehicles!$BX$59)/(Vehicles!$K$23*(1/Vehicles!$BX$59+1/Vehicles!$BY$59)+Vehicles!$K$24/Vehicles!$BZ$59)+O16*(Vehicles!$K$23/Vehicles!$BY$59+Vehicles!$K$24/Vehicles!$BZ$59)/(Vehicles!$K$23*(1/Vehicles!$BX$59+1/Vehicles!$BY$59)+Vehicles!$K$24/Vehicles!$BZ$59) -> 597440.139 | AA16: =AN16*(Vehicles!$L$23/Vehicles!$CB$59)/(Vehicles!$L$23*(1/Vehicles!$CB$59+1/Vehicles!$CC$59)+Vehicles!$L$24/Vehicles!$CD$59)+AO16*(Vehicles!$L$23/Vehicles!$CC$59+Vehicles!$L$24/Vehicles!$CD$59)/(Vehicles!$L$23*(1/Vehicles!$CB$59+1/Vehicles!$CC$59)+Vehicles!$L$24/Vehicles!$CD$59) -> 796894.4831 | AB16: =AN16*(Vehicles!$L$23/Vehicles!$CB$59)/(Vehicles!$L$23*(1/Vehicles!$CB$59+1/Vehicles!$CC$59)+Vehicles!$L$24/Vehicles!$CE$59)+AP16*(Vehicles!$L$23/Vehicles!$CC$59+Vehicles!$L$24/Vehicles!$CE$59)/(Vehicles!$L$23*(1/Vehicles!$CB$59+1/Vehicles!$CC$59)+Vehicles!$L$24/Vehicles!$CE$59) -> 1073028.403 | AC16: =('MeOH&FTD'!$AJ139*'MeOH&FTD'!$AK$137+'MeOH&FTD'!$AK139)/1000000*HLOOKUP($H$10,$Z$3:$AD$4,2,FALSE)/HLOOKUP($J$11,$Z$7:$AD$8,2,FALSE) -> 601538.3826 | AD16: =((1-Vehicles!$C$34)*(1-Vehicles!$C$13)*Fuel_Specs!$B$21/((1-Vehicles!$C$34)*(1-Vehicles!$C$13)*Fuel_Specs!$B$21+Vehicles!$C$34*(1-Vehicles!$C$13)*Fuel_Specs!$B$24+Vehicles!$C$13*Fuel_Specs!$B$41)*(Petroleum!B264*Petroleum!$J$262+Petroleum!$J264)+Vehicles!$C$34*(1-Vehicles!$C$13)*Fuel_Specs!$B$24/((1-Vehicles!$C$34)*(1-Vehicles!$C$13)*Fuel_Specs!$B$21+Vehicles!$C$34*(1-Vehicles!$C$13)*Fuel_Specs!$B$24+Vehicles!$C$13*Fuel_Specs!$B$41)*(Petroleum!B264*Petroleum!$K$262+Petroleum!$K264)+Vehicles!$C$13*Fuel_Specs!$B$41/((1-Vehicles!$C$34)*(1-Vehicles!$C$13)*Fuel_Specs!$B$21+Vehicles!$C$34*(1-Vehicles!$C$13)*Fuel_Specs!$B$24+Vehicles!$C$13*Fuel_Specs!$B$41)*('MeOH&FTD'!$AZ139*'MeOH&FTD'!$BA$137+'MeOH&FTD'!$BA139))/1000000*HLOOKUP($H$10,$Z$3:$AD$4,2,FALSE)/HLOOKUP($J$11,$Z$7:$AD$8,2,FALSE) -> 735831.9381 | AE16: =((1-Vehicles!$C$35)*(1-Vehicles!$C$14)*Fuel_Specs!$B$21/((1-Vehicles!$C$35)*(1-Vehicles!$C$14)*Fuel_Specs!$B$21+Vehicles!$C$35*(1-Vehicles!$C$14)*Fuel_Specs!$B$24+Vehicles!$C$14*Fuel_Specs!$B$40)*(Petroleum!B264*Petroleum!$J$262+Petroleum!$J264)+Vehicles!$C$35*(1-Vehicles!$C$14)*Fuel_Specs!$B$24/((1-Vehicles!$C$35)*(1-Vehicles!$C$14)*Fuel_Specs!$B$21+Vehicles!$C$35*(1-Vehicles!$C$14)*Fuel_Specs!$B$24+Vehicles!$C$14*Fuel_Specs!$B$40)*(Petroleum!B264*Petroleum!$K$262+Petroleum!$K264)+Vehicles!$C$14*Fuel_Specs!$B$40/((1-Vehicles!$C$35)*(1-Vehicles!$C$14)*Fuel_Specs!$B$21+Vehicles!$C$35*(1-Vehicles!$C$14)*Fuel_Specs!$B$24+Vehicles!$C$14*Fuel_Specs!$B$40)*(BioOil!$W338*BioOil!$X$335+BioOil!$X338))/1000000*HLOOKUP($H$10,$Z$3:$AD$4,2,FALSE)/HLOOKUP($J$11,$Z$7:$AD$8,2,FALSE) -> 268973.9487 | AF16: =((1-Vehicles!$C$36)*(1-Vehicles!$C$15)*Fuel_Specs!$B$21/((1-Vehicles!$C$36)*(1-Vehicles!$C$15)*Fuel_Specs!$B$21+Vehicles!$C$36*(1-Vehicles!$C$15)*Fuel_Specs!$B$24+Vehicles!$C$15*IF(Inputs!$E$628=1,IF(Inputs!$E$628=1,Fuel_Specs!$B$42,IF(Inputs!$E$628=3,Fuel_Specs!$B$44,Fuel_Specs!$B$43)),Fuel_Specs!$B$43))*(Petroleum!B264*Petroleum!$J$262+Petroleum!$J264)+Vehicles!$C$36*(1-Vehicles!$C$15)*Fuel_Specs!$B$24/((1-Vehicles!$C$36)*(1-Vehicles!$C$15)*Fuel_Specs!$B$21+Vehicles!$C$36*(1-Vehicles!$C$15)*Fuel_Specs!$B$24+Vehicles!$C$15*IF(Inputs!$E$628=1,IF(Inputs!$E$628=1,Fuel_Specs!$B$42,IF(Inputs!$E$628=3,Fuel_Specs!$B$44,Fuel_Specs!$B$43)),Fuel_Specs!$B$43))*(Petroleum!B264*Petroleum!$K$262+Petroleum!$K264)+Vehicles!$C$15*IF(Inputs!$E$628=1,IF(Inputs!$E$628=1,Fuel_Specs!$B$42,IF(Inputs!$E$628=3,Fuel_Specs!$B$44,Fuel_Specs!$B$43)),Fuel_Specs!$B$43)/((1-Vehicles!$C$36)*(1-Vehicles!$C$15)*Fuel_Specs!$B$21+Vehicles!$C$36*(1-Vehicles!$C$15)*Fuel_Specs!$B$24+Vehicles!$C$15*IF(Inputs!$E$628=1,IF(Inputs!$E$628=1,Fuel_Specs!$B$42,IF(Inputs!$E$628=3,Fuel_Specs!$B$44,Fuel_Specs!$B$43)),Fuel_Specs!$B$43))*(BioOil!$BA338*BioOil!$BB$335+BioOil!$BB338))/1000000*HLOOKUP($H$10,$Z$3:$AD$4,2,FALSE)/HLOOKUP($J$11,$Z$7:$AD$8,2,FALSE) -> 312234.6207 | AG16: =((1-Vehicles!$C$36)*(1-Vehicles!$C$15)*Fuel_Specs!$B$21/((1-Vehicles!$C$36)*(1-Vehicles!$C$15)*Fuel_Specs!$B$21+Vehicles!$C$36*(1-Vehicles!$C$15)*Fuel_Specs!$B$24+Vehicles!$C$15*IF(Inputs!$E$628=1,Fuel_Specs!$B$42,Fuel_Specs!$B$43))*(Petroleum!B264*Petroleum!$J$262+Petroleum!$J264)+Vehicles!$C$36*(1-Vehicles!$C$15)*Fuel_Specs!$B$24/((1-Vehicles!$C$36)*(1-Vehicles!$C$15)*Fuel_Specs!$B$21+Vehicles!$C$36*(1-Vehicles!$C$15)*Fuel_Specs!$B$24+Vehicles!$C$15*IF(Inputs!$E$628=1,Fuel_Specs!$B$42,Fuel_Specs!$B$43))*(Petroleum!B264*Petroleum!$K$262+Petroleum!$K264)+Vehicles!$C$15*IF(Inputs!$E$628=1,Fuel_Specs!$B$42,Fuel_Specs!$B$43)/((1-Vehicles!$C$36)*(1-Vehicles!$C$15)*Fuel_Specs!$B$21+Vehicles!$C$36*(1-Vehicles!$C$15)*Fuel_Specs!$B$24+Vehicles!$C$15*IF(Inputs!$E$628=1,Fuel_Specs!$B$42,Fuel_Specs!$B$43))*(Pyrolysis!$AB173*Pyrolysis!$AC$171+Pyrolysis!$AC173))/1000000*HLOOKUP($H$10,$Z$3:$AD$4,2,FALSE)/HLOOKUP($J$11,$Z$7:$AD$8,2,FALSE) -> 422970.9794 | AH16: =(((1-Vehicles!$C$37)*(1-Vehicles!$C$17-Vehicles!$C$18)*Fuel_Specs!$B$21*(Petroleum!B264*Petroleum!$J$262+Petroleum!$J264)+Vehicles!$C$37*(1-Vehicles!$C$17-Vehicles!$C$18)*Fuel_Specs!$B$24*(Petroleum!B264*Petroleum!$K$262+Petroleum!$K264)+Vehicles!$C$17*Fuel_Specs!$B$32*(EtOH!BP491*EtOH!$BQ$489+EtOH!$BQ491)+Vehicles!$C$18*Fuel_Specs!$B$35*('E-D Additives'!$B55*'E-D Additives'!$B$53))/((1-Vehicles!$C$37)*(1-Vehicles!$C$17-Vehicles!$C$18)*Fuel_Specs!$B$21+Vehicles!$C$37*(1-Vehicles!$C$17-Vehicles!$C$18)*Fuel_Specs!$B$24+Vehicles!$C$17*Fuel_Specs!$B$32+Vehicles!$C$18*Fuel_Specs!$B$35))/1000000*HLOOKUP($H$10,$Z$3:$AD$4,2,FALSE)/HLOOKUP($J$11,$Z$7:$AD$8,2,FALSE) -> 291828.6237 | AI16: =AN16*(Vehicles!$M$23/Vehicles!$CM$59)/(Vehicles!$M$23*(1/Vehicles!$CM$59+1/Vehicles!$CN$59)+Vehicles!$M$24/Vehicles!$CO$59)+E16*(Vehicles!$M$23/Vehicles!$CN$59+Vehicles!$M$24/Vehicles!$CO$59)/(Vehicles!$M$23*(1/Vehicles!$CM$59+1/Vehicles!$CN$59)+Vehicles!$M$24/Vehicles!$CO$59) -> 398355.8385 | AJ16: =AN16*(Vehicles!$N$23/Vehicles!$CQ$59)/(Vehicles!$N$23*(1/Vehicles!$CQ$59+1/Vehicles!$CR$59)+Vehicles!$N$24/Vehicles!$CS$59)+AC16*(Vehicles!$N$23/Vehicles!$CR$59+Vehicles!$N$24/Vehicles!$CS$59)/(Vehicles!$N$23*(1/Vehicles!$CQ$59+1/Vehicles!$CR$59)+Vehicles!$N$24/Vehicles!$CS$59) -> 640126.878 | AK16: =AN16*(Vehicles!$O$23/Vehicles!$CU$59)/(Vehicles!$O$23*(1/Vehicles!$CU$59+1/Vehicles!$CV$59)+Vehicles!$O$24/Vehicles!$CW$59)+AD16*(Vehicles!$O$23/Vehicles!$CV$59+Vehicles!$O$24/Vehicles!$CW$59)/(Vehicles!$O$23*(1/Vehicles!$CU$59+1/Vehicles!$CV$59)+Vehicles!$O$24/Vehicles!$CW$59) -> 737214.979 | AL16: =AN16*(Vehicles!$P$23/Vehicles!$CY$59)/(Vehicles!$P$23*(1/Vehicles!$CY$59+1/Vehicles!$CZ$59)+Vehicles!$P$24/Vehicles!$DA$59)+AE16*(Vehicles!$P$23/Vehicles!$CZ$59+Vehicles!$P$24/Vehicles!$DA$59)/(Vehicles!$P$23*(1/Vehicles!$CY$59+1/Vehicles!$CZ$59)+Vehicles!$P$24/Vehicles!$DA$59) -> 399697.9964 | AM16: =AN16*(Vehicles!$R$23/Vehicles!$DG$59)/(Vehicles!$R$23*(1/Vehicles!$DG$59+1/Vehicles!$DH$59)+Vehicles!$R$24/Vehicles!$DI$59)+AH16*(Vehicles!$R$23/Vehicles!$DH$59+Vehicles!$R$24/Vehicles!$DI$59)/(Vehicles!$R$23*(1/Vehicles!$DG$59+1/Vehicles!$DH$59)+Vehicles!$R$24/Vehicles!$DI$59) -> 416220.8816 | AN16: =(Electric!$G187+Electric!$F187-1000000*(Electric!$F187+Electric!$G187)/(Electric!$F$186+Electric!$G$186))/1000000*HLOOKUP($H$10,$Z$3:$AD$4,2,FALSE)/HLOOKUP($J$11,$Z$7:$AD$8,2,FALSE) -> 740824.0418 | AO16: =((Hydrogen!$AF164*Hydrogen!$AG$162+Hydrogen!$AG164)-1000000*(Hydrogen!$M$7+Hydrogen!$C$7+Hydrogen!$D$7+Hydrogen!$E$7))/1000000*HLOOKUP($H$10,$Z$3:$AD$4,2,FALSE)/HLOOKUP($J$11,$Z$7:$AD$8,2,FALSE) -> 819582.6235 | AP16: =((Hydrogen!$BJ164*Hydrogen!$BK$162+Hydrogen!$BK164)-1000000*(Hydrogen!$M$8+Hydrogen!$C$8+Hydrogen!$D$8+Hydrogen!$E$8))/1000000*HLOOKUP($H$10,$Z$3:$AD$4,2,FALSE)/HLOOKUP($J$11,$Z$7:$AD$8,2,FALSE) -> 1207450.373 | AQ16: =AN16*(Vehicles!$S$23/Vehicles!$DW$59)/(Vehicles!$S$23*(1/Vehicles!$DW$59+1/Vehicles!$DX$59)+Vehicles!$S$24/Vehicles!$DY$59)+AO16*(Vehicles!$S$23/Vehicles!$DX$59+Vehicles!$S$24/Vehicles!$DY$59)/(Vehicles!$S$23*(1/Vehicles!$DW$59+1/Vehicles!$DX$59)+Vehicles!$S$24/Vehicles!$DY$59) -> 792537.2172 | AR16: =AN16*(Vehicles!$S$23/Vehicles!$DW$59)/(Vehicles!$S$23*(1/Vehicles!$DW$59+1/Vehicles!$DX$59)+Vehicles!$S$24/Vehicles!$DY$59)+AP16*(Vehicles!$S$23/Vehicles!$DX$59+Vehicles!$S$24/Vehicles!$DY$59)/(Vehicles!$S$23*(1/Vehicles!$DW$59+1/Vehicles!$DX$59)+Vehicles!$S$24/Vehicles!$DY$59) -> 1047212.613 | AS16: =((1-Vehicles!$C$33)*(1-Vehicles!$C$16)*Fuel_Specs!$B$15/((1-Vehicles!$C$33)*(1-Vehicles!$C$16)*Fuel_Specs!$B$15+Vehicles!$C$33*(1-Vehicles!$C$16)*Fuel_Specs!$B$17+Vehicles!$C$16*Fuel_Specs!$B$46)*(Petroleum!$B264*Petroleum!$D$262+Petroleum!$D264)+Vehicles!$C$33*(1-Vehicles!$C$16)*Fuel_Specs!$B$17/((1-Vehicles!$C$33)*(1-Vehicles!$C$16)*Fuel_Specs!$B$15+Vehicles!$C$33*(1-Vehicles!$C$16)*Fuel_Specs!$B$17+Vehicles!$C$16*Fuel_Specs!$B$46)*(Petroleum!B264*Petroleum!$F$262+Petroleum!$F264)+Vehicles!$C$16*Fuel_Specs!$B$46/((1-Vehicles!$C$33)*(1-Vehicles!$C$16)*Fuel_Specs!$B$15+Vehicles!$C$33*(1-Vehicles!$C$16)*Fuel_Specs!$B$17+Vehicles!$C$16*Fuel_Specs!$B$46)*(IDL!$L114*IDL!$M$112+IDL!$M114))/1000000*HLOOKUP($H$10,$Z$3:$AD$4,2,FALSE)/HLOOKUP($J$11,$Z$7:$AD$8,2,FALSE) -> 164387.3364 | AV16: SI - CA gasoline | AW16: RNAVGASCARFG | AY16: SIDI - CA gasoline | AZ16: RNAVGASCARFGSIDI | BB16: CIDI - DME | BC16: RNAVDMECIDI | BE16: SI HEV - CA gasoline | BF16: RNAVHEVCRFG | BH16: SI PHEV - CA gasoline and Electricity | BI16: RNAVPHEVCRFG | BK16: CIDI HEV - DME | BL16: RNAVHEVDMETHER | BN16: CIDI PHEV - DME and Electricity | BO16: RNAVPHEVDMETHER | BQ16: FC PHEV - Gaseous H2 and Electricity | BR16: RNAVPHEVFCVGH2
A17: Coal | B17: =(Inputs!$E$1400*(Petroleum!$B265*Petroleum!$F$262+Petroleum!$F265)+(1-Inputs!$E$1400)*(Petroleum!$B265*Petroleum!$D$262+Petroleum!$D265))/1000000*HLOOKUP($H$10,$Z$3:$AD$4,2,FALSE)/HLOOKUP($J$11,$Z$7:$AD$8,2,FALSE) -> 22501.50589 | C17: =(Petroleum!$C265*Petroleum!$G$262+Petroleum!$G265)/1000000*HLOOKUP($H$10,$Z$3:$AD$4,2,FALSE)/HLOOKUP($J$11,$Z$7:$AD$8,2,FALSE) -> 14143.15421 | D17: =((1-Vehicles!$C$28)*(1-Vehicles!$C$7)*Fuel_Specs!$B$15/((1-Vehicles!$C$28)*(1-Vehicles!$C$7)*Fuel_Specs!$B$15+Vehicles!$C$28*(1-Vehicles!$C$7)*Fuel_Specs!$B$17+Vehicles!$C$7*Fuel_Specs!$B$32)*(Petroleum!$B265*Petroleum!$D$262+(Petroleum!$D265-'T&D'!G214))+Vehicles!$C$28*(1-Vehicles!$C$7)*Fuel_Specs!$B$17/((1-Vehicles!$C$28)*(1-Vehicles!$C$7)*Fuel_Specs!$B$15+Vehicles!$C$28*(1-Vehicles!$C$7)*Fuel_Specs!$B$17+Vehicles!$C$7*Fuel_Specs!$B$32)*(Petroleum!B265*Petroleum!$F$262+Petroleum!$F265)+Vehicles!$C$7*Fuel_Specs!$B$32/((1-Vehicles!$C$28)*(1-Vehicles!$C$7)*Fuel_Specs!$B$15+Vehicles!$C$28*(1-Vehicles!$C$7)*Fuel_Specs!$B$17+Vehicles!$C$7*Fuel_Specs!$B$32)*(EtOH!BR492*EtOH!$BS$489+EtOH!$BS492)+Petroleum!AS126+Petroleum!AT126)/1000000*HLOOKUP($H$10,$Z$3:$AD$4,2,FALSE)/HLOOKUP($J$11,$Z$7:$AD$8,2,FALSE) -> 22501.50589 | E17: =(Inputs!$E$97*(IF(Inputs!F$102=1,Petroleum!$B265,Petroleum!$C265)*Petroleum!$K$262+Petroleum!$K265)+(1-Inputs!$E$97)*(IF(Inputs!F$101=1,Petroleum!$B265,Petroleum!$C265)*Petroleum!$J$262+Petroleum!$J265))/1000000*HLOOKUP($H$10,$Z$3:$AD$4,2,FALSE)/HLOOKUP($J$11,$Z$7:$AD$8,2,FALSE) -> 20308.36985 | F17: =(NG!$I87*NG!$J$84+NG!$J87)/1000000*HLOOKUP($H$10,$Z$3:$AD$4,2,FALSE)/HLOOKUP($J$11,$Z$7:$AD$8,2,FALSE) -> 36959.27706 | G17: =(NG!$Q87*NG!$R$84+NG!$R87)/1000000*HLOOKUP($H$10,$Z$3:$AD$4,2,FALSE)/HLOOKUP($J$11,$Z$7:$AD$8,2,FALSE) -> 5308.29261 | H17: =(NG!$W87*NG!$X$84+NG!$X87)/1000000*HLOOKUP($H$10,$Z$3:$AD$4,2,FALSE)/HLOOKUP($J$11,$Z$7:$AD$8,2,FALSE) -> 6724.926075 | I17: =('MeOH&FTD'!BJ140*'MeOH&FTD'!BK$137+'MeOH&FTD'!BK140)/1000000*HLOOKUP($H$10,$Z$3:$AD$4,2,FALSE)/HLOOKUP($J$11,$Z$7:$AD$8,2,FALSE) -> -60473.34402 | J17: =((1-Vehicles!$C$27)*(1-Vehicles!$C$5)*Fuel_Specs!$B$15/((1-Vehicles!$C$27)*(1-Vehicles!$C$5)*Fuel_Specs!$B$15+Vehicles!$C$27*(1-Vehicles!$C$5)*Fuel_Specs!$B$17+Vehicles!$C$5*Fuel_Specs!$B$31)*(Petroleum!$B265*Petroleum!$D$262+Petroleum!$D265)+Vehicles!$C$27*(1-Vehicles!$C$5)*Fuel_Specs!$B$17/((1-Vehicles!$C$27)*(1-Vehicles!$C$5)*Fuel_Specs!$B$15+Vehicles!$C$27*(1-Vehicles!$C$5)*Fuel_Specs!$B$17+Vehicles!$C$5*Fuel_Specs!$B$31)*(Petroleum!B265*Petroleum!$F$262+Petroleum!$F265)+Vehicles!$C$5*Fuel_Specs!$B$31/((1-Vehicles!$C$27)*(1-Vehicles!$C$5)*Fuel_Specs!$B$15+Vehicles!$C$27*(1-Vehicles!$C$5)*Fuel_Specs!$B$17+Vehicles!$C$5*Fuel_Specs!$B$31)*('MeOH&FTD'!$N140*'MeOH&FTD'!$O$137+'MeOH&FTD'!$O140))/1000000*HLOOKUP($H$10,$Z$3:$AD$4,2,FALSE)/HLOOKUP($J$11,$Z$7:$AD$8,2,FALSE) -> 41991.0606 | K17: =((1-Vehicles!$C$27)*(1-Vehicles!$C$6)*Fuel_Specs!$B$15/((1-Vehicles!$C$27)*(1-Vehicles!$C$6)*Fuel_Specs!$B$15+Vehicles!$C$27*(1-Vehicles!$C$6)*Fuel_Specs!$B$17+Vehicles!$C$6*Fuel_Specs!$B$31)*(Petroleum!$B265*Petroleum!$D$262+Petroleum!$D265)+Vehicles!$C$27*(1-Vehicles!$C$6)*Fuel_Specs!$B$17/((1-Vehicles!$C$27)*(1-Vehicles!$C$6)*Fuel_Specs!$B$15+Vehicles!$C$27*(1-Vehicles!$C$6)*Fuel_Specs!$B$17+Vehicles!$C$6*Fuel_Specs!$B$31)*(Petroleum!B265*Petroleum!$F$262+Petroleum!$F265)+Vehicles!$C$6*Fuel_Specs!$B$31/((1-Vehicles!$C$27)*(1-Vehicles!$C$6)*Fuel_Specs!$B$15+Vehicles!$C$27*(1-Vehicles!$C$6)*Fuel_Specs!$B$17+Vehicles!$C$6*Fuel_Specs!$B$31)*('MeOH&FTD'!$N140*'MeOH&FTD'!$O$137+'MeOH&FTD'!$O140))/1000000*HLOOKUP($H$10,$Z$3:$AD$4,2,FALSE)/HLOOKUP($J$11,$Z$7:$AD$8,2,FALSE) -> 44571.72198 | L17: =('MeOH&FTD'!$N140*'MeOH&FTD'!$O$137+'MeOH&FTD'!$O140)/1000000*HLOOKUP($H$10,$Z$3:$AD$4,2,FALSE)/HLOOKUP($J$11,$Z$7:$AD$8,2,FALSE) -> 50528.74491 | M17: =((1-Vehicles!$C$29)*(1-Vehicles!$C$8)*Fuel_Specs!$B$15/((1-Vehicles!$C$29)*(1-Vehicles!$C$8)*Fuel_Specs!$B$15+Vehicles!$C$29*(1-Vehicles!$C$8)*Fuel_Specs!$B$17+Vehicles!$C$8*Fuel_Specs!$B$32)*(Petroleum!$B265*Petroleum!$D$262+(Petroleum!$D265-'T&D'!G214))+Vehicles!$C$29*(1-Vehicles!$C$8)*Fuel_Specs!$B$17/((1-Vehicles!$C$29)*(1-Vehicles!$C$8)*Fuel_Specs!$B$15+Vehicles!$C$29*(1-Vehicles!$C$8)*Fuel_Specs!$B$17+Vehicles!$C$8*Fuel_Specs!$B$32)*(Petroleum!B265*Petroleum!$F$262+Petroleum!$F265)+Vehicles!$C$8*Fuel_Specs!$B$32/((1-Vehicles!$C$29)*(1-Vehicles!$C$8)*Fuel_Specs!$B$15+Vehicles!$C$29*(1-Vehicles!$C$8)*Fuel_Specs!$B$17+Vehicles!$C$8*Fuel_Specs!$B$32)*(EtOH!BR492*EtOH!$BS$489+EtOH!$BS492)+Petroleum!AS126+Petroleum!AT126)/1000000*HLOOKUP($H$10,$Z$3:$AD$4,2,FALSE)/HLOOKUP($J$11,$Z$7:$AD$8,2,FALSE) -> 68343.28781 | N17: =((1-Vehicles!$C$30)*(1-Vehicles!$C$12)*Fuel_Specs!$B$15/((1-Vehicles!$C$30)*(1-Vehicles!$C$12)*Fuel_Specs!$B$15+Vehicles!$C$30*(1-Vehicles!$C$12)*Fuel_Specs!$B$17+Vehicles!$C$12*Fuel_Specs!$B$33)*(Petroleum!$B265*Petroleum!$D$262+Petroleum!$D265)+Vehicles!$C$30*(1-Vehicles!$C$12)*Fuel_Specs!$B$17/((1-Vehicles!$C$30)*(1-Vehicles!$C$12)*Fuel_Specs!$B$15+Vehicles!$C$30*(1-Vehicles!$C$12)*Fuel_Specs!$B$17+Vehicles!$C$12*Fuel_Specs!$B$33)*(Petroleum!B265*Petroleum!$F$262+Petroleum!$F265)+Vehicles!$C$12*Fuel_Specs!$B$33/((1-Vehicles!$C$30)*(1-Vehicles!$C$12)*Fuel_Specs!$B$15+Vehicles!$C$30*(1-Vehicles!$C$12)*Fuel_Specs!$B$17+Vehicles!$C$12*Fuel_Specs!$B$33)*(EtOH!$BT492*EtOH!$BU$489+EtOH!$BU492))/1000000*HLOOKUP($H$10,$Z$3:$AD$4,2,FALSE)/HLOOKUP($J$11,$Z$7:$AD$8,2,FALSE) -> 34412.11889 | O17: =((1-Vehicles!$C$29)*(1-Vehicles!$C$9)*Fuel_Specs!$B$15/((1-Vehicles!$C$29)*(1-Vehicles!$C$9)*Fuel_Specs!$B$15+Vehicles!$C$29*(1-Vehicles!$C$9)*Fuel_Specs!$B$17+Vehicles!$C$9*Fuel_Specs!$B$32)*(Petroleum!$B265*Petroleum!$D$262+(Petroleum!$D265-'T&D'!G214))+Vehicles!$C$29*(1-Vehicles!$C$9)*Fuel_Specs!$B$17/((1-Vehicles!$C$29)*(1-Vehicles!$C$9)*Fuel_Specs!$B$15+Vehicles!$C$29*(1-Vehicles!$C$9)*Fuel_Specs!$B$17+Vehicles!$C$9*Fuel_Specs!$B$32)*(Petroleum!B265*Petroleum!$F$262+Petroleum!$F265)+Vehicles!$C$9*Fuel_Specs!$B$32/((1-Vehicles!$C$29)*(1-Vehicles!$C$9)*Fuel_Specs!$B$15+Vehicles!$C$29*(1-Vehicles!$C$9)*Fuel_Specs!$B$17+Vehicles!$C$9*Fuel_Specs!$B$32)*(EtOH!BR492*EtOH!$BS$489+EtOH!$BS492)+Petroleum!AS126+Petroleum!AT126)/1000000*HLOOKUP($H$10,$Z$3:$AD$4,2,FALSE)/HLOOKUP($J$11,$Z$7:$AD$8,2,FALSE) -> 68343.28781 | P17: =(EtOH!$BP492*EtOH!$BQ$489+EtOH!$BQ492)/1000000*HLOOKUP($H$10,$Z$3:$AD$4,2,FALSE)/HLOOKUP($J$11,$Z$7:$AD$8,2,FALSE) -> 83727.22226 | Q17: =((1-Vehicles!$C$33)*(1-Vehicles!$C$16)*Fuel_Specs!$B$15/((1-Vehicles!$C$33)*(1-Vehicles!$C$16)*Fuel_Specs!$B$15+Vehicles!$C$33*(1-Vehicles!$C$16)*Fuel_Specs!$B$17+Vehicles!$C$16*Fuel_Specs!$B$45)*(Petroleum!$B265*Petroleum!$D$262+Petroleum!$D265)+Vehicles!$C$33*(1-Vehicles!$C$16)*Fuel_Specs!$B$17/((1-Vehicles!$C$33)*(1-Vehicles!$C$16)*Fuel_Specs!$B$15+Vehicles!$C$33*(1-Vehicles!$C$16)*Fuel_Specs!$B$17+Vehicles!$C$16*Fuel_Specs!$B$45)*(Petroleum!B265*Petroleum!$F$262+Petroleum!$F265)+Vehicles!$C$16*Fuel_Specs!$B$45/((1-Vehicles!$C$33)*(1-Vehicles!$C$16)*Fuel_Specs!$B$15+Vehicles!$C$33*(1-Vehicles!$C$16)*Fuel_Specs!$B$17+Vehicles!$C$16*Fuel_Specs!$B$45)*(BioOil!$BO339*BioOil!$BP$335+BioOil!$BP339))/1000000*HLOOKUP($H$10,$Z$3:$AD$4,2,FALSE)/HLOOKUP($J$11,$Z$7:$AD$8,2,FALSE) -> 32996.8776 | R17: =((1-Vehicles!$C$33)*(1-Vehicles!$C$16)*Fuel_Specs!$B$15/((1-Vehicles!$C$33)*(1-Vehicles!$C$16)*Fuel_Specs!$B$15+Vehicles!$C$33*(1-Vehicles!$C$16)*Fuel_Specs!$B$17+Vehicles!$C$16*Fuel_Specs!$B$45)*(Petroleum!$B265*Petroleum!$D$262+Petroleum!$D265)+Vehicles!$C$33*(1-Vehicles!$C$16)*Fuel_Specs!$B$17/((1-Vehicles!$C$33)*(1-Vehicles!$C$16)*Fuel_Specs!$B$15+Vehicles!$C$33*(1-Vehicles!$C$16)*Fuel_Specs!$B$17+Vehicles!$C$16*Fuel_Specs!$B$45)*(Petroleum!B265*Petroleum!$F$262+Petroleum!$F265)+Vehicles!$C$16*Fuel_Specs!$B$45/((1-Vehicles!$C$33)*(1-Vehicles!$C$16)*Fuel_Specs!$B$15+Vehicles!$C$33*(1-Vehicles!$C$16)*Fuel_Specs!$B$17+Vehicles!$C$16*Fuel_Specs!$B$45)*(Pyrolysis!$Z174*Pyrolysis!$AA$171+Pyrolysis!$AA174))/1000000*HLOOKUP($H$10,$Z$3:$AD$4,2,FALSE)/HLOOKUP($J$11,$Z$7:$AD$8,2,FALSE) -> 53310.59137 | S17: =AN17*(Vehicles!$C$23/Vehicles!$AR$59)/(Vehicles!$C$23*(1/Vehicles!$AR$59+1/Vehicles!$AS$59)+Vehicles!$C$24/Vehicles!$AT$59)+B17*(Vehicles!$C$23/Vehicles!$AS$59+Vehicles!$C$24/Vehicles!$AT$59)/(Vehicles!$C$23*(1/Vehicles!$AR$59+1/Vehicles!$AS$59)+Vehicles!$C$24/Vehicles!$AT$59) -> 174489.5287 | T17: =AN17*(Vehicles!$D$23/Vehicles!$AV$59)/(Vehicles!$D$23*(1/Vehicles!$AV$59+1/Vehicles!$AW$59)+Vehicles!$D$24/Vehicles!$AX$59)+C17*(Vehicles!$D$23/Vehicles!$AW$59+Vehicles!$D$24/Vehicles!$AX$59)/(Vehicles!$D$23*(1/Vehicles!$AV$59+1/Vehicles!$AW$59)+Vehicles!$D$24/Vehicles!$AX$59) -> 168443.3876 | U17: =AN17*(Vehicles!$F$23/Vehicles!$BD$59)/(Vehicles!$F$23*(1/Vehicles!$BD$59+1/Vehicles!$BE$59)+Vehicles!$F$24/Vehicles!$BF$59)+D17*(Vehicles!$F$23/Vehicles!$BE$59+Vehicles!$F$24/Vehicles!$BF$59)/(Vehicles!$F$23*(1/Vehicles!$BD$59+1/Vehicles!$BE$59)+Vehicles!$F$24/Vehicles!$BF$59) -> 174489.5287 | V17: =AN17*(Vehicles!$G$23/Vehicles!$BH$59)/(Vehicles!$G$23*(1/Vehicles!$BH$59+1/Vehicles!$BI$59)+Vehicles!$G$24/Vehicles!$BJ$59)+F17*(Vehicles!$G$23/Vehicles!$BI$59+Vehicles!$G$24/Vehicles!$BJ$59)/(Vehicles!$G$23*(1/Vehicles!$BH$59+1/Vehicles!$BI$59)+Vehicles!$G$24/Vehicles!$BJ$59) -> 184947.7779 | W17: =AN17*(Vehicles!$H$23/Vehicles!$BL$59)/(Vehicles!$H$23*(1/Vehicles!$BL$59+1/Vehicles!$BM$59)+Vehicles!$H$24/Vehicles!$BN$59)+G17*(Vehicles!$H$23/Vehicles!$BM$59+Vehicles!$H$24/Vehicles!$BN$59)/(Vehicles!$H$23*(1/Vehicles!$BL$59+1/Vehicles!$BM$59)+Vehicles!$H$24/Vehicles!$BN$59) -> 162052.5558 | X17: =AN17*(Vehicles!$I$23/Vehicles!$BP$59)/(Vehicles!$I$23*(1/Vehicles!$BP$59+1/Vehicles!$BQ$59)+Vehicles!$I$24/Vehicles!$BR$59)+H17*(Vehicles!$I$23/Vehicles!$BQ$59+Vehicles!$I$24/Vehicles!$BR$59)/(Vehicles!$I$23*(1/Vehicles!$BP$59+1/Vehicles!$BQ$59)+Vehicles!$I$24/Vehicles!$BR$59) -> 163077.2992 | Y17: =AN17*(Vehicles!$J$23/Vehicles!$BT$59)/(Vehicles!$J$23*(1/Vehicles!$BT$59+1/Vehicles!$BU$59)+Vehicles!$J$24/Vehicles!$BV$59)+K17*(Vehicles!$J$23/Vehicles!$BU$59+Vehicles!$J$24/Vehicles!$BV$59)/(Vehicles!$J$23*(1/Vehicles!$BT$59+1/Vehicles!$BU$59)+Vehicles!$J$24/Vehicles!$BV$59) -> 181660.3643 | Z17: =AN17*(Vehicles!$K$23/Vehicles!$BX$59)/(Vehicles!$K$23*(1/Vehicles!$BX$59+1/Vehicles!$BY$59)+Vehicles!$K$24/Vehicles!$BZ$59)+O17*(Vehicles!$K$23/Vehicles!$BY$59+Vehicles!$K$24/Vehicles!$BZ$59)/(Vehicles!$K$23*(1/Vehicles!$BX$59+1/Vehicles!$BY$59)+Vehicles!$K$24/Vehicles!$BZ$59) -> 199252.301 | AA17: =AN17*(Vehicles!$L$23/Vehicles!$CB$59)/(Vehicles!$L$23*(1/Vehicles!$CB$59+1/Vehicles!$CC$59)+Vehicles!$L$24/Vehicles!$CD$59)+AO17*(Vehicles!$L$23/Vehicles!$CC$59+Vehicles!$L$24/Vehicles!$CD$59)/(Vehicles!$L$23*(1/Vehicles!$CB$59+1/Vehicles!$CC$59)+Vehicles!$L$24/Vehicles!$CD$59) -> 267291.2336 | AB17: =AN17*(Vehicles!$L$23/Vehicles!$CB$59)/(Vehicles!$L$23*(1/Vehicles!$CB$59+1/Vehicles!$CC$59)+Vehicles!$L$24/Vehicles!$CE$59)+AP17*(Vehicles!$L$23/Vehicles!$CC$59+Vehicles!$L$24/Vehicles!$CE$59)/(Vehicles!$L$23*(1/Vehicles!$CB$59+1/Vehicles!$CC$59)+Vehicles!$L$24/Vehicles!$CE$59) -> 499710.7582 | AC17: =('MeOH&FTD'!$AJ140*'MeOH&FTD'!$AK$137+'MeOH&FTD'!$AK140)/1000000*HLOOKUP($H$10,$Z$3:$AD$4,2,FALSE)/HLOOKUP($J$11,$Z$7:$AD$8,2,FALSE) -> 52319.25078 | AD17: =((1-Vehicles!$C$34)*(1-Vehicles!$C$13)*Fuel_Specs!$B$21/((1-Vehicles!$C$34)*(1-Vehicles!$C$13)*Fuel_Specs!$B$21+Vehicles!$C$34*(1-Vehicles!$C$13)*Fuel_Specs!$B$24+Vehicles!$C$13*Fuel_Specs!$B$41)*(Petroleum!B265*Petroleum!$J$262+Petroleum!$J265)+Vehicles!$C$34*(1-Vehicles!$C$13)*Fuel_Specs!$B$24/((1-Vehicles!$C$34)*(1-Vehicles!$C$13)*Fuel_Specs!$B$21+Vehicles!$C$34*(1-Vehicles!$C$13)*Fuel_Specs!$B$24+Vehicles!$C$13*Fuel_Specs!$B$41)*(Petroleum!B265*Petroleum!$K$262+Petroleum!$K265)+Vehicles!$C$13*Fuel_Specs!$B$41/((1-Vehicles!$C$34)*(1-Vehicles!$C$13)*Fuel_Specs!$B$21+Vehicles!$C$34*(1-Vehicles!$C$13)*Fuel_Specs!$B$24+Vehicles!$C$13*Fuel_Specs!$B$41)*('MeOH&FTD'!$AZ140*'MeOH&FTD'!$BA$137+'MeOH&FTD'!$BA140))/1000000*HLOOKUP($H$10,$Z$3:$AD$4,2,FALSE)/HLOOKUP($J$11,$Z$7:$AD$8,2,FALSE) -> -11986.18797 | AE17: =((1-Vehicles!$C$35)*(1-Vehicles!$C$14)*Fuel_Specs!$B$21/((1-Vehicles!$C$35)*(1-Vehicles!$C$14)*Fuel_Specs!$B$21+Vehicles!$C$35*(1-Vehicles!$C$14)*Fuel_Specs!$B$24+Vehicles!$C$14*Fuel_Specs!$B$40)*(Petroleum!B265*Petroleum!$J$262+Petroleum!$J265)+Vehicles!$C$35*(1-Vehicles!$C$14)*Fuel_Specs!$B$24/((1-Vehicles!$C$35)*(1-Vehicles!$C$14)*Fuel_Specs!$B$21+Vehicles!$C$35*(1-Vehicles!$C$14)*Fuel_Specs!$B$24+Vehicles!$C$14*Fuel_Specs!$B$40)*(Petroleum!B265*Petroleum!$K$262+Petroleum!$K265)+Vehicles!$C$14*Fuel_Specs!$B$40/((1-Vehicles!$C$35)*(1-Vehicles!$C$14)*Fuel_Specs!$B$21+Vehicles!$C$35*(1-Vehicles!$C$14)*Fuel_Specs!$B$24+Vehicles!$C$14*Fuel_Specs!$B$40)*(BioOil!$W339*BioOil!$X$335+BioOil!$X339))/1000000*HLOOKUP($H$10,$Z$3:$AD$4,2,FALSE)/HLOOKUP($J$11,$Z$7:$AD$8,2,FALSE) -> 21868.50182 | AF17: =((1-Vehicles!$C$36)*(1-Vehicles!$C$15)*Fuel_Specs!$B$21/((1-Vehicles!$C$36)*(1-Vehicles!$C$15)*Fuel_Specs!$B$21+Vehicles!$C$36*(1-Vehicles!$C$15)*Fuel_Specs!$B$24+Vehicles!$C$15*IF(Inputs!$E$628=1,IF(Inputs!$E$628=1,Fuel_Specs!$B$42,IF(Inputs!$E$628=3,Fuel_Specs!$B$44,Fuel_Specs!$B$43)),Fuel_Specs!$B$43))*(Petroleum!B265*Petroleum!$J$262+Petroleum!$J265)+Vehicles!$C$36*(1-Vehicles!$C$15)*Fuel_Specs!$B$24/((1-Vehicles!$C$36)*(1-Vehicles!$C$15)*Fuel_Specs!$B$21+Vehicles!$C$36*(1-Vehicles!$C$15)*Fuel_Specs!$B$24+Vehicles!$C$15*IF(Inputs!$E$628=1,IF(Inputs!$E$628=1,Fuel_Specs!$B$42,IF(Inputs!$E$628=3,Fuel_Specs!$B$44,Fuel_Specs!$B$43)),Fuel_Specs!$B$43))*(Petroleum!B265*Petroleum!$K$262+Petroleum!$K265)+Vehicles!$C$15*IF(Inputs!$E$628=1,IF(Inputs!$E$628=1,Fuel_Specs!$B$42,IF(Inputs!$E$628=3,Fuel_Specs!$B$44,Fuel_Specs!$B$43)),Fuel_Specs!$B$43)/((1-Vehicles!$C$36)*(1-Vehicles!$C$15)*Fuel_Specs!$B$21+Vehicles!$C$36*(1-Vehicles!$C$15)*Fuel_Specs!$B$24+Vehicles!$C$15*IF(Inputs!$E$628=1,IF(Inputs!$E$628=1,Fuel_Specs!$B$42,IF(Inputs!$E$628=3,Fuel_Specs!$B$44,Fuel_Specs!$B$43)),Fuel_Specs!$B$43))*(BioOil!$BA339*BioOil!$BB$335+BioOil!$BB339))/1000000*HLOOKUP($H$10,$Z$3:$AD$4,2,FALSE)/HLOOKUP($J$11,$Z$7:$AD$8,2,FALSE) -> 27074.04949 | AG17: =((1-Vehicles!$C$36)*(1-Vehicles!$C$15)*Fuel_Specs!$B$21/((1-Vehicles!$C$36)*(1-Vehicles!$C$15)*Fuel_Specs!$B$21+Vehicles!$C$36*(1-Vehicles!$C$15)*Fuel_Specs!$B$24+Vehicles!$C$15*IF(Inputs!$E$628=1,Fuel_Specs!$B$42,Fuel_Specs!$B$43))*(Petroleum!B265*Petroleum!$J$262+Petroleum!$J265)+Vehicles!$C$36*(1-Vehicles!$C$15)*Fuel_Specs!$B$24/((1-Vehicles!$C$36)*(1-Vehicles!$C$15)*Fuel_Specs!$B$21+Vehicles!$C$36*(1-Vehicles!$C$15)*Fuel_Specs!$B$24+Vehicles!$C$15*IF(Inputs!$E$628=1,Fuel_Specs!$B$42,Fuel_Specs!$B$43))*(Petroleum!B265*Petroleum!$K$262+Petroleum!$K265)+Vehicles!$C$15*IF(Inputs!$E$628=1,Fuel_Specs!$B$42,Fuel_Specs!$B$43)/((1-Vehicles!$C$36)*(1-Vehicles!$C$15)*Fuel_Specs!$B$21+Vehicles!$C$36*(1-Vehicles!$C$15)*Fuel_Specs!$B$24+Vehicles!$C$15*IF(Inputs!$E$628=1,Fuel_Specs!$B$42,Fuel_Specs!$B$43))*(Pyrolysis!$AB174*Pyrolysis!$AC$171+Pyrolysis!$AC174))/1000000*HLOOKUP($H$10,$Z$3:$AD$4,2,FALSE)/HLOOKUP($J$11,$Z$7:$AD$8,2,FALSE) -> 52330.66866 | AH17: =(((1-Vehicles!$C$37)*(1-Vehicles!$C$17-Vehicles!$C$18)*Fuel_Specs!$B$21*(Petroleum!B265*Petroleum!$J$262+Petroleum!$J265)+Vehicles!$C$37*(1-Vehicles!$C$17-Vehicles!$C$18)*Fuel_Specs!$B$24*(Petroleum!B265*Petroleum!$K$262+Petroleum!$K265)+Vehicles!$C$17*Fuel_Specs!$B$32*(EtOH!BP492*EtOH!$BQ$489+EtOH!$BQ492)+Vehicles!$C$18*Fuel_Specs!$B$35*('E-D Additives'!$B56*'E-D Additives'!$B$53))/((1-Vehicles!$C$37)*(1-Vehicles!$C$17-Vehicles!$C$18)*Fuel_Specs!$B$21+Vehicles!$C$37*(1-Vehicles!$C$17-Vehicles!$C$18)*Fuel_Specs!$B$24+Vehicles!$C$17*Fuel_Specs!$B$32+Vehicles!$C$18*Fuel_Specs!$B$35))/1000000*HLOOKUP($H$10,$Z$3:$AD$4,2,FALSE)/HLOOKUP($J$11,$Z$7:$AD$8,2,FALSE) -> 24735.89851 | AI17: =AN17*(Vehicles!$M$23/Vehicles!$CM$59)/(Vehicles!$M$23*(1/Vehicles!$CM$59+1/Vehicles!$CN$59)+Vehicles!$M$24/Vehicles!$CO$59)+E17*(Vehicles!$M$23/Vehicles!$CN$59+Vehicles!$M$24/Vehicles!$CO$59)/(Vehicles!$M$23*(1/Vehicles!$CM$59+1/Vehicles!$CN$59)+Vehicles!$M$24/Vehicles!$CO$59) -> 173129.7824 | AJ17: =AN17*(Vehicles!$N$23/Vehicles!$CQ$59)/(Vehicles!$N$23*(1/Vehicles!$CQ$59+1/Vehicles!$CR$59)+Vehicles!$N$24/Vehicles!$CS$59)+AC17*(Vehicles!$N$23/Vehicles!$CR$59+Vehicles!$N$24/Vehicles!$CS$59)/(Vehicles!$N$23*(1/Vehicles!$CQ$59+1/Vehicles!$CR$59)+Vehicles!$N$24/Vehicles!$CS$59) -> 196272.1858 | AK17: =AN17*(Vehicles!$O$23/Vehicles!$CU$59)/(Vehicles!$O$23*(1/Vehicles!$CU$59+1/Vehicles!$CV$59)+Vehicles!$O$24/Vehicles!$CW$59)+AD17*(Vehicles!$O$23/Vehicles!$CV$59+Vehicles!$O$24/Vehicles!$CW$59)/(Vehicles!$O$23*(1/Vehicles!$CU$59+1/Vehicles!$CV$59)+Vehicles!$O$24/Vehicles!$CW$59) -> 149782.2935 | AL17: =AN17*(Vehicles!$P$23/Vehicles!$CY$59)/(Vehicles!$P$23*(1/Vehicles!$CY$59+1/Vehicles!$CZ$59)+Vehicles!$P$24/Vehicles!$DA$59)+AE17*(Vehicles!$P$23/Vehicles!$CZ$59+Vehicles!$P$24/Vehicles!$DA$59)/(Vehicles!$P$23*(1/Vehicles!$CY$59+1/Vehicles!$CZ$59)+Vehicles!$P$24/Vehicles!$DA$59) -> 174257.6865 | AM17: =AN17*(Vehicles!$R$23/Vehicles!$DG$59)/(Vehicles!$R$23*(1/Vehicles!$DG$59+1/Vehicles!$DH$59)+Vehicles!$R$24/Vehicles!$DI$59)+AH17*(Vehicles!$R$23/Vehicles!$DH$59+Vehicles!$R$24/Vehicles!$DI$59)/(Vehicles!$R$23*(1/Vehicles!$DG$59+1/Vehicles!$DH$59)+Vehicles!$R$24/Vehicles!$DI$59) -> 176330.6832 | AN17: =(Electric!$G188+Electric!$F188-1000000*(Electric!$F188+Electric!$G188)/(Electric!$F$186+Electric!$G$186))/1000000*HLOOKUP($H$10,$Z$3:$AD$4,2,FALSE)/HLOOKUP($J$11,$Z$7:$AD$8,2,FALSE) -> 571919.1789 | AO17: =((Hydrogen!$AF165*Hydrogen!$AG$162+Hydrogen!$AG165)-1000000*(Hydrogen!$M$7+Hydrogen!$C$7+Hydrogen!$D$7+Hydrogen!$E$7))/1000000*HLOOKUP($H$10,$Z$3:$AD$4,2,FALSE)/HLOOKUP($J$11,$Z$7:$AD$8,2,FALSE) -> 144027.6845 | AP17: =((Hydrogen!$BJ165*Hydrogen!$BK$162+Hydrogen!$BK165)-1000000*(Hydrogen!$M$8+Hydrogen!$C$8+Hydrogen!$D$8+Hydrogen!$E$8))/1000000*HLOOKUP($H$10,$Z$3:$AD$4,2,FALSE)/HLOOKUP($J$11,$Z$7:$AD$8,2,FALSE) -> 470492.6042 | AQ17: =AN17*(Vehicles!$S$23/Vehicles!$DW$59)/(Vehicles!$S$23*(1/Vehicles!$DW$59+1/Vehicles!$DX$59)+Vehicles!$S$24/Vehicles!$DY$59)+AO17*(Vehicles!$S$23/Vehicles!$DX$59+Vehicles!$S$24/Vehicles!$DY$59)/(Vehicles!$S$23*(1/Vehicles!$DW$59+1/Vehicles!$DX$59)+Vehicles!$S$24/Vehicles!$DY$59) -> 290964.0445 | AR17: =AN17*(Vehicles!$S$23/Vehicles!$DW$59)/(Vehicles!$S$23*(1/Vehicles!$DW$59+1/Vehicles!$DX$59)+Vehicles!$S$24/Vehicles!$DY$59)+AP17*(Vehicles!$S$23/Vehicles!$DX$59+Vehicles!$S$24/Vehicles!$DY$59)/(Vehicles!$S$23*(1/Vehicles!$DW$59+1/Vehicles!$DX$59)+Vehicles!$S$24/Vehicles!$DY$59) -> 505322.1156 | AS17: =((1-Vehicles!$C$33)*(1-Vehicles!$C$16)*Fuel_Specs!$B$15/((1-Vehicles!$C$33)*(1-Vehicles!$C$16)*Fuel_Specs!$B$15+Vehicles!$C$33*(1-Vehicles!$C$16)*Fuel_Specs!$B$17+Vehicles!$C$16*Fuel_Specs!$B$46)*(Petroleum!$B265*Petroleum!$D$262+Petroleum!$D265)+Vehicles!$C$33*(1-Vehicles!$C$16)*Fuel_Specs!$B$17/((1-Vehicles!$C$33)*(1-Vehicles!$C$16)*Fuel_Specs!$B$15+Vehicles!$C$33*(1-Vehicles!$C$16)*Fuel_Specs!$B$17+Vehicles!$C$16*Fuel_Specs!$B$46)*(Petroleum!B265*Petroleum!$F$262+Petroleum!$F265)+Vehicles!$C$16*Fuel_Specs!$B$46/((1-Vehicles!$C$33)*(1-Vehicles!$C$16)*Fuel_Specs!$B$15+Vehicles!$C$33*(1-Vehicles!$C$16)*Fuel_Specs!$B$17+Vehicles!$C$16*Fuel_Specs!$B$46)*(IDL!$L115*IDL!$M$112+IDL!$M115))/1000000*HLOOKUP($H$10,$Z$3:$AD$4,2,FALSE)/HLOOKUP($J$11,$Z$7:$AD$8,2,FALSE) -> 9856.226756 | AV17: ="SI - E"&TEXT(Vehicles_EtOH_LLBlend_EtOHShare*100,"0") -> SI - E10 | AW17: RNAVGASLLETOH | AY17: ="SIDI - E"&TEXT(Vehicles_EtOH_LLBlend_EtOHShare*100,"0") -> SIDI - E10 | AZ17: RNAVGASLLETOHSIDI | BB17: CIDI - FT Diesel | BC17: RNAVFTDCIDI | BE17: SI HEV - RG from Pyrolysis | BF17: RNAVHEVRENGAS | BH17: SI PHEV - RG and Electricity | BI17: RNAVPHEVRENGAS | BK17: CIDI HEV - FT Diesel | BL17: RNAVHEVFTDIESEL | BN17: CIDI PHEV - FTD and Electricity | BO17: RNAVPHEVFTDIESEL | BQ17: FC PHEV - Liquid H2 and Electricity | BR17: RNAVPHEVFCVLH2
A18: Natural Gas | B18: =B16-B17-B19 -> 161409.3769 | C18: 354204.6497 | D18: 161409.3769 | E18: 211243.2236 | F18: 127844.9958 | G18: 247336.1037 | H18: 114031.3502 | I18: 867233.7101 | J18: 362164.4563 | K18: 386023.3113 | L18: 441097.467 | M18: 369374.8518 | N18: 592326.1354 | O18: 369374.8518 | P18: 439530.4047 | Q18: 58853.38283 | R18: 227527.3058 | S18: 158766.9093 | T18: 298228.3092 | U18: 158766.9093 | V18: 134487.6025 | W18: 220923.3172 | X18: 124495.2913 | Y18: 325149.7533 | Z18: 312829.2083 | AA18: 459334.3538 | AB18: 548135.4709 | AC18: 536681.9412 | AD18: 739948.9331 | AE18: 205570.3844 | AF18: 179971.1498 | AG18: =((1-Vehicles!$C$36)*(1-Vehicles!$C$15)*Fuel_Specs!$B$21/((1-Vehicles!$C$36)*(1-Vehicles!$C$15)*Fuel_Specs!$B$21+Vehicles!$C$36*(1-Vehicles!$C$15)*Fuel_Specs!$B$24+Vehicles!$C$15*IF(Inputs!$E$628=1,Fuel_Specs!$B$42,Fuel_Specs!$B$43))*(Petroleum!B266*Petroleum!$J$262+Petroleum!$J266)+Vehicles!$C$36*(1-Vehicles!$C$15)*Fuel_Specs!$B$24/((1-Vehicles!$C$36)*(1-Vehicles!$C$15)*Fuel_Specs!$B$21+Vehicles!$C$36*(1-Vehicles!$C$15)*Fuel_Specs!$B$24+Vehicles!$C$15*IF(Inputs!$E$628=1,Fuel_Specs!$B$42,Fuel_Specs!$B$43))*(Petroleum!B266*Petroleum!$K$262+Petroleum!$K266)+Vehicles!$C$15*IF(Inputs!$E$628=1,Fuel_Specs!$B$42,Fuel_Specs!$B$43)/((1-Vehicles!$C$36)*(1-Vehicles!$C$15)*Fuel_Specs!$B$21+Vehicles!$C$36*(1-Vehicles!$C$15)*Fuel_Specs!$B$24+Vehicles!$C$15*IF(Inputs!$E$628=1,Fuel_Specs!$B$42,Fuel_Specs!$B$43))*(Pyrolysis!$AB175*Pyrolysis!$AC$171+Pyrolysis!$AC175))/1000000*HLOOKUP($H$10,$Z$3:$AD$4,2,FALSE)/HLOOKUP($J$11,$Z$7:$AD$8,2,FALSE) -> 266334.4396 | AH18: =AH16-AH17-AH19 -> 226257.1394 | AI18: 194790.5765 | AJ18: 430067.8911 | AK18: 577020.6332 | AL18: 190689.3732 | AM18: 205644.9512 | AN18: 151857.1873 | AO18: 583750.8013 | AP18: 708484.0811 | AQ18: 435440.1283 | AR18: 517340.4601 | AS18: 87143.08948 | AV18: SI - Bi-Fuel CNGV on CNG | AW18: RNAVCNGBI | AY18: SIDI - Dedi. MeOH | AZ18: RNAVMEOHSIDI | BB18: CIDI - Biodiesel | BC18: RNAVBIODIESELCIDI | BE18: ="SI HEV - E"&TEXT(Vehicles_EtOH_LLBlend_EtOHShare*100,"0") -> SI HEV - E10 | BF18: RNAVHEVLLETOH | BH18: ="SI PHEV - E"&TEXT(Vehicles_EtOH_LLBlend_EtOHShare*100,"0") -> SI PHEV - E10 | BI18: RNAVPHEVLLETOH | BK18: CIDI HEV - Biodiesel | BL18: RNAVHEVBIODIESEL | BN18: CIDI PHEV - BD and Electricity | BO18: RNAVPHEVBIODIESEL | BQ18: FCV - Gaseous H2 | BR18: RNAVFCVGH2
A19: Petroleum | B19: =(Inputs!$E$1400*(Petroleum!$B267*Petroleum!$F$262+Petroleum!$F267)+(1-Inputs!$E$1400)*(Petroleum!$B267*Petroleum!$D$262+Petroleum!$D267))/1000000*HLOOKUP($H$10,$Z$3:$AD$4,2,FALSE)/HLOOKUP($J$11,$Z$7:$AD$8,2,FALSE) -> 80034.93384 | C19: =(Petroleum!$C267*Petroleum!$G$262+Petroleum!$G267)/1000000*HLOOKUP($H$10,$Z$3:$AD$4,2,FALSE)/HLOOKUP($J$11,$Z$7:$AD$8,2,FALSE) -> 71922.51889 | D19: =((1-Vehicles!$C$28)*(1-Vehicles!$C$7)*Fuel_Specs!$B$15/((1-Vehicles!$C$28)*(1-Vehicles!$C$7)*Fuel_Specs!$B$15+Vehicles!$C$28*(1-Vehicles!$C$7)*Fuel_Specs!$B$17+Vehicles!$C$7*Fuel_Specs!$B$32)*(Petroleum!$B267*Petroleum!$D$262+(Petroleum!$D267-'T&D'!G216))+Vehicles!$C$28*(1-Vehicles!$C$7)*Fuel_Specs!$B$17/((1-Vehicles!$C$28)*(1-Vehicles!$C$7)*Fuel_Specs!$B$15+Vehicles!$C$28*(1-Vehicles!$C$7)*Fuel_Specs!$B$17+Vehicles!$C$7*Fuel_Specs!$B$32)*(Petroleum!B267*Petroleum!$F$262+Petroleum!$F267)+Vehicles!$C$7*Fuel_Specs!$B$32/((1-Vehicles!$C$28)*(1-Vehicles!$C$7)*Fuel_Specs!$B$15+Vehicles!$C$28*(1-Vehicles!$C$7)*Fuel_Specs!$B$17+Vehicles!$C$7*Fuel_Specs!$B$32)*(EtOH!BR494*EtOH!$BS$489+EtOH!$BS494)+Petroleum!AS128+Petroleum!AT128)/1000000*HLOOKUP($H$10,$Z$3:$AD$4,2,FALSE)/HLOOKUP($J$11,$Z$7:$AD$8,2,FALSE) -> 80034.93384 | E19: =(Inputs!$E$97*(IF(Inputs!F$102=1,Petroleum!$B267,Petroleum!$C267)*Petroleum!$K$262+Petroleum!$K267)+(1-Inputs!$E$97)*(IF(Inputs!F$101=1,Petroleum!$B267,Petroleum!$C267)*Petroleum!$J$262+Petroleum!$J267))/1000000*HLOOKUP($H$10,$Z$3:$AD$4,2,FALSE)/HLOOKUP($J$11,$Z$7:$AD$8,2,FALSE) -> 35565.86451 | F19: =(NG!$I89*NG!$J$84+NG!$J89)/1000000*HLOOKUP($H$10,$Z$3:$AD$4,2,FALSE)/HLOOKUP($J$11,$Z$7:$AD$8,2,FALSE) -> 5226.77942 | G19: =(NG!$Q89*NG!$R$84+NG!$R89)/1000000*HLOOKUP($H$10,$Z$3:$AD$4,2,FALSE)/HLOOKUP($J$11,$Z$7:$AD$8,2,FALSE) -> 15630.41328 | H19: =(NG!$W89*NG!$X$84+NG!$X89)/1000000*HLOOKUP($H$10,$Z$3:$AD$4,2,FALSE)/HLOOKUP($J$11,$Z$7:$AD$8,2,FALSE) -> 31360.2782 | I19: =('MeOH&FTD'!BJ142*'MeOH&FTD'!BK$137+'MeOH&FTD'!BK142)/1000000*HLOOKUP($H$10,$Z$3:$AD$4,2,FALSE)/HLOOKUP($J$11,$Z$7:$AD$8,2,FALSE) -> 7135.686746 | J19: =((1-Vehicles!$C$27)*(1-Vehicles!$C$5)*Fuel_Specs!$B$15/((1-Vehicles!$C$27)*(1-Vehicles!$C$5)*Fuel_Specs!$B$15+Vehicles!$C$27*(1-Vehicles!$C$5)*Fuel_Specs!$B$17+Vehicles!$C$5*Fuel_Specs!$B$31)*(Petroleum!$B267*Petroleum!$D$262+Petroleum!$D267)+Vehicles!$C$27*(1-Vehicles!$C$5)*Fuel_Specs!$B$17/((1-Vehicles!$C$27)*(1-Vehicles!$C$5)*Fuel_Specs!$B$15+Vehicles!$C$27*(1-Vehicles!$C$5)*Fuel_Specs!$B$17+Vehicles!$C$5*Fuel_Specs!$B$31)*(Petroleum!B267*Petroleum!$F$262+Petroleum!$F267)+Vehicles!$C$5*Fuel_Specs!$B$31/((1-Vehicles!$C$27)*(1-Vehicles!$C$5)*Fuel_Specs!$B$15+Vehicles!$C$27*(1-Vehicles!$C$5)*Fuel_Specs!$B$17+Vehicles!$C$5*Fuel_Specs!$B$31)*('MeOH&FTD'!$N142*'MeOH&FTD'!$O$137+'MeOH&FTD'!$O142))/1000000*HLOOKUP($H$10,$Z$3:$AD$4,2,FALSE)/HLOOKUP($J$11,$Z$7:$AD$8,2,FALSE) -> 32245.63097 | K19: =((1-Vehicles!$C$27)*(1-Vehicles!$C$6)*Fuel_Specs!$B$15/((1-Vehicles!$C$27)*(1-Vehicles!$C$6)*Fuel_Specs!$B$15+Vehicles!$C$27*(1-Vehicles!$C$6)*Fuel_Specs!$B$17+Vehicles!$C$6*Fuel_Specs!$B$31)*(Petroleum!$B267*Petroleum!$D$262+Petroleum!$D267)+Vehicles!$C$27*(1-Vehicles!$C$6)*Fuel_Specs!$B$17/((1-Vehicles!$C$27)*(1-Vehicles!$C$6)*Fuel_Specs!$B$15+Vehicles!$C$27*(1-Vehicles!$C$6)*Fuel_Specs!$B$17+Vehicles!$C$6*Fuel_Specs!$B$31)*(Petroleum!B267*Petroleum!$F$262+Petroleum!$F267)+Vehicles!$C$6*Fuel_Specs!$B$31/((1-Vehicles!$C$27)*(1-Vehicles!$C$6)*Fuel_Specs!$B$15+Vehicles!$C$27*(1-Vehicles!$C$6)*Fuel_Specs!$B$17+Vehicles!$C$6*Fuel_Specs!$B$31)*('MeOH&FTD'!$N142*'MeOH&FTD'!$O$137+'MeOH&FTD'!$O142))/1000000*HLOOKUP($H$10,$Z$3:$AD$4,2,FALSE)/HLOOKUP($J$11,$Z$7:$AD$8,2,FALSE) -> 27383.55152 | L19: =('MeOH&FTD'!$N142*'MeOH&FTD'!$O$137+'MeOH&FTD'!$O142)/1000000*HLOOKUP($H$10,$Z$3:$AD$4,2,FALSE)/HLOOKUP($J$11,$Z$7:$AD$8,2,FALSE) -> 16160.25854 | M19: =((1-Vehicles!$C$29)*(1-Vehicles!$C$8)*Fuel_Specs!$B$15/((1-Vehicles!$C$29)*(1-Vehicles!$C$8)*Fuel_Specs!$B$15+Vehicles!$C$29*(1-Vehicles!$C$8)*Fuel_Specs!$B$17+Vehicles!$C$8*Fuel_Specs!$B$32)*(Petroleum!$B267*Petroleum!$D$262+(Petroleum!$D267-'T&D'!G216))+Vehicles!$C$29*(1-Vehicles!$C$8)*Fuel_Specs!$B$17/((1-Vehicles!$C$29)*(1-Vehicles!$C$8)*Fuel_Specs!$B$15+Vehicles!$C$29*(1-Vehicles!$C$8)*Fuel_Specs!$B$17+Vehicles!$C$8*Fuel_Specs!$B$32)*(Petroleum!B267*Petroleum!$F$262+Petroleum!$F267)+Vehicles!$C$8*Fuel_Specs!$B$32/((1-Vehicles!$C$29)*(1-Vehicles!$C$8)*Fuel_Specs!$B$15+Vehicles!$C$29*(1-Vehicles!$C$8)*Fuel_Specs!$B$17+Vehicles!$C$8*Fuel_Specs!$B$32)*(EtOH!BR494*EtOH!$BS$489+EtOH!$BS494)+Petroleum!AS128+Petroleum!AT128)/1000000*HLOOKUP($H$10,$Z$3:$AD$4,2,FALSE)/HLOOKUP($J$11,$Z$7:$AD$8,2,FALSE) -> 109354.6436 | N19: =((1-Vehicles!$C$30)*(1-Vehicles!$C$12)*Fuel_Specs!$B$15/((1-Vehicles!$C$30)*(1-Vehicles!$C$12)*Fuel_Specs!$B$15+Vehicles!$C$30*(1-Vehicles!$C$12)*Fuel_Specs!$B$17+Vehicles!$C$12*Fuel_Specs!$B$33)*(Petroleum!$B267*Petroleum!$D$262+Petroleum!$D267)+Vehicles!$C$30*(1-Vehicles!$C$12)*Fuel_Specs!$B$17/((1-Vehicles!$C$30)*(1-Vehicles!$C$12)*Fuel_Specs!$B$15+Vehicles!$C$30*(1-Vehicles!$C$12)*Fuel_Specs!$B$17+Vehicles!$C$12*Fuel_Specs!$B$33)*(Petroleum!B267*Petroleum!$F$262+Petroleum!$F267)+Vehicles!$C$12*Fuel_Specs!$B$33/((1-Vehicles!$C$30)*(1-Vehicles!$C$12)*Fuel_Specs!$B$15+Vehicles!$C$30*(1-Vehicles!$C$12)*Fuel_Specs!$B$17+Vehicles!$C$12*Fuel_Specs!$B$33)*(EtOH!$BT494*EtOH!$BU$489+EtOH!$BU494))/1000000*HLOOKUP($H$10,$Z$3:$AD$4,2,FALSE)/HLOOKUP($J$11,$Z$7:$AD$8,2,FALSE) -> 86520.41683 | O19: =((1-Vehicles!$C$29)*(1-Vehicles!$C$9)*Fuel_Specs!$B$15/((1-Vehicles!$C$29)*(1-Vehicles!$C$9)*Fuel_Specs!$B$15+Vehicles!$C$29*(1-Vehicles!$C$9)*Fuel_Specs!$B$17+Vehicles!$C$9*Fuel_Specs!$B$32)*(Petroleum!$B267*Petroleum!$D$262+(Petroleum!$D267-'T&D'!G216))+Vehicles!$C$29*(1-Vehicles!$C$9)*Fuel_Specs!$B$17/((1-Vehicles!$C$29)*(1-Vehicles!$C$9)*Fuel_Specs!$B$15+Vehicles!$C$29*(1-Vehicles!$C$9)*Fuel_Specs!$B$17+Vehicles!$C$9*Fuel_Specs!$B$32)*(Petroleum!B267*Petroleum!$F$262+Petroleum!$F267)+Vehicles!$C$9*Fuel_Specs!$B$32/((1-Vehicles!$C$29)*(1-Vehicles!$C$9)*Fuel_Specs!$B$15+Vehicles!$C$29*(1-Vehicles!$C$9)*Fuel_Specs!$B$17+Vehicles!$C$9*Fuel_Specs!$B$32)*(EtOH!BR494*EtOH!$BS$489+EtOH!$BS494)+Petroleum!AS128+Petroleum!AT128)/1000000*HLOOKUP($H$10,$Z$3:$AD$4,2,FALSE)/HLOOKUP($J$11,$Z$7:$AD$8,2,FALSE) -> 109354.6436 | P19: =(EtOH!$BP494*EtOH!$BQ$489+EtOH!$BQ494)/1000000*HLOOKUP($H$10,$Z$3:$AD$4,2,FALSE)/HLOOKUP($J$11,$Z$7:$AD$8,2,FALSE) -> 123266.9835 | Q19: =((1-Vehicles!$C$33)*(1-Vehicles!$C$16)*Fuel_Specs!$B$15/((1-Vehicles!$C$33)*(1-Vehicles!$C$16)*Fuel_Specs!$B$15+Vehicles!$C$33*(1-Vehicles!$C$16)*Fuel_Specs!$B$17+Vehicles!$C$16*Fuel_Specs!$B$45)*(Petroleum!$B267*Petroleum!$D$262+Petroleum!$D267)+Vehicles!$C$33*(1-Vehicles!$C$16)*Fuel_Specs!$B$17/((1-Vehicles!$C$33)*(1-Vehicles!$C$16)*Fuel_Specs!$B$15+Vehicles!$C$33*(1-Vehicles!$C$16)*Fuel_Specs!$B$17+Vehicles!$C$16*Fuel_Specs!$B$45)*(Petroleum!B267*Petroleum!$F$262+Petroleum!$F267)+Vehicles!$C$16*Fuel_Specs!$B$45/((1-Vehicles!$C$33)*(1-Vehicles!$C$16)*Fuel_Specs!$B$15+Vehicles!$C$33*(1-Vehicles!$C$16)*Fuel_Specs!$B$17+Vehicles!$C$16*Fuel_Specs!$B$45)*(BioOil!$BO341*BioOil!$BP$335+BioOil!$BP341))/1000000*HLOOKUP($H$10,$Z$3:$AD$4,2,FALSE)/HLOOKUP($J$11,$Z$7:$AD$8,2,FALSE) -> 79511.60633 | R19: =((1-Vehicles!$C$33)*(1-Vehicles!$C$16)*Fuel_Specs!$B$15/((1-Vehicles!$C$33)*(1-Vehicles!$C$16)*Fuel_Specs!$B$15+Vehicles!$C$33*(1-Vehicles!$C$16)*Fuel_Specs!$B$17+Vehicles!$C$16*Fuel_Specs!$B$45)*(Petroleum!$B267*Petroleum!$D$262+Petroleum!$D267)+Vehicles!$C$33*(1-Vehicles!$C$16)*Fuel_Specs!$B$17/((1-Vehicles!$C$33)*(1-Vehicles!$C$16)*Fuel_Specs!$B$15+Vehicles!$C$33*(1-Vehicles!$C$16)*Fuel_Specs!$B$17+Vehicles!$C$16*Fuel_Specs!$B$45)*(Petroleum!B267*Petroleum!$F$262+Petroleum!$F267)+Vehicles!$C$16*Fuel_Specs!$B$45/((1-Vehicles!$C$33)*(1-Vehicles!$C$16)*Fuel_Specs!$B$15+Vehicles!$C$33*(1-Vehicles!$C$16)*Fuel_Specs!$B$17+Vehicles!$C$16*Fuel_Specs!$B$45)*(Pyrolysis!$Z176*Pyrolysis!$AA$171+Pyrolysis!$AA176))/1000000*HLOOKUP($H$10,$Z$3:$AD$4,2,FALSE)/HLOOKUP($J$11,$Z$7:$AD$8,2,FALSE) -> 58130.3649 | S19: =AN19*(Vehicles!$C$23/Vehicles!$AR$59)/(Vehicles!$C$23*(1/Vehicles!$AR$59+1/Vehicles!$AS$59)+Vehicles!$C$24/Vehicles!$AT$59)+B19*(Vehicles!$C$23/Vehicles!$AS$59+Vehicles!$C$24/Vehicles!$AT$59)/(Vehicles!$C$23*(1/Vehicles!$AR$59+1/Vehicles!$AS$59)+Vehicles!$C$24/Vehicles!$AT$59) -> 62610.46913 | T19: =AN19*(Vehicles!$D$23/Vehicles!$AV$59)/(Vehicles!$D$23*(1/Vehicles!$AV$59+1/Vehicles!$AW$59)+Vehicles!$D$24/Vehicles!$AX$59)+C19*(Vehicles!$D$23/Vehicles!$AW$59+Vehicles!$D$24/Vehicles!$AX$59)/(Vehicles!$D$23*(1/Vehicles!$AV$59+1/Vehicles!$AW$59)+Vehicles!$D$24/Vehicles!$AX$59) -> 56742.23009 | U19: =AN19*(Vehicles!$F$23/Vehicles!$BD$59)/(Vehicles!$F$23*(1/Vehicles!$BD$59+1/Vehicles!$BE$59)+Vehicles!$F$24/Vehicles!$BF$59)+D19*(Vehicles!$F$23/Vehicles!$BE$59+Vehicles!$F$24/Vehicles!$BF$59)/(Vehicles!$F$23*(1/Vehicles!$BD$59+1/Vehicles!$BE$59)+Vehicles!$F$24/Vehicles!$BF$59) -> 62610.46913 | V19: =AN19*(Vehicles!$G$23/Vehicles!$BH$59)/(Vehicles!$G$23*(1/Vehicles!$BH$59+1/Vehicles!$BI$59)+Vehicles!$G$24/Vehicles!$BJ$59)+F19*(Vehicles!$G$23/Vehicles!$BI$59+Vehicles!$G$24/Vehicles!$BJ$59)/(Vehicles!$G$23*(1/Vehicles!$BH$59+1/Vehicles!$BI$59)+Vehicles!$G$24/Vehicles!$BJ$59) -> 8496.850107 | W19: =AN19*(Vehicles!$H$23/Vehicles!$BL$59)/(Vehicles!$H$23*(1/Vehicles!$BL$59+1/Vehicles!$BM$59)+Vehicles!$H$24/Vehicles!$BN$59)+G19*(Vehicles!$H$23/Vehicles!$BM$59+Vehicles!$H$24/Vehicles!$BN$59)/(Vehicles!$H$23*(1/Vehicles!$BL$59+1/Vehicles!$BM$59)+Vehicles!$H$24/Vehicles!$BN$59) -> 16022.47728 | X19: =AN19*(Vehicles!$I$23/Vehicles!$BP$59)/(Vehicles!$I$23*(1/Vehicles!$BP$59+1/Vehicles!$BQ$59)+Vehicles!$I$24/Vehicles!$BR$59)+H19*(Vehicles!$I$23/Vehicles!$BQ$59+Vehicles!$I$24/Vehicles!$BR$59)/(Vehicles!$I$23*(1/Vehicles!$BP$59+1/Vehicles!$BQ$59)+Vehicles!$I$24/Vehicles!$BR$59) -> 27400.91488 | Y19: =AN19*(Vehicles!$J$23/Vehicles!$BT$59)/(Vehicles!$J$23*(1/Vehicles!$BT$59+1/Vehicles!$BU$59)+Vehicles!$J$24/Vehicles!$BV$59)+K19*(Vehicles!$J$23/Vehicles!$BU$59+Vehicles!$J$24/Vehicles!$BV$59)/(Vehicles!$J$23*(1/Vehicles!$BT$59+1/Vehicles!$BU$59)+Vehicles!$J$24/Vehicles!$BV$59) -> 24696.64901 | Z19: =AN19*(Vehicles!$K$23/Vehicles!$BX$59)/(Vehicles!$K$23*(1/Vehicles!$BX$59+1/Vehicles!$BY$59)+Vehicles!$K$24/Vehicles!$BZ$59)+O19*(Vehicles!$K$23/Vehicles!$BY$59+Vehicles!$K$24/Vehicles!$BZ$59)/(Vehicles!$K$23*(1/Vehicles!$BX$59+1/Vehicles!$BY$59)+Vehicles!$K$24/Vehicles!$BZ$59) -> 85358.6297 | AA19: =AN19*(Vehicles!$L$23/Vehicles!$CB$59)/(Vehicles!$L$23*(1/Vehicles!$CB$59+1/Vehicles!$CC$59)+Vehicles!$L$24/Vehicles!$CD$59)+AO19*(Vehicles!$L$23/Vehicles!$CC$59+Vehicles!$L$24/Vehicles!$CD$59)/(Vehicles!$L$23*(1/Vehicles!$CB$59+1/Vehicles!$CC$59)+Vehicles!$L$24/Vehicles!$CD$59) -> 70268.89575 | AB19: =AN19*(Vehicles!$L$23/Vehicles!$CB$59)/(Vehicles!$L$23*(1/Vehicles!$CB$59+1/Vehicles!$CC$59)+Vehicles!$L$24/Vehicles!$CE$59)+AP19*(Vehicles!$L$23/Vehicles!$CC$59+Vehicles!$L$24/Vehicles!$CE$59)/(Vehicles!$L$23*(1/Vehicles!$CB$59+1/Vehicles!$CC$59)+Vehicles!$L$24/Vehicles!$CE$59) -> 25182.17389 | AC19: =('MeOH&FTD'!$AJ142*'MeOH&FTD'!$AK$137+'MeOH&FTD'!$AK142)/1000000*HLOOKUP($H$10,$Z$3:$AD$4,2,FALSE)/HLOOKUP($J$11,$Z$7:$AD$8,2,FALSE) -> 12537.19053 | AD19: =((1-Vehicles!$C$34)*(1-Vehicles!$C$13)*Fuel_Specs!$B$21/((1-Vehicles!$C$34)*(1-Vehicles!$C$13)*Fuel_Specs!$B$21+Vehicles!$C$34*(1-Vehicles!$C$13)*Fuel_Specs!$B$24+Vehicles!$C$13*Fuel_Specs!$B$41)*(Petroleum!B267*Petroleum!$J$262+Petroleum!$J267)+Vehicles!$C$34*(1-Vehicles!$C$13)*Fuel_Specs!$B$24/((1-Vehicles!$C$34)*(1-Vehicles!$C$13)*Fuel_Specs!$B$21+Vehicles!$C$34*(1-Vehicles!$C$13)*Fuel_Specs!$B$24+Vehicles!$C$13*Fuel_Specs!$B$41)*(Petroleum!B267*Petroleum!$K$262+Petroleum!$K267)+Vehicles!$C$13*Fuel_Specs!$B$41/((1-Vehicles!$C$34)*(1-Vehicles!$C$13)*Fuel_Specs!$B$21+Vehicles!$C$34*(1-Vehicles!$C$13)*Fuel_Specs!$B$24+Vehicles!$C$13*Fuel_Specs!$B$41)*('MeOH&FTD'!$AZ142*'MeOH&FTD'!$BA$137+'MeOH&FTD'!$BA142))/1000000*HLOOKUP($H$10,$Z$3:$AD$4,2,FALSE)/HLOOKUP($J$11,$Z$7:$AD$8,2,FALSE) -> 7869.192993 | AE19: =((1-Vehicles!$C$35)*(1-Vehicles!$C$14)*Fuel_Specs!$B$21/((1-Vehicles!$C$35)*(1-Vehicles!$C$14)*Fuel_Specs!$B$21+Vehicles!$C$35*(1-Vehicles!$C$14)*Fuel_Specs!$B$24+Vehicles!$C$14*Fuel_Specs!$B$40)*(Petroleum!B267*Petroleum!$J$262+Petroleum!$J267)+Vehicles!$C$35*(1-Vehicles!$C$14)*Fuel_Specs!$B$24/((1-Vehicles!$C$35)*(1-Vehicles!$C$14)*Fuel_Specs!$B$21+Vehicles!$C$35*(1-Vehicles!$C$14)*Fuel_Specs!$B$24+Vehicles!$C$14*Fuel_Specs!$B$40)*(Petroleum!B267*Petroleum!$K$262+Petroleum!$K267)+Vehicles!$C$14*Fuel_Specs!$B$40/((1-Vehicles!$C$35)*(1-Vehicles!$C$14)*Fuel_Specs!$B$21+Vehicles!$C$35*(1-Vehicles!$C$14)*Fuel_Specs!$B$24+Vehicles!$C$14*Fuel_Specs!$B$40)*(BioOil!$W341*BioOil!$X$335+BioOil!$X341))/1000000*HLOOKUP($H$10,$Z$3:$AD$4,2,FALSE)/HLOOKUP($J$11,$Z$7:$AD$8,2,FALSE) -> 41535.06241 | AF19: =((1-Vehicles!$C$36)*(1-Vehicles!$C$15)*Fuel_Specs!$B$21/((1-Vehicles!$C$36)*(1-Vehicles!$C$15)*Fuel_Specs!$B$21+Vehicles!$C$36*(1-Vehicles!$C$15)*Fuel_Specs!$B$24+Vehicles!$C$15*IF(Inputs!$E$628=1,IF(Inputs!$E$628=1,Fuel_Specs!$B$42,IF(Inputs!$E$628=3,Fuel_Specs!$B$44,Fuel_Specs!$B$43)),Fuel_Specs!$B$43))*(Petroleum!B267*Petroleum!$J$262+Petroleum!$J267)+Vehicles!$C$36*(1-Vehicles!$C$15)*Fuel_Specs!$B$24/((1-Vehicles!$C$36)*(1-Vehicles!$C$15)*Fuel_Specs!$B$21+Vehicles!$C$36*(1-Vehicles!$C$15)*Fuel_Specs!$B$24+Vehicles!$C$15*IF(Inputs!$E$628=1,IF(Inputs!$E$628=1,Fuel_Specs!$B$42,IF(Inputs!$E$628=3,Fuel_Specs!$B$44,Fuel_Specs!$B$43)),Fuel_Specs!$B$43))*(Petroleum!B267*Petroleum!$K$262+Petroleum!$K267)+Vehicles!$C$15*IF(Inputs!$E$628=1,IF(Inputs!$E$628=1,Fuel_Specs!$B$42,IF(Inputs!$E$628=3,Fuel_Specs!$B$44,Fuel_Specs!$B$43)),Fuel_Specs!$B$43)/((1-Vehicles!$C$36)*(1-Vehicles!$C$15)*Fuel_Specs!$B$21+Vehicles!$C$36*(1-Vehicles!$C$15)*Fuel_Specs!$B$24+Vehicles!$C$15*IF(Inputs!$E$628=1,IF(Inputs!$E$628=1,Fuel_Specs!$B$42,IF(Inputs!$E$628=3,Fuel_Specs!$B$44,Fuel_Specs!$B$43)),Fuel_Specs!$B$43))*(BioOil!$BA341*BioOil!$BB$335+BioOil!$BB341))/1000000*HLOOKUP($H$10,$Z$3:$AD$4,2,FALSE)/HLOOKUP($J$11,$Z$7:$AD$8,2,FALSE) -> 105189.4214 | AG19: =((1-Vehicles!$C$36)*(1-Vehicles!$C$15)*Fuel_Specs!$B$21/((1-Vehicles!$C$36)*(1-Vehicles!$C$15)*Fuel_Specs!$B$21+Vehicles!$C$36*(1-Vehicles!$C$15)*Fuel_Specs!$B$24+Vehicles!$C$15*IF(Inputs!$E$628=1,Fuel_Specs!$B$42,Fuel_Specs!$B$43))*(Petroleum!B267*Petroleum!$J$262+Petroleum!$J267)+Vehicles!$C$36*(1-Vehicles!$C$15)*Fuel_Specs!$B$24/((1-Vehicles!$C$36)*(1-Vehicles!$C$15)*Fuel_Specs!$B$21+Vehicles!$C$36*(1-Vehicles!$C$15)*Fuel_Specs!$B$24+Vehicles!$C$15*IF(Inputs!$E$628=1,Fuel_Specs!$B$42,Fuel_Specs!$B$43))*(Petroleum!B267*Petroleum!$K$262+Petroleum!$K267)+Vehicles!$C$15*IF(Inputs!$E$628=1,Fuel_Specs!$B$42,Fuel_Specs!$B$43)/((1-Vehicles!$C$36)*(1-Vehicles!$C$15)*Fuel_Specs!$B$21+Vehicles!$C$36*(1-Vehicles!$C$15)*Fuel_Specs!$B$24+Vehicles!$C$15*IF(Inputs!$E$628=1,Fuel_Specs!$B$42,Fuel_Specs!$B$43))*(Pyrolysis!$AB176*Pyrolysis!$AC$171+Pyrolysis!$AC176))/1000000*HLOOKUP($H$10,$Z$3:$AD$4,2,FALSE)/HLOOKUP($J$11,$Z$7:$AD$8,2,FALSE) -> 104305.8711 | AH19: =(((1-Vehicles!$C$37)*(1-Vehicles!$C$17-Vehicles!$C$18)*Fuel_Specs!$B$21*(Petroleum!B267*Petroleum!$J$262+Petroleum!$J267)+Vehicles!$C$37*(1-Vehicles!$C$17-Vehicles!$C$18)*Fuel_Specs!$B$24*(Petroleum!B267*Petroleum!$K$262+Petroleum!$K267)+Vehicles!$C$17*Fuel_Specs!$B$32*(EtOH!BP494*EtOH!$BQ$489+EtOH!$BQ494)+Vehicles!$C$18*Fuel_Specs!$B$35*('E-D Additives'!$B58*'E-D Additives'!$B$53))/((1-Vehicles!$C$37)*(1-Vehicles!$C$17-Vehicles!$C$18)*Fuel_Specs!$B$21+Vehicles!$C$37*(1-Vehicles!$C$17-Vehicles!$C$18)*Fuel_Specs!$B$24+Vehicles!$C$17*Fuel_Specs!$B$32+Vehicles!$C$18*Fuel_Specs!$B$35))/1000000*HLOOKUP($H$10,$Z$3:$AD$4,2,FALSE)/HLOOKUP($J$11,$Z$7:$AD$8,2,FALSE) -> 40835.5858 | AI19: =AN19*(Vehicles!$M$23/Vehicles!$CM$59)/(Vehicles!$M$23*(1/Vehicles!$CM$59+1/Vehicles!$CN$59)+Vehicles!$M$24/Vehicles!$CO$59)+E19*(Vehicles!$M$23/Vehicles!$CN$59+Vehicles!$M$24/Vehicles!$CO$59)/(Vehicles!$M$23*(1/Vehicles!$CM$59+1/Vehicles!$CN$59)+Vehicles!$M$24/Vehicles!$CO$59) -> 30435.47955 | AJ19: =AN19*(Vehicles!$N$23/Vehicles!$CQ$59)/(Vehicles!$N$23*(1/Vehicles!$CQ$59+1/Vehicles!$CR$59)+Vehicles!$N$24/Vehicles!$CS$59)+AC19*(Vehicles!$N$23/Vehicles!$CR$59+Vehicles!$N$24/Vehicles!$CS$59)/(Vehicles!$N$23*(1/Vehicles!$CQ$59+1/Vehicles!$CR$59)+Vehicles!$N$24/Vehicles!$CS$59) -> 13786.80108 | AK19: =AN19*(Vehicles!$O$23/Vehicles!$CU$59)/(Vehicles!$O$23*(1/Vehicles!$CU$59+1/Vehicles!$CV$59)+Vehicles!$O$24/Vehicles!$CW$59)+AD19*(Vehicles!$O$23/Vehicles!$CV$59+Vehicles!$O$24/Vehicles!$CW$59)/(Vehicles!$O$23*(1/Vehicles!$CU$59+1/Vehicles!$CV$59)+Vehicles!$O$24/Vehicles!$CW$59) -> 10412.05228 | AL19: =AN19*(Vehicles!$P$23/Vehicles!$CY$59)/(Vehicles!$P$23*(1/Vehicles!$CY$59+1/Vehicles!$CZ$59)+Vehicles!$P$24/Vehicles!$DA$59)+AE19*(Vehicles!$P$23/Vehicles!$CZ$59+Vehicles!$P$24/Vehicles!$DA$59)/(Vehicles!$P$23*(1/Vehicles!$CY$59+1/Vehicles!$CZ$59)+Vehicles!$P$24/Vehicles!$DA$59) -> 34750.93674 | AM19: =AN19*(Vehicles!$R$23/Vehicles!$DG$59)/(Vehicles!$R$23*(1/Vehicles!$DG$59+1/Vehicles!$DH$59)+Vehicles!$R$24/Vehicles!$DI$59)+AH19*(Vehicles!$R$23/Vehicles!$DH$59+Vehicles!$R$24/Vehicles!$DI$59)/(Vehicles!$R$23*(1/Vehicles!$DG$59+1/Vehicles!$DH$59)+Vehicles!$R$24/Vehicles!$DI$59) -> 34245.24712 | AN19: =(Electric!$G190+Electric!$F190-1000000*(Electric!$F190+Electric!$G190)/(Electric!$F$186+Electric!$G$186))/1000000*HLOOKUP($H$10,$Z$3:$AD$4,2,FALSE)/HLOOKUP($J$11,$Z$7:$AD$8,2,FALSE) -> 17047.67553 | AO19: =((Hydrogen!$AF167*Hydrogen!$AG$162+Hydrogen!$AG167)-1000000*(Hydrogen!$M$7+Hydrogen!$C$7+Hydrogen!$D$7+Hydrogen!$E$7))/1000000*HLOOKUP($H$10,$Z$3:$AD$4,2,FALSE)/HLOOKUP($J$11,$Z$7:$AD$8,2,FALSE) -> 91804.13764 | AP19: =((Hydrogen!$BJ167*Hydrogen!$BK$162+Hydrogen!$BK167)-1000000*(Hydrogen!$M$8+Hydrogen!$C$8+Hydrogen!$D$8+Hydrogen!$E$8))/1000000*HLOOKUP($H$10,$Z$3:$AD$4,2,FALSE)/HLOOKUP($J$11,$Z$7:$AD$8,2,FALSE) -> 28473.68787 | AQ19: =AN19*(Vehicles!$S$23/Vehicles!$DW$59)/(Vehicles!$S$23*(1/Vehicles!$DW$59+1/Vehicles!$DX$59)+Vehicles!$S$24/Vehicles!$DY$59)+AO19*(Vehicles!$S$23/Vehicles!$DX$59+Vehicles!$S$24/Vehicles!$DY$59)/(Vehicles!$S$23*(1/Vehicles!$DW$59+1/Vehicles!$DX$59)+Vehicles!$S$24/Vehicles!$DY$59) -> 66133.04445 | AR19: =AN19*(Vehicles!$S$23/Vehicles!$DW$59)/(Vehicles!$S$23*(1/Vehicles!$DW$59+1/Vehicles!$DX$59)+Vehicles!$S$24/Vehicles!$DY$59)+AP19*(Vehicles!$S$23/Vehicles!$DX$59+Vehicles!$S$24/Vehicles!$DY$59)/(Vehicles!$S$23*(1/Vehicles!$DW$59+1/Vehicles!$DX$59)+Vehicles!$S$24/Vehicles!$DY$59) -> 24550.0374 | AS19: =((1-Vehicles!$C$33)*(1-Vehicles!$C$16)*Fuel_Specs!$B$15/((1-Vehicles!$C$33)*(1-Vehicles!$C$16)*Fuel_Specs!$B$15+Vehicles!$C$33*(1-Vehicles!$C$16)*Fuel_Specs!$B$17+Vehicles!$C$16*Fuel_Specs!$B$46)*(Petroleum!$B267*Petroleum!$D$262+Petroleum!$D267)+Vehicles!$C$33*(1-Vehicles!$C$16)*Fuel_Specs!$B$17/((1-Vehicles!$C$33)*(1-Vehicles!$C$16)*Fuel_Specs!$B$15+Vehicles!$C$33*(1-Vehicles!$C$16)*Fuel_Specs!$B$17+Vehicles!$C$16*Fuel_Specs!$B$46)*(Petroleum!B267*Petroleum!$F$262+Petroleum!$F267)+Vehicles!$C$16*Fuel_Specs!$B$46/((1-Vehicles!$C$33)*(1-Vehicles!$C$16)*Fuel_Specs!$B$15+Vehicles!$C$33*(1-Vehicles!$C$16)*Fuel_Specs!$B$17+Vehicles!$C$16*Fuel_Specs!$B$46)*(IDL!$L117*IDL!$M$112+IDL!$M117))/1000000*HLOOKUP($H$10,$Z$3:$AD$4,2,FALSE)/HLOOKUP($J$11,$Z$7:$AD$8,2,FALSE) -> 67388.02015 | AV19: SI - EtOH FFV | AW19: RNAVETOHFFV | AY19: SIDI - Dedi. EtOH | AZ19: RNAVETOHSIDI | BB19: CIDI - RD from Bio Oil | BC19: RNAVRENDIESEL1CIDI | BE19: SI HEV - CNG | BF19: RNAVHEVCNG | BH19: SI PHEV - CNG and Electricity | BI19: RNAVPHEVCNG | BK19: CIDI HEV - RD from Pyrolysis | BL19: RNAVHEVRENDIESEL | BN19: CIDI PHEV - RD from Pyrolysis and Electricity | BO19: RNAVPHEVRENDIESEL | BQ19: FCV - Liquid H2 | BR19: RNAVFCVLH2
A20: Water consumption | B20: =(Inputs!$E$1400*(Petroleum!$B268*Petroleum!$F$262+Petroleum!$F268)+(1-Inputs!$E$1400)*(Petroleum!$B268*Petroleum!$D$262+Petroleum!$D268))/1000000/HLOOKUP(Results_EnergyFunctionalUnit,$Z$7:$AD$8,2,0) -> 61.70734259 | C20: =(Petroleum!$C268*Petroleum!$G$262+Petroleum!$G268)/1000000/HLOOKUP(Results_EnergyFunctionalUnit,$Z$7:$AD$8,2,0) -> 40.26399279 | D20: =((1-Vehicles!$C$28)*(1-Vehicles!$C$7)*Fuel_Specs!$B$15/((1-Vehicles!$C$28)*(1-Vehicles!$C$7)*Fuel_Specs!$B$15+Vehicles!$C$28*(1-Vehicles!$C$7)*Fuel_Specs!$B$17+Vehicles!$C$7*Fuel_Specs!$B$32)*(Petroleum!$B268*Petroleum!$D$262+(Petroleum!$D268-'T&D'!G217))+Vehicles!$C$28*(1-Vehicles!$C$7)*Fuel_Specs!$B$17/((1-Vehicles!$C$28)*(1-Vehicles!$C$7)*Fuel_Specs!$B$15+Vehicles!$C$28*(1-Vehicles!$C$7)*Fuel_Specs!$B$17+Vehicles!$C$7*Fuel_Specs!$B$32)*(Petroleum!B268*Petroleum!$F$262+Petroleum!$F268)+Vehicles!$C$7*Fuel_Specs!$B$32/((1-Vehicles!$C$28)*(1-Vehicles!$C$7)*Fuel_Specs!$B$15+Vehicles!$C$28*(1-Vehicles!$C$7)*Fuel_Specs!$B$17+Vehicles!$C$7*Fuel_Specs!$B$32)*(EtOH!BR495*EtOH!$BS$489+EtOH!$BS495)+Petroleum!AS129+Petroleum!AT129)/1000000/HLOOKUP(Results_EnergyFunctionalUnit,$Z$7:$AD$8,2,0) -> 61.70734259 | E20: =(Inputs!$E$97*(IF(Inputs!F$102=1,Petroleum!$B268,Petroleum!$C268)*Petroleum!$K$262+Petroleum!$K268)+(1-Inputs!$E$97)*(IF(Inputs!F$101=1,Petroleum!$B268,Petroleum!$C268)*Petroleum!$J$262+Petroleum!$J268))/1000000/HLOOKUP(Results_EnergyFunctionalUnit,$Z$7:$AD$8,2,0) -> 28.94152572 | F20: =(NG!$I90*NG!$J$84+NG!$J90)/1000000/HLOOKUP(Results_EnergyFunctionalUnit,$Z$7:$AD$8,2,0) -> 20.2850163 | G20: =(NG!$Q90*NG!$R$84+NG!$R90)/1000000/HLOOKUP(Results_EnergyFunctionalUnit,$Z$7:$AD$8,2,0) -> 7.092810615 | H20: =(NG!$W90*NG!$X$84+NG!$X90)/1000000/HLOOKUP(Results_EnergyFunctionalUnit,$Z$7:$AD$8,2,0) -> 12.5755185 | I20: =('MeOH&FTD'!BJ143*'MeOH&FTD'!BK$137+'MeOH&FTD'!BK143)/1000000/HLOOKUP(Results_EnergyFunctionalUnit,$Z$7:$AD$8,2,0) -> -19.63440462 | J20: =((1-Vehicles!$C$27)*(1-Vehicles!$C$5)*Fuel_Specs!$B$15/((1-Vehicles!$C$27)*(1-Vehicles!$C$5)*Fuel_Specs!$B$15+Vehicles!$C$27*(1-Vehicles!$C$5)*Fuel_Specs!$B$17+Vehicles!$C$5*Fuel_Specs!$B$31)*(Petroleum!$B268*Petroleum!$D$262+Petroleum!$D268)+Vehicles!$C$27*(1-Vehicles!$C$5)*Fuel_Specs!$B$17/((1-Vehicles!$C$27)*(1-Vehicles!$C$5)*Fuel_Specs!$B$15+Vehicles!$C$27*(1-Vehicles!$C$5)*Fuel_Specs!$B$17+Vehicles!$C$5*Fuel_Specs!$B$31)*(Petroleum!B268*Petroleum!$F$262+Petroleum!$F268)+Vehicles!$C$5*Fuel_Specs!$B$31/((1-Vehicles!$C$27)*(1-Vehicles!$C$5)*Fuel_Specs!$B$15+Vehicles!$C$27*(1-Vehicles!$C$5)*Fuel_Specs!$B$17+Vehicles!$C$5*Fuel_Specs!$B$31)*('MeOH&FTD'!$N143*'MeOH&FTD'!$O$137+'MeOH&FTD'!$O143))/1000000/HLOOKUP(Results_EnergyFunctionalUnit,$Z$7:$AD$8,2,0) -> 28.58676865 | K20: =((1-Vehicles!$C$27)*(1-Vehicles!$C$6)*Fuel_Specs!$B$15/((1-Vehicles!$C$27)*(1-Vehicles!$C$6)*Fuel_Specs!$B$15+Vehicles!$C$27*(1-Vehicles!$C$6)*Fuel_Specs!$B$17+Vehicles!$C$6*Fuel_Specs!$B$31)*(Petroleum!$B268*Petroleum!$D$262+Petroleum!$D268)+Vehicles!$C$27*(1-Vehicles!$C$6)*Fuel_Specs!$B$17/((1-Vehicles!$C$27)*(1-Vehicles!$C$6)*Fuel_Specs!$B$15+Vehicles!$C$27*(1-Vehicles!$C$6)*Fuel_Specs!$B$17+Vehicles!$C$6*Fuel_Specs!$B$31)*(Petroleum!B268*Petroleum!$F$262+Petroleum!$F268)+Vehicles!$C$6*Fuel_Specs!$B$31/((1-Vehicles!$C$27)*(1-Vehicles!$C$6)*Fuel_Specs!$B$15+Vehicles!$C$27*(1-Vehicles!$C$6)*Fuel_Specs!$B$17+Vehicles!$C$6*Fuel_Specs!$B$31)*('MeOH&FTD'!$N143*'MeOH&FTD'!$O$137+'MeOH&FTD'!$O143))/1000000/HLOOKUP(Results_EnergyFunctionalUnit,$Z$7:$AD$8,2,0) -> 28.2708083 | L20: =('MeOH&FTD'!$N143*'MeOH&FTD'!$O$137+'MeOH&FTD'!$O143)/1000000/HLOOKUP(Results_EnergyFunctionalUnit,$Z$7:$AD$8,2,0) -> 27.54146695 | M20: =((1-Vehicles!$C$29)*(1-Vehicles!$C$8)*Fuel_Specs!$B$15/((1-Vehicles!$C$29)*(1-Vehicles!$C$8)*Fuel_Specs!$B$15+Vehicles!$C$29*(1-Vehicles!$C$8)*Fuel_Specs!$B$17+Vehicles!$C$8*Fuel_Specs!$B$32)*(Petroleum!$B268*Petroleum!$D$262+(Petroleum!$D268-'T&D'!G217))+Vehicles!$C$29*(1-Vehicles!$C$8)*Fuel_Specs!$B$17/((1-Vehicles!$C$29)*(1-Vehicles!$C$8)*Fuel_Specs!$B$15+Vehicles!$C$29*(1-Vehicles!$C$8)*Fuel_Specs!$B$17+Vehicles!$C$8*Fuel_Specs!$B$32)*(Petroleum!B268*Petroleum!$F$262+Petroleum!$F268)+Vehicles!$C$8*Fuel_Specs!$B$32/((1-Vehicles!$C$29)*(1-Vehicles!$C$8)*Fuel_Specs!$B$15+Vehicles!$C$29*(1-Vehicles!$C$8)*Fuel_Specs!$B$17+Vehicles!$C$8*Fuel_Specs!$B$32)*(EtOH!BR495*EtOH!$BS$489+EtOH!$BS495)+Petroleum!AS129+Petroleum!AT129)/1000000/HLOOKUP(Results_EnergyFunctionalUnit,$Z$7:$AD$8,2,0) -> 378.6035654 | N20: =((1-Vehicles!$C$30)*(1-Vehicles!$C$12)*Fuel_Specs!$B$15/((1-Vehicles!$C$30)*(1-Vehicles!$C$12)*Fuel_Specs!$B$15+Vehicles!$C$30*(1-Vehicles!$C$12)*Fuel_Specs!$B$17+Vehicles!$C$12*Fuel_Specs!$B$33)*(Petroleum!$B268*Petroleum!$D$262+Petroleum!$D268)+Vehicles!$C$30*(1-Vehicles!$C$12)*Fuel_Specs!$B$17/((1-Vehicles!$C$30)*(1-Vehicles!$C$12)*Fuel_Specs!$B$15+Vehicles!$C$30*(1-Vehicles!$C$12)*Fuel_Specs!$B$17+Vehicles!$C$12*Fuel_Specs!$B$33)*(Petroleum!B268*Petroleum!$F$262+Petroleum!$F268)+Vehicles!$C$12*Fuel_Specs!$B$33/((1-Vehicles!$C$30)*(1-Vehicles!$C$12)*Fuel_Specs!$B$15+Vehicles!$C$30*(1-Vehicles!$C$12)*Fuel_Specs!$B$17+Vehicles!$C$12*Fuel_Specs!$B$33)*(EtOH!$BT495*EtOH!$BU$489+EtOH!$BU495))/1000000/HLOOKUP(Results_EnergyFunctionalUnit,$Z$7:$AD$8,2,0) -> 492.135119 | O20: =((1-Vehicles!$C$29)*(1-Vehicles!$C$9)*Fuel_Specs!$B$15/((1-Vehicles!$C$29)*(1-Vehicles!$C$9)*Fuel_Specs!$B$15+Vehicles!$C$29*(1-Vehicles!$C$9)*Fuel_Specs!$B$17+Vehicles!$C$9*Fuel_Specs!$B$32)*(Petroleum!$B268*Petroleum!$D$262+(Petroleum!$D268-'T&D'!G217))+Vehicles!$C$29*(1-Vehicles!$C$9)*Fuel_Specs!$B$17/((1-Vehicles!$C$29)*(1-Vehicles!$C$9)*Fuel_Specs!$B$15+Vehicles!$C$29*(1-Vehicles!$C$9)*Fuel_Specs!$B$17+Vehicles!$C$9*Fuel_Specs!$B$32)*(Petroleum!B268*Petroleum!$F$262+Petroleum!$F268)+Vehicles!$C$9*Fuel_Specs!$B$32/((1-Vehicles!$C$29)*(1-Vehicles!$C$9)*Fuel_Specs!$B$15+Vehicles!$C$29*(1-Vehicles!$C$9)*Fuel_Specs!$B$17+Vehicles!$C$9*Fuel_Specs!$B$32)*(EtOH!BR495*EtOH!$BS$489+EtOH!$BS495)+Petroleum!AS129+Petroleum!AT129)/1000000/HLOOKUP(Results_EnergyFunctionalUnit,$Z$7:$AD$8,2,0) -> 378.6035654 | P20: =(EtOH!$BP495*EtOH!$BQ$489+EtOH!$BQ495)/1000000/HLOOKUP(Results_EnergyFunctionalUnit,$Z$7:$AD$8,2,0) -> 484.5483268 | Q20: =((1-Vehicles!$C$33)*(1-Vehicles!$C$16)*Fuel_Specs!$B$15/((1-Vehicles!$C$33)*(1-Vehicles!$C$16)*Fuel_Specs!$B$15+Vehicles!$C$33*(1-Vehicles!$C$16)*Fuel_Specs!$B$17+Vehicles!$C$16*Fuel_Specs!$B$45)*(Petroleum!$B268*Petroleum!$D$262+Petroleum!$D268)+Vehicles!$C$33*(1-Vehicles!$C$16)*Fuel_Specs!$B$17/((1-Vehicles!$C$33)*(1-Vehicles!$C$16)*Fuel_Specs!$B$15+Vehicles!$C$33*(1-Vehicles!$C$16)*Fuel_Specs!$B$17+Vehicles!$C$16*Fuel_Specs!$B$45)*(Petroleum!B268*Petroleum!$F$262+Petroleum!$F268)+Vehicles!$C$16*Fuel_Specs!$B$45/((1-Vehicles!$C$33)*(1-Vehicles!$C$16)*Fuel_Specs!$B$15+Vehicles!$C$33*(1-Vehicles!$C$16)*Fuel_Specs!$B$17+Vehicles!$C$16*Fuel_Specs!$B$45)*(BioOil!$BO342*BioOil!$BP$335+BioOil!$BP342))/1000000/HLOOKUP(Results_EnergyFunctionalUnit,$Z$7:$AD$8,2,0) -> 1233.728512 | R20: =((1-Vehicles!$C$33)*(1-Vehicles!$C$16)*Fuel_Specs!$B$15/((1-Vehicles!$C$33)*(1-Vehicles!$C$16)*Fuel_Specs!$B$15+Vehicles!$C$33*(1-Vehicles!$C$16)*Fuel_Specs!$B$17+Vehicles!$C$16*Fuel_Specs!$B$45)*(Petroleum!$B268*Petroleum!$D$262+Petroleum!$D268)+Vehicles!$C$33*(1-Vehicles!$C$16)*Fuel_Specs!$B$17/((1-Vehicles!$C$33)*(1-Vehicles!$C$16)*Fuel_Specs!$B$15+Vehicles!$C$33*(1-Vehicles!$C$16)*Fuel_Specs!$B$17+Vehicles!$C$16*Fuel_Specs!$B$45)*(Petroleum!B268*Petroleum!$F$262+Petroleum!$F268)+Vehicles!$C$16*Fuel_Specs!$B$45/((1-Vehicles!$C$33)*(1-Vehicles!$C$16)*Fuel_Specs!$B$15+Vehicles!$C$33*(1-Vehicles!$C$16)*Fuel_Specs!$B$17+Vehicles!$C$16*Fuel_Specs!$B$45)*(Pyrolysis!$Z177*Pyrolysis!$AA$171+Pyrolysis!$AA177))/1000000/HLOOKUP(Results_EnergyFunctionalUnit,$Z$7:$AD$8,2,0) -> 27.28240944 | S20: =AN20*(Vehicles!$C$23/Vehicles!$AR$59)/(Vehicles!$C$23*(1/Vehicles!$AR$59+1/Vehicles!$AS$59)+Vehicles!$C$24/Vehicles!$AT$59)+B20*(Vehicles!$C$23/Vehicles!$AS$59+Vehicles!$C$24/Vehicles!$AT$59)/(Vehicles!$C$23*(1/Vehicles!$AR$59+1/Vehicles!$AS$59)+Vehicles!$C$24/Vehicles!$AT$59) -> 180.5802689 | T20: =AN20*(Vehicles!$D$23/Vehicles!$AV$59)/(Vehicles!$D$23*(1/Vehicles!$AV$59+1/Vehicles!$AW$59)+Vehicles!$D$24/Vehicles!$AX$59)+C20*(Vehicles!$D$23/Vehicles!$AW$59+Vehicles!$D$24/Vehicles!$AX$59)/(Vehicles!$D$23*(1/Vehicles!$AV$59+1/Vehicles!$AW$59)+Vehicles!$D$24/Vehicles!$AX$59) -> 165.0688949 | U20: =AN20*(Vehicles!$F$23/Vehicles!$BD$59)/(Vehicles!$F$23*(1/Vehicles!$BD$59+1/Vehicles!$BE$59)+Vehicles!$F$24/Vehicles!$BF$59)+D20*(Vehicles!$F$23/Vehicles!$BE$59+Vehicles!$F$24/Vehicles!$BF$59)/(Vehicles!$F$23*(1/Vehicles!$BD$59+1/Vehicles!$BE$59)+Vehicles!$F$24/Vehicles!$BF$59) -> 180.5802689 | V20: =AN20*(Vehicles!$G$23/Vehicles!$BH$59)/(Vehicles!$G$23*(1/Vehicles!$BH$59+1/Vehicles!$BI$59)+Vehicles!$G$24/Vehicles!$BJ$59)+F20*(Vehicles!$G$23/Vehicles!$BI$59+Vehicles!$G$24/Vehicles!$BJ$59)/(Vehicles!$G$23*(1/Vehicles!$BH$59+1/Vehicles!$BI$59)+Vehicles!$G$24/Vehicles!$BJ$59) -> 150.6167976 | W20: =AN20*(Vehicles!$H$23/Vehicles!$BL$59)/(Vehicles!$H$23*(1/Vehicles!$BL$59+1/Vehicles!$BM$59)+Vehicles!$H$24/Vehicles!$BN$59)+G20*(Vehicles!$H$23/Vehicles!$BM$59+Vehicles!$H$24/Vehicles!$BN$59)/(Vehicles!$H$23*(1/Vehicles!$BL$59+1/Vehicles!$BM$59)+Vehicles!$H$24/Vehicles!$BN$59) -> 141.0740145 | X20: =AN20*(Vehicles!$I$23/Vehicles!$BP$59)/(Vehicles!$I$23*(1/Vehicles!$BP$59+1/Vehicles!$BQ$59)+Vehicles!$I$24/Vehicles!$BR$59)+H20*(Vehicles!$I$23/Vehicles!$BQ$59+Vehicles!$I$24/Vehicles!$BR$59)/(Vehicles!$I$23*(1/Vehicles!$BP$59+1/Vehicles!$BQ$59)+Vehicles!$I$24/Vehicles!$BR$59) -> 145.0400149 | Y20: =AN20*(Vehicles!$J$23/Vehicles!$BT$59)/(Vehicles!$J$23*(1/Vehicles!$BT$59+1/Vehicles!$BU$59)+Vehicles!$J$24/Vehicles!$BV$59)+K20*(Vehicles!$J$23/Vehicles!$BU$59+Vehicles!$J$24/Vehicles!$BV$59)/(Vehicles!$J$23*(1/Vehicles!$BT$59+1/Vehicles!$BU$59)+Vehicles!$J$24/Vehicles!$BV$59) -> 148.6700458 | Z20: =AN20*(Vehicles!$K$23/Vehicles!$BX$59)/(Vehicles!$K$23*(1/Vehicles!$BX$59+1/Vehicles!$BY$59)+Vehicles!$K$24/Vehicles!$BZ$59)+O20*(Vehicles!$K$23/Vehicles!$BY$59+Vehicles!$K$24/Vehicles!$BZ$59)/(Vehicles!$K$23*(1/Vehicles!$BX$59+1/Vehicles!$BY$59)+Vehicles!$K$24/Vehicles!$BZ$59) -> 407.9306997 | AA20: =AN20*(Vehicles!$L$23/Vehicles!$CB$59)/(Vehicles!$L$23*(1/Vehicles!$CB$59+1/Vehicles!$CC$59)+Vehicles!$L$24/Vehicles!$CD$59)+AO20*(Vehicles!$L$23/Vehicles!$CC$59+Vehicles!$L$24/Vehicles!$CD$59)/(Vehicles!$L$23*(1/Vehicles!$CB$59+1/Vehicles!$CC$59)+Vehicles!$L$24/Vehicles!$CD$59) -> 201.6131891 | AB20: =AN20*(Vehicles!$L$23/Vehicles!$CB$59)/(Vehicles!$L$23*(1/Vehicles!$CB$59+1/Vehicles!$CC$59)+Vehicles!$L$24/Vehicles!$CE$59)+AP20*(Vehicles!$L$23/Vehicles!$CC$59+Vehicles!$L$24/Vehicles!$CE$59)/(Vehicles!$L$23*(1/Vehicles!$CB$59+1/Vehicles!$CC$59)+Vehicles!$L$24/Vehicles!$CE$59) -> 303.4703337 | AC20: =('MeOH&FTD'!$AJ143*'MeOH&FTD'!$AK$137+'MeOH&FTD'!$AK143)/1000000/HLOOKUP(Results_EnergyFunctionalUnit,$Z$7:$AD$8,2,0) -> 28.5979913 | AD20: =((1-Vehicles!$C$34)*(1-Vehicles!$C$13)*Fuel_Specs!$B$21/((1-Vehicles!$C$34)*(1-Vehicles!$C$13)*Fuel_Specs!$B$21+Vehicles!$C$34*(1-Vehicles!$C$13)*Fuel_Specs!$B$24+Vehicles!$C$13*Fuel_Specs!$B$41)*(Petroleum!B268*Petroleum!$J$262+Petroleum!$J268)+Vehicles!$C$34*(1-Vehicles!$C$13)*Fuel_Specs!$B$24/((1-Vehicles!$C$34)*(1-Vehicles!$C$13)*Fuel_Specs!$B$21+Vehicles!$C$34*(1-Vehicles!$C$13)*Fuel_Specs!$B$24+Vehicles!$C$13*Fuel_Specs!$B$41)*(Petroleum!B268*Petroleum!$K$262+Petroleum!$K268)+Vehicles!$C$13*Fuel_Specs!$B$41/((1-Vehicles!$C$34)*(1-Vehicles!$C$13)*Fuel_Specs!$B$21+Vehicles!$C$34*(1-Vehicles!$C$13)*Fuel_Specs!$B$24+Vehicles!$C$13*Fuel_Specs!$B$41)*('MeOH&FTD'!$AZ143*'MeOH&FTD'!$BA$137+'MeOH&FTD'!$BA143))/1000000/HLOOKUP(Results_EnergyFunctionalUnit,$Z$7:$AD$8,2,0) -> 27.3250747 | AE20: =((1-Vehicles!$C$35)*(1-Vehicles!$C$14)*Fuel_Specs!$B$21/((1-Vehicles!$C$35)*(1-Vehicles!$C$14)*Fuel_Specs!$B$21+Vehicles!$C$35*(1-Vehicles!$C$14)*Fuel_Specs!$B$24+Vehicles!$C$14*Fuel_Specs!$B$40)*(Petroleum!B268*Petroleum!$J$262+Petroleum!$J268)+Vehicles!$C$35*(1-Vehicles!$C$14)*Fuel_Specs!$B$24/((1-Vehicles!$C$35)*(1-Vehicles!$C$14)*Fuel_Specs!$B$21+Vehicles!$C$35*(1-Vehicles!$C$14)*Fuel_Specs!$B$24+Vehicles!$C$14*Fuel_Specs!$B$40)*(Petroleum!B268*Petroleum!$K$262+Petroleum!$K268)+Vehicles!$C$14*Fuel_Specs!$B$40/((1-Vehicles!$C$35)*(1-Vehicles!$C$14)*Fuel_Specs!$B$21+Vehicles!$C$35*(1-Vehicles!$C$14)*Fuel_Specs!$B$24+Vehicles!$C$14*Fuel_Specs!$B$40)*(BioOil!$W342*BioOil!$X$335+BioOil!$X342))/1000000/HLOOKUP(Results_EnergyFunctionalUnit,$Z$7:$AD$8,2,0) -> 161.4277286 | AF20: =((1-Vehicles!$C$36)*(1-Vehicles!$C$15)*Fuel_Specs!$B$21/((1-Vehicles!$C$36)*(1-Vehicles!$C$15)*Fuel_Specs!$B$21+Vehicles!$C$36*(1-Vehicles!$C$15)*Fuel_Specs!$B$24+Vehicles!$C$15*IF(Inputs!$E$628=1,IF(Inputs!$E$628=1,Fuel_Specs!$B$42,IF(Inputs!$E$628=3,Fuel_Specs!$B$44,Fuel_Specs!$B$43)),Fuel_Specs!$B$43))*(Petroleum!B268*Petroleum!$J$262+Petroleum!$J268)+Vehicles!$C$36*(1-Vehicles!$C$15)*Fuel_Specs!$B$24/((1-Vehicles!$C$36)*(1-Vehicles!$C$15)*Fuel_Specs!$B$21+Vehicles!$C$36*(1-Vehicles!$C$15)*Fuel_Specs!$B$24+Vehicles!$C$15*IF(Inputs!$E$628=1,IF(Inputs!$E$628=1,Fuel_Specs!$B$42,IF(Inputs!$E$628=3,Fuel_Specs!$B$44,Fuel_Specs!$B$43)),Fuel_Specs!$B$43))*(Petroleum!B268*Petroleum!$K$262+Petroleum!$K268)+Vehicles!$C$15*IF(Inputs!$E$628=1,IF(Inputs!$E$628=1,Fuel_Specs!$B$42,IF(Inputs!$E$628=3,Fuel_Specs!$B$44,Fuel_Specs!$B$43)),Fuel_Specs!$B$43)/((1-Vehicles!$C$36)*(1-Vehicles!$C$15)*Fuel_Specs!$B$21+Vehicles!$C$36*(1-Vehicles!$C$15)*Fuel_Specs!$B$24+Vehicles!$C$15*IF(Inputs!$E$628=1,IF(Inputs!$E$628=1,Fuel_Specs!$B$42,IF(Inputs!$E$628=3,Fuel_Specs!$B$44,Fuel_Specs!$B$43)),Fuel_Specs!$B$43))*(BioOil!$BA342*BioOil!$BB$335+BioOil!$BB342))/1000000/HLOOKUP(Results_EnergyFunctionalUnit,$Z$7:$AD$8,2,0) -> 642.2849995 | AG20: =((1-Vehicles!$C$36)*(1-Vehicles!$C$15)*Fuel_Specs!$B$21/((1-Vehicles!$C$36)*(1-Vehicles!$C$15)*Fuel_Specs!$B$21+Vehicles!$C$36*(1-Vehicles!$C$15)*Fuel_Specs!$B$24+Vehicles!$C$15*IF(Inputs!$E$628=1,Fuel_Specs!$B$42,Fuel_Specs!$B$43))*(Petroleum!B268*Petroleum!$J$262+Petroleum!$J268)+Vehicles!$C$36*(1-Vehicles!$C$15)*Fuel_Specs!$B$24/((1-Vehicles!$C$36)*(1-Vehicles!$C$15)*Fuel_Specs!$B$21+Vehicles!$C$36*(1-Vehicles!$C$15)*Fuel_Specs!$B$24+Vehicles!$C$15*IF(Inputs!$E$628=1,Fuel_Specs!$B$42,Fuel_Specs!$B$43))*(Petroleum!B268*Petroleum!$K$262+Petroleum!$K268)+Vehicles!$C$15*IF(Inputs!$E$628=1,Fuel_Specs!$B$42,Fuel_Specs!$B$43)/((1-Vehicles!$C$36)*(1-Vehicles!$C$15)*Fuel_Specs!$B$21+Vehicles!$C$36*(1-Vehicles!$C$15)*Fuel_Specs!$B$24+Vehicles!$C$15*IF(Inputs!$E$628=1,Fuel_Specs!$B$42,Fuel_Specs!$B$43))*(Pyrolysis!$AB177*Pyrolysis!$AC$171+Pyrolysis!$AC177))/1000000/HLOOKUP(Results_EnergyFunctionalUnit,$Z$7:$AD$8,2,0) -> 25.54789507 | AH20: =(((1-Vehicles!$C$37)*(1-Vehicles!$C$17-Vehicles!$C$18)*Fuel_Specs!$B$21*(Petroleum!B268*Petroleum!$J$262+Petroleum!$J268)+Vehicles!$C$37*(1-Vehicles!$C$17-Vehicles!$C$18)*Fuel_Specs!$B$24*(Petroleum!B268*Petroleum!$K$262+Petroleum!$K268)+Vehicles!$C$17*Fuel_Specs!$B$32*(EtOH!BP495*EtOH!$BQ$489+EtOH!$BQ495)+Vehicles!$C$18*Fuel_Specs!$B$35*('E-D Additives'!$B59*'E-D Additives'!$B$53))/((1-Vehicles!$C$37)*(1-Vehicles!$C$17-Vehicles!$C$18)*Fuel_Specs!$B$21+Vehicles!$C$37*(1-Vehicles!$C$17-Vehicles!$C$18)*Fuel_Specs!$B$24+Vehicles!$C$17*Fuel_Specs!$B$32+Vehicles!$C$18*Fuel_Specs!$B$35))/1000000/HLOOKUP(Results_EnergyFunctionalUnit,$Z$7:$AD$8,2,0) -> 57.41845552 | AI20: =AN20*(Vehicles!$M$23/Vehicles!$CM$59)/(Vehicles!$M$23*(1/Vehicles!$CM$59+1/Vehicles!$CN$59)+Vehicles!$M$24/Vehicles!$CO$59)+E20*(Vehicles!$M$23/Vehicles!$CN$59+Vehicles!$M$24/Vehicles!$CO$59)/(Vehicles!$M$23*(1/Vehicles!$CM$59+1/Vehicles!$CN$59)+Vehicles!$M$24/Vehicles!$CO$59) -> 157.0686768 | AJ20: =AN20*(Vehicles!$N$23/Vehicles!$CQ$59)/(Vehicles!$N$23*(1/Vehicles!$CQ$59+1/Vehicles!$CR$59)+Vehicles!$N$24/Vehicles!$CS$59)+AC20*(Vehicles!$N$23/Vehicles!$CR$59+Vehicles!$N$24/Vehicles!$CS$59)/(Vehicles!$N$23*(1/Vehicles!$CQ$59+1/Vehicles!$CR$59)+Vehicles!$N$24/Vehicles!$CS$59) -> 156.8203171 | AK20: =AN20*(Vehicles!$O$23/Vehicles!$CU$59)/(Vehicles!$O$23*(1/Vehicles!$CU$59+1/Vehicles!$CV$59)+Vehicles!$O$24/Vehicles!$CW$59)+AD20*(Vehicles!$O$23/Vehicles!$CV$59+Vehicles!$O$24/Vehicles!$CW$59)/(Vehicles!$O$23*(1/Vehicles!$CU$59+1/Vehicles!$CV$59)+Vehicles!$O$24/Vehicles!$CW$59) -> 155.9000566 | AL20: =AN20*(Vehicles!$P$23/Vehicles!$CY$59)/(Vehicles!$P$23*(1/Vehicles!$CY$59+1/Vehicles!$CZ$59)+Vehicles!$P$24/Vehicles!$DA$59)+AE20*(Vehicles!$P$23/Vehicles!$CZ$59+Vehicles!$P$24/Vehicles!$DA$59)/(Vehicles!$P$23*(1/Vehicles!$CY$59+1/Vehicles!$CZ$59)+Vehicles!$P$24/Vehicles!$DA$59) -> 252.8501445 | AM20: =AN20*(Vehicles!$R$23/Vehicles!$DG$59)/(Vehicles!$R$23*(1/Vehicles!$DG$59+1/Vehicles!$DH$59)+Vehicles!$R$24/Vehicles!$DI$59)+AH20*(Vehicles!$R$23/Vehicles!$DH$59+Vehicles!$R$24/Vehicles!$DI$59)/(Vehicles!$R$23*(1/Vehicles!$DG$59+1/Vehicles!$DH$59)+Vehicles!$R$24/Vehicles!$DI$59) -> 177.6561952 | AN20: =(Electric!$G191+Electric!$F191)/1000000/HLOOKUP(Results_EnergyFunctionalUnit,$Z$7:$AD$8,2,0) -> 491.4180877 | AO20: =(Hydrogen!$AF168*Hydrogen!$AG$162+Hydrogen!$AG168)/1000000*HLOOKUP($H$10,$Z$3:$AD$4,2,FALSE)/HLOOKUP($J$11,$Z$7:$AD$8,2,FALSE) -> 84.34758401 | AP20: =(Hydrogen!$BJ168*Hydrogen!$BK$162+Hydrogen!$BK168)/1000000/HLOOKUP(Results_EnergyFunctionalUnit,$Z$7:$AD$8,2,0) -> 227.4198349 | AQ20: =AN20*(Vehicles!$S$23/Vehicles!$DW$59)/(Vehicles!$S$23*(1/Vehicles!$DW$59+1/Vehicles!$DX$59)+Vehicles!$S$24/Vehicles!$DY$59)+AO20*(Vehicles!$S$23/Vehicles!$DX$59+Vehicles!$S$24/Vehicles!$DY$59)/(Vehicles!$S$23*(1/Vehicles!$DW$59+1/Vehicles!$DX$59)+Vehicles!$S$24/Vehicles!$DY$59) -> 224.1340926 | AR20: =AN20*(Vehicles!$S$23/Vehicles!$DW$59)/(Vehicles!$S$23*(1/Vehicles!$DW$59+1/Vehicles!$DX$59)+Vehicles!$S$24/Vehicles!$DY$59)+AP20*(Vehicles!$S$23/Vehicles!$DX$59+Vehicles!$S$24/Vehicles!$DY$59)/(Vehicles!$S$23*(1/Vehicles!$DW$59+1/Vehicles!$DX$59)+Vehicles!$S$24/Vehicles!$DY$59) -> 318.0758606 | AS20: =((1-Vehicles!$C$33)*(1-Vehicles!$C$16)*Fuel_Specs!$B$15/((1-Vehicles!$C$33)*(1-Vehicles!$C$16)*Fuel_Specs!$B$15+Vehicles!$C$33*(1-Vehicles!$C$16)*Fuel_Specs!$B$17+Vehicles!$C$16*Fuel_Specs!$B$46)*(Petroleum!$B268*Petroleum!$D$262+Petroleum!$D268)+Vehicles!$C$33*(1-Vehicles!$C$16)*Fuel_Specs!$B$17/((1-Vehicles!$C$33)*(1-Vehicles!$C$16)*Fuel_Specs!$B$15+Vehicles!$C$33*(1-Vehicles!$C$16)*Fuel_Specs!$B$17+Vehicles!$C$16*Fuel_Specs!$B$46)*(Petroleum!B268*Petroleum!$F$262+Petroleum!$F268)+Vehicles!$C$16*Fuel_Specs!$B$46/((1-Vehicles!$C$33)*(1-Vehicles!$C$16)*Fuel_Specs!$B$15+Vehicles!$C$33*(1-Vehicles!$C$16)*Fuel_Specs!$B$17+Vehicles!$C$16*Fuel_Specs!$B$46)*(IDL!$L118*IDL!$M$112+IDL!$M118))/1000000/HLOOKUP(Results_EnergyFunctionalUnit,$Z$7:$AD$8,2,0) -> 38.23786652 | AV20: SI - BtOH FFV | AW20: RNAVBTOHFFV | BB20: CIDI - RD from Pyrolysis | BC20: RNAVRENDIESEL2CIDI | BE20: SI HEV - LNG | BF20: RNAVHEVLNG | BH20: SI PHEV - LNG and Electricity | BI20: RNAVPHEVLNG | BK20: CIDI HEV - E-Diesel | BL20: RNAVHEVEDIESEL | BN20: CIDI PHEV - E-Diesel and Electricity | BO20: RNAVPHEVEDIESEL | BQ20: FCV - MeOH | BR20: RNAVFCVMEOH
A21: CO2 (w/ C in VOC & CO) | B21: =(Inputs!$E$1400*(Petroleum!$B279*Petroleum!$F$262+Petroleum!$F279)+(1-Inputs!$E$1400)*(Petroleum!$B279*Petroleum!$D$262+Petroleum!$D279)+Vehicles!B82/Vehicles!B60*1000000)/1000000*HLOOKUP($J$10,$Z$5:$AD$6,2,FALSE)/HLOOKUP($J$11,$Z$7:$AD$8,2,FALSE)+B25*Fuel_Specs!$B$109/Fuel_Specs!$B$112+B26*Fuel_Specs!$B$110/Fuel_Specs!$B$112 -> 14135.65043 | C21: =((Petroleum!$C279*Petroleum!$G$262+Petroleum!$G279)+Vehicles!C82/Vehicles!C60*1000000)/1000000*HLOOKUP($J$10,$Z$5:$AD$6,2,FALSE)/HLOOKUP($J$11,$Z$7:$AD$8,2,FALSE)+C25*Fuel_Specs!$B$109/Fuel_Specs!$B$112+C26*Fuel_Specs!$B$110/Fuel_Specs!$B$112 -> 24010.59362 | D21: =((1-Vehicles!$C$28)*(1-Vehicles!$C$7)*Fuel_Specs!$B$15/((1-Vehicles!$C$28)*(1-Vehicles!$C$7)*Fuel_Specs!$B$15+Vehicles!$C$28*(1-Vehicles!$C$7)*Fuel_Specs!$B$17+Vehicles!$C$7*Fuel_Specs!$B$32)*(Petroleum!$B279*Petroleum!$D$262+(Petroleum!$D279-'T&D'!G229))+Vehicles!$C$28*(1-Vehicles!$C$7)*Fuel_Specs!$B$17/((1-Vehicles!$C$28)*(1-Vehicles!$C$7)*Fuel_Specs!$B$15+Vehicles!$C$28*(1-Vehicles!$C$7)*Fuel_Specs!$B$17+Vehicles!$C$7*Fuel_Specs!$B$32)*(Petroleum!B279*Petroleum!$F$262+Petroleum!$F279)+Vehicles!$C$7*Fuel_Specs!$B$32/((1-Vehicles!$C$28)*(1-Vehicles!$C$7)*Fuel_Specs!$B$15+Vehicles!$C$28*(1-Vehicles!$C$7)*Fuel_Specs!$B$17+Vehicles!$C$7*Fuel_Specs!$B$32)*(EtOH!BR506*EtOH!$BS$489+EtOH!$BS506)+Petroleum!AS141+Petroleum!AT141+Vehicles!D82/Vehicles!D60*1000000)/1000000*HLOOKUP($J$10,$Z$5:$AD$6,2,FALSE)/HLOOKUP($J$11,$Z$7:$AD$8,2,FALSE)+D25*Fuel_Specs!$B$109/Fuel_Specs!$B$112+D26*Fuel_Specs!$B$110/Fuel_Specs!$B$112 -> 14135.65043 | E21: =(Inputs!$E$97*(IF(Inputs!F$102=1,Petroleum!$B279,Petroleum!$C279)*Petroleum!$K$262+Petroleum!$K279)+(1-Inputs!$E$97)*(IF(Inputs!F$101=1,Petroleum!$B279,Petroleum!$C279)*Petroleum!$J$262+Petroleum!$J279))/1000000*HLOOKUP($J$10,$Z$5:$AD$6,2,FALSE)/HLOOKUP($J$11,$Z$7:$AD$8,2,FALSE)+E25*Fuel_Specs!$B$109/Fuel_Specs!$B$112+E26*Fuel_Specs!$B$110/Fuel_Specs!$B$112 -> 19133.43097 | F21: =(NG!$I101*NG!$J$84+NG!$J101)/1000000*HLOOKUP($J$10,$Z$5:$AD$6,2,FALSE)/HLOOKUP($J$11,$Z$7:$AD$8,2,FALSE)+F25*Fuel_Specs!$B$109/Fuel_Specs!$B$112+F26*Fuel_Specs!$B$110/Fuel_Specs!$B$112 -> 11799.36893 | G21: =(NG!$Q101*NG!$R$84+NG!$R101)/1000000*HLOOKUP($J$10,$Z$5:$AD$6,2,FALSE)/HLOOKUP($J$11,$Z$7:$AD$8,2,FALSE)+G25*Fuel_Specs!$B$109/Fuel_Specs!$B$112+G26*Fuel_Specs!$B$110/Fuel_Specs!$B$112 -> 16343.15868 | H21: =(NG!$W101*NG!$X$84+NG!$X101)/1000000*HLOOKUP($J$10,$Z$5:$AD$6,2,FALSE)/HLOOKUP($J$11,$Z$7:$AD$8,2,FALSE)+H25*Fuel_Specs!$B$109/Fuel_Specs!$B$112+H26*Fuel_Specs!$B$110/Fuel_Specs!$B$112 -> 11160.47928 | I21: =('MeOH&FTD'!BJ154*'MeOH&FTD'!BK$137+'MeOH&FTD'!BK154)/1000000*HLOOKUP($J$10,$Z$5:$AD$6,2,FALSE)/HLOOKUP($J$11,$Z$7:$AD$8,2,FALSE)+I25*Fuel_Specs!$B$109/Fuel_Specs!$B$112+I26*Fuel_Specs!$B$110/Fuel_Specs!$B$112 -> 32515.0355 | J21: =((1-Vehicles!$C$27)*(1-Vehicles!$C$5)*Fuel_Specs!$B$15/((1-Vehicles!$C$27)*(1-Vehicles!$C$5)*Fuel_Specs!$B$15+Vehicles!$C$27*(1-Vehicles!$C$5)*Fuel_Specs!$B$17+Vehicles!$C$5*Fuel_Specs!$B$31)*(Petroleum!$B279*Petroleum!$D$262+Petroleum!$D279)+Vehicles!$C$27*(1-Vehicles!$C$5)*Fuel_Specs!$B$17/((1-Vehicles!$C$27)*(1-Vehicles!$C$5)*Fuel_Specs!$B$15+Vehicles!$C$27*(1-Vehicles!$C$5)*Fuel_Specs!$B$17+Vehicles!$C$5*Fuel_Specs!$B$31)*(Petroleum!B279*Petroleum!$F$262+Petroleum!$F279)+Vehicles!$C$5*Fuel_Specs!$B$31/((1-Vehicles!$C$27)*(1-Vehicles!$C$5)*Fuel_Specs!$B$15+Vehicles!$C$27*(1-Vehicles!$C$5)*Fuel_Specs!$B$17+Vehicles!$C$5*Fuel_Specs!$B$31)*('MeOH&FTD'!$N154*'MeOH&FTD'!$O$137+'MeOH&FTD'!$O154)+Vehicles!I82/Vehicles!I60*1000000)/1000000*HLOOKUP($J$10,$Z$5:$AD$6,2,FALSE)/HLOOKUP($J$11,$Z$7:$AD$8,2,FALSE)+J25*Fuel_Specs!$B$109/Fuel_Specs!$B$112+J26*Fuel_Specs!$B$110/Fuel_Specs!$B$112 -> 19427.71839 | K21: =((1-Vehicles!$C$27)*(1-Vehicles!$C$6)*Fuel_Specs!$B$15/((1-Vehicles!$C$27)*(1-Vehicles!$C$6)*Fuel_Specs!$B$15+Vehicles!$C$27*(1-Vehicles!$C$6)*Fuel_Specs!$B$17+Vehicles!$C$6*Fuel_Specs!$B$31)*(Petroleum!$B279*Petroleum!$D$262+Petroleum!$D279)+Vehicles!$C$27*(1-Vehicles!$C$6)*Fuel_Specs!$B$17/((1-Vehicles!$C$27)*(1-Vehicles!$C$6)*Fuel_Specs!$B$15+Vehicles!$C$27*(1-Vehicles!$C$6)*Fuel_Specs!$B$17+Vehicles!$C$6*Fuel_Specs!$B$31)*(Petroleum!B279*Petroleum!$F$262+Petroleum!$F279)+Vehicles!$C$6*Fuel_Specs!$B$31/((1-Vehicles!$C$27)*(1-Vehicles!$C$6)*Fuel_Specs!$B$15+Vehicles!$C$27*(1-Vehicles!$C$6)*Fuel_Specs!$B$17+Vehicles!$C$6*Fuel_Specs!$B$31)*('MeOH&FTD'!$N154*'MeOH&FTD'!$O$137+'MeOH&FTD'!$O154)+Vehicles!J82/Vehicles!J60*1000000)/1000000*HLOOKUP($J$10,$Z$5:$AD$6,2,FALSE)/HLOOKUP($J$11,$Z$7:$AD$8,2,FALSE)+K25*Fuel_Specs!$B$109/Fuel_Specs!$B$112+K26*Fuel_Specs!$B$110/Fuel_Specs!$B$112 -> 19665.66782 | L21: =('MeOH&FTD'!$N154*'MeOH&FTD'!$O$137+'MeOH&FTD'!$O154)/1000000*HLOOKUP($J$10,$Z$5:$AD$6,2,FALSE)/HLOOKUP($J$11,$Z$7:$AD$8,2,FALSE)+L25*Fuel_Specs!$B$109/Fuel_Specs!$B$112+L26*Fuel_Specs!$B$110/Fuel_Specs!$B$112 -> 20214.93406 | M21: =((1-Vehicles!$C$29)*(1-Vehicles!$C$8)*Fuel_Specs!$B$15/((1-Vehicles!$C$29)*(1-Vehicles!$C$8)*Fuel_Specs!$B$15+Vehicles!$C$29*(1-Vehicles!$C$8)*Fuel_Specs!$B$17+Vehicles!$C$8*Fuel_Specs!$B$32)*(Petroleum!$B279*Petroleum!$D$262+(Petroleum!$D279-'T&D'!G229))+Vehicles!$C$29*(1-Vehicles!$C$8)*Fuel_Specs!$B$17/((1-Vehicles!$C$29)*(1-Vehicles!$C$8)*Fuel_Specs!$B$15+Vehicles!$C$29*(1-Vehicles!$C$8)*Fuel_Specs!$B$17+Vehicles!$C$8*Fuel_Specs!$B$32)*(Petroleum!B279*Petroleum!$F$262+Petroleum!$F279)+Vehicles!$C$8*Fuel_Specs!$B$32/((1-Vehicles!$C$29)*(1-Vehicles!$C$8)*Fuel_Specs!$B$15+Vehicles!$C$29*(1-Vehicles!$C$8)*Fuel_Specs!$B$17+Vehicles!$C$8*Fuel_Specs!$B$32)*(EtOH!BR506*EtOH!$BS$489+EtOH!$BS506)+Petroleum!AS141+Petroleum!AT141+Vehicles!K82/Vehicles!K60*1000000)/1000000*HLOOKUP($J$10,$Z$5:$AD$6,2,FALSE)/HLOOKUP($J$11,$Z$7:$AD$8,2,FALSE)+M25*Fuel_Specs!$B$109/Fuel_Specs!$B$112+M26*Fuel_Specs!$B$110/Fuel_Specs!$B$112 -> -18353.68723 | N21: =((1-Vehicles!$C$30)*(1-Vehicles!$C$12)*Fuel_Specs!$B$15/((1-Vehicles!$C$30)*(1-Vehicles!$C$12)*Fuel_Specs!$B$15+Vehicles!$C$30*(1-Vehicles!$C$12)*Fuel_Specs!$B$17+Vehicles!$C$12*Fuel_Specs!$B$33)*(Petroleum!$B279*Petroleum!$D$262+Petroleum!$D279)+Vehicles!$C$30*(1-Vehicles!$C$12)*Fuel_Specs!$B$17/((1-Vehicles!$C$30)*(1-Vehicles!$C$12)*Fuel_Specs!$B$15+Vehicles!$C$30*(1-Vehicles!$C$12)*Fuel_Specs!$B$17+Vehicles!$C$12*Fuel_Specs!$B$33)*(Petroleum!B279*Petroleum!$F$262+Petroleum!$F279)+Vehicles!$C$12*Fuel_Specs!$B$33/((1-Vehicles!$C$30)*(1-Vehicles!$C$12)*Fuel_Specs!$B$15+Vehicles!$C$30*(1-Vehicles!$C$12)*Fuel_Specs!$B$17+Vehicles!$C$12*Fuel_Specs!$B$33)*(EtOH!$BT506*EtOH!$BU$489+EtOH!$BU506)+Vehicles!L82/Vehicles!L60*1000000)/1000000*HLOOKUP($J$10,$Z$5:$AD$6,2,FALSE)/HLOOKUP($J$11,$Z$7:$AD$8,2,FALSE)+N25*Fuel_Specs!$B$109/Fuel_Specs!$B$112+N26*Fuel_Specs!$B$110/Fuel_Specs!$B$112 -> -26490.51516 | O21: =((1-Vehicles!$C$29)*(1-Vehicles!$C$9)*Fuel_Specs!$B$15/((1-Vehicles!$C$29)*(1-Vehicles!$C$9)*Fuel_Specs!$B$15+Vehicles!$C$29*(1-Vehicles!$C$9)*Fuel_Specs!$B$17+Vehicles!$C$9*Fuel_Specs!$B$32)*(Petroleum!$B279*Petroleum!$D$262+(Petroleum!$D279-'T&D'!G229))+Vehicles!$C$29*(1-Vehicles!$C$9)*Fuel_Specs!$B$17/((1-Vehicles!$C$29)*(1-Vehicles!$C$9)*Fuel_Specs!$B$15+Vehicles!$C$29*(1-Vehicles!$C$9)*Fuel_Specs!$B$17+Vehicles!$C$9*Fuel_Specs!$B$32)*(Petroleum!B279*Petroleum!$F$262+Petroleum!$F279)+Vehicles!$C$9*Fuel_Specs!$B$32/((1-Vehicles!$C$29)*(1-Vehicles!$C$9)*Fuel_Specs!$B$15+Vehicles!$C$29*(1-Vehicles!$C$9)*Fuel_Specs!$B$17+Vehicles!$C$9*Fuel_Specs!$B$32)*(EtOH!BR506*EtOH!$BS$489+EtOH!$BS506)+Petroleum!AS141+Petroleum!AT141+Vehicles!M82/Vehicles!M60*1000000)/1000000*HLOOKUP($J$10,$Z$5:$AD$6,2,FALSE)/HLOOKUP($J$11,$Z$7:$AD$8,2,FALSE)+O25*Fuel_Specs!$B$109/Fuel_Specs!$B$112+O26*Fuel_Specs!$B$110/Fuel_Specs!$B$112 -> -18353.68723 | P21: =(EtOH!$BP506*EtOH!$BQ$489+EtOH!$BQ506+Vehicles!DQ82/Vehicles!DQ60*1000000)/1000000*HLOOKUP($J$10,$Z$5:$AD$6,2,FALSE)/HLOOKUP($J$11,$Z$7:$AD$8,2,FALSE)+P25*Fuel_Specs!$B$109/Fuel_Specs!$B$112+P26*Fuel_Specs!$B$110/Fuel_Specs!$B$112 -> -28845.0332 | Q21: =((1-Vehicles!$C$33)*(1-Vehicles!$C$16)*Fuel_Specs!$B$15/((1-Vehicles!$C$33)*(1-Vehicles!$C$16)*Fuel_Specs!$B$15+Vehicles!$C$33*(1-Vehicles!$C$16)*Fuel_Specs!$B$17+Vehicles!$C$16*Fuel_Specs!$B45)*(Petroleum!$B279*Petroleum!$D$262+Petroleum!$D279)+Vehicles!$C$33*(1-Vehicles!$C$16)*Fuel_Specs!$B$17/((1-Vehicles!$C$33)*(1-Vehicles!$C$16)*Fuel_Specs!$B$15+Vehicles!$C$33*(1-Vehicles!$C$16)*Fuel_Specs!$B$17+Vehicles!$C$16*Fuel_Specs!$B45)*(Petroleum!B279*Petroleum!$F$262+Petroleum!$F279)+Vehicles!$C$16*Fuel_Specs!$B45/((1-Vehicles!$C$33)*(1-Vehicles!$C$16)*Fuel_Specs!$B$15+Vehicles!$C$33*(1-Vehicles!$C$16)*Fuel_Specs!$B$17+Vehicles!$C$16*Fuel_Specs!$B45)*(BioOil!$BO353*BioOil!$BP$335+BioOil!$BP353)+Vehicles!P82/Vehicles!P60*1000000)/1000000*HLOOKUP($J$10,$Z$5:$AD$6,2,FALSE)/HLOOKUP($J$11,$Z$7:$AD$8,2,FALSE)+Q25*Fuel_Specs!$B$109/Fuel_Specs!$B$112+Q26*Fuel_Specs!$B$110/Fuel_Specs!$B$112 -> -61973.52435 | R21: =((1-Vehicles!$C$33)*(1-Vehicles!$C$16)*Fuel_Specs!$B$15/((1-Vehicles!$C$33)*(1-Vehicles!$C$16)*Fuel_Specs!$B$15+Vehicles!$C$33*(1-Vehicles!$C$16)*Fuel_Specs!$B$17+Vehicles!$C$16*Fuel_Specs!$B45)*(Petroleum!$B279*Petroleum!$D$262+Petroleum!$D279)+Vehicles!$C$33*(1-Vehicles!$C$16)*Fuel_Specs!$B$17/((1-Vehicles!$C$33)*(1-Vehicles!$C$16)*Fuel_Specs!$B$15+Vehicles!$C$33*(1-Vehicles!$C$16)*Fuel_Specs!$B$17+Vehicles!$C$16*Fuel_Specs!$B45)*(Petroleum!B279*Petroleum!$F$262+Petroleum!$F279)+Vehicles!$C$16*Fuel_Specs!$B45/((1-Vehicles!$C$33)*(1-Vehicles!$C$16)*Fuel_Specs!$B$15+Vehicles!$C$33*(1-Vehicles!$C$16)*Fuel_Specs!$B$17+Vehicles!$C$16*Fuel_Specs!$B45)*(Pyrolysis!$Z188*Pyrolysis!$AA$171+Pyrolysis!$AA188)+Vehicles!P82/Vehicles!P60*1000000)/1000000*HLOOKUP($J$10,$Z$5:$AD$6,2,FALSE)/HLOOKUP($J$11,$Z$7:$AD$8,2,FALSE)+R25*Fuel_Specs!$B$109/Fuel_Specs!$B$112+R26*Fuel_Specs!$B$110/Fuel_Specs!$B$112 -> -51739.55847 | S21: =AN21*(Vehicles!$C$23/Vehicles!$AR$59)/(Vehicles!$C$23*(1/Vehicles!$AR$59+1/Vehicles!$AS$59)+Vehicles!$C$24/Vehicles!$AT$59)+B21*(Vehicles!$C$23/Vehicles!$AS$59+Vehicles!$C$24/Vehicles!$AT$59)/(Vehicles!$C$23*(1/Vehicles!$AR$59+1/Vehicles!$AS$59)+Vehicles!$C$24/Vehicles!$AT$59) -> 46957.95277 | T21: =AN21*(Vehicles!$D$23/Vehicles!$AV$59)/(Vehicles!$D$23*(1/Vehicles!$AV$59+1/Vehicles!$AW$59)+Vehicles!$D$24/Vehicles!$AX$59)+C21*(Vehicles!$D$23/Vehicles!$AW$59+Vehicles!$D$24/Vehicles!$AX$59)/(Vehicles!$D$23*(1/Vehicles!$AV$59+1/Vehicles!$AW$59)+Vehicles!$D$24/Vehicles!$AX$59) -> 54101.14348 | U21: =AN21*(Vehicles!$F$23/Vehicles!$BD$59)/(Vehicles!$F$23*(1/Vehicles!$BD$59+1/Vehicles!$BE$59)+Vehicles!$F$24/Vehicles!$BF$59)+D21*(Vehicles!$F$23/Vehicles!$BE$59+Vehicles!$F$24/Vehicles!$BF$59)/(Vehicles!$F$23*(1/Vehicles!$BD$59+1/Vehicles!$BE$59)+Vehicles!$F$24/Vehicles!$BF$59) -> 46957.95277 | V21: =AN21*(Vehicles!$G$23/Vehicles!$BH$59)/(Vehicles!$G$23*(1/Vehicles!$BH$59+1/Vehicles!$BI$59)+Vehicles!$G$24/Vehicles!$BJ$59)+F21*(Vehicles!$G$23/Vehicles!$BI$59+Vehicles!$G$24/Vehicles!$BJ$59)/(Vehicles!$G$23*(1/Vehicles!$BH$59+1/Vehicles!$BI$59)+Vehicles!$G$24/Vehicles!$BJ$59) -> 45267.96792 | W21: =AN21*(Vehicles!$H$23/Vehicles!$BL$59)/(Vehicles!$H$23*(1/Vehicles!$BL$59+1/Vehicles!$BM$59)+Vehicles!$H$24/Vehicles!$BN$59)+G21*(Vehicles!$H$23/Vehicles!$BM$59+Vehicles!$H$24/Vehicles!$BN$59)/(Vehicles!$H$23*(1/Vehicles!$BL$59+1/Vehicles!$BM$59)+Vehicles!$H$24/Vehicles!$BN$59) -> 48554.78752 | X21: =AN21*(Vehicles!$I$23/Vehicles!$BP$59)/(Vehicles!$I$23*(1/Vehicles!$BP$59+1/Vehicles!$BQ$59)+Vehicles!$I$24/Vehicles!$BR$59)+H21*(Vehicles!$I$23/Vehicles!$BQ$59+Vehicles!$I$24/Vehicles!$BR$59)/(Vehicles!$I$23*(1/Vehicles!$BP$59+1/Vehicles!$BQ$59)+Vehicles!$I$24/Vehicles!$BR$59) -> 44805.81735 | Y21: =AN21*(Vehicles!$J$23/Vehicles!$BT$59)/(Vehicles!$J$23*(1/Vehicles!$BT$59+1/Vehicles!$BU$59)+Vehicles!$J$24/Vehicles!$BV$59)+K21*(Vehicles!$J$23/Vehicles!$BU$59+Vehicles!$J$24/Vehicles!$BV$59)/(Vehicles!$J$23*(1/Vehicles!$BT$59+1/Vehicles!$BU$59)+Vehicles!$J$24/Vehicles!$BV$59) -> 49071.82279 | Z21: =AN21*(Vehicles!$K$23/Vehicles!$BX$59)/(Vehicles!$K$23*(1/Vehicles!$BX$59+1/Vehicles!$BY$59)+Vehicles!$K$24/Vehicles!$BZ$59)+O21*(Vehicles!$K$23/Vehicles!$BY$59+Vehicles!$K$24/Vehicles!$BZ$59)/(Vehicles!$K$23*(1/Vehicles!$BX$59+1/Vehicles!$BY$59)+Vehicles!$K$24/Vehicles!$BZ$59) -> 20935.93583 | AA21: =AN21*(Vehicles!$L$23/Vehicles!$CB$59)/(Vehicles!$L$23*(1/Vehicles!$CB$59+1/Vehicles!$CC$59)+Vehicles!$L$24/Vehicles!$CD$59)+AO21*(Vehicles!$L$23/Vehicles!$CC$59+Vehicles!$L$24/Vehicles!$CD$59)/(Vehicles!$L$23*(1/Vehicles!$CB$59+1/Vehicles!$CC$59)+Vehicles!$L$24/Vehicles!$CD$59) -> 120600.5916 | AB21: =AN21*(Vehicles!$L$23/Vehicles!$CB$59)/(Vehicles!$L$23*(1/Vehicles!$CB$59+1/Vehicles!$CC$59)+Vehicles!$L$24/Vehicles!$CE$59)+AP21*(Vehicles!$L$23/Vehicles!$CC$59+Vehicles!$L$24/Vehicles!$CE$59)/(Vehicles!$L$23*(1/Vehicles!$CB$59+1/Vehicles!$CC$59)+Vehicles!$L$24/Vehicles!$CE$59) -> 147952.105 | AC21: =('MeOH&FTD'!$AJ154*'MeOH&FTD'!$AK$137+'MeOH&FTD'!$AK154+Vehicles!AA82/Vehicles!AA60*1000000)/1000000*HLOOKUP($J$10,$Z$5:$AD$6,2,FALSE)/HLOOKUP($J$11,$Z$7:$AD$8,2,FALSE)+AC25*Fuel_Specs!$B$109/Fuel_Specs!$B$112+AC26*Fuel_Specs!$B$110/Fuel_Specs!$B$112 -> 28087.53984 | AD21: =((1-Vehicles!$C$34)*(1-Vehicles!$C$13)*Fuel_Specs!$B$21/((1-Vehicles!$C$34)*(1-Vehicles!$C$13)*Fuel_Specs!$B$21+Vehicles!$C$34*(1-Vehicles!$C$13)*Fuel_Specs!$B$24+Vehicles!$C$13*Fuel_Specs!$B$41)*(Petroleum!B279*Petroleum!$J$262+Petroleum!$J279)+Vehicles!$C$34*(1-Vehicles!$C$13)*Fuel_Specs!$B$24/((1-Vehicles!$C$34)*(1-Vehicles!$C$13)*Fuel_Specs!$B$21+Vehicles!$C$34*(1-Vehicles!$C$13)*Fuel_Specs!$B$24+Vehicles!$C$13*Fuel_Specs!$B$41)*(Petroleum!B279*Petroleum!$K$262+Petroleum!$K279)+Vehicles!$C$13*Fuel_Specs!$B$41/((1-Vehicles!$C$34)*(1-Vehicles!$C$13)*Fuel_Specs!$B$21+Vehicles!$C$34*(1-Vehicles!$C$13)*Fuel_Specs!$B$24+Vehicles!$C$13*Fuel_Specs!$B$41)*('MeOH&FTD'!$AZ154*'MeOH&FTD'!$BA$137+'MeOH&FTD'!$BA154)+Vehicles!AB82/Vehicles!AB60*1000000)/1000000*HLOOKUP($J$10,$Z$5:$AD$6,2,FALSE)/HLOOKUP($J$11,$Z$7:$AD$8,2,FALSE)+AD25*Fuel_Specs!$B$109/Fuel_Specs!$B$112+AD26*Fuel_Specs!$B$110/Fuel_Specs!$B$112 -> 26946.50396 | AE21: =((1-Vehicles!$C$35)*(1-Vehicles!$C$14)*Fuel_Specs!$B$21/((1-Vehicles!$C$35)*(1-Vehicles!$C$14)*Fuel_Specs!$B$21+Vehicles!$C$35*(1-Vehicles!$C$14)*Fuel_Specs!$B$24+Vehicles!$C$14*Fuel_Specs!$B40)*(Petroleum!B279*Petroleum!$J$262+Petroleum!$J279)+Vehicles!$C$35*(1-Vehicles!$C$14)*Fuel_Specs!$B$24/((1-Vehicles!$C$35)*(1-Vehicles!$C$14)*Fuel_Specs!$B$21+Vehicles!$C$35*(1-Vehicles!$C$14)*Fuel_Specs!$B$24+Vehicles!$C$14*Fuel_Specs!$B40)*(Petroleum!B279*Petroleum!$K$262+Petroleum!$K279)+Vehicles!$C$14*Fuel_Specs!$B40/((1-Vehicles!$C$35)*(1-Vehicles!$C$14)*Fuel_Specs!$B$21+Vehicles!$C$35*(1-Vehicles!$C$14)*Fuel_Specs!$B$24+Vehicles!$C$14*Fuel_Specs!$B40)*(BioOil!$W353*BioOil!$X$335+BioOil!$X353)+Vehicles!AC82/Vehicles!AC60*1000000)/1000000*HLOOKUP($J$10,$Z$5:$AD$6,2,FALSE)/HLOOKUP($J$11,$Z$7:$AD$8,2,FALSE)+AE25*Fuel_Specs!$B$109/Fuel_Specs!$B$112+AE26*Fuel_Specs!$B$110/Fuel_Specs!$B$112 -> 3879.44462 | AF21: =((1-Vehicles!$C$36)*(1-Vehicles!$C$15)*Fuel_Specs!$B$21/((1-Vehicles!$C$36)*(1-Vehicles!$C$15)*Fuel_Specs!$B$21+Vehicles!$C$36*(1-Vehicles!$C$15)*Fuel_Specs!$B$24+Vehicles!$C$15*IF(Inputs!$E$628=1,Fuel_Specs!$B$42,Fuel_Specs!$B$43))*(Petroleum!B279*Petroleum!$J$262+Petroleum!$J279)+Vehicles!$C$36*(1-Vehicles!$C$15)*Fuel_Specs!$B$24/((1-Vehicles!$C$36)*(1-Vehicles!$C$15)*Fuel_Specs!$B$21+Vehicles!$C$36*(1-Vehicles!$C$15)*Fuel_Specs!$B$24+Vehicles!$C$15*IF(Inputs!$E$628=1,Fuel_Specs!$B$42,Fuel_Specs!$B$43))*(Petroleum!B279*Petroleum!$K$262+Petroleum!$K279)+Vehicles!$C$15*IF(Inputs!$E$628=1,Fuel_Specs!$B$42,Fuel_Specs!$B$43)/((1-Vehicles!$C$36)*(1-Vehicles!$C$15)*Fuel_Specs!$B$21+Vehicles!$C$36*(1-Vehicles!$C$15)*Fuel_Specs!$B$24+Vehicles!$C$15*IF(Inputs!$E$628=1,Fuel_Specs!$B$42,Fuel_Specs!$B$43))*(BioOil!$BA353*BioOil!$BB$335+BioOil!$BB353)+Vehicles!AD82/Vehicles!AD60*1000000)/1000000*HLOOKUP($J$10,$Z$5:$AD$6,2,FALSE)/HLOOKUP($J$11,$Z$7:$AD$8,2,FALSE)+AF25*Fuel_Specs!$B$109/Fuel_Specs!$B$112+AF26*Fuel_Specs!$B$110/Fuel_Specs!$B$112 -> -57929.30761 | AG21: =((1-Vehicles!$C$36)*(1-Vehicles!$C$15)*Fuel_Specs!$B$21/((1-Vehicles!$C$36)*(1-Vehicles!$C$15)*Fuel_Specs!$B$21+Vehicles!$C$36*(1-Vehicles!$C$15)*Fuel_Specs!$B$24+Vehicles!$C$15*IF(Inputs!$E$628=1,Fuel_Specs!$B$42,Fuel_Specs!$B$43))*(Petroleum!B279*Petroleum!$J$262+Petroleum!$J279)+Vehicles!$C$36*(1-Vehicles!$C$15)*Fuel_Specs!$B$24/((1-Vehicles!$C$36)*(1-Vehicles!$C$15)*Fuel_Specs!$B$21+Vehicles!$C$36*(1-Vehicles!$C$15)*Fuel_Specs!$B$24+Vehicles!$C$15*IF(Inputs!$E$628=1,Fuel_Specs!$B$42,Fuel_Specs!$B$43))*(Petroleum!B279*Petroleum!$K$262+Petroleum!$K279)+Vehicles!$C$15*IF(Inputs!$E$628=1,Fuel_Specs!$B$42,Fuel_Specs!$B$43)/((1-Vehicles!$C$36)*(1-Vehicles!$C$15)*Fuel_Specs!$B$21+Vehicles!$C$36*(1-Vehicles!$C$15)*Fuel_Specs!$B$24+Vehicles!$C$15*IF(Inputs!$E$628=1,Fuel_Specs!$B$42,Fuel_Specs!$B$43))*(Pyrolysis!$AB188*Pyrolysis!$AC$171+Pyrolysis!$AC188)+Vehicles!AD82/Vehicles!AD60*1000000)/1000000*HLOOKUP($J$10,$Z$5:$AD$6,2,FALSE)/HLOOKUP($J$11,$Z$7:$AD$8,2,FALSE)+AG25*Fuel_Specs!$B$109/Fuel_Specs!$B$112+AG26*Fuel_Specs!$B$110/Fuel_Specs!$B$112 -> -46687.09313 | AH21: =(((1-Vehicles!$C$37)*(1-Vehicles!$C$17-Vehicles!$C$18)*Fuel_Specs!$B$21*(Petroleum!B279*Petroleum!$J$262+Petroleum!$J279)+Vehicles!$C$37*(1-Vehicles!$C$17-Vehicles!$C$18)*Fuel_Specs!$B$24*(Petroleum!B279*Petroleum!$K$262+Petroleum!$K279)+Vehicles!$C$17*Fuel_Specs!$B$32*(EtOH!BP506*EtOH!$BQ$489+EtOH!$BQ506)+Vehicles!$C$18*Fuel_Specs!$B$35*('E-D Additives'!$B70*'E-D Additives'!$B$53))/((1-Vehicles!$C$37)*(1-Vehicles!$C$17-Vehicles!$C$18)*Fuel_Specs!$B$21+Vehicles!$C$37*(1-Vehicles!$C$17-Vehicles!$C$18)*Fuel_Specs!$B$24+Vehicles!$C$17*Fuel_Specs!$B$32+Vehicles!$C$18*Fuel_Specs!$B$35)+Vehicles!AE82/Vehicles!AE60*1000000)/1000000*HLOOKUP($J$10,$Z$5:$AD$6,2,FALSE)/HLOOKUP($J$11,$Z$7:$AD$8,2,FALSE)+AH25*Fuel_Specs!$B$109/Fuel_Specs!$B$112+AH26*Fuel_Specs!$B$110/Fuel_Specs!$B$112 -> 16196.59871 | AI21: =AN21*(Vehicles!$M$23/Vehicles!$CM$59)/(Vehicles!$M$23*(1/Vehicles!$CM$59+1/Vehicles!$CN$59)+Vehicles!$M$24/Vehicles!$CO$59)+E21*(Vehicles!$M$23/Vehicles!$CN$59+Vehicles!$M$24/Vehicles!$CO$59)/(Vehicles!$M$23*(1/Vehicles!$CM$59+1/Vehicles!$CN$59)+Vehicles!$M$24/Vehicles!$CO$59) -> 50619.87985 | AJ21: =AN21*(Vehicles!$N$23/Vehicles!$CQ$59)/(Vehicles!$N$23*(1/Vehicles!$CQ$59+1/Vehicles!$CR$59)+Vehicles!$N$24/Vehicles!$CS$59)+AC21*(Vehicles!$N$23/Vehicles!$CR$59+Vehicles!$N$24/Vehicles!$CS$59)/(Vehicles!$N$23*(1/Vehicles!$CQ$59+1/Vehicles!$CR$59)+Vehicles!$N$24/Vehicles!$CS$59) -> 57093.2912 | AK21: =AN21*(Vehicles!$O$23/Vehicles!$CU$59)/(Vehicles!$O$23*(1/Vehicles!$CU$59+1/Vehicles!$CV$59)+Vehicles!$O$24/Vehicles!$CW$59)+AD21*(Vehicles!$O$23/Vehicles!$CV$59+Vehicles!$O$24/Vehicles!$CW$59)/(Vehicles!$O$23*(1/Vehicles!$CU$59+1/Vehicles!$CV$59)+Vehicles!$O$24/Vehicles!$CW$59) -> 56268.37443 | AL21: =AN21*(Vehicles!$P$23/Vehicles!$CY$59)/(Vehicles!$P$23*(1/Vehicles!$CY$59+1/Vehicles!$CZ$59)+Vehicles!$P$24/Vehicles!$DA$59)+AE21*(Vehicles!$P$23/Vehicles!$CZ$59+Vehicles!$P$24/Vehicles!$DA$59)/(Vehicles!$P$23*(1/Vehicles!$CY$59+1/Vehicles!$CZ$59)+Vehicles!$P$24/Vehicles!$DA$59) -> 39591.9451 | AM21: =AN21*(Vehicles!$R$23/Vehicles!$DG$59)/(Vehicles!$R$23*(1/Vehicles!$DG$59+1/Vehicles!$DH$59)+Vehicles!$R$24/Vehicles!$DI$59)+AH21*(Vehicles!$R$23/Vehicles!$DH$59+Vehicles!$R$24/Vehicles!$DI$59)/(Vehicles!$R$23*(1/Vehicles!$DG$59+1/Vehicles!$DH$59)+Vehicles!$R$24/Vehicles!$DI$59) -> 48496.6844 | AN21: =(Electric!$G202+Electric!$F202)/1000000*HLOOKUP($J$10,$Z$5:$AD$6,2,FALSE)/HLOOKUP($J$11,$Z$7:$AD$8,2,FALSE)+AN25*Fuel_Specs!$B$109/Fuel_Specs!$B$112+AN26*Fuel_Specs!$B$110/Fuel_Specs!$B$112 -> 132784.1639 | AO21: =(Hydrogen!$AF179*Hydrogen!$AG$162+Hydrogen!$AG179)/1000000*HLOOKUP($J$10,$Z$5:$AD$6,2,FALSE)/HLOOKUP($J$11,$Z$7:$AD$8,2,FALSE)+AO25*Fuel_Specs!$B$109/Fuel_Specs!$B$112+AO26*Fuel_Specs!$B$110/Fuel_Specs!$B$112 -> 115670.675 | AP21: =(Hydrogen!$BJ179*Hydrogen!$BK$162+Hydrogen!$BK179)/1000000*HLOOKUP($J$10,$Z$5:$AD$6,2,FALSE)/HLOOKUP($J$11,$Z$7:$AD$8,2,FALSE)+AP25*Fuel_Specs!$B$109/Fuel_Specs!$B$112+AP26*Fuel_Specs!$B$110/Fuel_Specs!$B$112 -> 154089.6058 | AQ21: =AN21*(Vehicles!$S$23/Vehicles!$DW$59)/(Vehicles!$S$23*(1/Vehicles!$DW$59+1/Vehicles!$DX$59)+Vehicles!$S$24/Vehicles!$DY$59)+AO21*(Vehicles!$S$23/Vehicles!$DX$59+Vehicles!$S$24/Vehicles!$DY$59)/(Vehicles!$S$23*(1/Vehicles!$DW$59+1/Vehicles!$DX$59)+Vehicles!$S$24/Vehicles!$DY$59) -> 121547.3839 | AR21: =AN21*(Vehicles!$S$23/Vehicles!$DW$59)/(Vehicles!$S$23*(1/Vehicles!$DW$59+1/Vehicles!$DX$59)+Vehicles!$S$24/Vehicles!$DY$59)+AP21*(Vehicles!$S$23/Vehicles!$DX$59+Vehicles!$S$24/Vehicles!$DY$59)/(Vehicles!$S$23*(1/Vehicles!$DW$59+1/Vehicles!$DX$59)+Vehicles!$S$24/Vehicles!$DY$59) -> 146773.3957 | AS21: =((1-Vehicles!$C$33)*(1-Vehicles!$C$16)*Fuel_Specs!$B$15/((1-Vehicles!$C$33)*(1-Vehicles!$C$16)*Fuel_Specs!$B$15+Vehicles!$C$33*(1-Vehicles!$C$16)*Fuel_Specs!$B$17+Vehicles!$C$16*Fuel_Specs!$B$46)*(Petroleum!$B279*Petroleum!$D$262+Petroleum!$D279)+Vehicles!$C$33*(1-Vehicles!$C$16)*Fuel_Specs!$B$17/((1-Vehicles!$C$33)*(1-Vehicles!$C$16)*Fuel_Specs!$B$15+Vehicles!$C$33*(1-Vehicles!$C$16)*Fuel_Specs!$B$17+Vehicles!$C$16*Fuel_Specs!$B$46)*(Petroleum!B279*Petroleum!$F$262+Petroleum!$F279)+Vehicles!$C$16*Fuel_Specs!$B$46/((1-Vehicles!$C$33)*(1-Vehicles!$C$16)*Fuel_Specs!$B$15+Vehicles!$C$33*(1-Vehicles!$C$16)*Fuel_Specs!$B$17+Vehicles!$C$16*Fuel_Specs!$B$46)*(IDL!$L129*IDL!$M$112+IDL!$M129)+Vehicles!Q82/Vehicles!Q60*1000000)/1000000*HLOOKUP($J$10,$Z$5:$AD$6,2,FALSE)/HLOOKUP($J$11,$Z$7:$AD$8,2,FALSE)+AS25*Fuel_Specs!$B$109/Fuel_Specs!$B$112+AS26*Fuel_Specs!$B$110/Fuel_Specs!$B$112 -> -61208.87019 | AV21: SI - MeOH FFV | AW21: RNAVMEOHFFV | BB21: CIDI - E-Diesel | BC21: RNAVEDIESELCIDI | BE21: SI HEV - LPG | BF21: RNAVHEVLPG | BH21: SI PHEV - LPG and Electricity | BI21: RNAVPHEVLPG | BQ21: FCV - Gasoline | BR21: RNAVFCVGAS
A22: CH4 | B22: =(Inputs!$E$1400*(Petroleum!$B277*Petroleum!$F$262+Petroleum!$F277)+(1-Inputs!$E$1400)*(Petroleum!$B277*Petroleum!$D$262+Petroleum!$D277))/1000000*HLOOKUP($J$10,$Z$5:$AD$6,2,FALSE)/HLOOKUP($J$11,$Z$7:$AD$8,2,FALSE) -> 175.8806149 | C22: =(Petroleum!$C277*Petroleum!$G$262+Petroleum!$G277)/1000000*HLOOKUP($J$10,$Z$5:$AD$6,2,FALSE)/HLOOKUP($J$11,$Z$7:$AD$8,2,FALSE) -> 261.5097795 | D22: =((1-Vehicles!$C$28)*(1-Vehicles!$C$7)*Fuel_Specs!$B$15/((1-Vehicles!$C$28)*(1-Vehicles!$C$7)*Fuel_Specs!$B$15+Vehicles!$C$28*(1-Vehicles!$C$7)*Fuel_Specs!$B$17+Vehicles!$C$7*Fuel_Specs!$B$32)*(Petroleum!$B277*Petroleum!$D$262+(Petroleum!$D277-'T&D'!G227))+Vehicles!$C$28*(1-Vehicles!$C$7)*Fuel_Specs!$B$17/((1-Vehicles!$C$28)*(1-Vehicles!$C$7)*Fuel_Specs!$B$15+Vehicles!$C$28*(1-Vehicles!$C$7)*Fuel_Specs!$B$17+Vehicles!$C$7*Fuel_Specs!$B$32)*(Petroleum!B277*Petroleum!$F$262+Petroleum!$F277)+Vehicles!$C$7*Fuel_Specs!$B$32/((1-Vehicles!$C$28)*(1-Vehicles!$C$7)*Fuel_Specs!$B$15+Vehicles!$C$28*(1-Vehicles!$C$7)*Fuel_Specs!$B$17+Vehicles!$C$7*Fuel_Specs!$B$32)*(EtOH!BR504*EtOH!$BS$489+EtOH!$BS504)+Petroleum!AS139+Petroleum!AT139)/1000000*HLOOKUP($J$10,$Z$5:$AD$6,2,FALSE)/HLOOKUP($J$11,$Z$7:$AD$8,2,FALSE) -> 175.8806149 | E22: =(Inputs!$E$97*(IF(Inputs!F$102=1,Petroleum!$B277,Petroleum!$C277)*Petroleum!$K$262+Petroleum!$K277)+(1-Inputs!$E$97)*(IF(Inputs!F$101=1,Petroleum!$B277,Petroleum!$C277)*Petroleum!$J$262+Petroleum!$J277))/1000000*HLOOKUP($J$10,$Z$5:$AD$6,2,FALSE)/HLOOKUP($J$11,$Z$7:$AD$8,2,FALSE) -> 191.258786 | F22: =(NG!$I99*NG!$J$84+NG!$J99)/1000000*HLOOKUP($J$10,$Z$5:$AD$6,2,FALSE)/HLOOKUP($J$11,$Z$7:$AD$8,2,FALSE) -> 317.4891647 | G22: =(NG!$Q99*NG!$R$84+NG!$R99)/1000000*HLOOKUP($J$10,$Z$5:$AD$6,2,FALSE)/HLOOKUP($J$11,$Z$7:$AD$8,2,FALSE) -> 430.4217403 | H22: =(NG!$W99*NG!$X$84+NG!$X99)/1000000*HLOOKUP($J$10,$Z$5:$AD$6,2,FALSE)/HLOOKUP($J$11,$Z$7:$AD$8,2,FALSE) -> 214.9390025 | I22: =('MeOH&FTD'!BJ152*'MeOH&FTD'!BK$137+'MeOH&FTD'!BK152)/1000000*HLOOKUP($J$10,$Z$5:$AD$6,2,FALSE)/HLOOKUP($J$11,$Z$7:$AD$8,2,FALSE) -> 333.6775078 | J22: =((1-Vehicles!$C$27)*(1-Vehicles!$C$5)*Fuel_Specs!$B$15/((1-Vehicles!$C$27)*(1-Vehicles!$C$5)*Fuel_Specs!$B$15+Vehicles!$C$27*(1-Vehicles!$C$5)*Fuel_Specs!$B$17+Vehicles!$C$5*Fuel_Specs!$B$31)*(Petroleum!$B277*Petroleum!$D$262+Petroleum!$D277)+Vehicles!$C$27*(1-Vehicles!$C$5)*Fuel_Specs!$B$17/((1-Vehicles!$C$27)*(1-Vehicles!$C$5)*Fuel_Specs!$B$15+Vehicles!$C$27*(1-Vehicles!$C$5)*Fuel_Specs!$B$17+Vehicles!$C$5*Fuel_Specs!$B$31)*(Petroleum!B277*Petroleum!$F$262+Petroleum!$F277)+Vehicles!$C$5*Fuel_Specs!$B$31/((1-Vehicles!$C$27)*(1-Vehicles!$C$5)*Fuel_Specs!$B$15+Vehicles!$C$27*(1-Vehicles!$C$5)*Fuel_Specs!$B$17+Vehicles!$C$5*Fuel_Specs!$B$31)*('MeOH&FTD'!$N152*'MeOH&FTD'!$O$137+'MeOH&FTD'!$O152))/1000000*HLOOKUP($J$10,$Z$5:$AD$6,2,FALSE)/HLOOKUP($J$11,$Z$7:$AD$8,2,FALSE) -> 253.9676028 | K22: =((1-Vehicles!$C$27)*(1-Vehicles!$C$6)*Fuel_Specs!$B$15/((1-Vehicles!$C$27)*(1-Vehicles!$C$6)*Fuel_Specs!$B$15+Vehicles!$C$27*(1-Vehicles!$C$6)*Fuel_Specs!$B$17+Vehicles!$C$6*Fuel_Specs!$B$31)*(Petroleum!$B277*Petroleum!$D$262+Petroleum!$D277)+Vehicles!$C$27*(1-Vehicles!$C$6)*Fuel_Specs!$B$17/((1-Vehicles!$C$27)*(1-Vehicles!$C$6)*Fuel_Specs!$B$15+Vehicles!$C$27*(1-Vehicles!$C$6)*Fuel_Specs!$B$17+Vehicles!$C$6*Fuel_Specs!$B$31)*(Petroleum!B277*Petroleum!$F$262+Petroleum!$F277)+Vehicles!$C$6*Fuel_Specs!$B$31/((1-Vehicles!$C$27)*(1-Vehicles!$C$6)*Fuel_Specs!$B$15+Vehicles!$C$27*(1-Vehicles!$C$6)*Fuel_Specs!$B$17+Vehicles!$C$6*Fuel_Specs!$B$31)*('MeOH&FTD'!$N152*'MeOH&FTD'!$O$137+'MeOH&FTD'!$O152))/1000000*HLOOKUP($J$10,$Z$5:$AD$6,2,FALSE)/HLOOKUP($J$11,$Z$7:$AD$8,2,FALSE) -> 262.087584 | L22: =('MeOH&FTD'!$N152*'MeOH&FTD'!$O$137+'MeOH&FTD'!$O152)/1000000*HLOOKUP($J$10,$Z$5:$AD$6,2,FALSE)/HLOOKUP($J$11,$Z$7:$AD$8,2,FALSE) -> 280.8311955 | M22: =((1-Vehicles!$C$29)*(1-Vehicles!$C$8)*Fuel_Specs!$B$15/((1-Vehicles!$C$29)*(1-Vehicles!$C$8)*Fuel_Specs!$B$15+Vehicles!$C$29*(1-Vehicles!$C$8)*Fuel_Specs!$B$17+Vehicles!$C$8*Fuel_Specs!$B$32)*(Petroleum!$B277*Petroleum!$D$262+(Petroleum!$D277-'T&D'!G227))+Vehicles!$C$29*(1-Vehicles!$C$8)*Fuel_Specs!$B$17/((1-Vehicles!$C$29)*(1-Vehicles!$C$8)*Fuel_Specs!$B$15+Vehicles!$C$29*(1-Vehicles!$C$8)*Fuel_Specs!$B$17+Vehicles!$C$8*Fuel_Specs!$B$32)*(Petroleum!B277*Petroleum!$F$262+Petroleum!$F277)+Vehicles!$C$8*Fuel_Specs!$B$32/((1-Vehicles!$C$29)*(1-Vehicles!$C$8)*Fuel_Specs!$B$15+Vehicles!$C$29*(1-Vehicles!$C$8)*Fuel_Specs!$B$17+Vehicles!$C$8*Fuel_Specs!$B$32)*(EtOH!BR504*EtOH!$BS$489+EtOH!$BS504)+Petroleum!AS139+Petroleum!AT139)/1000000*HLOOKUP($J$10,$Z$5:$AD$6,2,FALSE)/HLOOKUP($J$11,$Z$7:$AD$8,2,FALSE) -> 144.1366288 | N22: =((1-Vehicles!$C$30)*(1-Vehicles!$C$12)*Fuel_Specs!$B$15/((1-Vehicles!$C$30)*(1-Vehicles!$C$12)*Fuel_Specs!$B$15+Vehicles!$C$30*(1-Vehicles!$C$12)*Fuel_Specs!$B$17+Vehicles!$C$12*Fuel_Specs!$B$33)*(Petroleum!$B277*Petroleum!$D$262+Petroleum!$D277)+Vehicles!$C$30*(1-Vehicles!$C$12)*Fuel_Specs!$B$17/((1-Vehicles!$C$30)*(1-Vehicles!$C$12)*Fuel_Specs!$B$15+Vehicles!$C$30*(1-Vehicles!$C$12)*Fuel_Specs!$B$17+Vehicles!$C$12*Fuel_Specs!$B$33)*(Petroleum!B277*Petroleum!$F$262+Petroleum!$F277)+Vehicles!$C$12*Fuel_Specs!$B$33/((1-Vehicles!$C$30)*(1-Vehicles!$C$12)*Fuel_Specs!$B$15+Vehicles!$C$30*(1-Vehicles!$C$12)*Fuel_Specs!$B$17+Vehicles!$C$12*Fuel_Specs!$B$33)*(EtOH!$BT504*EtOH!$BU$489+EtOH!$BU504))/1000000*HLOOKUP($J$10,$Z$5:$AD$6,2,FALSE)/HLOOKUP($J$11,$Z$7:$AD$8,2,FALSE) -> 157.7773353 | O22: =((1-Vehicles!$C$29)*(1-Vehicles!$C$9)*Fuel_Specs!$B$15/((1-Vehicles!$C$29)*(1-Vehicles!$C$9)*Fuel_Specs!$B$15+Vehicles!$C$29*(1-Vehicles!$C$9)*Fuel_Specs!$B$17+Vehicles!$C$9*Fuel_Specs!$B$32)*(Petroleum!$B277*Petroleum!$D$262+(Petroleum!$D277-'T&D'!G227))+Vehicles!$C$29*(1-Vehicles!$C$9)*Fuel_Specs!$B$17/((1-Vehicles!$C$29)*(1-Vehicles!$C$9)*Fuel_Specs!$B$15+Vehicles!$C$29*(1-Vehicles!$C$9)*Fuel_Specs!$B$17+Vehicles!$C$9*Fuel_Specs!$B$32)*(Petroleum!B277*Petroleum!$F$262+Petroleum!$F277)+Vehicles!$C$9*Fuel_Specs!$B$32/((1-Vehicles!$C$29)*(1-Vehicles!$C$9)*Fuel_Specs!$B$15+Vehicles!$C$29*(1-Vehicles!$C$9)*Fuel_Specs!$B$17+Vehicles!$C$9*Fuel_Specs!$B$32)*(EtOH!BR504*EtOH!$BS$489+EtOH!$BS504)+Petroleum!AS139+Petroleum!AT139)/1000000*HLOOKUP($J$10,$Z$5:$AD$6,2,FALSE)/HLOOKUP($J$11,$Z$7:$AD$8,2,FALSE) -> 144.1366288 | P22: =(EtOH!$BP504*EtOH!$BQ$489+EtOH!$BQ504)/1000000*HLOOKUP($J$10,$Z$5:$AD$6,2,FALSE)/HLOOKUP($J$11,$Z$7:$AD$8,2,FALSE) -> 134.377666 | Q22: =((1-Vehicles!$C$33)*(1-Vehicles!$C$16)*Fuel_Specs!$B$15/((1-Vehicles!$C$33)*(1-Vehicles!$C$16)*Fuel_Specs!$B$15+Vehicles!$C$33*(1-Vehicles!$C$16)*Fuel_Specs!$B$17+Vehicles!$C$16*Fuel_Specs!$B$45)*(Petroleum!$B277*Petroleum!$D$262+Petroleum!$D277)+Vehicles!$C$33*(1-Vehicles!$C$16)*Fuel_Specs!$B$17/((1-Vehicles!$C$33)*(1-Vehicles!$C$16)*Fuel_Specs!$B$15+Vehicles!$C$33*(1-Vehicles!$C$16)*Fuel_Specs!$B$17+Vehicles!$C$16*Fuel_Specs!$B$45)*(Petroleum!B277*Petroleum!$F$262+Petroleum!$F277)+Vehicles!$C$16*Fuel_Specs!$B$45/((1-Vehicles!$C$33)*(1-Vehicles!$C$16)*Fuel_Specs!$B$15+Vehicles!$C$33*(1-Vehicles!$C$16)*Fuel_Specs!$B$17+Vehicles!$C$16*Fuel_Specs!$B$45)*(BioOil!$BO351*BioOil!$BP$335+BioOil!$BP351))/1000000*HLOOKUP($J$10,$Z$5:$AD$6,2,FALSE)/HLOOKUP($J$11,$Z$7:$AD$8,2,FALSE) -> 30.72098894 | R22: =((1-Vehicles!$C$33)*(1-Vehicles!$C$16)*Fuel_Specs!$B$15/((1-Vehicles!$C$33)*(1-Vehicles!$C$16)*Fuel_Specs!$B$15+Vehicles!$C$33*(1-Vehicles!$C$16)*Fuel_Specs!$B$17+Vehicles!$C$16*Fuel_Specs!$B$45)*(Petroleum!$B277*Petroleum!$D$262+Petroleum!$D277)+Vehicles!$C$33*(1-Vehicles!$C$16)*Fuel_Specs!$B$17/((1-Vehicles!$C$33)*(1-Vehicles!$C$16)*Fuel_Specs!$B$15+Vehicles!$C$33*(1-Vehicles!$C$16)*Fuel_Specs!$B$17+Vehicles!$C$16*Fuel_Specs!$B$45)*(Petroleum!B277*Petroleum!$F$262+Petroleum!$F277)+Vehicles!$C$16*Fuel_Specs!$B$45/((1-Vehicles!$C$33)*(1-Vehicles!$C$16)*Fuel_Specs!$B$15+Vehicles!$C$33*(1-Vehicles!$C$16)*Fuel_Specs!$B$17+Vehicles!$C$16*Fuel_Specs!$B$45)*(Pyrolysis!$Z186*Pyrolysis!$AA$171+Pyrolysis!$AA186))/1000000*HLOOKUP($J$10,$Z$5:$AD$6,2,FALSE)/HLOOKUP($J$11,$Z$7:$AD$8,2,FALSE) -> 74.50952942 | S22: =AN22*(Vehicles!$C$23/Vehicles!$AR$59)/(Vehicles!$C$23*(1/Vehicles!$AR$59+1/Vehicles!$AS$59)+Vehicles!$C$24/Vehicles!$AT$59)+B22*(Vehicles!$C$23/Vehicles!$AS$59+Vehicles!$C$24/Vehicles!$AT$59)/(Vehicles!$C$23*(1/Vehicles!$AR$59+1/Vehicles!$AS$59)+Vehicles!$C$24/Vehicles!$AT$59) -> 193.843606 | T22: =AN22*(Vehicles!$D$23/Vehicles!$AV$59)/(Vehicles!$D$23*(1/Vehicles!$AV$59+1/Vehicles!$AW$59)+Vehicles!$D$24/Vehicles!$AX$59)+C22*(Vehicles!$D$23/Vehicles!$AW$59+Vehicles!$D$24/Vehicles!$AX$59)/(Vehicles!$D$23*(1/Vehicles!$AV$59+1/Vehicles!$AW$59)+Vehicles!$D$24/Vehicles!$AX$59) -> 255.7847678 | U22: =AN22*(Vehicles!$F$23/Vehicles!$BD$59)/(Vehicles!$F$23*(1/Vehicles!$BD$59+1/Vehicles!$BE$59)+Vehicles!$F$24/Vehicles!$BF$59)+D22*(Vehicles!$F$23/Vehicles!$BE$59+Vehicles!$F$24/Vehicles!$BF$59)/(Vehicles!$F$23*(1/Vehicles!$BD$59+1/Vehicles!$BE$59)+Vehicles!$F$24/Vehicles!$BF$59) -> 193.843606 | V22: =AN22*(Vehicles!$G$23/Vehicles!$BH$59)/(Vehicles!$G$23*(1/Vehicles!$BH$59+1/Vehicles!$BI$59)+Vehicles!$G$24/Vehicles!$BJ$59)+F22*(Vehicles!$G$23/Vehicles!$BI$59+Vehicles!$G$24/Vehicles!$BJ$59)/(Vehicles!$G$23*(1/Vehicles!$BH$59+1/Vehicles!$BI$59)+Vehicles!$G$24/Vehicles!$BJ$59) -> 296.2783095 | W22: =AN22*(Vehicles!$H$23/Vehicles!$BL$59)/(Vehicles!$H$23*(1/Vehicles!$BL$59+1/Vehicles!$BM$59)+Vehicles!$H$24/Vehicles!$BN$59)+G22*(Vehicles!$H$23/Vehicles!$BM$59+Vehicles!$H$24/Vehicles!$BN$59)/(Vehicles!$H$23*(1/Vehicles!$BL$59+1/Vehicles!$BM$59)+Vehicles!$H$24/Vehicles!$BN$59) -> 377.9698098 | X22: =AN22*(Vehicles!$I$23/Vehicles!$BP$59)/(Vehicles!$I$23*(1/Vehicles!$BP$59+1/Vehicles!$BQ$59)+Vehicles!$I$24/Vehicles!$BR$59)+H22*(Vehicles!$I$23/Vehicles!$BQ$59+Vehicles!$I$24/Vehicles!$BR$59)/(Vehicles!$I$23*(1/Vehicles!$BP$59+1/Vehicles!$BQ$59)+Vehicles!$I$24/Vehicles!$BR$59) -> 222.0970862 | Y22: =AN22*(Vehicles!$J$23/Vehicles!$BT$59)/(Vehicles!$J$23*(1/Vehicles!$BT$59+1/Vehicles!$BU$59)+Vehicles!$J$24/Vehicles!$BV$59)+K22*(Vehicles!$J$23/Vehicles!$BU$59+Vehicles!$J$24/Vehicles!$BV$59)/(Vehicles!$J$23*(1/Vehicles!$BT$59+1/Vehicles!$BU$59)+Vehicles!$J$24/Vehicles!$BV$59) -> 256.5574779 | Z22: =AN22*(Vehicles!$K$23/Vehicles!$BX$59)/(Vehicles!$K$23*(1/Vehicles!$BX$59+1/Vehicles!$BY$59)+Vehicles!$K$24/Vehicles!$BZ$59)+O22*(Vehicles!$K$23/Vehicles!$BY$59+Vehicles!$K$24/Vehicles!$BZ$59)/(Vehicles!$K$23*(1/Vehicles!$BX$59+1/Vehicles!$BY$59)+Vehicles!$K$24/Vehicles!$BZ$59) -> 169.2689182 | AA22: =AN22*(Vehicles!$L$23/Vehicles!$CB$59)/(Vehicles!$L$23*(1/Vehicles!$CB$59+1/Vehicles!$CC$59)+Vehicles!$L$24/Vehicles!$CD$59)+AO22*(Vehicles!$L$23/Vehicles!$CC$59+Vehicles!$L$24/Vehicles!$CD$59)/(Vehicles!$L$23*(1/Vehicles!$CB$59+1/Vehicles!$CC$59)+Vehicles!$L$24/Vehicles!$CD$59) -> 388.0473738 | AB22: =AN22*(Vehicles!$L$23/Vehicles!$CB$59)/(Vehicles!$L$23*(1/Vehicles!$CB$59+1/Vehicles!$CC$59)+Vehicles!$L$24/Vehicles!$CE$59)+AP22*(Vehicles!$L$23/Vehicles!$CC$59+Vehicles!$L$24/Vehicles!$CE$59)/(Vehicles!$L$23*(1/Vehicles!$CB$59+1/Vehicles!$CC$59)+Vehicles!$L$24/Vehicles!$CE$59) -> 446.0647128 | AC22: =('MeOH&FTD'!$AJ152*'MeOH&FTD'!$AK$137+'MeOH&FTD'!$AK152)/1000000*HLOOKUP($J$10,$Z$5:$AD$6,2,FALSE)/HLOOKUP($J$11,$Z$7:$AD$8,2,FALSE) -> 298.5726417 | AD22: =((1-Vehicles!$C$34)*(1-Vehicles!$C$13)*Fuel_Specs!$B$21/((1-Vehicles!$C$34)*(1-Vehicles!$C$13)*Fuel_Specs!$B$21+Vehicles!$C$34*(1-Vehicles!$C$13)*Fuel_Specs!$B$24+Vehicles!$C$13*Fuel_Specs!$B$41)*(Petroleum!B277*Petroleum!$J$262+Petroleum!$J277)+Vehicles!$C$34*(1-Vehicles!$C$13)*Fuel_Specs!$B$24/((1-Vehicles!$C$34)*(1-Vehicles!$C$13)*Fuel_Specs!$B$21+Vehicles!$C$34*(1-Vehicles!$C$13)*Fuel_Specs!$B$24+Vehicles!$C$13*Fuel_Specs!$B$41)*(Petroleum!B277*Petroleum!$K$262+Petroleum!$K277)+Vehicles!$C$13*Fuel_Specs!$B$41/((1-Vehicles!$C$34)*(1-Vehicles!$C$13)*Fuel_Specs!$B$21+Vehicles!$C$34*(1-Vehicles!$C$13)*Fuel_Specs!$B$24+Vehicles!$C$13*Fuel_Specs!$B$41)*('MeOH&FTD'!$AZ152*'MeOH&FTD'!$BA$137+'MeOH&FTD'!$BA152))/1000000*HLOOKUP($J$10,$Z$5:$AD$6,2,FALSE)/HLOOKUP($J$11,$Z$7:$AD$8,2,FALSE) -> 318.293083 | AE22: =((1-Vehicles!$C$35)*(1-Vehicles!$C$14)*Fuel_Specs!$B$21/((1-Vehicles!$C$35)*(1-Vehicles!$C$14)*Fuel_Specs!$B$21+Vehicles!$C$35*(1-Vehicles!$C$14)*Fuel_Specs!$B$24+Vehicles!$C$14*Fuel_Specs!$B$40)*(Petroleum!B277*Petroleum!$J$262+Petroleum!$J277)+Vehicles!$C$35*(1-Vehicles!$C$14)*Fuel_Specs!$B$24/((1-Vehicles!$C$35)*(1-Vehicles!$C$14)*Fuel_Specs!$B$21+Vehicles!$C$35*(1-Vehicles!$C$14)*Fuel_Specs!$B$24+Vehicles!$C$14*Fuel_Specs!$B$40)*(Petroleum!B277*Petroleum!$K$262+Petroleum!$K277)+Vehicles!$C$14*Fuel_Specs!$B$40/((1-Vehicles!$C$35)*(1-Vehicles!$C$14)*Fuel_Specs!$B$21+Vehicles!$C$35*(1-Vehicles!$C$14)*Fuel_Specs!$B$24+Vehicles!$C$14*Fuel_Specs!$B$40)*(BioOil!$W351*BioOil!$X$335+BioOil!$X351))/1000000*HLOOKUP($J$10,$Z$5:$AD$6,2,FALSE)/HLOOKUP($J$11,$Z$7:$AD$8,2,FALSE) -> 165.0726715 | AF22: =((1-Vehicles!$C$36)*(1-Vehicles!$C$15)*Fuel_Specs!$B$21/((1-Vehicles!$C$36)*(1-Vehicles!$C$15)*Fuel_Specs!$B$21+Vehicles!$C$36*(1-Vehicles!$C$15)*Fuel_Specs!$B$24+Vehicles!$C$15*IF(Inputs!$E$628=1,IF(Inputs!$E$628=1,Fuel_Specs!$B$42,IF(Inputs!$E$628=3,Fuel_Specs!$B$44,Fuel_Specs!$B$43)),Fuel_Specs!$B$43))*(Petroleum!B277*Petroleum!$J$262+Petroleum!$J277)+Vehicles!$C$36*(1-Vehicles!$C$15)*Fuel_Specs!$B$24/((1-Vehicles!$C$36)*(1-Vehicles!$C$15)*Fuel_Specs!$B$21+Vehicles!$C$36*(1-Vehicles!$C$15)*Fuel_Specs!$B$24+Vehicles!$C$15*IF(Inputs!$E$628=1,IF(Inputs!$E$628=1,Fuel_Specs!$B$42,IF(Inputs!$E$628=3,Fuel_Specs!$B$44,Fuel_Specs!$B$43)),Fuel_Specs!$B$43))*(Petroleum!B277*Petroleum!$K$262+Petroleum!$K277)+Vehicles!$C$15*IF(Inputs!$E$628=1,IF(Inputs!$E$628=1,Fuel_Specs!$B$42,IF(Inputs!$E$628=3,Fuel_Specs!$B$44,Fuel_Specs!$B$43)),Fuel_Specs!$B$43)/((1-Vehicles!$C$36)*(1-Vehicles!$C$15)*Fuel_Specs!$B$21+Vehicles!$C$36*(1-Vehicles!$C$15)*Fuel_Specs!$B$24+Vehicles!$C$15*IF(Inputs!$E$628=1,IF(Inputs!$E$628=1,Fuel_Specs!$B$42,IF(Inputs!$E$628=3,Fuel_Specs!$B$44,Fuel_Specs!$B$43)),Fuel_Specs!$B$43))*(BioOil!$BA351*BioOil!$BB$335+BioOil!$BB351))/1000000*HLOOKUP($J$10,$Z$5:$AD$6,2,FALSE)/HLOOKUP($J$11,$Z$7:$AD$8,2,FALSE) -> 51.68598358 | AG22: =((1-Vehicles!$C$36)*(1-Vehicles!$C$15)*Fuel_Specs!$B$21/((1-Vehicles!$C$36)*(1-Vehicles!$C$15)*Fuel_Specs!$B$21+Vehicles!$C$36*(1-Vehicles!$C$15)*Fuel_Specs!$B$24+Vehicles!$C$15*IF(Inputs!$E$628=1,Fuel_Specs!$B$42,Fuel_Specs!$B$43))*(Petroleum!B277*Petroleum!$J$262+Petroleum!$J277)+Vehicles!$C$36*(1-Vehicles!$C$15)*Fuel_Specs!$B$24/((1-Vehicles!$C$36)*(1-Vehicles!$C$15)*Fuel_Specs!$B$21+Vehicles!$C$36*(1-Vehicles!$C$15)*Fuel_Specs!$B$24+Vehicles!$C$15*IF(Inputs!$E$628=1,Fuel_Specs!$B$42,Fuel_Specs!$B$43))*(Petroleum!B277*Petroleum!$K$262+Petroleum!$K277)+Vehicles!$C$15*IF(Inputs!$E$628=1,Fuel_Specs!$B$42,Fuel_Specs!$B$43)/((1-Vehicles!$C$36)*(1-Vehicles!$C$15)*Fuel_Specs!$B$21+Vehicles!$C$36*(1-Vehicles!$C$15)*Fuel_Specs!$B$24+Vehicles!$C$15*IF(Inputs!$E$628=1,Fuel_Specs!$B$42,Fuel_Specs!$B$43))*(Pyrolysis!$AB186*Pyrolysis!$AC$171+Pyrolysis!$AC186))/1000000*HLOOKUP($J$10,$Z$5:$AD$6,2,FALSE)/HLOOKUP($J$11,$Z$7:$AD$8,2,FALSE) -> 86.55583604 | AH22: =(((1-Vehicles!$C$37)*(1-Vehicles!$C$17-Vehicles!$C$18)*Fuel_Specs!$B$21*(Petroleum!B277*Petroleum!$J$262+Petroleum!$J277)+Vehicles!$C$37*(1-Vehicles!$C$17-Vehicles!$C$18)*Fuel_Specs!$B$24*(Petroleum!B277*Petroleum!$K$262+Petroleum!$K277)+Vehicles!$C$17*Fuel_Specs!$B$32*(EtOH!BP504*EtOH!$BQ$489+EtOH!$BQ504)+Vehicles!$C$18*Fuel_Specs!$B$35*('E-D Additives'!$B68*'E-D Additives'!$B$53))/((1-Vehicles!$C$37)*(1-Vehicles!$C$17-Vehicles!$C$18)*Fuel_Specs!$B$21+Vehicles!$C$37*(1-Vehicles!$C$17-Vehicles!$C$18)*Fuel_Specs!$B$24+Vehicles!$C$17*Fuel_Specs!$B$32+Vehicles!$C$18*Fuel_Specs!$B$35))/1000000*HLOOKUP($J$10,$Z$5:$AD$6,2,FALSE)/HLOOKUP($J$11,$Z$7:$AD$8,2,FALSE) -> 186.659143 | AI22: =AN22*(Vehicles!$M$23/Vehicles!$CM$59)/(Vehicles!$M$23*(1/Vehicles!$CM$59+1/Vehicles!$CN$59)+Vehicles!$M$24/Vehicles!$CO$59)+E22*(Vehicles!$M$23/Vehicles!$CN$59+Vehicles!$M$24/Vehicles!$CO$59)/(Vehicles!$M$23*(1/Vehicles!$CM$59+1/Vehicles!$CN$59)+Vehicles!$M$24/Vehicles!$CO$59) -> 204.9880062 | AJ22: =AN22*(Vehicles!$N$23/Vehicles!$CQ$59)/(Vehicles!$N$23*(1/Vehicles!$CQ$59+1/Vehicles!$CR$59)+Vehicles!$N$24/Vehicles!$CS$59)+AC22*(Vehicles!$N$23/Vehicles!$CR$59+Vehicles!$N$24/Vehicles!$CS$59)/(Vehicles!$N$23*(1/Vehicles!$CQ$59+1/Vehicles!$CR$59)+Vehicles!$N$24/Vehicles!$CS$59) -> 282.5710177 | AK22: =AN22*(Vehicles!$O$23/Vehicles!$CU$59)/(Vehicles!$O$23*(1/Vehicles!$CU$59+1/Vehicles!$CV$59)+Vehicles!$O$24/Vehicles!$CW$59)+AD22*(Vehicles!$O$23/Vehicles!$CV$59+Vehicles!$O$24/Vehicles!$CW$59)/(Vehicles!$O$23*(1/Vehicles!$CU$59+1/Vehicles!$CV$59)+Vehicles!$O$24/Vehicles!$CW$59) -> 296.8279952 | AL22: =AN22*(Vehicles!$P$23/Vehicles!$CY$59)/(Vehicles!$P$23*(1/Vehicles!$CY$59+1/Vehicles!$CZ$59)+Vehicles!$P$24/Vehicles!$DA$59)+AE22*(Vehicles!$P$23/Vehicles!$CZ$59+Vehicles!$P$24/Vehicles!$DA$59)/(Vehicles!$P$23*(1/Vehicles!$CY$59+1/Vehicles!$CZ$59)+Vehicles!$P$24/Vehicles!$DA$59) -> 186.0566426 | AM22: =AN22*(Vehicles!$R$23/Vehicles!$DG$59)/(Vehicles!$R$23*(1/Vehicles!$DG$59+1/Vehicles!$DH$59)+Vehicles!$R$24/Vehicles!$DI$59)+AH22*(Vehicles!$R$23/Vehicles!$DH$59+Vehicles!$R$24/Vehicles!$DI$59)/(Vehicles!$R$23*(1/Vehicles!$DG$59+1/Vehicles!$DH$59)+Vehicles!$R$24/Vehicles!$DI$59) -> 201.6626746 | AN22: =(Electric!$G200+Electric!$F200)/1000000*HLOOKUP($J$10,$Z$5:$AD$6,2,FALSE)/HLOOKUP($J$11,$Z$7:$AD$8,2,FALSE) -> 240.8145788 | AO22: =(Hydrogen!$AF177*Hydrogen!$AG$162+Hydrogen!$AG177)/1000000*HLOOKUP($J$10,$Z$5:$AD$6,2,FALSE)/HLOOKUP($J$11,$Z$7:$AD$8,2,FALSE) -> 447.623119 | AP22: =(Hydrogen!$BJ177*Hydrogen!$BK$162+Hydrogen!$BK177)/1000000*HLOOKUP($J$10,$Z$5:$AD$6,2,FALSE)/HLOOKUP($J$11,$Z$7:$AD$8,2,FALSE) -> 529.116384 | AQ22: =AN22*(Vehicles!$S$23/Vehicles!$DW$59)/(Vehicles!$S$23*(1/Vehicles!$DW$59+1/Vehicles!$DX$59)+Vehicles!$S$24/Vehicles!$DY$59)+AO22*(Vehicles!$S$23/Vehicles!$DX$59+Vehicles!$S$24/Vehicles!$DY$59)/(Vehicles!$S$23*(1/Vehicles!$DW$59+1/Vehicles!$DX$59)+Vehicles!$S$24/Vehicles!$DY$59) -> 376.6058296 | AR22: =AN22*(Vehicles!$S$23/Vehicles!$DW$59)/(Vehicles!$S$23*(1/Vehicles!$DW$59+1/Vehicles!$DX$59)+Vehicles!$S$24/Vehicles!$DY$59)+AP22*(Vehicles!$S$23/Vehicles!$DX$59+Vehicles!$S$24/Vehicles!$DY$59)/(Vehicles!$S$23*(1/Vehicles!$DW$59+1/Vehicles!$DX$59)+Vehicles!$S$24/Vehicles!$DY$59) -> 430.1146081 | AS22: =((1-Vehicles!$C$33)*(1-Vehicles!$C$16)*Fuel_Specs!$B$15/((1-Vehicles!$C$33)*(1-Vehicles!$C$16)*Fuel_Specs!$B$15+Vehicles!$C$33*(1-Vehicles!$C$16)*Fuel_Specs!$B$17+Vehicles!$C$16*Fuel_Specs!$B$46)*(Petroleum!$B277*Petroleum!$D$262+Petroleum!$D277)+Vehicles!$C$33*(1-Vehicles!$C$16)*Fuel_Specs!$B$17/((1-Vehicles!$C$33)*(1-Vehicles!$C$16)*Fuel_Specs!$B$15+Vehicles!$C$33*(1-Vehicles!$C$16)*Fuel_Specs!$B$17+Vehicles!$C$16*Fuel_Specs!$B$46)*(Petroleum!B277*Petroleum!$F$262+Petroleum!$F277)+Vehicles!$C$16*Fuel_Specs!$B$46/((1-Vehicles!$C$33)*(1-Vehicles!$C$16)*Fuel_Specs!$B$15+Vehicles!$C$33*(1-Vehicles!$C$16)*Fuel_Specs!$B$17+Vehicles!$C$16*Fuel_Specs!$B$46)*(IDL!$L127*IDL!$M$112+IDL!$M127))/1000000*HLOOKUP($J$10,$Z$5:$AD$6,2,FALSE)/HLOOKUP($J$11,$Z$7:$AD$8,2,FALSE) -> 55.74504569 | AV22: SI - CNG Vehicle | AW22: RNAVCNG | BE22: SI HEV - MeOH | BF22: RNAVHEVMEOH | BH22: SI PHEV - MeOH and Electricity | BI22: RNAVPHEVMEOH | BQ22: FCV - CA gasoline | BR22: RNAVFCVCARFG
A23: N2O | B23: =(Inputs!$E$1400*(Petroleum!$B278*Petroleum!$F$262+Petroleum!$F278)+(1-Inputs!$E$1400)*(Petroleum!$B278*Petroleum!$D$262+Petroleum!$D278))/1000000*HLOOKUP($J$10,$Z$5:$AD$6,2,FALSE)/HLOOKUP($J$11,$Z$7:$AD$8,2,FALSE) -> 2.642205932 | C23: =(Petroleum!$C278*Petroleum!$G$262+Petroleum!$G278)/1000000*HLOOKUP($J$10,$Z$5:$AD$6,2,FALSE)/HLOOKUP($J$11,$Z$7:$AD$8,2,FALSE) -> 2.832388013 | D23: =((1-Vehicles!$C$28)*(1-Vehicles!$C$7)*Fuel_Specs!$B$15/((1-Vehicles!$C$28)*(1-Vehicles!$C$7)*Fuel_Specs!$B$15+Vehicles!$C$28*(1-Vehicles!$C$7)*Fuel_Specs!$B$17+Vehicles!$C$7*Fuel_Specs!$B$32)*(Petroleum!$B278*Petroleum!$D$262+(Petroleum!$D278-'T&D'!G228))+Vehicles!$C$28*(1-Vehicles!$C$7)*Fuel_Specs!$B$17/((1-Vehicles!$C$28)*(1-Vehicles!$C$7)*Fuel_Specs!$B$15+Vehicles!$C$28*(1-Vehicles!$C$7)*Fuel_Specs!$B$17+Vehicles!$C$7*Fuel_Specs!$B$32)*(Petroleum!B278*Petroleum!$F$262+Petroleum!$F278)+Vehicles!$C$7*Fuel_Specs!$B$32/((1-Vehicles!$C$28)*(1-Vehicles!$C$7)*Fuel_Specs!$B$15+Vehicles!$C$28*(1-Vehicles!$C$7)*Fuel_Specs!$B$17+Vehicles!$C$7*Fuel_Specs!$B$32)*(EtOH!BR505*EtOH!$BS$489+EtOH!$BS505)+Petroleum!AS140+Petroleum!AT140)/1000000*HLOOKUP($J$10,$Z$5:$AD$6,2,FALSE)/HLOOKUP($J$11,$Z$7:$AD$8,2,FALSE) -> 2.642205932 | E23: =(Inputs!$E$97*(IF(Inputs!F$102=1,Petroleum!$B278,Petroleum!$C278)*Petroleum!$K$262+Petroleum!$K278)+(1-Inputs!$E$97)*(IF(Inputs!F$101=1,Petroleum!$B278,Petroleum!$C278)*Petroleum!$J$262+Petroleum!$J278))/1000000*HLOOKUP($J$10,$Z$5:$AD$6,2,FALSE)/HLOOKUP($J$11,$Z$7:$AD$8,2,FALSE) -> 0.4344843962 | F23: =(NG!$I100*NG!$J$84+NG!$J100)/1000000*HLOOKUP($J$10,$Z$5:$AD$6,2,FALSE)/HLOOKUP($J$11,$Z$7:$AD$8,2,FALSE) -> 2.155290201 | G23: =(NG!$Q100*NG!$R$84+NG!$R100)/1000000*HLOOKUP($J$10,$Z$5:$AD$6,2,FALSE)/HLOOKUP($J$11,$Z$7:$AD$8,2,FALSE) -> 2.349106991 | H23: =(NG!$W100*NG!$X$84+NG!$X100)/1000000*HLOOKUP($J$10,$Z$5:$AD$6,2,FALSE)/HLOOKUP($J$11,$Z$7:$AD$8,2,FALSE) -> 0.2025731309 | I23: =('MeOH&FTD'!BJ153*'MeOH&FTD'!BK$137+'MeOH&FTD'!BK153)/1000000*HLOOKUP($J$10,$Z$5:$AD$6,2,FALSE)/HLOOKUP($J$11,$Z$7:$AD$8,2,FALSE) -> 0.1039018421 | J23: =((1-Vehicles!$C$27)*(1-Vehicles!$C$5)*Fuel_Specs!$B$15/((1-Vehicles!$C$27)*(1-Vehicles!$C$5)*Fuel_Specs!$B$15+Vehicles!$C$27*(1-Vehicles!$C$5)*Fuel_Specs!$B$17+Vehicles!$C$5*Fuel_Specs!$B$31)*(Petroleum!$B278*Petroleum!$D$262+Petroleum!$D278)+Vehicles!$C$27*(1-Vehicles!$C$5)*Fuel_Specs!$B$17/((1-Vehicles!$C$27)*(1-Vehicles!$C$5)*Fuel_Specs!$B$15+Vehicles!$C$27*(1-Vehicles!$C$5)*Fuel_Specs!$B$17+Vehicles!$C$5*Fuel_Specs!$B$31)*(Petroleum!B278*Petroleum!$F$262+Petroleum!$F278)+Vehicles!$C$5*Fuel_Specs!$B$31/((1-Vehicles!$C$27)*(1-Vehicles!$C$5)*Fuel_Specs!$B$15+Vehicles!$C$27*(1-Vehicles!$C$5)*Fuel_Specs!$B$17+Vehicles!$C$5*Fuel_Specs!$B$31)*('MeOH&FTD'!$N153*'MeOH&FTD'!$O$137+'MeOH&FTD'!$O153))/1000000*HLOOKUP($J$10,$Z$5:$AD$6,2,FALSE)/HLOOKUP($J$11,$Z$7:$AD$8,2,FALSE) -> 0.3445635703 | K23: =((1-Vehicles!$C$27)*(1-Vehicles!$C$6)*Fuel_Specs!$B$15/((1-Vehicles!$C$27)*(1-Vehicles!$C$6)*Fuel_Specs!$B$15+Vehicles!$C$27*(1-Vehicles!$C$6)*Fuel_Specs!$B$17+Vehicles!$C$6*Fuel_Specs!$B$31)*(Petroleum!$B278*Petroleum!$D$262+Petroleum!$D278)+Vehicles!$C$27*(1-Vehicles!$C$6)*Fuel_Specs!$B$17/((1-Vehicles!$C$27)*(1-Vehicles!$C$6)*Fuel_Specs!$B$15+Vehicles!$C$27*(1-Vehicles!$C$6)*Fuel_Specs!$B$17+Vehicles!$C$6*Fuel_Specs!$B$31)*(Petroleum!B278*Petroleum!$F$262+Petroleum!$F278)+Vehicles!$C$6*Fuel_Specs!$B$31/((1-Vehicles!$C$27)*(1-Vehicles!$C$6)*Fuel_Specs!$B$15+Vehicles!$C$27*(1-Vehicles!$C$6)*Fuel_Specs!$B$17+Vehicles!$C$6*Fuel_Specs!$B$31)*('MeOH&FTD'!$N153*'MeOH&FTD'!$O$137+'MeOH&FTD'!$O153))/1000000*HLOOKUP($J$10,$Z$5:$AD$6,2,FALSE)/HLOOKUP($J$11,$Z$7:$AD$8,2,FALSE) -> 0.3447932805 | L23: =('MeOH&FTD'!$N153*'MeOH&FTD'!$O$137+'MeOH&FTD'!$O153)/1000000*HLOOKUP($J$10,$Z$5:$AD$6,2,FALSE)/HLOOKUP($J$11,$Z$7:$AD$8,2,FALSE) -> 0.3453235278 | M23: =((1-Vehicles!$C$29)*(1-Vehicles!$C$8)*Fuel_Specs!$B$15/((1-Vehicles!$C$29)*(1-Vehicles!$C$8)*Fuel_Specs!$B$15+Vehicles!$C$29*(1-Vehicles!$C$8)*Fuel_Specs!$B$17+Vehicles!$C$8*Fuel_Specs!$B$32)*(Petroleum!$B278*Petroleum!$D$262+(Petroleum!$D278-'T&D'!G228))+Vehicles!$C$29*(1-Vehicles!$C$8)*Fuel_Specs!$B$17/((1-Vehicles!$C$29)*(1-Vehicles!$C$8)*Fuel_Specs!$B$15+Vehicles!$C$29*(1-Vehicles!$C$8)*Fuel_Specs!$B$17+Vehicles!$C$8*Fuel_Specs!$B$32)*(Petroleum!B278*Petroleum!$F$262+Petroleum!$F278)+Vehicles!$C$8*Fuel_Specs!$B$32/((1-Vehicles!$C$29)*(1-Vehicles!$C$8)*Fuel_Specs!$B$15+Vehicles!$C$29*(1-Vehicles!$C$8)*Fuel_Specs!$B$17+Vehicles!$C$8*Fuel_Specs!$B$32)*(EtOH!BR505*EtOH!$BS$489+EtOH!$BS505)+Petroleum!AS140+Petroleum!AT140)/1000000*HLOOKUP($J$10,$Z$5:$AD$6,2,FALSE)/HLOOKUP($J$11,$Z$7:$AD$8,2,FALSE) -> 26.77542024 | N23: =((1-Vehicles!$C$30)*(1-Vehicles!$C$12)*Fuel_Specs!$B$15/((1-Vehicles!$C$30)*(1-Vehicles!$C$12)*Fuel_Specs!$B$15+Vehicles!$C$30*(1-Vehicles!$C$12)*Fuel_Specs!$B$17+Vehicles!$C$12*Fuel_Specs!$B$33)*(Petroleum!$B278*Petroleum!$D$262+Petroleum!$D278)+Vehicles!$C$30*(1-Vehicles!$C$12)*Fuel_Specs!$B$17/((1-Vehicles!$C$30)*(1-Vehicles!$C$12)*Fuel_Specs!$B$15+Vehicles!$C$30*(1-Vehicles!$C$12)*Fuel_Specs!$B$17+Vehicles!$C$12*Fuel_Specs!$B$33)*(Petroleum!B278*Petroleum!$F$262+Petroleum!$F278)+Vehicles!$C$12*Fuel_Specs!$B$33/((1-Vehicles!$C$30)*(1-Vehicles!$C$12)*Fuel_Specs!$B$15+Vehicles!$C$30*(1-Vehicles!$C$12)*Fuel_Specs!$B$17+Vehicles!$C$12*Fuel_Specs!$B$33)*(EtOH!$BT505*EtOH!$BU$489+EtOH!$BU505))/1000000*HLOOKUP($J$10,$Z$5:$AD$6,2,FALSE)/HLOOKUP($J$11,$Z$7:$AD$8,2,FALSE) -> 31.88464738 | O23: =((1-Vehicles!$C$29)*(1-Vehicles!$C$9)*Fuel_Specs!$B$15/((1-Vehicles!$C$29)*(1-Vehicles!$C$9)*Fuel_Specs!$B$15+Vehicles!$C$29*(1-Vehicles!$C$9)*Fuel_Specs!$B$17+Vehicles!$C$9*Fuel_Specs!$B$32)*(Petroleum!$B278*Petroleum!$D$262+(Petroleum!$D278-'T&D'!G228))+Vehicles!$C$29*(1-Vehicles!$C$9)*Fuel_Specs!$B$17/((1-Vehicles!$C$29)*(1-Vehicles!$C$9)*Fuel_Specs!$B$15+Vehicles!$C$29*(1-Vehicles!$C$9)*Fuel_Specs!$B$17+Vehicles!$C$9*Fuel_Specs!$B$32)*(Petroleum!B278*Petroleum!$F$262+Petroleum!$F278)+Vehicles!$C$9*Fuel_Specs!$B$32/((1-Vehicles!$C$29)*(1-Vehicles!$C$9)*Fuel_Specs!$B$15+Vehicles!$C$29*(1-Vehicles!$C$9)*Fuel_Specs!$B$17+Vehicles!$C$9*Fuel_Specs!$B$32)*(EtOH!BR505*EtOH!$BS$489+EtOH!$BS505)+Petroleum!AS140+Petroleum!AT140)/1000000*HLOOKUP($J$10,$Z$5:$AD$6,2,FALSE)/HLOOKUP($J$11,$Z$7:$AD$8,2,FALSE) -> 26.77542024 | P23: =(EtOH!$BP505*EtOH!$BQ$489+EtOH!$BQ505)/1000000*HLOOKUP($J$10,$Z$5:$AD$6,2,FALSE)/HLOOKUP($J$11,$Z$7:$AD$8,2,FALSE) -> 34.83700198 | Q23: =((1-Vehicles!$C$33)*(1-Vehicles!$C$16)*Fuel_Specs!$B$15/((1-Vehicles!$C$33)*(1-Vehicles!$C$16)*Fuel_Specs!$B$15+Vehicles!$C$33*(1-Vehicles!$C$16)*Fuel_Specs!$B$17+Vehicles!$C$16*Fuel_Specs!$B$45)*(Petroleum!$B278*Petroleum!$D$262+Petroleum!$D278)+Vehicles!$C$33*(1-Vehicles!$C$16)*Fuel_Specs!$B$17/((1-Vehicles!$C$33)*(1-Vehicles!$C$16)*Fuel_Specs!$B$15+Vehicles!$C$33*(1-Vehicles!$C$16)*Fuel_Specs!$B$17+Vehicles!$C$16*Fuel_Specs!$B$45)*(Petroleum!B278*Petroleum!$F$262+Petroleum!$F278)+Vehicles!$C$16*Fuel_Specs!$B$45/((1-Vehicles!$C$33)*(1-Vehicles!$C$16)*Fuel_Specs!$B$15+Vehicles!$C$33*(1-Vehicles!$C$16)*Fuel_Specs!$B$17+Vehicles!$C$16*Fuel_Specs!$B$45)*(BioOil!$BO352*BioOil!$BP$335+BioOil!$BP352))/1000000*HLOOKUP($J$10,$Z$5:$AD$6,2,FALSE)/HLOOKUP($J$11,$Z$7:$AD$8,2,FALSE) -> 44.01514233 | R23: =((1-Vehicles!$C$33)*(1-Vehicles!$C$16)*Fuel_Specs!$B$15/((1-Vehicles!$C$33)*(1-Vehicles!$C$16)*Fuel_Specs!$B$15+Vehicles!$C$33*(1-Vehicles!$C$16)*Fuel_Specs!$B$17+Vehicles!$C$16*Fuel_Specs!$B$45)*(Petroleum!$B278*Petroleum!$D$262+Petroleum!$D278)+Vehicles!$C$33*(1-Vehicles!$C$16)*Fuel_Specs!$B$17/((1-Vehicles!$C$33)*(1-Vehicles!$C$16)*Fuel_Specs!$B$15+Vehicles!$C$33*(1-Vehicles!$C$16)*Fuel_Specs!$B$17+Vehicles!$C$16*Fuel_Specs!$B$45)*(Petroleum!B278*Petroleum!$F$262+Petroleum!$F278)+Vehicles!$C$16*Fuel_Specs!$B$45/((1-Vehicles!$C$33)*(1-Vehicles!$C$16)*Fuel_Specs!$B$15+Vehicles!$C$33*(1-Vehicles!$C$16)*Fuel_Specs!$B$17+Vehicles!$C$16*Fuel_Specs!$B$45)*(Pyrolysis!$Z187*Pyrolysis!$AA$171+Pyrolysis!$AA187))/1000000*HLOOKUP($J$10,$Z$5:$AD$6,2,FALSE)/HLOOKUP($J$11,$Z$7:$AD$8,2,FALSE) -> 0.4613555968 | S23: =AN23*(Vehicles!$C$23/Vehicles!$AR$59)/(Vehicles!$C$23*(1/Vehicles!$AR$59+1/Vehicles!$AS$59)+Vehicles!$C$24/Vehicles!$AT$59)+B23*(Vehicles!$C$23/Vehicles!$AS$59+Vehicles!$C$24/Vehicles!$AT$59)/(Vehicles!$C$23*(1/Vehicles!$AR$59+1/Vehicles!$AS$59)+Vehicles!$C$24/Vehicles!$AT$59) -> 2.603147017 | T23: =AN23*(Vehicles!$D$23/Vehicles!$AV$59)/(Vehicles!$D$23*(1/Vehicles!$AV$59+1/Vehicles!$AW$59)+Vehicles!$D$24/Vehicles!$AX$59)+C23*(Vehicles!$D$23/Vehicles!$AW$59+Vehicles!$D$24/Vehicles!$AX$59)/(Vehicles!$D$23*(1/Vehicles!$AV$59+1/Vehicles!$AW$59)+Vehicles!$D$24/Vehicles!$AX$59) -> 2.740718124 | U23: =AN23*(Vehicles!$F$23/Vehicles!$BD$59)/(Vehicles!$F$23*(1/Vehicles!$BD$59+1/Vehicles!$BE$59)+Vehicles!$F$24/Vehicles!$BF$59)+D23*(Vehicles!$F$23/Vehicles!$BE$59+Vehicles!$F$24/Vehicles!$BF$59)/(Vehicles!$F$23*(1/Vehicles!$BD$59+1/Vehicles!$BE$59)+Vehicles!$F$24/Vehicles!$BF$59) -> 2.603147017 | V23: =AN23*(Vehicles!$G$23/Vehicles!$BH$59)/(Vehicles!$G$23*(1/Vehicles!$BH$59+1/Vehicles!$BI$59)+Vehicles!$G$24/Vehicles!$BJ$59)+F23*(Vehicles!$G$23/Vehicles!$BI$59+Vehicles!$G$24/Vehicles!$BJ$59)/(Vehicles!$G$23*(1/Vehicles!$BH$59+1/Vehicles!$BI$59)+Vehicles!$G$24/Vehicles!$BJ$59) -> 2.250929099 | W23: =AN23*(Vehicles!$H$23/Vehicles!$BL$59)/(Vehicles!$H$23*(1/Vehicles!$BL$59+1/Vehicles!$BM$59)+Vehicles!$H$24/Vehicles!$BN$59)+G23*(Vehicles!$H$23/Vehicles!$BM$59+Vehicles!$H$24/Vehicles!$BN$59)/(Vehicles!$H$23*(1/Vehicles!$BL$59+1/Vehicles!$BM$59)+Vehicles!$H$24/Vehicles!$BN$59) -> 2.391129429 | X23: =AN23*(Vehicles!$I$23/Vehicles!$BP$59)/(Vehicles!$I$23*(1/Vehicles!$BP$59+1/Vehicles!$BQ$59)+Vehicles!$I$24/Vehicles!$BR$59)+H23*(Vehicles!$I$23/Vehicles!$BQ$59+Vehicles!$I$24/Vehicles!$BR$59)/(Vehicles!$I$23*(1/Vehicles!$BP$59+1/Vehicles!$BQ$59)+Vehicles!$I$24/Vehicles!$BR$59) -> 0.8384014351 | Y23: =AN23*(Vehicles!$J$23/Vehicles!$BT$59)/(Vehicles!$J$23*(1/Vehicles!$BT$59+1/Vehicles!$BU$59)+Vehicles!$J$24/Vehicles!$BV$59)+K23*(Vehicles!$J$23/Vehicles!$BU$59+Vehicles!$J$24/Vehicles!$BV$59)/(Vehicles!$J$23*(1/Vehicles!$BT$59+1/Vehicles!$BU$59)+Vehicles!$J$24/Vehicles!$BV$59) -> 0.9053216537 | Z23: =AN23*(Vehicles!$K$23/Vehicles!$BX$59)/(Vehicles!$K$23*(1/Vehicles!$BX$59+1/Vehicles!$BY$59)+Vehicles!$K$24/Vehicles!$BZ$59)+O23*(Vehicles!$K$23/Vehicles!$BY$59+Vehicles!$K$24/Vehicles!$BZ$59)/(Vehicles!$K$23*(1/Vehicles!$BX$59+1/Vehicles!$BY$59)+Vehicles!$K$24/Vehicles!$BZ$59) -> 20.46507303 | AA23: =AN23*(Vehicles!$L$23/Vehicles!$CB$59)/(Vehicles!$L$23*(1/Vehicles!$CB$59+1/Vehicles!$CC$59)+Vehicles!$L$24/Vehicles!$CD$59)+AO23*(Vehicles!$L$23/Vehicles!$CC$59+Vehicles!$L$24/Vehicles!$CD$59)/(Vehicles!$L$23*(1/Vehicles!$CB$59+1/Vehicles!$CC$59)+Vehicles!$L$24/Vehicles!$CD$59) -> 3.122221325 | AB23: =AN23*(Vehicles!$L$23/Vehicles!$CB$59)/(Vehicles!$L$23*(1/Vehicles!$CB$59+1/Vehicles!$CC$59)+Vehicles!$L$24/Vehicles!$CE$59)+AP23*(Vehicles!$L$23/Vehicles!$CC$59+Vehicles!$L$24/Vehicles!$CE$59)/(Vehicles!$L$23*(1/Vehicles!$CB$59+1/Vehicles!$CC$59)+Vehicles!$L$24/Vehicles!$CE$59) -> 3.758661871 | AC23: =('MeOH&FTD'!$AJ153*'MeOH&FTD'!$AK$137+'MeOH&FTD'!$AK153)/1000000*HLOOKUP($J$10,$Z$5:$AD$6,2,FALSE)/HLOOKUP($J$11,$Z$7:$AD$8,2,FALSE) -> 0.4605659165 | AD23: =((1-Vehicles!$C$34)*(1-Vehicles!$C$13)*Fuel_Specs!$B$21/((1-Vehicles!$C$34)*(1-Vehicles!$C$13)*Fuel_Specs!$B$21+Vehicles!$C$34*(1-Vehicles!$C$13)*Fuel_Specs!$B$24+Vehicles!$C$13*Fuel_Specs!$B$41)*(Petroleum!B278*Petroleum!$J$262+Petroleum!$J278)+Vehicles!$C$34*(1-Vehicles!$C$13)*Fuel_Specs!$B$24/((1-Vehicles!$C$34)*(1-Vehicles!$C$13)*Fuel_Specs!$B$21+Vehicles!$C$34*(1-Vehicles!$C$13)*Fuel_Specs!$B$24+Vehicles!$C$13*Fuel_Specs!$B$41)*(Petroleum!B278*Petroleum!$K$262+Petroleum!$K278)+Vehicles!$C$13*Fuel_Specs!$B$41/((1-Vehicles!$C$34)*(1-Vehicles!$C$13)*Fuel_Specs!$B$21+Vehicles!$C$34*(1-Vehicles!$C$13)*Fuel_Specs!$B$24+Vehicles!$C$13*Fuel_Specs!$B$41)*('MeOH&FTD'!$AZ153*'MeOH&FTD'!$BA$137+'MeOH&FTD'!$BA153))/1000000*HLOOKUP($J$10,$Z$5:$AD$6,2,FALSE)/HLOOKUP($J$11,$Z$7:$AD$8,2,FALSE) -> 0.1945062764 | AE23: =((1-Vehicles!$C$35)*(1-Vehicles!$C$14)*Fuel_Specs!$B$21/((1-Vehicles!$C$35)*(1-Vehicles!$C$14)*Fuel_Specs!$B$21+Vehicles!$C$35*(1-Vehicles!$C$14)*Fuel_Specs!$B$24+Vehicles!$C$14*Fuel_Specs!$B$40)*(Petroleum!B278*Petroleum!$J$262+Petroleum!$J278)+Vehicles!$C$35*(1-Vehicles!$C$14)*Fuel_Specs!$B$24/((1-Vehicles!$C$35)*(1-Vehicles!$C$14)*Fuel_Specs!$B$21+Vehicles!$C$35*(1-Vehicles!$C$14)*Fuel_Specs!$B$24+Vehicles!$C$14*Fuel_Specs!$B$40)*(Petroleum!B278*Petroleum!$K$262+Petroleum!$K278)+Vehicles!$C$14*Fuel_Specs!$B$40/((1-Vehicles!$C$35)*(1-Vehicles!$C$14)*Fuel_Specs!$B$21+Vehicles!$C$35*(1-Vehicles!$C$14)*Fuel_Specs!$B$24+Vehicles!$C$14*Fuel_Specs!$B$40)*(BioOil!$W352*BioOil!$X$335+BioOil!$X352))/1000000*HLOOKUP($J$10,$Z$5:$AD$6,2,FALSE)/HLOOKUP($J$11,$Z$7:$AD$8,2,FALSE) -> 5.023465769 | AF23: =((1-Vehicles!$C$36)*(1-Vehicles!$C$15)*Fuel_Specs!$B$21/((1-Vehicles!$C$36)*(1-Vehicles!$C$15)*Fuel_Specs!$B$21+Vehicles!$C$36*(1-Vehicles!$C$15)*Fuel_Specs!$B$24+Vehicles!$C$15*IF(Inputs!$E$628=1,IF(Inputs!$E$628=1,Fuel_Specs!$B$42,IF(Inputs!$E$628=3,Fuel_Specs!$B$44,Fuel_Specs!$B$43)),Fuel_Specs!$B$43))*(Petroleum!B278*Petroleum!$J$262+Petroleum!$J278)+Vehicles!$C$36*(1-Vehicles!$C$15)*Fuel_Specs!$B$24/((1-Vehicles!$C$36)*(1-Vehicles!$C$15)*Fuel_Specs!$B$21+Vehicles!$C$36*(1-Vehicles!$C$15)*Fuel_Specs!$B$24+Vehicles!$C$15*IF(Inputs!$E$628=1,IF(Inputs!$E$628=1,Fuel_Specs!$B$42,IF(Inputs!$E$628=3,Fuel_Specs!$B$44,Fuel_Specs!$B$43)),Fuel_Specs!$B$43))*(Petroleum!B278*Petroleum!$K$262+Petroleum!$K278)+Vehicles!$C$15*IF(Inputs!$E$628=1,IF(Inputs!$E$628=1,Fuel_Specs!$B$42,IF(Inputs!$E$628=3,Fuel_Specs!$B$44,Fuel_Specs!$B$43)),Fuel_Specs!$B$43)/((1-Vehicles!$C$36)*(1-Vehicles!$C$15)*Fuel_Specs!$B$21+Vehicles!$C$36*(1-Vehicles!$C$15)*Fuel_Specs!$B$24+Vehicles!$C$15*IF(Inputs!$E$628=1,IF(Inputs!$E$628=1,Fuel_Specs!$B$42,IF(Inputs!$E$628=3,Fuel_Specs!$B$44,Fuel_Specs!$B$43)),Fuel_Specs!$B$43))*(BioOil!$BA352*BioOil!$BB$335+BioOil!$BB352))/1000000*HLOOKUP($J$10,$Z$5:$AD$6,2,FALSE)/HLOOKUP($J$11,$Z$7:$AD$8,2,FALSE) -> 23.09538724 | AG23: =((1-Vehicles!$C$36)*(1-Vehicles!$C$15)*Fuel_Specs!$B$21/((1-Vehicles!$C$36)*(1-Vehicles!$C$15)*Fuel_Specs!$B$21+Vehicles!$C$36*(1-Vehicles!$C$15)*Fuel_Specs!$B$24+Vehicles!$C$15*IF(Inputs!$E$628=1,Fuel_Specs!$B$42,Fuel_Specs!$B$43))*(Petroleum!B278*Petroleum!$J$262+Petroleum!$J278)+Vehicles!$C$36*(1-Vehicles!$C$15)*Fuel_Specs!$B$24/((1-Vehicles!$C$36)*(1-Vehicles!$C$15)*Fuel_Specs!$B$21+Vehicles!$C$36*(1-Vehicles!$C$15)*Fuel_Specs!$B$24+Vehicles!$C$15*IF(Inputs!$E$628=1,Fuel_Specs!$B$42,Fuel_Specs!$B$43))*(Petroleum!B278*Petroleum!$K$262+Petroleum!$K278)+Vehicles!$C$15*IF(Inputs!$E$628=1,Fuel_Specs!$B$42,Fuel_Specs!$B$43)/((1-Vehicles!$C$36)*(1-Vehicles!$C$15)*Fuel_Specs!$B$21+Vehicles!$C$36*(1-Vehicles!$C$15)*Fuel_Specs!$B$24+Vehicles!$C$15*IF(Inputs!$E$628=1,Fuel_Specs!$B$42,Fuel_Specs!$B$43))*(Pyrolysis!$AB187*Pyrolysis!$AC$171+Pyrolysis!$AC187))/1000000*HLOOKUP($J$10,$Z$5:$AD$6,2,FALSE)/HLOOKUP($J$11,$Z$7:$AD$8,2,FALSE) -> 0.6261504215 | AH23: =(((1-Vehicles!$C$37)*(1-Vehicles!$C$17-Vehicles!$C$18)*Fuel_Specs!$B$21*(Petroleum!B278*Petroleum!$J$262+Petroleum!$J278)+Vehicles!$C$37*(1-Vehicles!$C$17-Vehicles!$C$18)*Fuel_Specs!$B$24*(Petroleum!B278*Petroleum!$K$262+Petroleum!$K278)+Vehicles!$C$17*Fuel_Specs!$B$32*(EtOH!BP505*EtOH!$BQ$489+EtOH!$BQ505)+Vehicles!$C$18*Fuel_Specs!$B$35*('E-D Additives'!$B69*'E-D Additives'!$B$53))/((1-Vehicles!$C$37)*(1-Vehicles!$C$17-Vehicles!$C$18)*Fuel_Specs!$B$21+Vehicles!$C$37*(1-Vehicles!$C$17-Vehicles!$C$18)*Fuel_Specs!$B$24+Vehicles!$C$17*Fuel_Specs!$B$32+Vehicles!$C$18*Fuel_Specs!$B$35))/1000000*HLOOKUP($J$10,$Z$5:$AD$6,2,FALSE)/HLOOKUP($J$11,$Z$7:$AD$8,2,FALSE) -> 2.584785946 | AI23: =AN23*(Vehicles!$M$23/Vehicles!$CM$59)/(Vehicles!$M$23*(1/Vehicles!$CM$59+1/Vehicles!$CN$59)+Vehicles!$M$24/Vehicles!$CO$59)+E23*(Vehicles!$M$23/Vehicles!$CN$59+Vehicles!$M$24/Vehicles!$CO$59)/(Vehicles!$M$23*(1/Vehicles!$CM$59+1/Vehicles!$CN$59)+Vehicles!$M$24/Vehicles!$CO$59) -> 1.007007253 | AJ23: =AN23*(Vehicles!$N$23/Vehicles!$CQ$59)/(Vehicles!$N$23*(1/Vehicles!$CQ$59+1/Vehicles!$CR$59)+Vehicles!$N$24/Vehicles!$CS$59)+AC23*(Vehicles!$N$23/Vehicles!$CR$59+Vehicles!$N$24/Vehicles!$CS$59)/(Vehicles!$N$23*(1/Vehicles!$CQ$59+1/Vehicles!$CR$59)+Vehicles!$N$24/Vehicles!$CS$59) -> 1.025863 | AK23: =AN23*(Vehicles!$O$23/Vehicles!$CU$59)/(Vehicles!$O$23*(1/Vehicles!$CU$59+1/Vehicles!$CV$59)+Vehicles!$O$24/Vehicles!$CW$59)+AD23*(Vehicles!$O$23/Vehicles!$CV$59+Vehicles!$O$24/Vehicles!$CW$59)/(Vehicles!$O$23*(1/Vehicles!$CU$59+1/Vehicles!$CV$59)+Vehicles!$O$24/Vehicles!$CW$59) -> 0.8335140436 | AL23: =AN23*(Vehicles!$P$23/Vehicles!$CY$59)/(Vehicles!$P$23*(1/Vehicles!$CY$59+1/Vehicles!$CZ$59)+Vehicles!$P$24/Vehicles!$DA$59)+AE23*(Vehicles!$P$23/Vehicles!$CZ$59+Vehicles!$P$24/Vehicles!$DA$59)/(Vehicles!$P$23*(1/Vehicles!$CY$59+1/Vehicles!$CZ$59)+Vehicles!$P$24/Vehicles!$DA$59) -> 4.324630987 | AM23: =AN23*(Vehicles!$R$23/Vehicles!$DG$59)/(Vehicles!$R$23*(1/Vehicles!$DG$59+1/Vehicles!$DH$59)+Vehicles!$R$24/Vehicles!$DI$59)+AH23*(Vehicles!$R$23/Vehicles!$DH$59+Vehicles!$R$24/Vehicles!$DI$59)/(Vehicles!$R$23*(1/Vehicles!$DG$59+1/Vehicles!$DH$59)+Vehicles!$R$24/Vehicles!$DI$59) -> 2.561576966 | AN23: =(Electric!$G201+Electric!$F201)/1000000*HLOOKUP($J$10,$Z$5:$AD$6,2,FALSE)/HLOOKUP($J$11,$Z$7:$AD$8,2,FALSE) -> 2.501012842 | AO23: =(Hydrogen!$AF178*Hydrogen!$AG$162+Hydrogen!$AG178)/1000000*HLOOKUP($J$10,$Z$5:$AD$6,2,FALSE)/HLOOKUP($J$11,$Z$7:$AD$8,2,FALSE) -> 3.373584877 | AP23: =(Hydrogen!$BJ178*Hydrogen!$BK$162+Hydrogen!$BK178)/1000000*HLOOKUP($J$10,$Z$5:$AD$6,2,FALSE)/HLOOKUP($J$11,$Z$7:$AD$8,2,FALSE) -> 4.267552421 | AQ23: =AN23*(Vehicles!$S$23/Vehicles!$DW$59)/(Vehicles!$S$23*(1/Vehicles!$DW$59+1/Vehicles!$DX$59)+Vehicles!$S$24/Vehicles!$DY$59)+AO23*(Vehicles!$S$23/Vehicles!$DX$59+Vehicles!$S$24/Vehicles!$DY$59)/(Vehicles!$S$23*(1/Vehicles!$DW$59+1/Vehicles!$DX$59)+Vehicles!$S$24/Vehicles!$DY$59) -> 3.073946861 | AR23: =AN23*(Vehicles!$S$23/Vehicles!$DW$59)/(Vehicles!$S$23*(1/Vehicles!$DW$59+1/Vehicles!$DX$59)+Vehicles!$S$24/Vehicles!$DY$59)+AP23*(Vehicles!$S$23/Vehicles!$DX$59+Vehicles!$S$24/Vehicles!$DY$59)/(Vehicles!$S$23*(1/Vehicles!$DW$59+1/Vehicles!$DX$59)+Vehicles!$S$24/Vehicles!$DY$59) -> 3.66092925 | AS23: =((1-Vehicles!$C$33)*(1-Vehicles!$C$16)*Fuel_Specs!$B$15/((1-Vehicles!$C$33)*(1-Vehicles!$C$16)*Fuel_Specs!$B$15+Vehicles!$C$33*(1-Vehicles!$C$16)*Fuel_Specs!$B$17+Vehicles!$C$16*Fuel_Specs!$B$46)*(Petroleum!$B278*Petroleum!$D$262+Petroleum!$D278)+Vehicles!$C$33*(1-Vehicles!$C$16)*Fuel_Specs!$B$17/((1-Vehicles!$C$33)*(1-Vehicles!$C$16)*Fuel_Specs!$B$15+Vehicles!$C$33*(1-Vehicles!$C$16)*Fuel_Specs!$B$17+Vehicles!$C$16*Fuel_Specs!$B$46)*(Petroleum!B278*Petroleum!$F$262+Petroleum!$F278)+Vehicles!$C$16*Fuel_Specs!$B$46/((1-Vehicles!$C$33)*(1-Vehicles!$C$16)*Fuel_Specs!$B$15+Vehicles!$C$33*(1-Vehicles!$C$16)*Fuel_Specs!$B$17+Vehicles!$C$16*Fuel_Specs!$B$46)*(IDL!$L128*IDL!$M$112+IDL!$M128))/1000000*HLOOKUP($J$10,$Z$5:$AD$6,2,FALSE)/HLOOKUP($J$11,$Z$7:$AD$8,2,FALSE) -> 6.616693694 | AV23: SI - LNG Vehicle | AW23: RNAVLNG | BE23: SI HEV - EtOH | BF23: RNAVHEVETOH | BH23: SI PHEV - EtOH and Electricity | BI23: RNAVPHEVETOH | BQ23: FCV - Diesel | BR23: RNAVFCVDIESEL
A24: GHGs | B24: =B21+SUMPRODUCT(B22:B23,Fuel_Specs!$B$96:$B$97)+SUMPRODUCT(B25:B27,Fuel_Specs!$B$102:$B$104)+SUMPRODUCT(B31:B32,Fuel_Specs!$B$105:$B$106) -> 19255.0762 | C24: =C21+SUMPRODUCT(C22:C23,Fuel_Specs!$B$96:$B$97)+SUMPRODUCT(C25:C27,Fuel_Specs!$B$102:$B$104)+SUMPRODUCT(C31:C32,Fuel_Specs!$B$105:$B$106) -> 30985.62875 | D24: =D21+SUMPRODUCT(D22:D23,Fuel_Specs!$B$96:$B$97)+SUMPRODUCT(D25:D27,Fuel_Specs!$B$102:$B$104)+SUMPRODUCT(D31:D32,Fuel_Specs!$B$105:$B$106) -> 19255.0762 | E24: =E21+SUMPRODUCT(E22:E23,Fuel_Specs!$B$96:$B$97)+SUMPRODUCT(E25:E27,Fuel_Specs!$B$102:$B$104)+SUMPRODUCT(E31:E32,Fuel_Specs!$B$105:$B$106) -> 23969.39593 | F24: =F21+SUMPRODUCT(F22:F23,Fuel_Specs!$B$96:$B$97)+SUMPRODUCT(F25:F27,Fuel_Specs!$B$102:$B$104)+SUMPRODUCT(F31:F32,Fuel_Specs!$B$105:$B$106) -> 20152.65919 | G24: =G21+SUMPRODUCT(G22:G23,Fuel_Specs!$B$96:$B$97)+SUMPRODUCT(G25:G27,Fuel_Specs!$B$102:$B$104)+SUMPRODUCT(G31:G32,Fuel_Specs!$B$105:$B$106) -> 26855.33877 | H24: =H21+SUMPRODUCT(H22:H23,Fuel_Specs!$B$96:$B$97)+SUMPRODUCT(H25:H27,Fuel_Specs!$B$102:$B$104)+SUMPRODUCT(H31:H32,Fuel_Specs!$B$105:$B$106) -> 16542.94639 | I24: =I21+SUMPRODUCT(I22:I23,Fuel_Specs!$B$96:$B$97)+SUMPRODUCT(I25:I27,Fuel_Specs!$B$102:$B$104)+SUMPRODUCT(I31:I32,Fuel_Specs!$B$105:$B$106) -> 40797.7093 | J24: =J21+SUMPRODUCT(J22:J23,Fuel_Specs!$B$96:$B$97)+SUMPRODUCT(J25:J27,Fuel_Specs!$B$102:$B$104)+SUMPRODUCT(J31:J32,Fuel_Specs!$B$105:$B$106) -> 25834.33726 | K24: =K21+SUMPRODUCT(K22:K23,Fuel_Specs!$B$96:$B$97)+SUMPRODUCT(K25:K27,Fuel_Specs!$B$102:$B$104)+SUMPRODUCT(K31:K32,Fuel_Specs!$B$105:$B$106) -> 26270.78069 | L24: =L21+SUMPRODUCT(L22:L23,Fuel_Specs!$B$96:$B$97)+SUMPRODUCT(L25:L27,Fuel_Specs!$B$102:$B$104)+SUMPRODUCT(L31:L32,Fuel_Specs!$B$105:$B$106) -> 27278.23697 | M24: =M21+SUMPRODUCT(M22:M23,Fuel_Specs!$B$96:$B$97)+SUMPRODUCT(M25:M27,Fuel_Specs!$B$102:$B$104)+SUMPRODUCT(M31:M32,Fuel_Specs!$B$105:$B$106) -> -7485.652699 | N24: =N21+SUMPRODUCT(N22:N23,Fuel_Specs!$B$96:$B$97)+SUMPRODUCT(N25:N27,Fuel_Specs!$B$102:$B$104)+SUMPRODUCT(N31:N32,Fuel_Specs!$B$105:$B$106) -> -13417.5009 | O24: =O21+SUMPRODUCT(O22:O23,Fuel_Specs!$B$96:$B$97)+SUMPRODUCT(O25:O27,Fuel_Specs!$B$102:$B$104)+SUMPRODUCT(O31:O32,Fuel_Specs!$B$105:$B$106) -> -7485.652699 | P24: =P21+SUMPRODUCT(P22:P23,Fuel_Specs!$B$96:$B$97)+SUMPRODUCT(P25:P27,Fuel_Specs!$B$102:$B$104)+SUMPRODUCT(P31:P32,Fuel_Specs!$B$105:$B$106) -> -16045.84823 | Q24: =Q21+SUMPRODUCT(Q22:Q23,Fuel_Specs!$B$96:$B$97)+SUMPRODUCT(Q25:Q27,Fuel_Specs!$B$102:$B$104)+SUMPRODUCT(Q31:Q32,Fuel_Specs!$B$105:$B$106) -> -49715.25548 | R24: =R21+SUMPRODUCT(R22:R23,Fuel_Specs!$B$96:$B$97)+SUMPRODUCT(R25:R27,Fuel_Specs!$B$102:$B$104)+SUMPRODUCT(R31:R32,Fuel_Specs!$B$105:$B$106) -> -49618.49454 | S24: =S21+SUMPRODUCT(S22:S23,Fuel_Specs!$B$96:$B$97)+SUMPRODUCT(S25:S27,Fuel_Specs!$B$102:$B$104)+SUMPRODUCT(S31:S32,Fuel_Specs!$B$105:$B$106) -> 52415.54225 | T24: =T21+SUMPRODUCT(T22:T23,Fuel_Specs!$B$96:$B$97)+SUMPRODUCT(T25:T27,Fuel_Specs!$B$102:$B$104)+SUMPRODUCT(T31:T32,Fuel_Specs!$B$105:$B$106) -> 60901.01628 | U24: =U21+SUMPRODUCT(U22:U23,Fuel_Specs!$B$96:$B$97)+SUMPRODUCT(U25:U27,Fuel_Specs!$B$102:$B$104)+SUMPRODUCT(U31:U32,Fuel_Specs!$B$105:$B$106) -> 52415.54225 | V24: =V21+SUMPRODUCT(V22:V23,Fuel_Specs!$B$96:$B$97)+SUMPRODUCT(V25:V27,Fuel_Specs!$B$102:$B$104)+SUMPRODUCT(V31:V32,Fuel_Specs!$B$105:$B$106) -> 53064.82259 | W24: =W21+SUMPRODUCT(W22:W23,Fuel_Specs!$B$96:$B$97)+SUMPRODUCT(W25:W27,Fuel_Specs!$B$102:$B$104)+SUMPRODUCT(W31:W32,Fuel_Specs!$B$105:$B$106) -> 57913.30805 | X24: =X21+SUMPRODUCT(X22:X23,Fuel_Specs!$B$96:$B$97)+SUMPRODUCT(X25:X27,Fuel_Specs!$B$102:$B$104)+SUMPRODUCT(X31:X32,Fuel_Specs!$B$105:$B$106) -> 50453.6818 | Y24: =Y21+SUMPRODUCT(Y22:Y23,Fuel_Specs!$B$96:$B$97)+SUMPRODUCT(Y25:Y27,Fuel_Specs!$B$102:$B$104)+SUMPRODUCT(Y31:Y32,Fuel_Specs!$B$105:$B$106) -> 55608.49691 | Z24: =Z21+SUMPRODUCT(Z22:Z23,Fuel_Specs!$B$96:$B$97)+SUMPRODUCT(Z25:Z27,Fuel_Specs!$B$102:$B$104)+SUMPRODUCT(Z31:Z32,Fuel_Specs!$B$105:$B$106) -> 30627.34737 | AA24: =AA21+SUMPRODUCT(AA22:AA23,Fuel_Specs!$B$96:$B$97)+SUMPRODUCT(AA25:AA27,Fuel_Specs!$B$102:$B$104)+SUMPRODUCT(AA31:AA32,Fuel_Specs!$B$105:$B$106) -> 130585.0196 | AB24: =AB21+SUMPRODUCT(AB22:AB23,Fuel_Specs!$B$96:$B$97)+SUMPRODUCT(AB25:AB27,Fuel_Specs!$B$102:$B$104)+SUMPRODUCT(AB31:AB32,Fuel_Specs!$B$105:$B$106) -> 159597.158 | AC24: =AC21+SUMPRODUCT(AC22:AC23,Fuel_Specs!$B$96:$B$97)+SUMPRODUCT(AC25:AC27,Fuel_Specs!$B$102:$B$104)+SUMPRODUCT(AC31:AC32,Fuel_Specs!$B$105:$B$106) -> 35596.97191 | AD24: =AD21+SUMPRODUCT(AD22:AD23,Fuel_Specs!$B$96:$B$97)+SUMPRODUCT(AD25:AD27,Fuel_Specs!$B$102:$B$104)+SUMPRODUCT(AD31:AD32,Fuel_Specs!$B$105:$B$106) -> 34783.81241 | AE24: =AE21+SUMPRODUCT(AE22:AE23,Fuel_Specs!$B$96:$B$97)+SUMPRODUCT(AE25:AE27,Fuel_Specs!$B$102:$B$104)+SUMPRODUCT(AE31:AE32,Fuel_Specs!$B$105:$B$106) -> 9479.670423 | AF24: =AF21+SUMPRODUCT(AF22:AF23,Fuel_Specs!$B$96:$B$97)+SUMPRODUCT(AF25:AF27,Fuel_Specs!$B$102:$B$104)+SUMPRODUCT(AF31:AF32,Fuel_Specs!$B$105:$B$106) -> -49706.24129 | AG24: =AG21+SUMPRODUCT(AG22:AG23,Fuel_Specs!$B$96:$B$97)+SUMPRODUCT(AG25:AG27,Fuel_Specs!$B$102:$B$104)+SUMPRODUCT(AG31:AG32,Fuel_Specs!$B$105:$B$106) -> -44420.98016 | AH24: =AH21+SUMPRODUCT(AH22:AH23,Fuel_Specs!$B$96:$B$97)+SUMPRODUCT(AH25:AH27,Fuel_Specs!$B$102:$B$104)+SUMPRODUCT(AH31:AH32,Fuel_Specs!$B$105:$B$106) -> 21504.37404 | AI24: =AI21+SUMPRODUCT(AI22:AI23,Fuel_Specs!$B$96:$B$97)+SUMPRODUCT(AI25:AI27,Fuel_Specs!$B$102:$B$104)+SUMPRODUCT(AI31:AI32,Fuel_Specs!$B$105:$B$106) -> 55873.0425 | AJ24: =AJ21+SUMPRODUCT(AJ22:AJ23,Fuel_Specs!$B$96:$B$97)+SUMPRODUCT(AJ25:AJ27,Fuel_Specs!$B$102:$B$104)+SUMPRODUCT(AJ31:AJ32,Fuel_Specs!$B$105:$B$106) -> 64279.24834 | AK24: =AK21+SUMPRODUCT(AK22:AK23,Fuel_Specs!$B$96:$B$97)+SUMPRODUCT(AK25:AK27,Fuel_Specs!$B$102:$B$104)+SUMPRODUCT(AK31:AK32,Fuel_Specs!$B$105:$B$106) -> 63691.3712 | AL24: =AL21+SUMPRODUCT(AL22:AL23,Fuel_Specs!$B$96:$B$97)+SUMPRODUCT(AL25:AL27,Fuel_Specs!$B$102:$B$104)+SUMPRODUCT(AL31:AL32,Fuel_Specs!$B$105:$B$106) -> 45397.6334 | AM24: =AM21+SUMPRODUCT(AM22:AM23,Fuel_Specs!$B$96:$B$97)+SUMPRODUCT(AM25:AM27,Fuel_Specs!$B$102:$B$104)+SUMPRODUCT(AM31:AM32,Fuel_Specs!$B$105:$B$106) -> 54090.94437 | AN24: =AN21+SUMPRODUCT(AN22:AN23,Fuel_Specs!$B$96:$B$97)+SUMPRODUCT(AN25:AN27,Fuel_Specs!$B$102:$B$104)+SUMPRODUCT(AN31:AN32,Fuel_Specs!$B$105:$B$106) -> 139126.0091 | AO24: =AO21+SUMPRODUCT(AO22:AO23,Fuel_Specs!$B$96:$B$97)+SUMPRODUCT(AO25:AO27,Fuel_Specs!$B$102:$B$104)+SUMPRODUCT(AO31:AO32,Fuel_Specs!$B$105:$B$106) -> 127129.0245 | AP24: =AP21+SUMPRODUCT(AP22:AP23,Fuel_Specs!$B$96:$B$97)+SUMPRODUCT(AP25:AP27,Fuel_Specs!$B$102:$B$104)+SUMPRODUCT(AP31:AP32,Fuel_Specs!$B$105:$B$106) -> 167880.5296 | AQ24: =AQ21+SUMPRODUCT(AQ22:AQ23,Fuel_Specs!$B$96:$B$97)+SUMPRODUCT(AQ25:AQ27,Fuel_Specs!$B$102:$B$104)+SUMPRODUCT(AQ31:AQ32,Fuel_Specs!$B$105:$B$106) -> 131248.7448 | AR24: =AR21+SUMPRODUCT(AR22:AR23,Fuel_Specs!$B$96:$B$97)+SUMPRODUCT(AR25:AR27,Fuel_Specs!$B$102:$B$104)+SUMPRODUCT(AR31:AR32,Fuel_Specs!$B$105:$B$106) -> 158006.3334 | AS24: =AS21+SUMPRODUCT(AS22:AS23,Fuel_Specs!$B$96:$B$97)+SUMPRODUCT(AS25:AS27,Fuel_Specs!$B$102:$B$104)+SUMPRODUCT(AS31:AS32,Fuel_Specs!$B$105:$B$106) -> -57742.1441 | AV24: SI - LPG Vehicle | AW24: RNAVLPG | BE24: SI HEV - Gaseous H2 | BF24: RNAVHEVGH2 | BH24: SI PHEV - Gaseous H2 and Electricity | BI24: RNAVPHEVGH2 | BQ24: FCV - EtOH | BR24: RNAVFCVETOH
A25: VOC: Total | B25: =(Inputs!$E$1400*(Petroleum!$B269*Petroleum!$F$262+Petroleum!$F269)+(1-Inputs!$E$1400)*(Petroleum!$B269*Petroleum!$D$262+Petroleum!$D269))/1000000*HLOOKUP($J$10,$Z$5:$AD$6,2,FALSE)/HLOOKUP($J$11,$Z$7:$AD$8,2,FALSE) -> 28.71263345 | C25: =(Petroleum!$C269*Petroleum!$G$262+Petroleum!$G269)/1000000*HLOOKUP($J$10,$Z$5:$AD$6,2,FALSE)/HLOOKUP($J$11,$Z$7:$AD$8,2,FALSE) -> 37.05859265 | D25: =((1-Vehicles!$C$28)*(1-Vehicles!$C$7)*Fuel_Specs!$B$15/((1-Vehicles!$C$28)*(1-Vehicles!$C$7)*Fuel_Specs!$B$15+Vehicles!$C$28*(1-Vehicles!$C$7)*Fuel_Specs!$B$17+Vehicles!$C$7*Fuel_Specs!$B$32)*(Petroleum!$B269*Petroleum!$D$262+(Petroleum!$D269-'T&D'!G219))+Vehicles!$C$28*(1-Vehicles!$C$7)*Fuel_Specs!$B$17/((1-Vehicles!$C$28)*(1-Vehicles!$C$7)*Fuel_Specs!$B$15+Vehicles!$C$28*(1-Vehicles!$C$7)*Fuel_Specs!$B$17+Vehicles!$C$7*Fuel_Specs!$B$32)*(Petroleum!B269*Petroleum!$F$262+Petroleum!$F269)+Vehicles!$C$7*Fuel_Specs!$B$32/((1-Vehicles!$C$28)*(1-Vehicles!$C$7)*Fuel_Specs!$B$15+Vehicles!$C$28*(1-Vehicles!$C$7)*Fuel_Specs!$B$17+Vehicles!$C$7*Fuel_Specs!$B$32)*(EtOH!BR496*EtOH!$BS$489+EtOH!$BS496)+Petroleum!AS131+Petroleum!AT131)/1000000*HLOOKUP($J$10,$Z$5:$AD$6,2,FALSE)/HLOOKUP($J$11,$Z$7:$AD$8,2,FALSE) -> 28.71263345 | E25: =(Inputs!$E$97*(IF(Inputs!F$102=1,Petroleum!$B269,Petroleum!$C269)*Petroleum!$K$262+Petroleum!$K269)+(1-Inputs!$E$97)*(IF(Inputs!F$101=1,Petroleum!$B269,Petroleum!$C269)*Petroleum!$J$262+Petroleum!$J269))/1000000*HLOOKUP($J$10,$Z$5:$AD$6,2,FALSE)/HLOOKUP($J$11,$Z$7:$AD$8,2,FALSE) -> 10.10977825 | F25: =(NG!$I91*NG!$J$84+NG!$J91)/1000000*HLOOKUP($J$10,$Z$5:$AD$6,2,FALSE)/HLOOKUP($J$11,$Z$7:$AD$8,2,FALSE) -> 12.61410505 | G25: =(NG!$Q91*NG!$R$84+NG!$R91)/1000000*HLOOKUP($J$10,$Z$5:$AD$6,2,FALSE)/HLOOKUP($J$11,$Z$7:$AD$8,2,FALSE) -> 28.73074172 | H25: =(NG!$W91*NG!$X$84+NG!$X91)/1000000*HLOOKUP($J$10,$Z$5:$AD$6,2,FALSE)/HLOOKUP($J$11,$Z$7:$AD$8,2,FALSE) -> 11.72772024 | I25: =('MeOH&FTD'!BJ144*'MeOH&FTD'!BK$137+'MeOH&FTD'!BK144)/1000000*HLOOKUP($J$10,$Z$5:$AD$6,2,FALSE)/HLOOKUP($J$11,$Z$7:$AD$8,2,FALSE) -> 33.17658284 | J25: =((1-Vehicles!$C$27)*(1-Vehicles!$C$5)*Fuel_Specs!$B$15/((1-Vehicles!$C$27)*(1-Vehicles!$C$5)*Fuel_Specs!$B$15+Vehicles!$C$27*(1-Vehicles!$C$5)*Fuel_Specs!$B$17+Vehicles!$C$5*Fuel_Specs!$B$31)*(Petroleum!$B269*Petroleum!$D$262+Petroleum!$D269)+Vehicles!$C$27*(1-Vehicles!$C$5)*Fuel_Specs!$B$17/((1-Vehicles!$C$27)*(1-Vehicles!$C$5)*Fuel_Specs!$B$15+Vehicles!$C$27*(1-Vehicles!$C$5)*Fuel_Specs!$B$17+Vehicles!$C$5*Fuel_Specs!$B$31)*(Petroleum!B269*Petroleum!$F$262+Petroleum!$F269)+Vehicles!$C$5*Fuel_Specs!$B$31/((1-Vehicles!$C$27)*(1-Vehicles!$C$5)*Fuel_Specs!$B$15+Vehicles!$C$27*(1-Vehicles!$C$5)*Fuel_Specs!$B$17+Vehicles!$C$5*Fuel_Specs!$B$31)*('MeOH&FTD'!$N144*'MeOH&FTD'!$O$137+'MeOH&FTD'!$O144))/1000000*HLOOKUP($J$10,$Z$5:$AD$6,2,FALSE)/HLOOKUP($J$11,$Z$7:$AD$8,2,FALSE) -> 24.76123789 | K25: =((1-Vehicles!$C$27)*(1-Vehicles!$C$6)*Fuel_Specs!$B$15/((1-Vehicles!$C$27)*(1-Vehicles!$C$6)*Fuel_Specs!$B$15+Vehicles!$C$27*(1-Vehicles!$C$6)*Fuel_Specs!$B$17+Vehicles!$C$6*Fuel_Specs!$B$31)*(Petroleum!$B269*Petroleum!$D$262+Petroleum!$D269)+Vehicles!$C$27*(1-Vehicles!$C$6)*Fuel_Specs!$B$17/((1-Vehicles!$C$27)*(1-Vehicles!$C$6)*Fuel_Specs!$B$15+Vehicles!$C$27*(1-Vehicles!$C$6)*Fuel_Specs!$B$17+Vehicles!$C$6*Fuel_Specs!$B$31)*(Petroleum!B269*Petroleum!$F$262+Petroleum!$F269)+Vehicles!$C$6*Fuel_Specs!$B$31/((1-Vehicles!$C$27)*(1-Vehicles!$C$6)*Fuel_Specs!$B$15+Vehicles!$C$27*(1-Vehicles!$C$6)*Fuel_Specs!$B$17+Vehicles!$C$6*Fuel_Specs!$B$31)*('MeOH&FTD'!$N144*'MeOH&FTD'!$O$137+'MeOH&FTD'!$O144))/1000000*HLOOKUP($J$10,$Z$5:$AD$6,2,FALSE)/HLOOKUP($J$11,$Z$7:$AD$8,2,FALSE) -> 24.44089077 | L25: =('MeOH&FTD'!$N144*'MeOH&FTD'!$O$137+'MeOH&FTD'!$O144)/1000000*HLOOKUP($J$10,$Z$5:$AD$6,2,FALSE)/HLOOKUP($J$11,$Z$7:$AD$8,2,FALSE) -> 23.7014233 | M25: =((1-Vehicles!$C$29)*(1-Vehicles!$C$8)*Fuel_Specs!$B$15/((1-Vehicles!$C$29)*(1-Vehicles!$C$8)*Fuel_Specs!$B$15+Vehicles!$C$29*(1-Vehicles!$C$8)*Fuel_Specs!$B$17+Vehicles!$C$8*Fuel_Specs!$B$32)*(Petroleum!$B269*Petroleum!$D$262+(Petroleum!$D269-'T&D'!G219))+Vehicles!$C$29*(1-Vehicles!$C$8)*Fuel_Specs!$B$17/((1-Vehicles!$C$29)*(1-Vehicles!$C$8)*Fuel_Specs!$B$15+Vehicles!$C$29*(1-Vehicles!$C$8)*Fuel_Specs!$B$17+Vehicles!$C$8*Fuel_Specs!$B$32)*(Petroleum!B269*Petroleum!$F$262+Petroleum!$F269)+Vehicles!$C$8*Fuel_Specs!$B$32/((1-Vehicles!$C$29)*(1-Vehicles!$C$8)*Fuel_Specs!$B$15+Vehicles!$C$29*(1-Vehicles!$C$8)*Fuel_Specs!$B$17+Vehicles!$C$8*Fuel_Specs!$B$32)*(EtOH!BR496*EtOH!$BS$489+EtOH!$BS496)+Petroleum!AS131+Petroleum!AT131)/1000000*HLOOKUP($J$10,$Z$5:$AD$6,2,FALSE)/HLOOKUP($J$11,$Z$7:$AD$8,2,FALSE) -> 39.08312351 | N25: =((1-Vehicles!$C$30)*(1-Vehicles!$C$12)*Fuel_Specs!$B$15/((1-Vehicles!$C$30)*(1-Vehicles!$C$12)*Fuel_Specs!$B$15+Vehicles!$C$30*(1-Vehicles!$C$12)*Fuel_Specs!$B$17+Vehicles!$C$12*Fuel_Specs!$B$33)*(Petroleum!$B269*Petroleum!$D$262+Petroleum!$D269)+Vehicles!$C$30*(1-Vehicles!$C$12)*Fuel_Specs!$B$17/((1-Vehicles!$C$30)*(1-Vehicles!$C$12)*Fuel_Specs!$B$15+Vehicles!$C$30*(1-Vehicles!$C$12)*Fuel_Specs!$B$17+Vehicles!$C$12*Fuel_Specs!$B$33)*(Petroleum!B269*Petroleum!$F$262+Petroleum!$F269)+Vehicles!$C$12*Fuel_Specs!$B$33/((1-Vehicles!$C$30)*(1-Vehicles!$C$12)*Fuel_Specs!$B$15+Vehicles!$C$30*(1-Vehicles!$C$12)*Fuel_Specs!$B$17+Vehicles!$C$12*Fuel_Specs!$B$33)*(EtOH!$BT496*EtOH!$BU$489+EtOH!$BU496))/1000000*HLOOKUP($J$10,$Z$5:$AD$6,2,FALSE)/HLOOKUP($J$11,$Z$7:$AD$8,2,FALSE) -> 59.35355024 | O25: =((1-Vehicles!$C$29)*(1-Vehicles!$C$9)*Fuel_Specs!$B$15/((1-Vehicles!$C$29)*(1-Vehicles!$C$9)*Fuel_Specs!$B$15+Vehicles!$C$29*(1-Vehicles!$C$9)*Fuel_Specs!$B$17+Vehicles!$C$9*Fuel_Specs!$B$32)*(Petroleum!$B269*Petroleum!$D$262+(Petroleum!$D269-'T&D'!G219))+Vehicles!$C$29*(1-Vehicles!$C$9)*Fuel_Specs!$B$17/((1-Vehicles!$C$29)*(1-Vehicles!$C$9)*Fuel_Specs!$B$15+Vehicles!$C$29*(1-Vehicles!$C$9)*Fuel_Specs!$B$17+Vehicles!$C$9*Fuel_Specs!$B$32)*(Petroleum!B269*Petroleum!$F$262+Petroleum!$F269)+Vehicles!$C$9*Fuel_Specs!$B$32/((1-Vehicles!$C$29)*(1-Vehicles!$C$9)*Fuel_Specs!$B$15+Vehicles!$C$29*(1-Vehicles!$C$9)*Fuel_Specs!$B$17+Vehicles!$C$9*Fuel_Specs!$B$32)*(EtOH!BR496*EtOH!$BS$489+EtOH!$BS496)+Petroleum!AS131+Petroleum!AT131)/1000000*HLOOKUP($J$10,$Z$5:$AD$6,2,FALSE)/HLOOKUP($J$11,$Z$7:$AD$8,2,FALSE) -> 39.08312351 | P25: =(EtOH!$BP496*EtOH!$BQ$489+EtOH!$BQ496)/1000000*HLOOKUP($J$10,$Z$5:$AD$6,2,FALSE)/HLOOKUP($J$11,$Z$7:$AD$8,2,FALSE) -> 42.68336694 | Q25: =((1-Vehicles!$C$33)*(1-Vehicles!$C$16)*Fuel_Specs!$B$15/((1-Vehicles!$C$33)*(1-Vehicles!$C$16)*Fuel_Specs!$B$15+Vehicles!$C$33*(1-Vehicles!$C$16)*Fuel_Specs!$B$17+Vehicles!$C$16*Fuel_Specs!$B$45)*(Petroleum!$B269*Petroleum!$D$262+Petroleum!$D269)+Vehicles!$C$33*(1-Vehicles!$C$16)*Fuel_Specs!$B$17/((1-Vehicles!$C$33)*(1-Vehicles!$C$16)*Fuel_Specs!$B$15+Vehicles!$C$33*(1-Vehicles!$C$16)*Fuel_Specs!$B$17+Vehicles!$C$16*Fuel_Specs!$B$45)*(Petroleum!B269*Petroleum!$F$262+Petroleum!$F269)+Vehicles!$C$16*Fuel_Specs!$B$45/((1-Vehicles!$C$33)*(1-Vehicles!$C$16)*Fuel_Specs!$B$15+Vehicles!$C$33*(1-Vehicles!$C$16)*Fuel_Specs!$B$17+Vehicles!$C$16*Fuel_Specs!$B$45)*(BioOil!$BO343*BioOil!$BP$335+BioOil!$BP343))/1000000*HLOOKUP($J$10,$Z$5:$AD$6,2,FALSE)/HLOOKUP($J$11,$Z$7:$AD$8,2,FALSE) -> 20.889737 | R25: =((1-Vehicles!$C$33)*(1-Vehicles!$C$16)*Fuel_Specs!$B$15/((1-Vehicles!$C$33)*(1-Vehicles!$C$16)*Fuel_Specs!$B$15+Vehicles!$C$33*(1-Vehicles!$C$16)*Fuel_Specs!$B$17+Vehicles!$C$16*Fuel_Specs!$B$45)*(Petroleum!$B269*Petroleum!$D$262+Petroleum!$D269)+Vehicles!$C$33*(1-Vehicles!$C$16)*Fuel_Specs!$B$17/((1-Vehicles!$C$33)*(1-Vehicles!$C$16)*Fuel_Specs!$B$15+Vehicles!$C$33*(1-Vehicles!$C$16)*Fuel_Specs!$B$17+Vehicles!$C$16*Fuel_Specs!$B$45)*(Petroleum!B269*Petroleum!$F$262+Petroleum!$F269)+Vehicles!$C$16*Fuel_Specs!$B$45/((1-Vehicles!$C$33)*(1-Vehicles!$C$16)*Fuel_Specs!$B$15+Vehicles!$C$33*(1-Vehicles!$C$16)*Fuel_Specs!$B$17+Vehicles!$C$16*Fuel_Specs!$B$45)*(Pyrolysis!$Z178*Pyrolysis!$AA$171+Pyrolysis!$AA178))/1000000*HLOOKUP($J$10,$Z$5:$AD$6,2,FALSE)/HLOOKUP($J$11,$Z$7:$AD$8,2,FALSE) -> 6.856683377 | S25: =AN25*(Vehicles!$C$23/Vehicles!$AR$59)/(Vehicles!$C$23*(1/Vehicles!$AR$59+1/Vehicles!$AS$59)+Vehicles!$C$24/Vehicles!$AT$59)+B25*(Vehicles!$C$23/Vehicles!$AS$59+Vehicles!$C$24/Vehicles!$AT$59)/(Vehicles!$C$23*(1/Vehicles!$AR$59+1/Vehicles!$AS$59)+Vehicles!$C$24/Vehicles!$AT$59) -> 24.64647436 | T25: =AN25*(Vehicles!$D$23/Vehicles!$AV$59)/(Vehicles!$D$23*(1/Vehicles!$AV$59+1/Vehicles!$AW$59)+Vehicles!$D$24/Vehicles!$AX$59)+C25*(Vehicles!$D$23/Vehicles!$AW$59+Vehicles!$D$24/Vehicles!$AX$59)/(Vehicles!$D$23*(1/Vehicles!$AV$59+1/Vehicles!$AW$59)+Vehicles!$D$24/Vehicles!$AX$59) -> 30.68365119 | U25: =AN25*(Vehicles!$F$23/Vehicles!$BD$59)/(Vehicles!$F$23*(1/Vehicles!$BD$59+1/Vehicles!$BE$59)+Vehicles!$F$24/Vehicles!$BF$59)+D25*(Vehicles!$F$23/Vehicles!$BE$59+Vehicles!$F$24/Vehicles!$BF$59)/(Vehicles!$F$23*(1/Vehicles!$BD$59+1/Vehicles!$BE$59)+Vehicles!$F$24/Vehicles!$BF$59) -> 24.64647436 | V25: =AN25*(Vehicles!$G$23/Vehicles!$BH$59)/(Vehicles!$G$23*(1/Vehicles!$BH$59+1/Vehicles!$BI$59)+Vehicles!$G$24/Vehicles!$BJ$59)+F25*(Vehicles!$G$23/Vehicles!$BI$59+Vehicles!$G$24/Vehicles!$BJ$59)/(Vehicles!$G$23*(1/Vehicles!$BH$59+1/Vehicles!$BI$59)+Vehicles!$G$24/Vehicles!$BJ$59) -> 13.00135841 | W25: =AN25*(Vehicles!$H$23/Vehicles!$BL$59)/(Vehicles!$H$23*(1/Vehicles!$BL$59+1/Vehicles!$BM$59)+Vehicles!$H$24/Vehicles!$BN$59)+G25*(Vehicles!$H$23/Vehicles!$BM$59+Vehicles!$H$24/Vehicles!$BN$59)/(Vehicles!$H$23*(1/Vehicles!$BL$59+1/Vehicles!$BM$59)+Vehicles!$H$24/Vehicles!$BN$59) -> 24.65957325 | X25: =AN25*(Vehicles!$I$23/Vehicles!$BP$59)/(Vehicles!$I$23*(1/Vehicles!$BP$59+1/Vehicles!$BQ$59)+Vehicles!$I$24/Vehicles!$BR$59)+H25*(Vehicles!$I$23/Vehicles!$BQ$59+Vehicles!$I$24/Vehicles!$BR$59)/(Vehicles!$I$23*(1/Vehicles!$BP$59+1/Vehicles!$BQ$59)+Vehicles!$I$24/Vehicles!$BR$59) -> 12.36017844 | Y25: =AN25*(Vehicles!$J$23/Vehicles!$BT$59)/(Vehicles!$J$23*(1/Vehicles!$BT$59+1/Vehicles!$BU$59)+Vehicles!$J$24/Vehicles!$BV$59)+K25*(Vehicles!$J$23/Vehicles!$BU$59+Vehicles!$J$24/Vehicles!$BV$59)/(Vehicles!$J$23*(1/Vehicles!$BT$59+1/Vehicles!$BU$59)+Vehicles!$J$24/Vehicles!$BV$59) -> 21.7303223 | Z25: =AN25*(Vehicles!$K$23/Vehicles!$BX$59)/(Vehicles!$K$23*(1/Vehicles!$BX$59+1/Vehicles!$BY$59)+Vehicles!$K$24/Vehicles!$BZ$59)+O25*(Vehicles!$K$23/Vehicles!$BY$59+Vehicles!$K$24/Vehicles!$BZ$59)/(Vehicles!$K$23*(1/Vehicles!$BX$59+1/Vehicles!$BY$59)+Vehicles!$K$24/Vehicles!$BZ$59) -> 32.56617695 | AA25: =AN25*(Vehicles!$L$23/Vehicles!$CB$59)/(Vehicles!$L$23*(1/Vehicles!$CB$59+1/Vehicles!$CC$59)+Vehicles!$L$24/Vehicles!$CD$59)+AO25*(Vehicles!$L$23/Vehicles!$CC$59+Vehicles!$L$24/Vehicles!$CD$59)/(Vehicles!$L$23*(1/Vehicles!$CB$59+1/Vehicles!$CC$59)+Vehicles!$L$24/Vehicles!$CD$59) -> 20.83497524 | AB25: =AN25*(Vehicles!$L$23/Vehicles!$CB$59)/(Vehicles!$L$23*(1/Vehicles!$CB$59+1/Vehicles!$CC$59)+Vehicles!$L$24/Vehicles!$CE$59)+AP25*(Vehicles!$L$23/Vehicles!$CC$59+Vehicles!$L$24/Vehicles!$CE$59)/(Vehicles!$L$23*(1/Vehicles!$CB$59+1/Vehicles!$CC$59)+Vehicles!$L$24/Vehicles!$CE$59) -> 22.90175939 | AC25: =('MeOH&FTD'!$AJ144*'MeOH&FTD'!$AK$137+'MeOH&FTD'!$AK144)/1000000*HLOOKUP($J$10,$Z$5:$AD$6,2,FALSE)/HLOOKUP($J$11,$Z$7:$AD$8,2,FALSE) -> 12.66840981 | AD25: =((1-Vehicles!$C$34)*(1-Vehicles!$C$13)*Fuel_Specs!$B$21/((1-Vehicles!$C$34)*(1-Vehicles!$C$13)*Fuel_Specs!$B$21+Vehicles!$C$34*(1-Vehicles!$C$13)*Fuel_Specs!$B$24+Vehicles!$C$13*Fuel_Specs!$B$41)*(Petroleum!B269*Petroleum!$J$262+Petroleum!$J269)+Vehicles!$C$34*(1-Vehicles!$C$13)*Fuel_Specs!$B$24/((1-Vehicles!$C$34)*(1-Vehicles!$C$13)*Fuel_Specs!$B$21+Vehicles!$C$34*(1-Vehicles!$C$13)*Fuel_Specs!$B$24+Vehicles!$C$13*Fuel_Specs!$B$41)*(Petroleum!B269*Petroleum!$K$262+Petroleum!$K269)+Vehicles!$C$13*Fuel_Specs!$B$41/((1-Vehicles!$C$34)*(1-Vehicles!$C$13)*Fuel_Specs!$B$21+Vehicles!$C$34*(1-Vehicles!$C$13)*Fuel_Specs!$B$24+Vehicles!$C$13*Fuel_Specs!$B$41)*('MeOH&FTD'!$AZ144*'MeOH&FTD'!$BA$137+'MeOH&FTD'!$BA144))/1000000*HLOOKUP($J$10,$Z$5:$AD$6,2,FALSE)/HLOOKUP($J$11,$Z$7:$AD$8,2,FALSE) -> 14.06641371 | AE25: =((1-Vehicles!$C$35)*(1-Vehicles!$C$14)*Fuel_Specs!$B$21/((1-Vehicles!$C$35)*(1-Vehicles!$C$14)*Fuel_Specs!$B$21+Vehicles!$C$35*(1-Vehicles!$C$14)*Fuel_Specs!$B$24+Vehicles!$C$14*Fuel_Specs!$B$40)*(Petroleum!B269*Petroleum!$J$262+Petroleum!$J269)+Vehicles!$C$35*(1-Vehicles!$C$14)*Fuel_Specs!$B$24/((1-Vehicles!$C$35)*(1-Vehicles!$C$14)*Fuel_Specs!$B$21+Vehicles!$C$35*(1-Vehicles!$C$14)*Fuel_Specs!$B$24+Vehicles!$C$14*Fuel_Specs!$B$40)*(Petroleum!B269*Petroleum!$K$262+Petroleum!$K269)+Vehicles!$C$14*Fuel_Specs!$B$40/((1-Vehicles!$C$35)*(1-Vehicles!$C$14)*Fuel_Specs!$B$21+Vehicles!$C$35*(1-Vehicles!$C$14)*Fuel_Specs!$B$24+Vehicles!$C$14*Fuel_Specs!$B$40)*(BioOil!$W343*BioOil!$X$335+BioOil!$X343))/1000000*HLOOKUP($J$10,$Z$5:$AD$6,2,FALSE)/HLOOKUP($J$11,$Z$7:$AD$8,2,FALSE) -> 12.20516377 | AF25: =((1-Vehicles!$C$36)*(1-Vehicles!$C$15)*Fuel_Specs!$B$21/((1-Vehicles!$C$36)*(1-Vehicles!$C$15)*Fuel_Specs!$B$21+Vehicles!$C$36*(1-Vehicles!$C$15)*Fuel_Specs!$B$24+Vehicles!$C$15*IF(Inputs!$E$628=1,IF(Inputs!$E$628=1,Fuel_Specs!$B$42,IF(Inputs!$E$628=3,Fuel_Specs!$B$44,Fuel_Specs!$B$43)),Fuel_Specs!$B$43))*(Petroleum!B269*Petroleum!$J$262+Petroleum!$J269)+Vehicles!$C$36*(1-Vehicles!$C$15)*Fuel_Specs!$B$24/((1-Vehicles!$C$36)*(1-Vehicles!$C$15)*Fuel_Specs!$B$21+Vehicles!$C$36*(1-Vehicles!$C$15)*Fuel_Specs!$B$24+Vehicles!$C$15*IF(Inputs!$E$628=1,IF(Inputs!$E$628=1,Fuel_Specs!$B$42,IF(Inputs!$E$628=3,Fuel_Specs!$B$44,Fuel_Specs!$B$43)),Fuel_Specs!$B$43))*(Petroleum!B269*Petroleum!$K$262+Petroleum!$K269)+Vehicles!$C$15*IF(Inputs!$E$628=1,IF(Inputs!$E$628=1,Fuel_Specs!$B$42,IF(Inputs!$E$628=3,Fuel_Specs!$B$44,Fuel_Specs!$B$43)),Fuel_Specs!$B$43)/((1-Vehicles!$C$36)*(1-Vehicles!$C$15)*Fuel_Specs!$B$21+Vehicles!$C$36*(1-Vehicles!$C$15)*Fuel_Specs!$B$24+Vehicles!$C$15*IF(Inputs!$E$628=1,IF(Inputs!$E$628=1,Fuel_Specs!$B$42,IF(Inputs!$E$628=3,Fuel_Specs!$B$44,Fuel_Specs!$B$43)),Fuel_Specs!$B$43))*(BioOil!$BA343*BioOil!$BB$335+BioOil!$BB343))/1000000*HLOOKUP($J$10,$Z$5:$AD$6,2,FALSE)/HLOOKUP($J$11,$Z$7:$AD$8,2,FALSE) -> 22.87234219 | AG25: =((1-Vehicles!$C$36)*(1-Vehicles!$C$15)*Fuel_Specs!$B$21/((1-Vehicles!$C$36)*(1-Vehicles!$C$15)*Fuel_Specs!$B$21+Vehicles!$C$36*(1-Vehicles!$C$15)*Fuel_Specs!$B$24+Vehicles!$C$15*IF(Inputs!$E$628=1,Fuel_Specs!$B$42,Fuel_Specs!$B$43))*(Petroleum!B269*Petroleum!$J$262+Petroleum!$J269)+Vehicles!$C$36*(1-Vehicles!$C$15)*Fuel_Specs!$B$24/((1-Vehicles!$C$36)*(1-Vehicles!$C$15)*Fuel_Specs!$B$21+Vehicles!$C$36*(1-Vehicles!$C$15)*Fuel_Specs!$B$24+Vehicles!$C$15*IF(Inputs!$E$628=1,Fuel_Specs!$B$42,Fuel_Specs!$B$43))*(Petroleum!B269*Petroleum!$K$262+Petroleum!$K269)+Vehicles!$C$15*IF(Inputs!$E$628=1,Fuel_Specs!$B$42,Fuel_Specs!$B$43)/((1-Vehicles!$C$36)*(1-Vehicles!$C$15)*Fuel_Specs!$B$21+Vehicles!$C$36*(1-Vehicles!$C$15)*Fuel_Specs!$B$24+Vehicles!$C$15*IF(Inputs!$E$628=1,Fuel_Specs!$B$42,Fuel_Specs!$B$43))*(Pyrolysis!$AB178*Pyrolysis!$AC$171+Pyrolysis!$AC178))/1000000*HLOOKUP($J$10,$Z$5:$AD$6,2,FALSE)/HLOOKUP($J$11,$Z$7:$AD$8,2,FALSE) -> 12.06976223 | AH25: =(((1-Vehicles!$C$37)*(1-Vehicles!$C$17-Vehicles!$C$18)*Fuel_Specs!$B$21*(Petroleum!B269*Petroleum!$J$262+Petroleum!$J269)+Vehicles!$C$37*(1-Vehicles!$C$17-Vehicles!$C$18)*Fuel_Specs!$B$24*(Petroleum!B269*Petroleum!$K$262+Petroleum!$K269)+Vehicles!$C$17*Fuel_Specs!$B$32*(EtOH!BP496*EtOH!$BQ$489+EtOH!$BQ496)+Vehicles!$C$18*Fuel_Specs!$B$35*('E-D Additives'!$B60*'E-D Additives'!$B$53))/((1-Vehicles!$C$37)*(1-Vehicles!$C$17-Vehicles!$C$18)*Fuel_Specs!$B$21+Vehicles!$C$37*(1-Vehicles!$C$17-Vehicles!$C$18)*Fuel_Specs!$B$24+Vehicles!$C$17*Fuel_Specs!$B$32+Vehicles!$C$18*Fuel_Specs!$B$35))/1000000*HLOOKUP($J$10,$Z$5:$AD$6,2,FALSE)/HLOOKUP($J$11,$Z$7:$AD$8,2,FALSE) -> 12.08753164 | AI25: =AN25*(Vehicles!$M$23/Vehicles!$CM$59)/(Vehicles!$M$23*(1/Vehicles!$CM$59+1/Vehicles!$CN$59)+Vehicles!$M$24/Vehicles!$CO$59)+E25*(Vehicles!$M$23/Vehicles!$CN$59+Vehicles!$M$24/Vehicles!$CO$59)/(Vehicles!$M$23*(1/Vehicles!$CM$59+1/Vehicles!$CN$59)+Vehicles!$M$24/Vehicles!$CO$59) -> 11.19141992 | AJ25: =AN25*(Vehicles!$N$23/Vehicles!$CQ$59)/(Vehicles!$N$23*(1/Vehicles!$CQ$59+1/Vehicles!$CR$59)+Vehicles!$N$24/Vehicles!$CS$59)+AC25*(Vehicles!$N$23/Vehicles!$CR$59+Vehicles!$N$24/Vehicles!$CS$59)/(Vehicles!$N$23*(1/Vehicles!$CQ$59+1/Vehicles!$CR$59)+Vehicles!$N$24/Vehicles!$CS$59) -> 13.04119356 | AK25: =AN25*(Vehicles!$O$23/Vehicles!$CU$59)/(Vehicles!$O$23*(1/Vehicles!$CU$59+1/Vehicles!$CV$59)+Vehicles!$O$24/Vehicles!$CW$59)+AD25*(Vehicles!$O$23/Vehicles!$CV$59+Vehicles!$O$24/Vehicles!$CW$59)/(Vehicles!$O$23*(1/Vehicles!$CU$59+1/Vehicles!$CV$59)+Vehicles!$O$24/Vehicles!$CW$59) -> 14.05188647 | AL25: =AN25*(Vehicles!$P$23/Vehicles!$CY$59)/(Vehicles!$P$23*(1/Vehicles!$CY$59+1/Vehicles!$CZ$59)+Vehicles!$P$24/Vehicles!$DA$59)+AE25*(Vehicles!$P$23/Vehicles!$CZ$59+Vehicles!$P$24/Vehicles!$DA$59)/(Vehicles!$P$23*(1/Vehicles!$CY$59+1/Vehicles!$CZ$59)+Vehicles!$P$24/Vehicles!$DA$59) -> 12.70628785 | AM25: =AN25*(Vehicles!$R$23/Vehicles!$DG$59)/(Vehicles!$R$23*(1/Vehicles!$DG$59+1/Vehicles!$DH$59)+Vehicles!$R$24/Vehicles!$DI$59)+AH25*(Vehicles!$R$23/Vehicles!$DH$59+Vehicles!$R$24/Vehicles!$DI$59)/(Vehicles!$R$23*(1/Vehicles!$DG$59+1/Vehicles!$DH$59)+Vehicles!$R$24/Vehicles!$DI$59) -> 12.6212452 | AN25: =(Electric!$G192+Electric!$F192)/1000000*HLOOKUP($J$10,$Z$5:$AD$6,2,FALSE)/HLOOKUP($J$11,$Z$7:$AD$8,2,FALSE) -> 14.01397745 | AO25: =(Hydrogen!$AF169*Hydrogen!$AG$162+Hydrogen!$AG169)/1000000*HLOOKUP($J$10,$Z$5:$AD$6,2,FALSE)/HLOOKUP($J$11,$Z$7:$AD$8,2,FALSE) -> 23.5949991 | AP25: =(Hydrogen!$BJ169*Hydrogen!$BK$162+Hydrogen!$BK169)/1000000*HLOOKUP($J$10,$Z$5:$AD$6,2,FALSE)/HLOOKUP($J$11,$Z$7:$AD$8,2,FALSE) -> 26.49807931 | AQ25: =AN25*(Vehicles!$S$23/Vehicles!$DW$59)/(Vehicles!$S$23*(1/Vehicles!$DW$59+1/Vehicles!$DX$59)+Vehicles!$S$24/Vehicles!$DY$59)+AO25*(Vehicles!$S$23/Vehicles!$DX$59+Vehicles!$S$24/Vehicles!$DY$59)/(Vehicles!$S$23*(1/Vehicles!$DW$59+1/Vehicles!$DX$59)+Vehicles!$S$24/Vehicles!$DY$59) -> 20.30491162 | AR25: =AN25*(Vehicles!$S$23/Vehicles!$DW$59)/(Vehicles!$S$23*(1/Vehicles!$DW$59+1/Vehicles!$DX$59)+Vehicles!$S$24/Vehicles!$DY$59)+AP25*(Vehicles!$S$23/Vehicles!$DX$59+Vehicles!$S$24/Vehicles!$DY$59)/(Vehicles!$S$23*(1/Vehicles!$DW$59+1/Vehicles!$DX$59)+Vehicles!$S$24/Vehicles!$DY$59) -> 22.2110848 | AS25: =((1-Vehicles!$C$33)*(1-Vehicles!$C$16)*Fuel_Specs!$B$15/((1-Vehicles!$C$33)*(1-Vehicles!$C$16)*Fuel_Specs!$B$15+Vehicles!$C$33*(1-Vehicles!$C$16)*Fuel_Specs!$B$17+Vehicles!$C$16*Fuel_Specs!$B$46)*(Petroleum!$B269*Petroleum!$D$262+Petroleum!$D269)+Vehicles!$C$33*(1-Vehicles!$C$16)*Fuel_Specs!$B$17/((1-Vehicles!$C$33)*(1-Vehicles!$C$16)*Fuel_Specs!$B$15+Vehicles!$C$33*(1-Vehicles!$C$16)*Fuel_Specs!$B$17+Vehicles!$C$16*Fuel_Specs!$B$46)*(Petroleum!B269*Petroleum!$F$262+Petroleum!$F269)+Vehicles!$C$16*Fuel_Specs!$B$46/((1-Vehicles!$C$33)*(1-Vehicles!$C$16)*Fuel_Specs!$B$15+Vehicles!$C$33*(1-Vehicles!$C$16)*Fuel_Specs!$B$17+Vehicles!$C$16*Fuel_Specs!$B$46)*(IDL!$L119*IDL!$M$112+IDL!$M119))/1000000*HLOOKUP($J$10,$Z$5:$AD$6,2,FALSE)/HLOOKUP($J$11,$Z$7:$AD$8,2,FALSE) -> 18.25605544 | AV25: SI - Dedi. MeOH Vehicle | AW25: RNAVMEOH | BE25: SI HEV - Liquid H2 | BF25: RNAVHEVLH2 | BH25: SI PHEV - Liquid H2 and Electricity | BI25: RNAVPHEVLH2 | BQ25: FCV - CNG | BR25: RNAVFCVCNG
A26: CO: Total | B26: =(Inputs!$E$1400*(Petroleum!$B270*Petroleum!$F$262+Petroleum!$F270)+(1-Inputs!$E$1400)*(Petroleum!$B270*Petroleum!$D$262+Petroleum!$D270))/1000000*HLOOKUP($J$10,$Z$5:$AD$6,2,FALSE)/HLOOKUP($J$11,$Z$7:$AD$8,2,FALSE) -> 18.82757196 | C26: =(Petroleum!$C270*Petroleum!$G$262+Petroleum!$G270)/1000000*HLOOKUP($J$10,$Z$5:$AD$6,2,FALSE)/HLOOKUP($J$11,$Z$7:$AD$8,2,FALSE) -> 62.73323466 | D26: =((1-Vehicles!$C$28)*(1-Vehicles!$C$7)*Fuel_Specs!$B$15/((1-Vehicles!$C$28)*(1-Vehicles!$C$7)*Fuel_Specs!$B$15+Vehicles!$C$28*(1-Vehicles!$C$7)*Fuel_Specs!$B$17+Vehicles!$C$7*Fuel_Specs!$B$32)*(Petroleum!$B270*Petroleum!$D$262+(Petroleum!$D270-'T&D'!G220))+Vehicles!$C$28*(1-Vehicles!$C$7)*Fuel_Specs!$B$17/((1-Vehicles!$C$28)*(1-Vehicles!$C$7)*Fuel_Specs!$B$15+Vehicles!$C$28*(1-Vehicles!$C$7)*Fuel_Specs!$B$17+Vehicles!$C$7*Fuel_Specs!$B$32)*(Petroleum!B270*Petroleum!$F$262+Petroleum!$F270)+Vehicles!$C$7*Fuel_Specs!$B$32/((1-Vehicles!$C$28)*(1-Vehicles!$C$7)*Fuel_Specs!$B$15+Vehicles!$C$28*(1-Vehicles!$C$7)*Fuel_Specs!$B$17+Vehicles!$C$7*Fuel_Specs!$B$32)*(EtOH!BR497*EtOH!$BS$489+EtOH!$BS497)+Petroleum!AS132+Petroleum!AT132)/1000000*HLOOKUP($J$10,$Z$5:$AD$6,2,FALSE)/HLOOKUP($J$11,$Z$7:$AD$8,2,FALSE) -> 18.82757196 | E26: =(Inputs!$E$97*(IF(Inputs!F$102=1,Petroleum!$B270,Petroleum!$C270)*Petroleum!$K$262+Petroleum!$K270)+(1-Inputs!$E$97)*(IF(Inputs!F$101=1,Petroleum!$B270,Petroleum!$C270)*Petroleum!$J$262+Petroleum!$J270))/1000000*HLOOKUP($J$10,$Z$5:$AD$6,2,FALSE)/HLOOKUP($J$11,$Z$7:$AD$8,2,FALSE) -> 18.45551336 | F26: =(NG!$I92*NG!$J$84+NG!$J92)/1000000*HLOOKUP($J$10,$Z$5:$AD$6,2,FALSE)/HLOOKUP($J$11,$Z$7:$AD$8,2,FALSE) -> 43.09145895 | G26: =(NG!$Q92*NG!$R$84+NG!$R92)/1000000*HLOOKUP($J$10,$Z$5:$AD$6,2,FALSE)/HLOOKUP($J$11,$Z$7:$AD$8,2,FALSE) -> 125.7733539 | H26: =(NG!$W92*NG!$X$84+NG!$X92)/1000000*HLOOKUP($J$10,$Z$5:$AD$6,2,FALSE)/HLOOKUP($J$11,$Z$7:$AD$8,2,FALSE) -> 16.92144289 | I26: =('MeOH&FTD'!BJ145*'MeOH&FTD'!BK$137+'MeOH&FTD'!BK145)/1000000*HLOOKUP($J$10,$Z$5:$AD$6,2,FALSE)/HLOOKUP($J$11,$Z$7:$AD$8,2,FALSE) -> 33.18214118 | J26: =((1-Vehicles!$C$27)*(1-Vehicles!$C$5)*Fuel_Specs!$B$15/((1-Vehicles!$C$27)*(1-Vehicles!$C$5)*Fuel_Specs!$B$15+Vehicles!$C$27*(1-Vehicles!$C$5)*Fuel_Specs!$B$17+Vehicles!$C$5*Fuel_Specs!$B$31)*(Petroleum!$B270*Petroleum!$D$262+Petroleum!$D270)+Vehicles!$C$27*(1-Vehicles!$C$5)*Fuel_Specs!$B$17/((1-Vehicles!$C$27)*(1-Vehicles!$C$5)*Fuel_Specs!$B$15+Vehicles!$C$27*(1-Vehicles!$C$5)*Fuel_Specs!$B$17+Vehicles!$C$5*Fuel_Specs!$B$31)*(Petroleum!B270*Petroleum!$F$262+Petroleum!$F270)+Vehicles!$C$5*Fuel_Specs!$B$31/((1-Vehicles!$C$27)*(1-Vehicles!$C$5)*Fuel_Specs!$B$15+Vehicles!$C$27*(1-Vehicles!$C$5)*Fuel_Specs!$B$17+Vehicles!$C$5*Fuel_Specs!$B$31)*('MeOH&FTD'!$N145*'MeOH&FTD'!$O$137+'MeOH&FTD'!$O145))/1000000*HLOOKUP($J$10,$Z$5:$AD$6,2,FALSE)/HLOOKUP($J$11,$Z$7:$AD$8,2,FALSE) -> 20.44071588 | K26: =((1-Vehicles!$C$27)*(1-Vehicles!$C$6)*Fuel_Specs!$B$15/((1-Vehicles!$C$27)*(1-Vehicles!$C$6)*Fuel_Specs!$B$15+Vehicles!$C$27*(1-Vehicles!$C$6)*Fuel_Specs!$B$17+Vehicles!$C$6*Fuel_Specs!$B$31)*(Petroleum!$B270*Petroleum!$D$262+Petroleum!$D270)+Vehicles!$C$27*(1-Vehicles!$C$6)*Fuel_Specs!$B$17/((1-Vehicles!$C$27)*(1-Vehicles!$C$6)*Fuel_Specs!$B$15+Vehicles!$C$27*(1-Vehicles!$C$6)*Fuel_Specs!$B$17+Vehicles!$C$6*Fuel_Specs!$B$31)*(Petroleum!B270*Petroleum!$F$262+Petroleum!$F270)+Vehicles!$C$6*Fuel_Specs!$B$31/((1-Vehicles!$C$27)*(1-Vehicles!$C$6)*Fuel_Specs!$B$15+Vehicles!$C$27*(1-Vehicles!$C$6)*Fuel_Specs!$B$17+Vehicles!$C$6*Fuel_Specs!$B$31)*('MeOH&FTD'!$N145*'MeOH&FTD'!$O$137+'MeOH&FTD'!$O145))/1000000*HLOOKUP($J$10,$Z$5:$AD$6,2,FALSE)/HLOOKUP($J$11,$Z$7:$AD$8,2,FALSE) -> 20.87587037 | L26: =('MeOH&FTD'!$N145*'MeOH&FTD'!$O$137+'MeOH&FTD'!$O145)/1000000*HLOOKUP($J$10,$Z$5:$AD$6,2,FALSE)/HLOOKUP($J$11,$Z$7:$AD$8,2,FALSE) -> 21.88035134 | M26: =((1-Vehicles!$C$29)*(1-Vehicles!$C$8)*Fuel_Specs!$B$15/((1-Vehicles!$C$29)*(1-Vehicles!$C$8)*Fuel_Specs!$B$15+Vehicles!$C$29*(1-Vehicles!$C$8)*Fuel_Specs!$B$17+Vehicles!$C$8*Fuel_Specs!$B$32)*(Petroleum!$B270*Petroleum!$D$262+(Petroleum!$D270-'T&D'!G220))+Vehicles!$C$29*(1-Vehicles!$C$8)*Fuel_Specs!$B$17/((1-Vehicles!$C$29)*(1-Vehicles!$C$8)*Fuel_Specs!$B$15+Vehicles!$C$29*(1-Vehicles!$C$8)*Fuel_Specs!$B$17+Vehicles!$C$8*Fuel_Specs!$B$32)*(Petroleum!B270*Petroleum!$F$262+Petroleum!$F270)+Vehicles!$C$8*Fuel_Specs!$B$32/((1-Vehicles!$C$29)*(1-Vehicles!$C$8)*Fuel_Specs!$B$15+Vehicles!$C$29*(1-Vehicles!$C$8)*Fuel_Specs!$B$17+Vehicles!$C$8*Fuel_Specs!$B$32)*(EtOH!BR497*EtOH!$BS$489+EtOH!$BS497)+Petroleum!AS132+Petroleum!AT132)/1000000*HLOOKUP($J$10,$Z$5:$AD$6,2,FALSE)/HLOOKUP($J$11,$Z$7:$AD$8,2,FALSE) -> 44.06436669 | N26: =((1-Vehicles!$C$30)*(1-Vehicles!$C$12)*Fuel_Specs!$B$15/((1-Vehicles!$C$30)*(1-Vehicles!$C$12)*Fuel_Specs!$B$15+Vehicles!$C$30*(1-Vehicles!$C$12)*Fuel_Specs!$B$17+Vehicles!$C$12*Fuel_Specs!$B$33)*(Petroleum!$B270*Petroleum!$D$262+Petroleum!$D270)+Vehicles!$C$30*(1-Vehicles!$C$12)*Fuel_Specs!$B$17/((1-Vehicles!$C$30)*(1-Vehicles!$C$12)*Fuel_Specs!$B$15+Vehicles!$C$30*(1-Vehicles!$C$12)*Fuel_Specs!$B$17+Vehicles!$C$12*Fuel_Specs!$B$33)*(Petroleum!B270*Petroleum!$F$262+Petroleum!$F270)+Vehicles!$C$12*Fuel_Specs!$B$33/((1-Vehicles!$C$30)*(1-Vehicles!$C$12)*Fuel_Specs!$B$15+Vehicles!$C$30*(1-Vehicles!$C$12)*Fuel_Specs!$B$17+Vehicles!$C$12*Fuel_Specs!$B$33)*(EtOH!$BT497*EtOH!$BU$489+EtOH!$BU497))/1000000*HLOOKUP($J$10,$Z$5:$AD$6,2,FALSE)/HLOOKUP($J$11,$Z$7:$AD$8,2,FALSE) -> 54.76544201 | O26: =((1-Vehicles!$C$29)*(1-Vehicles!$C$9)*Fuel_Specs!$B$15/((1-Vehicles!$C$29)*(1-Vehicles!$C$9)*Fuel_Specs!$B$15+Vehicles!$C$29*(1-Vehicles!$C$9)*Fuel_Specs!$B$17+Vehicles!$C$9*Fuel_Specs!$B$32)*(Petroleum!$B270*Petroleum!$D$262+(Petroleum!$D270-'T&D'!G220))+Vehicles!$C$29*(1-Vehicles!$C$9)*Fuel_Specs!$B$17/((1-Vehicles!$C$29)*(1-Vehicles!$C$9)*Fuel_Specs!$B$15+Vehicles!$C$29*(1-Vehicles!$C$9)*Fuel_Specs!$B$17+Vehicles!$C$9*Fuel_Specs!$B$32)*(Petroleum!B270*Petroleum!$F$262+Petroleum!$F270)+Vehicles!$C$9*Fuel_Specs!$B$32/((1-Vehicles!$C$29)*(1-Vehicles!$C$9)*Fuel_Specs!$B$15+Vehicles!$C$29*(1-Vehicles!$C$9)*Fuel_Specs!$B$17+Vehicles!$C$9*Fuel_Specs!$B$32)*(EtOH!BR497*EtOH!$BS$489+EtOH!$BS497)+Petroleum!AS132+Petroleum!AT132)/1000000*HLOOKUP($J$10,$Z$5:$AD$6,2,FALSE)/HLOOKUP($J$11,$Z$7:$AD$8,2,FALSE) -> 44.06436669 | P26: =(EtOH!$BP497*EtOH!$BQ$489+EtOH!$BQ497)/1000000*HLOOKUP($J$10,$Z$5:$AD$6,2,FALSE)/HLOOKUP($J$11,$Z$7:$AD$8,2,FALSE) -> 52.9619591 | Q26: =((1-Vehicles!$C$33)*(1-Vehicles!$C$16)*Fuel_Specs!$B$15/((1-Vehicles!$C$33)*(1-Vehicles!$C$16)*Fuel_Specs!$B$15+Vehicles!$C$33*(1-Vehicles!$C$16)*Fuel_Specs!$B$17+Vehicles!$C$16*Fuel_Specs!$B$45)*(Petroleum!$B270*Petroleum!$D$262+Petroleum!$D270)+Vehicles!$C$33*(1-Vehicles!$C$16)*Fuel_Specs!$B$17/((1-Vehicles!$C$33)*(1-Vehicles!$C$16)*Fuel_Specs!$B$15+Vehicles!$C$33*(1-Vehicles!$C$16)*Fuel_Specs!$B$17+Vehicles!$C$16*Fuel_Specs!$B$45)*(Petroleum!B270*Petroleum!$F$262+Petroleum!$F270)+Vehicles!$C$16*Fuel_Specs!$B$45/((1-Vehicles!$C$33)*(1-Vehicles!$C$16)*Fuel_Specs!$B$15+Vehicles!$C$33*(1-Vehicles!$C$16)*Fuel_Specs!$B$17+Vehicles!$C$16*Fuel_Specs!$B$45)*(BioOil!$BO344*BioOil!$BP$335+BioOil!$BP344))/1000000*HLOOKUP($J$10,$Z$5:$AD$6,2,FALSE)/HLOOKUP($J$11,$Z$7:$AD$8,2,FALSE) -> 190.6313527 | R26: =((1-Vehicles!$C$33)*(1-Vehicles!$C$16)*Fuel_Specs!$B$15/((1-Vehicles!$C$33)*(1-Vehicles!$C$16)*Fuel_Specs!$B$15+Vehicles!$C$33*(1-Vehicles!$C$16)*Fuel_Specs!$B$17+Vehicles!$C$16*Fuel_Specs!$B$45)*(Petroleum!$B270*Petroleum!$D$262+Petroleum!$D270)+Vehicles!$C$33*(1-Vehicles!$C$16)*Fuel_Specs!$B$17/((1-Vehicles!$C$33)*(1-Vehicles!$C$16)*Fuel_Specs!$B$15+Vehicles!$C$33*(1-Vehicles!$C$16)*Fuel_Specs!$B$17+Vehicles!$C$16*Fuel_Specs!$B$45)*(Petroleum!B270*Petroleum!$F$262+Petroleum!$F270)+Vehicles!$C$16*Fuel_Specs!$B$45/((1-Vehicles!$C$33)*(1-Vehicles!$C$16)*Fuel_Specs!$B$15+Vehicles!$C$33*(1-Vehicles!$C$16)*Fuel_Specs!$B$17+Vehicles!$C$16*Fuel_Specs!$B$45)*(Pyrolysis!$Z179*Pyrolysis!$AA$171+Pyrolysis!$AA179))/1000000*HLOOKUP($J$10,$Z$5:$AD$6,2,FALSE)/HLOOKUP($J$11,$Z$7:$AD$8,2,FALSE) -> 19.54806451 | S26: =AN26*(Vehicles!$C$23/Vehicles!$AR$59)/(Vehicles!$C$23*(1/Vehicles!$AR$59+1/Vehicles!$AS$59)+Vehicles!$C$24/Vehicles!$AT$59)+B26*(Vehicles!$C$23/Vehicles!$AS$59+Vehicles!$C$24/Vehicles!$AT$59)/(Vehicles!$C$23*(1/Vehicles!$AR$59+1/Vehicles!$AS$59)+Vehicles!$C$24/Vehicles!$AT$59) -> 27.14214622 | T26: =AN26*(Vehicles!$D$23/Vehicles!$AV$59)/(Vehicles!$D$23*(1/Vehicles!$AV$59+1/Vehicles!$AW$59)+Vehicles!$D$24/Vehicles!$AX$59)+C26*(Vehicles!$D$23/Vehicles!$AW$59+Vehicles!$D$24/Vehicles!$AX$59)/(Vehicles!$D$23*(1/Vehicles!$AV$59+1/Vehicles!$AW$59)+Vehicles!$D$24/Vehicles!$AX$59) -> 58.90197672 | U26: =AN26*(Vehicles!$F$23/Vehicles!$BD$59)/(Vehicles!$F$23*(1/Vehicles!$BD$59+1/Vehicles!$BE$59)+Vehicles!$F$24/Vehicles!$BF$59)+D26*(Vehicles!$F$23/Vehicles!$BE$59+Vehicles!$F$24/Vehicles!$BF$59)/(Vehicles!$F$23*(1/Vehicles!$BD$59+1/Vehicles!$BE$59)+Vehicles!$F$24/Vehicles!$BF$59) -> 27.14214622 | V26: =AN26*(Vehicles!$G$23/Vehicles!$BH$59)/(Vehicles!$G$23*(1/Vehicles!$BH$59+1/Vehicles!$BI$59)+Vehicles!$G$24/Vehicles!$BJ$59)+F26*(Vehicles!$G$23/Vehicles!$BI$59+Vehicles!$G$24/Vehicles!$BJ$59)/(Vehicles!$G$23*(1/Vehicles!$BH$59+1/Vehicles!$BI$59)+Vehicles!$G$24/Vehicles!$BJ$59) -> 44.6937988 | W26: =AN26*(Vehicles!$H$23/Vehicles!$BL$59)/(Vehicles!$H$23*(1/Vehicles!$BL$59+1/Vehicles!$BM$59)+Vehicles!$H$24/Vehicles!$BN$59)+G26*(Vehicles!$H$23/Vehicles!$BM$59+Vehicles!$H$24/Vehicles!$BN$59)/(Vehicles!$H$23*(1/Vehicles!$BL$59+1/Vehicles!$BM$59)+Vehicles!$H$24/Vehicles!$BN$59) -> 104.5030081 | X26: =AN26*(Vehicles!$I$23/Vehicles!$BP$59)/(Vehicles!$I$23*(1/Vehicles!$BP$59+1/Vehicles!$BQ$59)+Vehicles!$I$24/Vehicles!$BR$59)+H26*(Vehicles!$I$23/Vehicles!$BQ$59+Vehicles!$I$24/Vehicles!$BR$59)/(Vehicles!$I$23*(1/Vehicles!$BP$59+1/Vehicles!$BQ$59)+Vehicles!$I$24/Vehicles!$BR$59) -> 25.76331869 | Y26: =AN26*(Vehicles!$J$23/Vehicles!$BT$59)/(Vehicles!$J$23*(1/Vehicles!$BT$59+1/Vehicles!$BU$59)+Vehicles!$J$24/Vehicles!$BV$59)+K26*(Vehicles!$J$23/Vehicles!$BU$59+Vehicles!$J$24/Vehicles!$BV$59)/(Vehicles!$J$23*(1/Vehicles!$BT$59+1/Vehicles!$BU$59)+Vehicles!$J$24/Vehicles!$BV$59) -> 28.15675814 | Z26: =AN26*(Vehicles!$K$23/Vehicles!$BX$59)/(Vehicles!$K$23*(1/Vehicles!$BX$59+1/Vehicles!$BY$59)+Vehicles!$K$24/Vehicles!$BZ$59)+O26*(Vehicles!$K$23/Vehicles!$BY$59+Vehicles!$K$24/Vehicles!$BZ$59)/(Vehicles!$K$23*(1/Vehicles!$BX$59+1/Vehicles!$BY$59)+Vehicles!$K$24/Vehicles!$BZ$59) -> 45.31719946 | AA26: =AN26*(Vehicles!$L$23/Vehicles!$CB$59)/(Vehicles!$L$23*(1/Vehicles!$CB$59+1/Vehicles!$CC$59)+Vehicles!$L$24/Vehicles!$CD$59)+AO26*(Vehicles!$L$23/Vehicles!$CC$59+Vehicles!$L$24/Vehicles!$CD$59)/(Vehicles!$L$23*(1/Vehicles!$CB$59+1/Vehicles!$CC$59)+Vehicles!$L$24/Vehicles!$CD$59) -> 75.86744735 | AB26: =AN26*(Vehicles!$L$23/Vehicles!$CB$59)/(Vehicles!$L$23*(1/Vehicles!$CB$59+1/Vehicles!$CC$59)+Vehicles!$L$24/Vehicles!$CE$59)+AP26*(Vehicles!$L$23/Vehicles!$CC$59+Vehicles!$L$24/Vehicles!$CE$59)/(Vehicles!$L$23*(1/Vehicles!$CB$59+1/Vehicles!$CC$59)+Vehicles!$L$24/Vehicles!$CE$59) -> 83.39356615 | AC26: =('MeOH&FTD'!$AJ145*'MeOH&FTD'!$AK$137+'MeOH&FTD'!$AK145)/1000000*HLOOKUP($J$10,$Z$5:$AD$6,2,FALSE)/HLOOKUP($J$11,$Z$7:$AD$8,2,FALSE) -> 25.41769192 | AD26: =((1-Vehicles!$C$34)*(1-Vehicles!$C$13)*Fuel_Specs!$B$21/((1-Vehicles!$C$34)*(1-Vehicles!$C$13)*Fuel_Specs!$B$21+Vehicles!$C$34*(1-Vehicles!$C$13)*Fuel_Specs!$B$24+Vehicles!$C$13*Fuel_Specs!$B$41)*(Petroleum!B270*Petroleum!$J$262+Petroleum!$J270)+Vehicles!$C$34*(1-Vehicles!$C$13)*Fuel_Specs!$B$24/((1-Vehicles!$C$34)*(1-Vehicles!$C$13)*Fuel_Specs!$B$21+Vehicles!$C$34*(1-Vehicles!$C$13)*Fuel_Specs!$B$24+Vehicles!$C$13*Fuel_Specs!$B$41)*(Petroleum!B270*Petroleum!$K$262+Petroleum!$K270)+Vehicles!$C$13*Fuel_Specs!$B$41/((1-Vehicles!$C$34)*(1-Vehicles!$C$13)*Fuel_Specs!$B$21+Vehicles!$C$34*(1-Vehicles!$C$13)*Fuel_Specs!$B$24+Vehicles!$C$13*Fuel_Specs!$B$41)*('MeOH&FTD'!$AZ145*'MeOH&FTD'!$BA$137+'MeOH&FTD'!$BA145))/1000000*HLOOKUP($J$10,$Z$5:$AD$6,2,FALSE)/HLOOKUP($J$11,$Z$7:$AD$8,2,FALSE) -> 32.64286254 | AE26: =((1-Vehicles!$C$35)*(1-Vehicles!$C$14)*Fuel_Specs!$B$21/((1-Vehicles!$C$35)*(1-Vehicles!$C$14)*Fuel_Specs!$B$21+Vehicles!$C$35*(1-Vehicles!$C$14)*Fuel_Specs!$B$24+Vehicles!$C$14*Fuel_Specs!$B$40)*(Petroleum!B270*Petroleum!$J$262+Petroleum!$J270)+Vehicles!$C$35*(1-Vehicles!$C$14)*Fuel_Specs!$B$24/((1-Vehicles!$C$35)*(1-Vehicles!$C$14)*Fuel_Specs!$B$21+Vehicles!$C$35*(1-Vehicles!$C$14)*Fuel_Specs!$B$24+Vehicles!$C$14*Fuel_Specs!$B$40)*(Petroleum!B270*Petroleum!$K$262+Petroleum!$K270)+Vehicles!$C$14*Fuel_Specs!$B$40/((1-Vehicles!$C$35)*(1-Vehicles!$C$14)*Fuel_Specs!$B$21+Vehicles!$C$35*(1-Vehicles!$C$14)*Fuel_Specs!$B$24+Vehicles!$C$14*Fuel_Specs!$B$40)*(BioOil!$W344*BioOil!$X$335+BioOil!$X344))/1000000*HLOOKUP($J$10,$Z$5:$AD$6,2,FALSE)/HLOOKUP($J$11,$Z$7:$AD$8,2,FALSE) -> 20.31283819 | AF26: =((1-Vehicles!$C$36)*(1-Vehicles!$C$15)*Fuel_Specs!$B$21/((1-Vehicles!$C$36)*(1-Vehicles!$C$15)*Fuel_Specs!$B$21+Vehicles!$C$36*(1-Vehicles!$C$15)*Fuel_Specs!$B$24+Vehicles!$C$15*IF(Inputs!$E$628=1,IF(Inputs!$E$628=1,Fuel_Specs!$B$42,IF(Inputs!$E$628=3,Fuel_Specs!$B$44,Fuel_Specs!$B$43)),Fuel_Specs!$B$43))*(Petroleum!B270*Petroleum!$J$262+Petroleum!$J270)+Vehicles!$C$36*(1-Vehicles!$C$15)*Fuel_Specs!$B$24/((1-Vehicles!$C$36)*(1-Vehicles!$C$15)*Fuel_Specs!$B$21+Vehicles!$C$36*(1-Vehicles!$C$15)*Fuel_Specs!$B$24+Vehicles!$C$15*IF(Inputs!$E$628=1,IF(Inputs!$E$628=1,Fuel_Specs!$B$42,IF(Inputs!$E$628=3,Fuel_Specs!$B$44,Fuel_Specs!$B$43)),Fuel_Specs!$B$43))*(Petroleum!B270*Petroleum!$K$262+Petroleum!$K270)+Vehicles!$C$15*IF(Inputs!$E$628=1,IF(Inputs!$E$628=1,Fuel_Specs!$B$42,IF(Inputs!$E$628=3,Fuel_Specs!$B$44,Fuel_Specs!$B$43)),Fuel_Specs!$B$43)/((1-Vehicles!$C$36)*(1-Vehicles!$C$15)*Fuel_Specs!$B$21+Vehicles!$C$36*(1-Vehicles!$C$15)*Fuel_Specs!$B$24+Vehicles!$C$15*IF(Inputs!$E$628=1,IF(Inputs!$E$628=1,Fuel_Specs!$B$42,IF(Inputs!$E$628=3,Fuel_Specs!$B$44,Fuel_Specs!$B$43)),Fuel_Specs!$B$43))*(BioOil!$BA344*BioOil!$BB$335+BioOil!$BB344))/1000000*HLOOKUP($J$10,$Z$5:$AD$6,2,FALSE)/HLOOKUP($J$11,$Z$7:$AD$8,2,FALSE) -> 34.53273369 | AG26: =((1-Vehicles!$C$36)*(1-Vehicles!$C$15)*Fuel_Specs!$B$21/((1-Vehicles!$C$36)*(1-Vehicles!$C$15)*Fuel_Specs!$B$21+Vehicles!$C$36*(1-Vehicles!$C$15)*Fuel_Specs!$B$24+Vehicles!$C$15*IF(Inputs!$E$628=1,Fuel_Specs!$B$42,Fuel_Specs!$B$43))*(Petroleum!B270*Petroleum!$J$262+Petroleum!$J270)+Vehicles!$C$36*(1-Vehicles!$C$15)*Fuel_Specs!$B$24/((1-Vehicles!$C$36)*(1-Vehicles!$C$15)*Fuel_Specs!$B$21+Vehicles!$C$36*(1-Vehicles!$C$15)*Fuel_Specs!$B$24+Vehicles!$C$15*IF(Inputs!$E$628=1,Fuel_Specs!$B$42,Fuel_Specs!$B$43))*(Petroleum!B270*Petroleum!$K$262+Petroleum!$K270)+Vehicles!$C$15*IF(Inputs!$E$628=1,Fuel_Specs!$B$42,Fuel_Specs!$B$43)/((1-Vehicles!$C$36)*(1-Vehicles!$C$15)*Fuel_Specs!$B$21+Vehicles!$C$36*(1-Vehicles!$C$15)*Fuel_Specs!$B$24+Vehicles!$C$15*IF(Inputs!$E$628=1,Fuel_Specs!$B$42,Fuel_Specs!$B$43))*(Pyrolysis!$AB179*Pyrolysis!$AC$171+Pyrolysis!$AC179))/1000000*HLOOKUP($J$10,$Z$5:$AD$6,2,FALSE)/HLOOKUP($J$11,$Z$7:$AD$8,2,FALSE) -> 30.99922235 | AH26: =(((1-Vehicles!$C$37)*(1-Vehicles!$C$17-Vehicles!$C$18)*Fuel_Specs!$B$21*(Petroleum!B270*Petroleum!$J$262+Petroleum!$J270)+Vehicles!$C$37*(1-Vehicles!$C$17-Vehicles!$C$18)*Fuel_Specs!$B$24*(Petroleum!B270*Petroleum!$K$262+Petroleum!$K270)+Vehicles!$C$17*Fuel_Specs!$B$32*(EtOH!BP497*EtOH!$BQ$489+EtOH!$BQ497)+Vehicles!$C$18*Fuel_Specs!$B$35*('E-D Additives'!$B61*'E-D Additives'!$B$53))/((1-Vehicles!$C$37)*(1-Vehicles!$C$17-Vehicles!$C$18)*Fuel_Specs!$B$21+Vehicles!$C$37*(1-Vehicles!$C$17-Vehicles!$C$18)*Fuel_Specs!$B$24+Vehicles!$C$17*Fuel_Specs!$B$32+Vehicles!$C$18*Fuel_Specs!$B$35))/1000000*HLOOKUP($J$10,$Z$5:$AD$6,2,FALSE)/HLOOKUP($J$11,$Z$7:$AD$8,2,FALSE) -> 20.6017793 | AI26: =AN26*(Vehicles!$M$23/Vehicles!$CM$59)/(Vehicles!$M$23*(1/Vehicles!$CM$59+1/Vehicles!$CN$59)+Vehicles!$M$24/Vehicles!$CO$59)+E26*(Vehicles!$M$23/Vehicles!$CN$59+Vehicles!$M$24/Vehicles!$CO$59)/(Vehicles!$M$23*(1/Vehicles!$CM$59+1/Vehicles!$CN$59)+Vehicles!$M$24/Vehicles!$CO$59) -> 26.88551685 | AJ26: =AN26*(Vehicles!$N$23/Vehicles!$CQ$59)/(Vehicles!$N$23*(1/Vehicles!$CQ$59+1/Vehicles!$CR$59)+Vehicles!$N$24/Vehicles!$CS$59)+AC26*(Vehicles!$N$23/Vehicles!$CR$59+Vehicles!$N$24/Vehicles!$CS$59)/(Vehicles!$N$23*(1/Vehicles!$CQ$59+1/Vehicles!$CR$59)+Vehicles!$N$24/Vehicles!$CS$59) -> 31.91885365 | AK26: =AN26*(Vehicles!$O$23/Vehicles!$CU$59)/(Vehicles!$O$23*(1/Vehicles!$CU$59+1/Vehicles!$CV$59)+Vehicles!$O$24/Vehicles!$CW$59)+AD26*(Vehicles!$O$23/Vehicles!$CV$59+Vehicles!$O$24/Vehicles!$CW$59)/(Vehicles!$O$23*(1/Vehicles!$CU$59+1/Vehicles!$CV$59)+Vehicles!$O$24/Vehicles!$CW$59) -> 37.14232169 | AL26: =AN26*(Vehicles!$P$23/Vehicles!$CY$59)/(Vehicles!$P$23*(1/Vehicles!$CY$59+1/Vehicles!$CZ$59)+Vehicles!$P$24/Vehicles!$DA$59)+AE26*(Vehicles!$P$23/Vehicles!$CZ$59+Vehicles!$P$24/Vehicles!$DA$59)/(Vehicles!$P$23*(1/Vehicles!$CY$59+1/Vehicles!$CZ$59)+Vehicles!$P$24/Vehicles!$DA$59) -> 28.22827779 | AM26: =AN26*(Vehicles!$R$23/Vehicles!$DG$59)/(Vehicles!$R$23*(1/Vehicles!$DG$59+1/Vehicles!$DH$59)+Vehicles!$R$24/Vehicles!$DI$59)+AH26*(Vehicles!$R$23/Vehicles!$DH$59+Vehicles!$R$24/Vehicles!$DI$59)/(Vehicles!$R$23*(1/Vehicles!$DG$59+1/Vehicles!$DH$59)+Vehicles!$R$24/Vehicles!$DI$59) -> 28.437169 | AN26: =(Electric!$G193+Electric!$F193)/1000000*HLOOKUP($J$10,$Z$5:$AD$6,2,FALSE)/HLOOKUP($J$11,$Z$7:$AD$8,2,FALSE) -> 48.88371689 | AO26: =(Hydrogen!$AF170*Hydrogen!$AG$162+Hydrogen!$AG170)/1000000*HLOOKUP($J$10,$Z$5:$AD$6,2,FALSE)/HLOOKUP($J$11,$Z$7:$AD$8,2,FALSE) -> 86.78604636 | AP26: =(Hydrogen!$BJ170*Hydrogen!$BK$162+Hydrogen!$BK170)/1000000*HLOOKUP($J$10,$Z$5:$AD$6,2,FALSE)/HLOOKUP($J$11,$Z$7:$AD$8,2,FALSE) -> 97.35750664 | AQ26: =AN26*(Vehicles!$S$23/Vehicles!$DW$59)/(Vehicles!$S$23*(1/Vehicles!$DW$59+1/Vehicles!$DX$59)+Vehicles!$S$24/Vehicles!$DY$59)+AO26*(Vehicles!$S$23/Vehicles!$DX$59+Vehicles!$S$24/Vehicles!$DY$59)/(Vehicles!$S$23*(1/Vehicles!$DW$59+1/Vehicles!$DX$59)+Vehicles!$S$24/Vehicles!$DY$59) -> 73.77052631 | AR26: =AN26*(Vehicles!$S$23/Vehicles!$DW$59)/(Vehicles!$S$23*(1/Vehicles!$DW$59+1/Vehicles!$DX$59)+Vehicles!$S$24/Vehicles!$DY$59)+AP26*(Vehicles!$S$23/Vehicles!$DX$59+Vehicles!$S$24/Vehicles!$DY$59)/(Vehicles!$S$23*(1/Vehicles!$DW$59+1/Vehicles!$DX$59)+Vehicles!$S$24/Vehicles!$DY$59) -> 80.71178614 | AS26: =((1-Vehicles!$C$33)*(1-Vehicles!$C$16)*Fuel_Specs!$B$15/((1-Vehicles!$C$33)*(1-Vehicles!$C$16)*Fuel_Specs!$B$15+Vehicles!$C$33*(1-Vehicles!$C$16)*Fuel_Specs!$B$17+Vehicles!$C$16*Fuel_Specs!$B$46)*(Petroleum!$B270*Petroleum!$D$262+Petroleum!$D270)+Vehicles!$C$33*(1-Vehicles!$C$16)*Fuel_Specs!$B$17/((1-Vehicles!$C$33)*(1-Vehicles!$C$16)*Fuel_Specs!$B$15+Vehicles!$C$33*(1-Vehicles!$C$16)*Fuel_Specs!$B$17+Vehicles!$C$16*Fuel_Specs!$B$46)*(Petroleum!B270*Petroleum!$F$262+Petroleum!$F270)+Vehicles!$C$16*Fuel_Specs!$B$46/((1-Vehicles!$C$33)*(1-Vehicles!$C$16)*Fuel_Specs!$B$15+Vehicles!$C$33*(1-Vehicles!$C$16)*Fuel_Specs!$B$17+Vehicles!$C$16*Fuel_Specs!$B$46)*(IDL!$L120*IDL!$M$112+IDL!$M120))/1000000*HLOOKUP($J$10,$Z$5:$AD$6,2,FALSE)/HLOOKUP($J$11,$Z$7:$AD$8,2,FALSE) -> 114.2061994 | AV26: SI - Dedi. EtOH Vehicle | AW26: RNAVETOHDED | BQ26: FCV - LNG | BR26: RNAVFCVLNG
A27: NOx: Total | B27: =(Inputs!$E$1400*(Petroleum!$B271*Petroleum!$F$262+Petroleum!$F271)+(1-Inputs!$E$1400)*(Petroleum!$B271*Petroleum!$D$262+Petroleum!$D271))/1000000*HLOOKUP($J$10,$Z$5:$AD$6,2,FALSE)/HLOOKUP($J$11,$Z$7:$AD$8,2,FALSE) -> 45.62710976 | C27: =(Petroleum!$C271*Petroleum!$G$262+Petroleum!$G271)/1000000*HLOOKUP($J$10,$Z$5:$AD$6,2,FALSE)/HLOOKUP($J$11,$Z$7:$AD$8,2,FALSE) -> 91.18868301 | D27: =((1-Vehicles!$C$28)*(1-Vehicles!$C$7)*Fuel_Specs!$B$15/((1-Vehicles!$C$28)*(1-Vehicles!$C$7)*Fuel_Specs!$B$15+Vehicles!$C$28*(1-Vehicles!$C$7)*Fuel_Specs!$B$17+Vehicles!$C$7*Fuel_Specs!$B$32)*(Petroleum!$B271*Petroleum!$D$262+(Petroleum!$D271-'T&D'!G221))+Vehicles!$C$28*(1-Vehicles!$C$7)*Fuel_Specs!$B$17/((1-Vehicles!$C$28)*(1-Vehicles!$C$7)*Fuel_Specs!$B$15+Vehicles!$C$28*(1-Vehicles!$C$7)*Fuel_Specs!$B$17+Vehicles!$C$7*Fuel_Specs!$B$32)*(Petroleum!B271*Petroleum!$F$262+Petroleum!$F271)+Vehicles!$C$7*Fuel_Specs!$B$32/((1-Vehicles!$C$28)*(1-Vehicles!$C$7)*Fuel_Specs!$B$15+Vehicles!$C$28*(1-Vehicles!$C$7)*Fuel_Specs!$B$17+Vehicles!$C$7*Fuel_Specs!$B$32)*(EtOH!BR498*EtOH!$BS$489+EtOH!$BS498)+Petroleum!AS133+Petroleum!AT133)/1000000*HLOOKUP($J$10,$Z$5:$AD$6,2,FALSE)/HLOOKUP($J$11,$Z$7:$AD$8,2,FALSE) -> 45.62710976 | E27: =(Inputs!$E$97*(IF(Inputs!F$102=1,Petroleum!$B271,Petroleum!$C271)*Petroleum!$K$262+Petroleum!$K271)+(1-Inputs!$E$97)*(IF(Inputs!F$101=1,Petroleum!$B271,Petroleum!$C271)*Petroleum!$J$262+Petroleum!$J271))/1000000*HLOOKUP($J$10,$Z$5:$AD$6,2,FALSE)/HLOOKUP($J$11,$Z$7:$AD$8,2,FALSE) -> 37.32642931 | F27: =(NG!$I93*NG!$J$84+NG!$J93)/1000000*HLOOKUP($J$10,$Z$5:$AD$6,2,FALSE)/HLOOKUP($J$11,$Z$7:$AD$8,2,FALSE) -> 53.43904176 | G27: =(NG!$Q93*NG!$R$84+NG!$R93)/1000000*HLOOKUP($J$10,$Z$5:$AD$6,2,FALSE)/HLOOKUP($J$11,$Z$7:$AD$8,2,FALSE) -> 153.6119881 | H27: =(NG!$W93*NG!$X$84+NG!$X93)/1000000*HLOOKUP($J$10,$Z$5:$AD$6,2,FALSE)/HLOOKUP($J$11,$Z$7:$AD$8,2,FALSE) -> 28.30469267 | I27: =('MeOH&FTD'!BJ146*'MeOH&FTD'!BK$137+'MeOH&FTD'!BK146)/1000000*HLOOKUP($J$10,$Z$5:$AD$6,2,FALSE)/HLOOKUP($J$11,$Z$7:$AD$8,2,FALSE) -> 40.13787332 | J27: =((1-Vehicles!$C$27)*(1-Vehicles!$C$5)*Fuel_Specs!$B$15/((1-Vehicles!$C$27)*(1-Vehicles!$C$5)*Fuel_Specs!$B$15+Vehicles!$C$27*(1-Vehicles!$C$5)*Fuel_Specs!$B$17+Vehicles!$C$5*Fuel_Specs!$B$31)*(Petroleum!$B271*Petroleum!$D$262+Petroleum!$D271)+Vehicles!$C$27*(1-Vehicles!$C$5)*Fuel_Specs!$B$17/((1-Vehicles!$C$27)*(1-Vehicles!$C$5)*Fuel_Specs!$B$15+Vehicles!$C$27*(1-Vehicles!$C$5)*Fuel_Specs!$B$17+Vehicles!$C$5*Fuel_Specs!$B$31)*(Petroleum!B271*Petroleum!$F$262+Petroleum!$F271)+Vehicles!$C$5*Fuel_Specs!$B$31/((1-Vehicles!$C$27)*(1-Vehicles!$C$5)*Fuel_Specs!$B$15+Vehicles!$C$27*(1-Vehicles!$C$5)*Fuel_Specs!$B$17+Vehicles!$C$5*Fuel_Specs!$B$31)*('MeOH&FTD'!$N146*'MeOH&FTD'!$O$137+'MeOH&FTD'!$O146))/1000000*HLOOKUP($J$10,$Z$5:$AD$6,2,FALSE)/HLOOKUP($J$11,$Z$7:$AD$8,2,FALSE) -> 37.79808457 | K27: =((1-Vehicles!$C$27)*(1-Vehicles!$C$6)*Fuel_Specs!$B$15/((1-Vehicles!$C$27)*(1-Vehicles!$C$6)*Fuel_Specs!$B$15+Vehicles!$C$27*(1-Vehicles!$C$6)*Fuel_Specs!$B$17+Vehicles!$C$6*Fuel_Specs!$B$31)*(Petroleum!$B271*Petroleum!$D$262+Petroleum!$D271)+Vehicles!$C$27*(1-Vehicles!$C$6)*Fuel_Specs!$B$17/((1-Vehicles!$C$27)*(1-Vehicles!$C$6)*Fuel_Specs!$B$15+Vehicles!$C$27*(1-Vehicles!$C$6)*Fuel_Specs!$B$17+Vehicles!$C$6*Fuel_Specs!$B$31)*(Petroleum!B271*Petroleum!$F$262+Petroleum!$F271)+Vehicles!$C$6*Fuel_Specs!$B$31/((1-Vehicles!$C$27)*(1-Vehicles!$C$6)*Fuel_Specs!$B$15+Vehicles!$C$27*(1-Vehicles!$C$6)*Fuel_Specs!$B$17+Vehicles!$C$6*Fuel_Specs!$B$31)*('MeOH&FTD'!$N146*'MeOH&FTD'!$O$137+'MeOH&FTD'!$O146))/1000000*HLOOKUP($J$10,$Z$5:$AD$6,2,FALSE)/HLOOKUP($J$11,$Z$7:$AD$8,2,FALSE) -> 37.90360023 | L27: =('MeOH&FTD'!$N146*'MeOH&FTD'!$O$137+'MeOH&FTD'!$O146)/1000000*HLOOKUP($J$10,$Z$5:$AD$6,2,FALSE)/HLOOKUP($J$11,$Z$7:$AD$8,2,FALSE) -> 38.1471654 | M27: =((1-Vehicles!$C$29)*(1-Vehicles!$C$8)*Fuel_Specs!$B$15/((1-Vehicles!$C$29)*(1-Vehicles!$C$8)*Fuel_Specs!$B$15+Vehicles!$C$29*(1-Vehicles!$C$8)*Fuel_Specs!$B$17+Vehicles!$C$8*Fuel_Specs!$B$32)*(Petroleum!$B271*Petroleum!$D$262+(Petroleum!$D271-'T&D'!G221))+Vehicles!$C$29*(1-Vehicles!$C$8)*Fuel_Specs!$B$17/((1-Vehicles!$C$29)*(1-Vehicles!$C$8)*Fuel_Specs!$B$15+Vehicles!$C$29*(1-Vehicles!$C$8)*Fuel_Specs!$B$17+Vehicles!$C$8*Fuel_Specs!$B$32)*(Petroleum!B271*Petroleum!$F$262+Petroleum!$F271)+Vehicles!$C$8*Fuel_Specs!$B$32/((1-Vehicles!$C$29)*(1-Vehicles!$C$8)*Fuel_Specs!$B$15+Vehicles!$C$29*(1-Vehicles!$C$8)*Fuel_Specs!$B$17+Vehicles!$C$8*Fuel_Specs!$B$32)*(EtOH!BR498*EtOH!$BS$489+EtOH!$BS498)+Petroleum!AS133+Petroleum!AT133)/1000000*HLOOKUP($J$10,$Z$5:$AD$6,2,FALSE)/HLOOKUP($J$11,$Z$7:$AD$8,2,FALSE) -> 137.8788412 | N27: =((1-Vehicles!$C$30)*(1-Vehicles!$C$12)*Fuel_Specs!$B$15/((1-Vehicles!$C$30)*(1-Vehicles!$C$12)*Fuel_Specs!$B$15+Vehicles!$C$30*(1-Vehicles!$C$12)*Fuel_Specs!$B$17+Vehicles!$C$12*Fuel_Specs!$B$33)*(Petroleum!$B271*Petroleum!$D$262+Petroleum!$D271)+Vehicles!$C$30*(1-Vehicles!$C$12)*Fuel_Specs!$B$17/((1-Vehicles!$C$30)*(1-Vehicles!$C$12)*Fuel_Specs!$B$15+Vehicles!$C$30*(1-Vehicles!$C$12)*Fuel_Specs!$B$17+Vehicles!$C$12*Fuel_Specs!$B$33)*(Petroleum!B271*Petroleum!$F$262+Petroleum!$F271)+Vehicles!$C$12*Fuel_Specs!$B$33/((1-Vehicles!$C$30)*(1-Vehicles!$C$12)*Fuel_Specs!$B$15+Vehicles!$C$30*(1-Vehicles!$C$12)*Fuel_Specs!$B$17+Vehicles!$C$12*Fuel_Specs!$B$33)*(EtOH!$BT498*EtOH!$BU$489+EtOH!$BU498))/1000000*HLOOKUP($J$10,$Z$5:$AD$6,2,FALSE)/HLOOKUP($J$11,$Z$7:$AD$8,2,FALSE) -> 136.8015853 | O27: =((1-Vehicles!$C$29)*(1-Vehicles!$C$9)*Fuel_Specs!$B$15/((1-Vehicles!$C$29)*(1-Vehicles!$C$9)*Fuel_Specs!$B$15+Vehicles!$C$29*(1-Vehicles!$C$9)*Fuel_Specs!$B$17+Vehicles!$C$9*Fuel_Specs!$B$32)*(Petroleum!$B271*Petroleum!$D$262+(Petroleum!$D271-'T&D'!G221))+Vehicles!$C$29*(1-Vehicles!$C$9)*Fuel_Specs!$B$17/((1-Vehicles!$C$29)*(1-Vehicles!$C$9)*Fuel_Specs!$B$15+Vehicles!$C$29*(1-Vehicles!$C$9)*Fuel_Specs!$B$17+Vehicles!$C$9*Fuel_Specs!$B$32)*(Petroleum!B271*Petroleum!$F$262+Petroleum!$F271)+Vehicles!$C$9*Fuel_Specs!$B$32/((1-Vehicles!$C$29)*(1-Vehicles!$C$9)*Fuel_Specs!$B$15+Vehicles!$C$29*(1-Vehicles!$C$9)*Fuel_Specs!$B$17+Vehicles!$C$9*Fuel_Specs!$B$32)*(EtOH!BR498*EtOH!$BS$489+EtOH!$BS498)+Petroleum!AS133+Petroleum!AT133)/1000000*HLOOKUP($J$10,$Z$5:$AD$6,2,FALSE)/HLOOKUP($J$11,$Z$7:$AD$8,2,FALSE) -> 137.8788412 | P27: =(EtOH!$BP498*EtOH!$BQ$489+EtOH!$BQ498)/1000000*HLOOKUP($J$10,$Z$5:$AD$6,2,FALSE)/HLOOKUP($J$11,$Z$7:$AD$8,2,FALSE) -> 169.9455263 | Q27: =((1-Vehicles!$C$33)*(1-Vehicles!$C$16)*Fuel_Specs!$B$15/((1-Vehicles!$C$33)*(1-Vehicles!$C$16)*Fuel_Specs!$B$15+Vehicles!$C$33*(1-Vehicles!$C$16)*Fuel_Specs!$B$17+Vehicles!$C$16*Fuel_Specs!$B$45)*(Petroleum!$B271*Petroleum!$D$262+Petroleum!$D271)+Vehicles!$C$33*(1-Vehicles!$C$16)*Fuel_Specs!$B$17/((1-Vehicles!$C$33)*(1-Vehicles!$C$16)*Fuel_Specs!$B$15+Vehicles!$C$33*(1-Vehicles!$C$16)*Fuel_Specs!$B$17+Vehicles!$C$16*Fuel_Specs!$B$45)*(Petroleum!B271*Petroleum!$F$262+Petroleum!$F271)+Vehicles!$C$16*Fuel_Specs!$B$45/((1-Vehicles!$C$33)*(1-Vehicles!$C$16)*Fuel_Specs!$B$15+Vehicles!$C$33*(1-Vehicles!$C$16)*Fuel_Specs!$B$17+Vehicles!$C$16*Fuel_Specs!$B$45)*(BioOil!$BO345*BioOil!$BP$335+BioOil!$BP345))/1000000*HLOOKUP($J$10,$Z$5:$AD$6,2,FALSE)/HLOOKUP($J$11,$Z$7:$AD$8,2,FALSE) -> 308.8865562 | R27: =((1-Vehicles!$C$33)*(1-Vehicles!$C$16)*Fuel_Specs!$B$15/((1-Vehicles!$C$33)*(1-Vehicles!$C$16)*Fuel_Specs!$B$15+Vehicles!$C$33*(1-Vehicles!$C$16)*Fuel_Specs!$B$17+Vehicles!$C$16*Fuel_Specs!$B$45)*(Petroleum!$B271*Petroleum!$D$262+Petroleum!$D271)+Vehicles!$C$33*(1-Vehicles!$C$16)*Fuel_Specs!$B$17/((1-Vehicles!$C$33)*(1-Vehicles!$C$16)*Fuel_Specs!$B$15+Vehicles!$C$33*(1-Vehicles!$C$16)*Fuel_Specs!$B$17+Vehicles!$C$16*Fuel_Specs!$B$45)*(Petroleum!B271*Petroleum!$F$262+Petroleum!$F271)+Vehicles!$C$16*Fuel_Specs!$B$45/((1-Vehicles!$C$33)*(1-Vehicles!$C$16)*Fuel_Specs!$B$15+Vehicles!$C$33*(1-Vehicles!$C$16)*Fuel_Specs!$B$17+Vehicles!$C$16*Fuel_Specs!$B$45)*(Pyrolysis!$Z180*Pyrolysis!$AA$171+Pyrolysis!$AA180))/1000000*HLOOKUP($J$10,$Z$5:$AD$6,2,FALSE)/HLOOKUP($J$11,$Z$7:$AD$8,2,FALSE) -> 44.39859779 | S27: =AN27*(Vehicles!$C$23/Vehicles!$AR$59)/(Vehicles!$C$23*(1/Vehicles!$AR$59+1/Vehicles!$AS$59)+Vehicles!$C$24/Vehicles!$AT$59)+B27*(Vehicles!$C$23/Vehicles!$AS$59+Vehicles!$C$24/Vehicles!$AT$59)/(Vehicles!$C$23*(1/Vehicles!$AR$59+1/Vehicles!$AS$59)+Vehicles!$C$24/Vehicles!$AT$59) -> 93.89373365 | T27: =AN27*(Vehicles!$D$23/Vehicles!$AV$59)/(Vehicles!$D$23*(1/Vehicles!$AV$59+1/Vehicles!$AW$59)+Vehicles!$D$24/Vehicles!$AX$59)+C27*(Vehicles!$D$23/Vehicles!$AW$59+Vehicles!$D$24/Vehicles!$AX$59)/(Vehicles!$D$23*(1/Vehicles!$AV$59+1/Vehicles!$AW$59)+Vehicles!$D$24/Vehicles!$AX$59) -> 126.8513923 | U27: =AN27*(Vehicles!$F$23/Vehicles!$BD$59)/(Vehicles!$F$23*(1/Vehicles!$BD$59+1/Vehicles!$BE$59)+Vehicles!$F$24/Vehicles!$BF$59)+D27*(Vehicles!$F$23/Vehicles!$BE$59+Vehicles!$F$24/Vehicles!$BF$59)/(Vehicles!$F$23*(1/Vehicles!$BD$59+1/Vehicles!$BE$59)+Vehicles!$F$24/Vehicles!$BF$59) -> 93.89373365 | V27: =AN27*(Vehicles!$G$23/Vehicles!$BH$59)/(Vehicles!$G$23*(1/Vehicles!$BH$59+1/Vehicles!$BI$59)+Vehicles!$G$24/Vehicles!$BJ$59)+F27*(Vehicles!$G$23/Vehicles!$BI$59+Vehicles!$G$24/Vehicles!$BJ$59)/(Vehicles!$G$23*(1/Vehicles!$BH$59+1/Vehicles!$BI$59)+Vehicles!$G$24/Vehicles!$BJ$59) -> 99.54461377 | W27: =AN27*(Vehicles!$H$23/Vehicles!$BL$59)/(Vehicles!$H$23*(1/Vehicles!$BL$59+1/Vehicles!$BM$59)+Vehicles!$H$24/Vehicles!$BN$59)+G27*(Vehicles!$H$23/Vehicles!$BM$59+Vehicles!$H$24/Vehicles!$BN$59)/(Vehicles!$H$23*(1/Vehicles!$BL$59+1/Vehicles!$BM$59)+Vehicles!$H$24/Vehicles!$BN$59) -> 172.0062417 | X27: =AN27*(Vehicles!$I$23/Vehicles!$BP$59)/(Vehicles!$I$23*(1/Vehicles!$BP$59+1/Vehicles!$BQ$59)+Vehicles!$I$24/Vehicles!$BR$59)+H27*(Vehicles!$I$23/Vehicles!$BQ$59+Vehicles!$I$24/Vehicles!$BR$59)/(Vehicles!$I$23*(1/Vehicles!$BP$59+1/Vehicles!$BQ$59)+Vehicles!$I$24/Vehicles!$BR$59) -> 81.36329915 | Y27: =AN27*(Vehicles!$J$23/Vehicles!$BT$59)/(Vehicles!$J$23*(1/Vehicles!$BT$59+1/Vehicles!$BU$59)+Vehicles!$J$24/Vehicles!$BV$59)+K27*(Vehicles!$J$23/Vehicles!$BU$59+Vehicles!$J$24/Vehicles!$BV$59)/(Vehicles!$J$23*(1/Vehicles!$BT$59+1/Vehicles!$BU$59)+Vehicles!$J$24/Vehicles!$BV$59) -> 85.26844501 | Z27: =AN27*(Vehicles!$K$23/Vehicles!$BX$59)/(Vehicles!$K$23*(1/Vehicles!$BX$59+1/Vehicles!$BY$59)+Vehicles!$K$24/Vehicles!$BZ$59)+O27*(Vehicles!$K$23/Vehicles!$BY$59+Vehicles!$K$24/Vehicles!$BZ$59)/(Vehicles!$K$23*(1/Vehicles!$BX$59+1/Vehicles!$BY$59)+Vehicles!$K$24/Vehicles!$BZ$59) -> 159.2542366 | AA27: =AN27*(Vehicles!$L$23/Vehicles!$CB$59)/(Vehicles!$L$23*(1/Vehicles!$CB$59+1/Vehicles!$CC$59)+Vehicles!$L$24/Vehicles!$CD$59)+AO27*(Vehicles!$L$23/Vehicles!$CC$59+Vehicles!$L$24/Vehicles!$CD$59)/(Vehicles!$L$23*(1/Vehicles!$CB$59+1/Vehicles!$CC$59)+Vehicles!$L$24/Vehicles!$CD$59) -> 167.8149859 | AB27: =AN27*(Vehicles!$L$23/Vehicles!$CB$59)/(Vehicles!$L$23*(1/Vehicles!$CB$59+1/Vehicles!$CC$59)+Vehicles!$L$24/Vehicles!$CE$59)+AP27*(Vehicles!$L$23/Vehicles!$CC$59+Vehicles!$L$24/Vehicles!$CE$59)/(Vehicles!$L$23*(1/Vehicles!$CB$59+1/Vehicles!$CC$59)+Vehicles!$L$24/Vehicles!$CE$59) -> 202.041769 | AC27: =('MeOH&FTD'!$AJ146*'MeOH&FTD'!$AK$137+'MeOH&FTD'!$AK146)/1000000*HLOOKUP($J$10,$Z$5:$AD$6,2,FALSE)/HLOOKUP($J$11,$Z$7:$AD$8,2,FALSE) -> 43.10659063 | AD27: =((1-Vehicles!$C$34)*(1-Vehicles!$C$13)*Fuel_Specs!$B$21/((1-Vehicles!$C$34)*(1-Vehicles!$C$13)*Fuel_Specs!$B$21+Vehicles!$C$34*(1-Vehicles!$C$13)*Fuel_Specs!$B$24+Vehicles!$C$13*Fuel_Specs!$B$41)*(Petroleum!B271*Petroleum!$J$262+Petroleum!$J271)+Vehicles!$C$34*(1-Vehicles!$C$13)*Fuel_Specs!$B$24/((1-Vehicles!$C$34)*(1-Vehicles!$C$13)*Fuel_Specs!$B$21+Vehicles!$C$34*(1-Vehicles!$C$13)*Fuel_Specs!$B$24+Vehicles!$C$13*Fuel_Specs!$B$41)*(Petroleum!B271*Petroleum!$K$262+Petroleum!$K271)+Vehicles!$C$13*Fuel_Specs!$B$41/((1-Vehicles!$C$34)*(1-Vehicles!$C$13)*Fuel_Specs!$B$21+Vehicles!$C$34*(1-Vehicles!$C$13)*Fuel_Specs!$B$24+Vehicles!$C$13*Fuel_Specs!$B$41)*('MeOH&FTD'!$AZ146*'MeOH&FTD'!$BA$137+'MeOH&FTD'!$BA146))/1000000*HLOOKUP($J$10,$Z$5:$AD$6,2,FALSE)/HLOOKUP($J$11,$Z$7:$AD$8,2,FALSE) -> 45.85432927 | AE27: =((1-Vehicles!$C$35)*(1-Vehicles!$C$14)*Fuel_Specs!$B$21/((1-Vehicles!$C$35)*(1-Vehicles!$C$14)*Fuel_Specs!$B$21+Vehicles!$C$35*(1-Vehicles!$C$14)*Fuel_Specs!$B$24+Vehicles!$C$14*Fuel_Specs!$B$40)*(Petroleum!B271*Petroleum!$J$262+Petroleum!$J271)+Vehicles!$C$35*(1-Vehicles!$C$14)*Fuel_Specs!$B$24/((1-Vehicles!$C$35)*(1-Vehicles!$C$14)*Fuel_Specs!$B$21+Vehicles!$C$35*(1-Vehicles!$C$14)*Fuel_Specs!$B$24+Vehicles!$C$14*Fuel_Specs!$B$40)*(Petroleum!B271*Petroleum!$K$262+Petroleum!$K271)+Vehicles!$C$14*Fuel_Specs!$B$40/((1-Vehicles!$C$35)*(1-Vehicles!$C$14)*Fuel_Specs!$B$21+Vehicles!$C$35*(1-Vehicles!$C$14)*Fuel_Specs!$B$24+Vehicles!$C$14*Fuel_Specs!$B$40)*(BioOil!$W345*BioOil!$X$335+BioOil!$X345))/1000000*HLOOKUP($J$10,$Z$5:$AD$6,2,FALSE)/HLOOKUP($J$11,$Z$7:$AD$8,2,FALSE) -> 42.0802533 | AF27: =((1-Vehicles!$C$36)*(1-Vehicles!$C$15)*Fuel_Specs!$B$21/((1-Vehicles!$C$36)*(1-Vehicles!$C$15)*Fuel_Specs!$B$21+Vehicles!$C$36*(1-Vehicles!$C$15)*Fuel_Specs!$B$24+Vehicles!$C$15*IF(Inputs!$E$628=1,IF(Inputs!$E$628=1,Fuel_Specs!$B$42,IF(Inputs!$E$628=3,Fuel_Specs!$B$44,Fuel_Specs!$B$43)),Fuel_Specs!$B$43))*(Petroleum!B271*Petroleum!$J$262+Petroleum!$J271)+Vehicles!$C$36*(1-Vehicles!$C$15)*Fuel_Specs!$B$24/((1-Vehicles!$C$36)*(1-Vehicles!$C$15)*Fuel_Specs!$B$21+Vehicles!$C$36*(1-Vehicles!$C$15)*Fuel_Specs!$B$24+Vehicles!$C$15*IF(Inputs!$E$628=1,IF(Inputs!$E$628=1,Fuel_Specs!$B$42,IF(Inputs!$E$628=3,Fuel_Specs!$B$44,Fuel_Specs!$B$43)),Fuel_Specs!$B$43))*(Petroleum!B271*Petroleum!$K$262+Petroleum!$K271)+Vehicles!$C$15*IF(Inputs!$E$628=1,IF(Inputs!$E$628=1,Fuel_Specs!$B$42,IF(Inputs!$E$628=3,Fuel_Specs!$B$44,Fuel_Specs!$B$43)),Fuel_Specs!$B$43)/((1-Vehicles!$C$36)*(1-Vehicles!$C$15)*Fuel_Specs!$B$21+Vehicles!$C$36*(1-Vehicles!$C$15)*Fuel_Specs!$B$24+Vehicles!$C$15*IF(Inputs!$E$628=1,IF(Inputs!$E$628=1,Fuel_Specs!$B$42,IF(Inputs!$E$628=3,Fuel_Specs!$B$44,Fuel_Specs!$B$43)),Fuel_Specs!$B$43))*(BioOil!$BA345*BioOil!$BB$335+BioOil!$BB345))/1000000*HLOOKUP($J$10,$Z$5:$AD$6,2,FALSE)/HLOOKUP($J$11,$Z$7:$AD$8,2,FALSE) -> 158.1062291 | AG27: =((1-Vehicles!$C$36)*(1-Vehicles!$C$15)*Fuel_Specs!$B$21/((1-Vehicles!$C$36)*(1-Vehicles!$C$15)*Fuel_Specs!$B$21+Vehicles!$C$36*(1-Vehicles!$C$15)*Fuel_Specs!$B$24+Vehicles!$C$15*IF(Inputs!$E$628=1,Fuel_Specs!$B$42,Fuel_Specs!$B$43))*(Petroleum!B271*Petroleum!$J$262+Petroleum!$J271)+Vehicles!$C$36*(1-Vehicles!$C$15)*Fuel_Specs!$B$24/((1-Vehicles!$C$36)*(1-Vehicles!$C$15)*Fuel_Specs!$B$21+Vehicles!$C$36*(1-Vehicles!$C$15)*Fuel_Specs!$B$24+Vehicles!$C$15*IF(Inputs!$E$628=1,Fuel_Specs!$B$42,Fuel_Specs!$B$43))*(Petroleum!B271*Petroleum!$K$262+Petroleum!$K271)+Vehicles!$C$15*IF(Inputs!$E$628=1,Fuel_Specs!$B$42,Fuel_Specs!$B$43)/((1-Vehicles!$C$36)*(1-Vehicles!$C$15)*Fuel_Specs!$B$21+Vehicles!$C$36*(1-Vehicles!$C$15)*Fuel_Specs!$B$24+Vehicles!$C$15*IF(Inputs!$E$628=1,Fuel_Specs!$B$42,Fuel_Specs!$B$43))*(Pyrolysis!$AB180*Pyrolysis!$AC$171+Pyrolysis!$AC180))/1000000*HLOOKUP($J$10,$Z$5:$AD$6,2,FALSE)/HLOOKUP($J$11,$Z$7:$AD$8,2,FALSE) -> 156.4490546 | AH27: =(((1-Vehicles!$C$37)*(1-Vehicles!$C$17-Vehicles!$C$18)*Fuel_Specs!$B$21*(Petroleum!B271*Petroleum!$J$262+Petroleum!$J271)+Vehicles!$C$37*(1-Vehicles!$C$17-Vehicles!$C$18)*Fuel_Specs!$B$24*(Petroleum!B271*Petroleum!$K$262+Petroleum!$K271)+Vehicles!$C$17*Fuel_Specs!$B$32*(EtOH!BP498*EtOH!$BQ$489+EtOH!$BQ498)+Vehicles!$C$18*Fuel_Specs!$B$35*('E-D Additives'!$B62*'E-D Additives'!$B$53))/((1-Vehicles!$C$37)*(1-Vehicles!$C$17-Vehicles!$C$18)*Fuel_Specs!$B$21+Vehicles!$C$37*(1-Vehicles!$C$17-Vehicles!$C$18)*Fuel_Specs!$B$24+Vehicles!$C$17*Fuel_Specs!$B$32+Vehicles!$C$18*Fuel_Specs!$B$35))/1000000*HLOOKUP($J$10,$Z$5:$AD$6,2,FALSE)/HLOOKUP($J$11,$Z$7:$AD$8,2,FALSE) -> 45.5763686 | AI27: =AN27*(Vehicles!$M$23/Vehicles!$CM$59)/(Vehicles!$M$23*(1/Vehicles!$CM$59+1/Vehicles!$CN$59)+Vehicles!$M$24/Vehicles!$CO$59)+E27*(Vehicles!$M$23/Vehicles!$CN$59+Vehicles!$M$24/Vehicles!$CO$59)/(Vehicles!$M$23*(1/Vehicles!$CM$59+1/Vehicles!$CN$59)+Vehicles!$M$24/Vehicles!$CO$59) -> 87.96442523 | AJ27: =AN27*(Vehicles!$N$23/Vehicles!$CQ$59)/(Vehicles!$N$23*(1/Vehicles!$CQ$59+1/Vehicles!$CR$59)+Vehicles!$N$24/Vehicles!$CS$59)+AC27*(Vehicles!$N$23/Vehicles!$CR$59+Vehicles!$N$24/Vehicles!$CS$59)/(Vehicles!$N$23*(1/Vehicles!$CQ$59+1/Vehicles!$CR$59)+Vehicles!$N$24/Vehicles!$CS$59) -> 92.14321762 | AK27: =AN27*(Vehicles!$O$23/Vehicles!$CU$59)/(Vehicles!$O$23*(1/Vehicles!$CU$59+1/Vehicles!$CV$59)+Vehicles!$O$24/Vehicles!$CW$59)+AD27*(Vehicles!$O$23/Vehicles!$CV$59+Vehicles!$O$24/Vehicles!$CW$59)/(Vehicles!$O$23*(1/Vehicles!$CU$59+1/Vehicles!$CV$59)+Vehicles!$O$24/Vehicles!$CW$59) -> 94.12970703 | AL27: =AN27*(Vehicles!$P$23/Vehicles!$CY$59)/(Vehicles!$P$23*(1/Vehicles!$CY$59+1/Vehicles!$CZ$59)+Vehicles!$P$24/Vehicles!$DA$59)+AE27*(Vehicles!$P$23/Vehicles!$CZ$59+Vehicles!$P$24/Vehicles!$DA$59)/(Vehicles!$P$23*(1/Vehicles!$CY$59+1/Vehicles!$CZ$59)+Vehicles!$P$24/Vehicles!$DA$59) -> 91.40122264 | AM27: =AN27*(Vehicles!$R$23/Vehicles!$DG$59)/(Vehicles!$R$23*(1/Vehicles!$DG$59+1/Vehicles!$DH$59)+Vehicles!$R$24/Vehicles!$DI$59)+AH27*(Vehicles!$R$23/Vehicles!$DH$59+Vehicles!$R$24/Vehicles!$DI$59)/(Vehicles!$R$23*(1/Vehicles!$DG$59+1/Vehicles!$DH$59)+Vehicles!$R$24/Vehicles!$DI$59) -> 93.92875417 | AN27: =(Electric!$G194+Electric!$F194)/1000000*HLOOKUP($J$10,$Z$5:$AD$6,2,FALSE)/HLOOKUP($J$11,$Z$7:$AD$8,2,FALSE) -> 220.1049119 | AO27: =(Hydrogen!$AF171*Hydrogen!$AG$162+Hydrogen!$AG171)/1000000*HLOOKUP($J$10,$Z$5:$AD$6,2,FALSE)/HLOOKUP($J$11,$Z$7:$AD$8,2,FALSE) -> 146.6565796 | AP27: =(Hydrogen!$BJ171*Hydrogen!$BK$162+Hydrogen!$BK171)/1000000*HLOOKUP($J$10,$Z$5:$AD$6,2,FALSE)/HLOOKUP($J$11,$Z$7:$AD$8,2,FALSE) -> 194.7327643 | AQ27: =AN27*(Vehicles!$S$23/Vehicles!$DW$59)/(Vehicles!$S$23*(1/Vehicles!$DW$59+1/Vehicles!$DX$59)+Vehicles!$S$24/Vehicles!$DY$59)+AO27*(Vehicles!$S$23/Vehicles!$DX$59+Vehicles!$S$24/Vehicles!$DY$59)/(Vehicles!$S$23*(1/Vehicles!$DW$59+1/Vehicles!$DX$59)+Vehicles!$S$24/Vehicles!$DY$59) -> 171.8784658 | AR27: =AN27*(Vehicles!$S$23/Vehicles!$DW$59)/(Vehicles!$S$23*(1/Vehicles!$DW$59+1/Vehicles!$DX$59)+Vehicles!$S$24/Vehicles!$DY$59)+AP27*(Vehicles!$S$23/Vehicles!$DX$59+Vehicles!$S$24/Vehicles!$DY$59)/(Vehicles!$S$23*(1/Vehicles!$DW$59+1/Vehicles!$DX$59)+Vehicles!$S$24/Vehicles!$DY$59) -> 203.4454661 | AS27: =((1-Vehicles!$C$33)*(1-Vehicles!$C$16)*Fuel_Specs!$B$15/((1-Vehicles!$C$33)*(1-Vehicles!$C$16)*Fuel_Specs!$B$15+Vehicles!$C$33*(1-Vehicles!$C$16)*Fuel_Specs!$B$17+Vehicles!$C$16*Fuel_Specs!$B$46)*(Petroleum!$B271*Petroleum!$D$262+Petroleum!$D271)+Vehicles!$C$33*(1-Vehicles!$C$16)*Fuel_Specs!$B$17/((1-Vehicles!$C$33)*(1-Vehicles!$C$16)*Fuel_Specs!$B$15+Vehicles!$C$33*(1-Vehicles!$C$16)*Fuel_Specs!$B$17+Vehicles!$C$16*Fuel_Specs!$B$46)*(Petroleum!B271*Petroleum!$F$262+Petroleum!$F271)+Vehicles!$C$16*Fuel_Specs!$B$46/((1-Vehicles!$C$33)*(1-Vehicles!$C$16)*Fuel_Specs!$B$15+Vehicles!$C$33*(1-Vehicles!$C$16)*Fuel_Specs!$B$17+Vehicles!$C$16*Fuel_Specs!$B$46)*(IDL!$L121*IDL!$M$112+IDL!$M121))/1000000*HLOOKUP($J$10,$Z$5:$AD$6,2,FALSE)/HLOOKUP($J$11,$Z$7:$AD$8,2,FALSE) -> 280.1356276 | AV27: SI - Gaseous H2 | AW27: RNAVGH2ICE | BQ27: FCV - LPG | BR27: RNAVFCVLPG
A28: PM10: Total | B28: =(Inputs!$E$1400*(Petroleum!$B272*Petroleum!$F$262+Petroleum!$F272)+(1-Inputs!$E$1400)*(Petroleum!$B272*Petroleum!$D$262+Petroleum!$D272))/1000000*HLOOKUP($J$10,$Z$5:$AD$6,2,FALSE)/HLOOKUP($J$11,$Z$7:$AD$8,2,FALSE) -> 4.231119987 | C28: =(Petroleum!$C272*Petroleum!$G$262+Petroleum!$G272)/1000000*HLOOKUP($J$10,$Z$5:$AD$6,2,FALSE)/HLOOKUP($J$11,$Z$7:$AD$8,2,FALSE) -> 4.404634702 | D28: =((1-Vehicles!$C$28)*(1-Vehicles!$C$7)*Fuel_Specs!$B$15/((1-Vehicles!$C$28)*(1-Vehicles!$C$7)*Fuel_Specs!$B$15+Vehicles!$C$28*(1-Vehicles!$C$7)*Fuel_Specs!$B$17+Vehicles!$C$7*Fuel_Specs!$B$32)*(Petroleum!$B272*Petroleum!$D$262+(Petroleum!$D272-'T&D'!G222))+Vehicles!$C$28*(1-Vehicles!$C$7)*Fuel_Specs!$B$17/((1-Vehicles!$C$28)*(1-Vehicles!$C$7)*Fuel_Specs!$B$15+Vehicles!$C$28*(1-Vehicles!$C$7)*Fuel_Specs!$B$17+Vehicles!$C$7*Fuel_Specs!$B$32)*(Petroleum!B272*Petroleum!$F$262+Petroleum!$F272)+Vehicles!$C$7*Fuel_Specs!$B$32/((1-Vehicles!$C$28)*(1-Vehicles!$C$7)*Fuel_Specs!$B$15+Vehicles!$C$28*(1-Vehicles!$C$7)*Fuel_Specs!$B$17+Vehicles!$C$7*Fuel_Specs!$B$32)*(EtOH!BR499*EtOH!$BS$489+EtOH!$BS499)+Petroleum!AS134+Petroleum!AT134)/1000000*HLOOKUP($J$10,$Z$5:$AD$6,2,FALSE)/HLOOKUP($J$11,$Z$7:$AD$8,2,FALSE) -> 4.231119987 | E28: =(Inputs!$E$97*(IF(Inputs!F$102=1,Petroleum!$B272,Petroleum!$C272)*Petroleum!$K$262+Petroleum!$K272)+(1-Inputs!$E$97)*(IF(Inputs!F$101=1,Petroleum!$B272,Petroleum!$C272)*Petroleum!$J$262+Petroleum!$J272))/1000000*HLOOKUP($J$10,$Z$5:$AD$6,2,FALSE)/HLOOKUP($J$11,$Z$7:$AD$8,2,FALSE) -> 3.204913947 | F28: =(NG!$I94*NG!$J$84+NG!$J94)/1000000*HLOOKUP($J$10,$Z$5:$AD$6,2,FALSE)/HLOOKUP($J$11,$Z$7:$AD$8,2,FALSE) -> 2.661556804 | G28: =(NG!$Q94*NG!$R$84+NG!$R94)/1000000*HLOOKUP($J$10,$Z$5:$AD$6,2,FALSE)/HLOOKUP($J$11,$Z$7:$AD$8,2,FALSE) -> 1.696577419 | H28: =(NG!$W94*NG!$X$84+NG!$X94)/1000000*HLOOKUP($J$10,$Z$5:$AD$6,2,FALSE)/HLOOKUP($J$11,$Z$7:$AD$8,2,FALSE) -> 1.368264156 | I28: =('MeOH&FTD'!BJ147*'MeOH&FTD'!BK$137+'MeOH&FTD'!BK147)/1000000*HLOOKUP($J$10,$Z$5:$AD$6,2,FALSE)/HLOOKUP($J$11,$Z$7:$AD$8,2,FALSE) -> 11.8444942 | J28: =((1-Vehicles!$C$27)*(1-Vehicles!$C$5)*Fuel_Specs!$B$15/((1-Vehicles!$C$27)*(1-Vehicles!$C$5)*Fuel_Specs!$B$15+Vehicles!$C$27*(1-Vehicles!$C$5)*Fuel_Specs!$B$17+Vehicles!$C$5*Fuel_Specs!$B$31)*(Petroleum!$B272*Petroleum!$D$262+Petroleum!$D272)+Vehicles!$C$27*(1-Vehicles!$C$5)*Fuel_Specs!$B$17/((1-Vehicles!$C$27)*(1-Vehicles!$C$5)*Fuel_Specs!$B$15+Vehicles!$C$27*(1-Vehicles!$C$5)*Fuel_Specs!$B$17+Vehicles!$C$5*Fuel_Specs!$B$31)*(Petroleum!B272*Petroleum!$F$262+Petroleum!$F272)+Vehicles!$C$5*Fuel_Specs!$B$31/((1-Vehicles!$C$27)*(1-Vehicles!$C$5)*Fuel_Specs!$B$15+Vehicles!$C$27*(1-Vehicles!$C$5)*Fuel_Specs!$B$17+Vehicles!$C$5*Fuel_Specs!$B$31)*('MeOH&FTD'!$N147*'MeOH&FTD'!$O$137+'MeOH&FTD'!$O147))/1000000*HLOOKUP($J$10,$Z$5:$AD$6,2,FALSE)/HLOOKUP($J$11,$Z$7:$AD$8,2,FALSE) -> 12.41678548 | K28: =((1-Vehicles!$C$27)*(1-Vehicles!$C$6)*Fuel_Specs!$B$15/((1-Vehicles!$C$27)*(1-Vehicles!$C$6)*Fuel_Specs!$B$15+Vehicles!$C$27*(1-Vehicles!$C$6)*Fuel_Specs!$B$17+Vehicles!$C$6*Fuel_Specs!$B$31)*(Petroleum!$B272*Petroleum!$D$262+Petroleum!$D272)+Vehicles!$C$27*(1-Vehicles!$C$6)*Fuel_Specs!$B$17/((1-Vehicles!$C$27)*(1-Vehicles!$C$6)*Fuel_Specs!$B$15+Vehicles!$C$27*(1-Vehicles!$C$6)*Fuel_Specs!$B$17+Vehicles!$C$6*Fuel_Specs!$B$31)*(Petroleum!B272*Petroleum!$F$262+Petroleum!$F272)+Vehicles!$C$6*Fuel_Specs!$B$31/((1-Vehicles!$C$27)*(1-Vehicles!$C$6)*Fuel_Specs!$B$15+Vehicles!$C$27*(1-Vehicles!$C$6)*Fuel_Specs!$B$17+Vehicles!$C$6*Fuel_Specs!$B$31)*('MeOH&FTD'!$N147*'MeOH&FTD'!$O$137+'MeOH&FTD'!$O147))/1000000*HLOOKUP($J$10,$Z$5:$AD$6,2,FALSE)/HLOOKUP($J$11,$Z$7:$AD$8,2,FALSE) -> 13.42754763 | L28: =('MeOH&FTD'!$N147*'MeOH&FTD'!$O$137+'MeOH&FTD'!$O147)/1000000*HLOOKUP($J$10,$Z$5:$AD$6,2,FALSE)/HLOOKUP($J$11,$Z$7:$AD$8,2,FALSE) -> 15.76072212 | M28: =((1-Vehicles!$C$29)*(1-Vehicles!$C$8)*Fuel_Specs!$B$15/((1-Vehicles!$C$29)*(1-Vehicles!$C$8)*Fuel_Specs!$B$15+Vehicles!$C$29*(1-Vehicles!$C$8)*Fuel_Specs!$B$17+Vehicles!$C$8*Fuel_Specs!$B$32)*(Petroleum!$B272*Petroleum!$D$262+(Petroleum!$D272-'T&D'!G222))+Vehicles!$C$29*(1-Vehicles!$C$8)*Fuel_Specs!$B$17/((1-Vehicles!$C$29)*(1-Vehicles!$C$8)*Fuel_Specs!$B$15+Vehicles!$C$29*(1-Vehicles!$C$8)*Fuel_Specs!$B$17+Vehicles!$C$8*Fuel_Specs!$B$32)*(Petroleum!B272*Petroleum!$F$262+Petroleum!$F272)+Vehicles!$C$8*Fuel_Specs!$B$32/((1-Vehicles!$C$29)*(1-Vehicles!$C$8)*Fuel_Specs!$B$15+Vehicles!$C$29*(1-Vehicles!$C$8)*Fuel_Specs!$B$17+Vehicles!$C$8*Fuel_Specs!$B$32)*(EtOH!BR499*EtOH!$BS$489+EtOH!$BS499)+Petroleum!AS134+Petroleum!AT134)/1000000*HLOOKUP($J$10,$Z$5:$AD$6,2,FALSE)/HLOOKUP($J$11,$Z$7:$AD$8,2,FALSE) -> 16.39176825 | N28: =((1-Vehicles!$C$30)*(1-Vehicles!$C$12)*Fuel_Specs!$B$15/((1-Vehicles!$C$30)*(1-Vehicles!$C$12)*Fuel_Specs!$B$15+Vehicles!$C$30*(1-Vehicles!$C$12)*Fuel_Specs!$B$17+Vehicles!$C$12*Fuel_Specs!$B$33)*(Petroleum!$B272*Petroleum!$D$262+Petroleum!$D272)+Vehicles!$C$30*(1-Vehicles!$C$12)*Fuel_Specs!$B$17/((1-Vehicles!$C$30)*(1-Vehicles!$C$12)*Fuel_Specs!$B$15+Vehicles!$C$30*(1-Vehicles!$C$12)*Fuel_Specs!$B$17+Vehicles!$C$12*Fuel_Specs!$B$33)*(Petroleum!B272*Petroleum!$F$262+Petroleum!$F272)+Vehicles!$C$12*Fuel_Specs!$B$33/((1-Vehicles!$C$30)*(1-Vehicles!$C$12)*Fuel_Specs!$B$15+Vehicles!$C$30*(1-Vehicles!$C$12)*Fuel_Specs!$B$17+Vehicles!$C$12*Fuel_Specs!$B$33)*(EtOH!$BT499*EtOH!$BU$489+EtOH!$BU499))/1000000*HLOOKUP($J$10,$Z$5:$AD$6,2,FALSE)/HLOOKUP($J$11,$Z$7:$AD$8,2,FALSE) -> 16.24661085 | O28: =((1-Vehicles!$C$29)*(1-Vehicles!$C$9)*Fuel_Specs!$B$15/((1-Vehicles!$C$29)*(1-Vehicles!$C$9)*Fuel_Specs!$B$15+Vehicles!$C$29*(1-Vehicles!$C$9)*Fuel_Specs!$B$17+Vehicles!$C$9*Fuel_Specs!$B$32)*(Petroleum!$B272*Petroleum!$D$262+(Petroleum!$D272-'T&D'!G222))+Vehicles!$C$29*(1-Vehicles!$C$9)*Fuel_Specs!$B$17/((1-Vehicles!$C$29)*(1-Vehicles!$C$9)*Fuel_Specs!$B$15+Vehicles!$C$29*(1-Vehicles!$C$9)*Fuel_Specs!$B$17+Vehicles!$C$9*Fuel_Specs!$B$32)*(Petroleum!B272*Petroleum!$F$262+Petroleum!$F272)+Vehicles!$C$9*Fuel_Specs!$B$32/((1-Vehicles!$C$29)*(1-Vehicles!$C$9)*Fuel_Specs!$B$15+Vehicles!$C$29*(1-Vehicles!$C$9)*Fuel_Specs!$B$17+Vehicles!$C$9*Fuel_Specs!$B$32)*(EtOH!BR499*EtOH!$BS$489+EtOH!$BS499)+Petroleum!AS134+Petroleum!AT134)/1000000*HLOOKUP($J$10,$Z$5:$AD$6,2,FALSE)/HLOOKUP($J$11,$Z$7:$AD$8,2,FALSE) -> 16.39176825 | P28: =(EtOH!$BP499*EtOH!$BQ$489+EtOH!$BQ499)/1000000*HLOOKUP($J$10,$Z$5:$AD$6,2,FALSE)/HLOOKUP($J$11,$Z$7:$AD$8,2,FALSE) -> 20.473678 | Q28: =((1-Vehicles!$C$33)*(1-Vehicles!$C$16)*Fuel_Specs!$B$15/((1-Vehicles!$C$33)*(1-Vehicles!$C$16)*Fuel_Specs!$B$15+Vehicles!$C$33*(1-Vehicles!$C$16)*Fuel_Specs!$B$17+Vehicles!$C$16*Fuel_Specs!$B$45)*(Petroleum!$B272*Petroleum!$D$262+Petroleum!$D272)+Vehicles!$C$33*(1-Vehicles!$C$16)*Fuel_Specs!$B$17/((1-Vehicles!$C$33)*(1-Vehicles!$C$16)*Fuel_Specs!$B$15+Vehicles!$C$33*(1-Vehicles!$C$16)*Fuel_Specs!$B$17+Vehicles!$C$16*Fuel_Specs!$B$45)*(Petroleum!B272*Petroleum!$F$262+Petroleum!$F272)+Vehicles!$C$16*Fuel_Specs!$B$45/((1-Vehicles!$C$33)*(1-Vehicles!$C$16)*Fuel_Specs!$B$15+Vehicles!$C$33*(1-Vehicles!$C$16)*Fuel_Specs!$B$17+Vehicles!$C$16*Fuel_Specs!$B$45)*(BioOil!$BO346*BioOil!$BP$335+BioOil!$BP346))/1000000*HLOOKUP($J$10,$Z$5:$AD$6,2,FALSE)/HLOOKUP($J$11,$Z$7:$AD$8,2,FALSE) -> 4.583552146 | R28: =((1-Vehicles!$C$33)*(1-Vehicles!$C$16)*Fuel_Specs!$B$15/((1-Vehicles!$C$33)*(1-Vehicles!$C$16)*Fuel_Specs!$B$15+Vehicles!$C$33*(1-Vehicles!$C$16)*Fuel_Specs!$B$17+Vehicles!$C$16*Fuel_Specs!$B$45)*(Petroleum!$B272*Petroleum!$D$262+Petroleum!$D272)+Vehicles!$C$33*(1-Vehicles!$C$16)*Fuel_Specs!$B$17/((1-Vehicles!$C$33)*(1-Vehicles!$C$16)*Fuel_Specs!$B$15+Vehicles!$C$33*(1-Vehicles!$C$16)*Fuel_Specs!$B$17+Vehicles!$C$16*Fuel_Specs!$B$45)*(Petroleum!B272*Petroleum!$F$262+Petroleum!$F272)+Vehicles!$C$16*Fuel_Specs!$B$45/((1-Vehicles!$C$33)*(1-Vehicles!$C$16)*Fuel_Specs!$B$15+Vehicles!$C$33*(1-Vehicles!$C$16)*Fuel_Specs!$B$17+Vehicles!$C$16*Fuel_Specs!$B$45)*(Pyrolysis!$Z181*Pyrolysis!$AA$171+Pyrolysis!$AA181))/1000000*HLOOKUP($J$10,$Z$5:$AD$6,2,FALSE)/HLOOKUP($J$11,$Z$7:$AD$8,2,FALSE) -> 7.686067968 | S28: =AN28*(Vehicles!$C$23/Vehicles!$AR$59)/(Vehicles!$C$23*(1/Vehicles!$AR$59+1/Vehicles!$AS$59)+Vehicles!$C$24/Vehicles!$AT$59)+B28*(Vehicles!$C$23/Vehicles!$AS$59+Vehicles!$C$24/Vehicles!$AT$59)/(Vehicles!$C$23*(1/Vehicles!$AR$59+1/Vehicles!$AS$59)+Vehicles!$C$24/Vehicles!$AT$59) -> 21.27174168 | T28: =AN28*(Vehicles!$D$23/Vehicles!$AV$59)/(Vehicles!$D$23*(1/Vehicles!$AV$59+1/Vehicles!$AW$59)+Vehicles!$D$24/Vehicles!$AX$59)+C28*(Vehicles!$D$23/Vehicles!$AW$59+Vehicles!$D$24/Vehicles!$AX$59)/(Vehicles!$D$23*(1/Vehicles!$AV$59+1/Vehicles!$AW$59)+Vehicles!$D$24/Vehicles!$AX$59) -> 21.39725619 | U28: =AN28*(Vehicles!$F$23/Vehicles!$BD$59)/(Vehicles!$F$23*(1/Vehicles!$BD$59+1/Vehicles!$BE$59)+Vehicles!$F$24/Vehicles!$BF$59)+D28*(Vehicles!$F$23/Vehicles!$BE$59+Vehicles!$F$24/Vehicles!$BF$59)/(Vehicles!$F$23*(1/Vehicles!$BD$59+1/Vehicles!$BE$59)+Vehicles!$F$24/Vehicles!$BF$59) -> 21.27174168 | V28: =AN28*(Vehicles!$G$23/Vehicles!$BH$59)/(Vehicles!$G$23*(1/Vehicles!$BH$59+1/Vehicles!$BI$59)+Vehicles!$G$24/Vehicles!$BJ$59)+F28*(Vehicles!$G$23/Vehicles!$BI$59+Vehicles!$G$24/Vehicles!$BJ$59)/(Vehicles!$G$23*(1/Vehicles!$BH$59+1/Vehicles!$BI$59)+Vehicles!$G$24/Vehicles!$BJ$59) -> 20.13637422 | W28: =AN28*(Vehicles!$H$23/Vehicles!$BL$59)/(Vehicles!$H$23*(1/Vehicles!$BL$59+1/Vehicles!$BM$59)+Vehicles!$H$24/Vehicles!$BN$59)+G28*(Vehicles!$H$23/Vehicles!$BM$59+Vehicles!$H$24/Vehicles!$BN$59)/(Vehicles!$H$23*(1/Vehicles!$BL$59+1/Vehicles!$BM$59)+Vehicles!$H$24/Vehicles!$BN$59) -> 19.43834167 | X28: =AN28*(Vehicles!$I$23/Vehicles!$BP$59)/(Vehicles!$I$23*(1/Vehicles!$BP$59+1/Vehicles!$BQ$59)+Vehicles!$I$24/Vehicles!$BR$59)+H28*(Vehicles!$I$23/Vehicles!$BQ$59+Vehicles!$I$24/Vehicles!$BR$59)/(Vehicles!$I$23*(1/Vehicles!$BP$59+1/Vehicles!$BQ$59)+Vehicles!$I$24/Vehicles!$BR$59) -> 19.20085127 | Y28: =AN28*(Vehicles!$J$23/Vehicles!$BT$59)/(Vehicles!$J$23*(1/Vehicles!$BT$59+1/Vehicles!$BU$59)+Vehicles!$J$24/Vehicles!$BV$59)+K28*(Vehicles!$J$23/Vehicles!$BU$59+Vehicles!$J$24/Vehicles!$BV$59)/(Vehicles!$J$23*(1/Vehicles!$BT$59+1/Vehicles!$BU$59)+Vehicles!$J$24/Vehicles!$BV$59) -> 27.05024603 | Z28: =AN28*(Vehicles!$K$23/Vehicles!$BX$59)/(Vehicles!$K$23*(1/Vehicles!$BX$59+1/Vehicles!$BY$59)+Vehicles!$K$24/Vehicles!$BZ$59)+O28*(Vehicles!$K$23/Vehicles!$BY$59+Vehicles!$K$24/Vehicles!$BZ$59)/(Vehicles!$K$23*(1/Vehicles!$BX$59+1/Vehicles!$BY$59)+Vehicles!$K$24/Vehicles!$BZ$59) -> 29.24389125 | AA28: =AN28*(Vehicles!$L$23/Vehicles!$CB$59)/(Vehicles!$L$23*(1/Vehicles!$CB$59+1/Vehicles!$CC$59)+Vehicles!$L$24/Vehicles!$CD$59)+AO28*(Vehicles!$L$23/Vehicles!$CC$59+Vehicles!$L$24/Vehicles!$CD$59)/(Vehicles!$L$23*(1/Vehicles!$CB$59+1/Vehicles!$CC$59)+Vehicles!$L$24/Vehicles!$CD$59) -> 34.5122849 | AB28: =AN28*(Vehicles!$L$23/Vehicles!$CB$59)/(Vehicles!$L$23*(1/Vehicles!$CB$59+1/Vehicles!$CC$59)+Vehicles!$L$24/Vehicles!$CE$59)+AP28*(Vehicles!$L$23/Vehicles!$CC$59+Vehicles!$L$24/Vehicles!$CE$59)/(Vehicles!$L$23*(1/Vehicles!$CB$59+1/Vehicles!$CC$59)+Vehicles!$L$24/Vehicles!$CE$59) -> 48.56894445 | AC28: =('MeOH&FTD'!$AJ147*'MeOH&FTD'!$AK$137+'MeOH&FTD'!$AK147)/1000000*HLOOKUP($J$10,$Z$5:$AD$6,2,FALSE)/HLOOKUP($J$11,$Z$7:$AD$8,2,FALSE) -> 3.786323791 | AD28: =((1-Vehicles!$C$34)*(1-Vehicles!$C$13)*Fuel_Specs!$B$21/((1-Vehicles!$C$34)*(1-Vehicles!$C$13)*Fuel_Specs!$B$21+Vehicles!$C$34*(1-Vehicles!$C$13)*Fuel_Specs!$B$24+Vehicles!$C$13*Fuel_Specs!$B$41)*(Petroleum!B272*Petroleum!$J$262+Petroleum!$J272)+Vehicles!$C$34*(1-Vehicles!$C$13)*Fuel_Specs!$B$24/((1-Vehicles!$C$34)*(1-Vehicles!$C$13)*Fuel_Specs!$B$21+Vehicles!$C$34*(1-Vehicles!$C$13)*Fuel_Specs!$B$24+Vehicles!$C$13*Fuel_Specs!$B$41)*(Petroleum!B272*Petroleum!$K$262+Petroleum!$K272)+Vehicles!$C$13*Fuel_Specs!$B$41/((1-Vehicles!$C$34)*(1-Vehicles!$C$13)*Fuel_Specs!$B$21+Vehicles!$C$34*(1-Vehicles!$C$13)*Fuel_Specs!$B$24+Vehicles!$C$13*Fuel_Specs!$B$41)*('MeOH&FTD'!$AZ147*'MeOH&FTD'!$BA$137+'MeOH&FTD'!$BA147))/1000000*HLOOKUP($J$10,$Z$5:$AD$6,2,FALSE)/HLOOKUP($J$11,$Z$7:$AD$8,2,FALSE) -> 13.55017527 | AE28: =((1-Vehicles!$C$35)*(1-Vehicles!$C$14)*Fuel_Specs!$B$21/((1-Vehicles!$C$35)*(1-Vehicles!$C$14)*Fuel_Specs!$B$21+Vehicles!$C$35*(1-Vehicles!$C$14)*Fuel_Specs!$B$24+Vehicles!$C$14*Fuel_Specs!$B$40)*(Petroleum!B272*Petroleum!$J$262+Petroleum!$J272)+Vehicles!$C$35*(1-Vehicles!$C$14)*Fuel_Specs!$B$24/((1-Vehicles!$C$35)*(1-Vehicles!$C$14)*Fuel_Specs!$B$21+Vehicles!$C$35*(1-Vehicles!$C$14)*Fuel_Specs!$B$24+Vehicles!$C$14*Fuel_Specs!$B$40)*(Petroleum!B272*Petroleum!$K$262+Petroleum!$K272)+Vehicles!$C$14*Fuel_Specs!$B$40/((1-Vehicles!$C$35)*(1-Vehicles!$C$14)*Fuel_Specs!$B$21+Vehicles!$C$35*(1-Vehicles!$C$14)*Fuel_Specs!$B$24+Vehicles!$C$14*Fuel_Specs!$B$40)*(BioOil!$W346*BioOil!$X$335+BioOil!$X346))/1000000*HLOOKUP($J$10,$Z$5:$AD$6,2,FALSE)/HLOOKUP($J$11,$Z$7:$AD$8,2,FALSE) -> 3.426438286 | AF28: =((1-Vehicles!$C$36)*(1-Vehicles!$C$15)*Fuel_Specs!$B$21/((1-Vehicles!$C$36)*(1-Vehicles!$C$15)*Fuel_Specs!$B$21+Vehicles!$C$36*(1-Vehicles!$C$15)*Fuel_Specs!$B$24+Vehicles!$C$15*IF(Inputs!$E$628=1,IF(Inputs!$E$628=1,Fuel_Specs!$B$42,IF(Inputs!$E$628=3,Fuel_Specs!$B$44,Fuel_Specs!$B$43)),Fuel_Specs!$B$43))*(Petroleum!B272*Petroleum!$J$262+Petroleum!$J272)+Vehicles!$C$36*(1-Vehicles!$C$15)*Fuel_Specs!$B$24/((1-Vehicles!$C$36)*(1-Vehicles!$C$15)*Fuel_Specs!$B$21+Vehicles!$C$36*(1-Vehicles!$C$15)*Fuel_Specs!$B$24+Vehicles!$C$15*IF(Inputs!$E$628=1,IF(Inputs!$E$628=1,Fuel_Specs!$B$42,IF(Inputs!$E$628=3,Fuel_Specs!$B$44,Fuel_Specs!$B$43)),Fuel_Specs!$B$43))*(Petroleum!B272*Petroleum!$K$262+Petroleum!$K272)+Vehicles!$C$15*IF(Inputs!$E$628=1,IF(Inputs!$E$628=1,Fuel_Specs!$B$42,IF(Inputs!$E$628=3,Fuel_Specs!$B$44,Fuel_Specs!$B$43)),Fuel_Specs!$B$43)/((1-Vehicles!$C$36)*(1-Vehicles!$C$15)*Fuel_Specs!$B$21+Vehicles!$C$36*(1-Vehicles!$C$15)*Fuel_Specs!$B$24+Vehicles!$C$15*IF(Inputs!$E$628=1,IF(Inputs!$E$628=1,Fuel_Specs!$B$42,IF(Inputs!$E$628=3,Fuel_Specs!$B$44,Fuel_Specs!$B$43)),Fuel_Specs!$B$43))*(BioOil!$BA346*BioOil!$BB$335+BioOil!$BB346))/1000000*HLOOKUP($J$10,$Z$5:$AD$6,2,FALSE)/HLOOKUP($J$11,$Z$7:$AD$8,2,FALSE) -> 13.57030462 | AG28: =((1-Vehicles!$C$36)*(1-Vehicles!$C$15)*Fuel_Specs!$B$21/((1-Vehicles!$C$36)*(1-Vehicles!$C$15)*Fuel_Specs!$B$21+Vehicles!$C$36*(1-Vehicles!$C$15)*Fuel_Specs!$B$24+Vehicles!$C$15*IF(Inputs!$E$628=1,Fuel_Specs!$B$42,Fuel_Specs!$B$43))*(Petroleum!B272*Petroleum!$J$262+Petroleum!$J272)+Vehicles!$C$36*(1-Vehicles!$C$15)*Fuel_Specs!$B$24/((1-Vehicles!$C$36)*(1-Vehicles!$C$15)*Fuel_Specs!$B$21+Vehicles!$C$36*(1-Vehicles!$C$15)*Fuel_Specs!$B$24+Vehicles!$C$15*IF(Inputs!$E$628=1,Fuel_Specs!$B$42,Fuel_Specs!$B$43))*(Petroleum!B272*Petroleum!$K$262+Petroleum!$K272)+Vehicles!$C$15*IF(Inputs!$E$628=1,Fuel_Specs!$B$42,Fuel_Specs!$B$43)/((1-Vehicles!$C$36)*(1-Vehicles!$C$15)*Fuel_Specs!$B$21+Vehicles!$C$36*(1-Vehicles!$C$15)*Fuel_Specs!$B$24+Vehicles!$C$15*IF(Inputs!$E$628=1,Fuel_Specs!$B$42,Fuel_Specs!$B$43))*(Pyrolysis!$AB181*Pyrolysis!$AC$171+Pyrolysis!$AC181))/1000000*HLOOKUP($J$10,$Z$5:$AD$6,2,FALSE)/HLOOKUP($J$11,$Z$7:$AD$8,2,FALSE) -> 17.4124873 | AH28: =(((1-Vehicles!$C$37)*(1-Vehicles!$C$17-Vehicles!$C$18)*Fuel_Specs!$B$21*(Petroleum!B272*Petroleum!$J$262+Petroleum!$J272)+Vehicles!$C$37*(1-Vehicles!$C$17-Vehicles!$C$18)*Fuel_Specs!$B$24*(Petroleum!B272*Petroleum!$K$262+Petroleum!$K272)+Vehicles!$C$17*Fuel_Specs!$B$32*(EtOH!BP499*EtOH!$BQ$489+EtOH!$BQ499)+Vehicles!$C$18*Fuel_Specs!$B$35*('E-D Additives'!$B63*'E-D Additives'!$B$53))/((1-Vehicles!$C$37)*(1-Vehicles!$C$17-Vehicles!$C$18)*Fuel_Specs!$B$21+Vehicles!$C$37*(1-Vehicles!$C$17-Vehicles!$C$18)*Fuel_Specs!$B$24+Vehicles!$C$17*Fuel_Specs!$B$32+Vehicles!$C$18*Fuel_Specs!$B$35))/1000000*HLOOKUP($J$10,$Z$5:$AD$6,2,FALSE)/HLOOKUP($J$11,$Z$7:$AD$8,2,FALSE) -> 4.301200539 | AI28: =AN28*(Vehicles!$M$23/Vehicles!$CM$59)/(Vehicles!$M$23*(1/Vehicles!$CM$59+1/Vehicles!$CN$59)+Vehicles!$M$24/Vehicles!$CO$59)+E28*(Vehicles!$M$23/Vehicles!$CN$59+Vehicles!$M$24/Vehicles!$CO$59)/(Vehicles!$M$23*(1/Vehicles!$CM$59+1/Vehicles!$CN$59)+Vehicles!$M$24/Vehicles!$CO$59) -> 20.55515688 | AJ28: =AN28*(Vehicles!$N$23/Vehicles!$CQ$59)/(Vehicles!$N$23*(1/Vehicles!$CQ$59+1/Vehicles!$CR$59)+Vehicles!$N$24/Vehicles!$CS$59)+AC28*(Vehicles!$N$23/Vehicles!$CR$59+Vehicles!$N$24/Vehicles!$CS$59)/(Vehicles!$N$23*(1/Vehicles!$CQ$59+1/Vehicles!$CR$59)+Vehicles!$N$24/Vehicles!$CS$59) -> 20.97548962 | AK28: =AN28*(Vehicles!$O$23/Vehicles!$CU$59)/(Vehicles!$O$23*(1/Vehicles!$CU$59+1/Vehicles!$CV$59)+Vehicles!$O$24/Vehicles!$CW$59)+AD28*(Vehicles!$O$23/Vehicles!$CV$59+Vehicles!$O$24/Vehicles!$CW$59)/(Vehicles!$O$23*(1/Vehicles!$CU$59+1/Vehicles!$CV$59)+Vehicles!$O$24/Vehicles!$CW$59) -> 28.03430786 | AL28: =AN28*(Vehicles!$P$23/Vehicles!$CY$59)/(Vehicles!$P$23*(1/Vehicles!$CY$59+1/Vehicles!$CZ$59)+Vehicles!$P$24/Vehicles!$DA$59)+AE28*(Vehicles!$P$23/Vehicles!$CZ$59+Vehicles!$P$24/Vehicles!$DA$59)/(Vehicles!$P$23*(1/Vehicles!$CY$59+1/Vehicles!$CZ$59)+Vehicles!$P$24/Vehicles!$DA$59) -> 20.71530885 | AM28: =AN28*(Vehicles!$R$23/Vehicles!$DG$59)/(Vehicles!$R$23*(1/Vehicles!$DG$59+1/Vehicles!$DH$59)+Vehicles!$R$24/Vehicles!$DI$59)+AH28*(Vehicles!$R$23/Vehicles!$DH$59+Vehicles!$R$24/Vehicles!$DI$59)/(Vehicles!$R$23*(1/Vehicles!$DG$59+1/Vehicles!$DH$59)+Vehicles!$R$24/Vehicles!$DI$59) -> 21.34772197 | AN28: =(Electric!$G195+Electric!$F195)/1000000*HLOOKUP($J$10,$Z$5:$AD$6,2,FALSE)/HLOOKUP($J$11,$Z$7:$AD$8,2,FALSE) -> 65.83083384 | AO28: =(Hydrogen!$AF172*Hydrogen!$AG$162+Hydrogen!$AG172)/1000000*HLOOKUP($J$10,$Z$5:$AD$6,2,FALSE)/HLOOKUP($J$11,$Z$7:$AD$8,2,FALSE) -> 21.83966063 | AP28: =(Hydrogen!$BJ172*Hydrogen!$BK$162+Hydrogen!$BK172)/1000000*HLOOKUP($J$10,$Z$5:$AD$6,2,FALSE)/HLOOKUP($J$11,$Z$7:$AD$8,2,FALSE) -> 41.58415601 | AQ28: =AN28*(Vehicles!$S$23/Vehicles!$DW$59)/(Vehicles!$S$23*(1/Vehicles!$DW$59+1/Vehicles!$DX$59)+Vehicles!$S$24/Vehicles!$DY$59)+AO28*(Vehicles!$S$23/Vehicles!$DX$59+Vehicles!$S$24/Vehicles!$DY$59)/(Vehicles!$S$23*(1/Vehicles!$DW$59+1/Vehicles!$DX$59)+Vehicles!$S$24/Vehicles!$DY$59) -> 36.94606715 | AR28: =AN28*(Vehicles!$S$23/Vehicles!$DW$59)/(Vehicles!$S$23*(1/Vehicles!$DW$59+1/Vehicles!$DX$59)+Vehicles!$S$24/Vehicles!$DY$59)+AP28*(Vehicles!$S$23/Vehicles!$DX$59+Vehicles!$S$24/Vehicles!$DY$59)/(Vehicles!$S$23*(1/Vehicles!$DW$59+1/Vehicles!$DX$59)+Vehicles!$S$24/Vehicles!$DY$59) -> 49.91037569 | AS28: =((1-Vehicles!$C$33)*(1-Vehicles!$C$16)*Fuel_Specs!$B$15/((1-Vehicles!$C$33)*(1-Vehicles!$C$16)*Fuel_Specs!$B$15+Vehicles!$C$33*(1-Vehicles!$C$16)*Fuel_Specs!$B$17+Vehicles!$C$16*Fuel_Specs!$B$46)*(Petroleum!$B272*Petroleum!$D$262+Petroleum!$D272)+Vehicles!$C$33*(1-Vehicles!$C$16)*Fuel_Specs!$B$17/((1-Vehicles!$C$33)*(1-Vehicles!$C$16)*Fuel_Specs!$B$15+Vehicles!$C$33*(1-Vehicles!$C$16)*Fuel_Specs!$B$17+Vehicles!$C$16*Fuel_Specs!$B$46)*(Petroleum!B272*Petroleum!$F$262+Petroleum!$F272)+Vehicles!$C$16*Fuel_Specs!$B$46/((1-Vehicles!$C$33)*(1-Vehicles!$C$16)*Fuel_Specs!$B$15+Vehicles!$C$33*(1-Vehicles!$C$16)*Fuel_Specs!$B$17+Vehicles!$C$16*Fuel_Specs!$B$46)*(IDL!$L122*IDL!$M$112+IDL!$M122))/1000000*HLOOKUP($J$10,$Z$5:$AD$6,2,FALSE)/HLOOKUP($J$11,$Z$7:$AD$8,2,FALSE) -> 38.93972312 | AV28: SI - Liquid H2 | AW28: RNAVLH2ICE | BQ28: FCV - Naphtha | BR28: RNAVFCVNAPTHA
